Workbook

Sheet ProjectInformation
A1: CPN DATA
A2: INFORMATION ADDED BY DESIGNER
A3: Section Engineer | B3: Flattery
A4: Design Team | B4: Bell
B5: Hain
A6: County | B6: WAPELLO
A7: Project Number | B7: NHSX-063-2(155)--3H-90
A8: English or Metric | B8: ENGLISH
A9: Revised
A10: Bridge Block
A11: File No. | B11: 29590

Sheet PrintSheets
EF75: HYDRAULIC DESIGN
ET77: I hereby certify that this engineering document was prepared
ET78: by me or under my direct personal supervision and that I
ET79: am a duly licensed Professional Engineer under the laws of
ET80: the State of Iowa.
FQ81: 2019-06-27
ET83: Signature | FQ83: Date
ET84: David R. Claman
ET86: Printed or Typed Name
ET87: My license renewal date is December 31, 20 | FL87: 20
EG89: Pages or sheets covered by this seal: | EY89: CD.1-2
B94: FILE NO. | I94: =IF(ProjectInformation!$B$11<>"",ProjectInformation!$B$11,"") -> 29590 | P94: =UPPER(ProjectInformation!B8) -> ENGLISH | W94: DESIGN TEAM | AF94: =IF(AND(ProjectInformation!$B$3<>"",ProjectInformation!$B$4<>"",ProjectInformation!$B$5<>""),ProjectInformation!$B$3&"\"&ProjectInformation!$B$4&"\"&ProjectInformation!$B$5,IF(AND(ProjectInformation!$B$3<>"",ProjectInformation!$B$4<>""),ProjectInformation!$B$3&"\"&ProjectInformation!$B$4,IF(ProjectInformation!$B$3<>"",ProjectInformation!$B$3,""))) -> Flattery\Bell\Hain | BN94: =IF(ProjectInformation!$B$6<>"",ProjectInformation!$B$6,"") -> WAPELLO | CX94: COUNTY | DD94: PROJECT NUMBER | DP94: =IF(ProjectInformation!$B$7<>"",ProjectInformation!$B$7,"") -> NHSX-063-2(155)--3H-90 | ET94: SHEET NUMBER | FD94: CD.1 | FJ94: =IF(FP94<>"","REVISED","") ->  | FP94: =IF(ProjectInformation!$B$9<>"",ProjectInformation!$B$9,"") -> 
B95: 7/17/2019 11:39:17 AM dhain c:\pw_work\pwmain\dhain\d0824036\90063155_CD01.xlsm
B189: FILE NO. | I189: =IF(ProjectInformation!$B$11<>"",ProjectInformation!$B$11,"") -> 29590 | P189: =UPPER(ProjectInformation!B8) -> ENGLISH | W189: DESIGN TEAM | AF189: =IF(AND(ProjectInformation!$B$3<>"",ProjectInformation!$B$4<>"",ProjectInformation!$B$5<>""),ProjectInformation!$B$3&"\"&ProjectInformation!$B$4&"\"&ProjectInformation!$B$5,IF(AND(ProjectInformation!$B$3<>"",ProjectInformation!$B$4<>""),ProjectInformation!$B$3&"\"&ProjectInformation!$B$4,IF(ProjectInformation!$B$3<>"",ProjectInformation!$B$3,""))) -> Flattery\Bell\Hain | BN189: =IF(ProjectInformation!$B$6<>"",ProjectInformation!$B$6,"") -> WAPELLO | CX189: COUNTY | DD189: PROJECT NUMBER | DP189: =IF(ProjectInformation!$B$7<>"",ProjectInformation!$B$7,"") -> NHSX-063-2(155)--3H-90 | ET189: SHEET NUMBER | FD189: =IF($FD$94<>"","CD."& MID(OFFSET($FD$189,-95,0),4,LEN(OFFSET($FD$189,-95,0))-2)+1,"") -> CD.2 | FJ189: =IF(FP189<>"","REVISED","") ->  | FP189: =IF(ProjectInformation!$B$9<>"",ProjectInformation!$B$9,"") -> 
B190: 7/17/2019 11:39:17 AM dhain c:\pw_work\pwmain\dhain\d0824036\90063155_CD01.xlsm

Sheet DE104_3
A1: TabTitle | B1: =C16 -> DRAINAGE STRUCTURE BY ROAD CONTRACTOR
A2: Number of Tab Columns | B2: 41
A3: DE Starter Row Number | B3: 35
A4: TabSheet Starter Row Number | B4: 21
A5: TabSheet Header Row Count | B5: 20
A6: Top Header Cell | B6: AS15
A7: Bottom Header Cell | B7: CG34
A8: DESheet Row Count | B8: 38
A9: Fixed Empty Rows | B9: 5
A10: Usable Empty Rows | B10: 0
A11: Total Rows Placed | B11: 43 | C11: xlRight | D11: xlRight | E11: xlRight | F11: xlRight | G11: xlRight | H11: xlRight | I11: xlRight | J11: xlRight | K11: xlRight | L11: xlRight | M11: xlRight | N11: xlRight | O11: xlRight | P11: xlRight | Q11: xlRight | R11: xlRight | S11: xlRight | T11: xlLeft | U11: xlRight | V11: xlLeft | W11: xlRight | X11: xlRight | Y11: xlRight | Z11: xlRight | AA11: xlRight | AB11: xlRight | AC11: xlRight | AD11: xlRight | AE11: xlRight | AF11: xlRight | AG11: xlRight | AH11: xlCenter | AI11: xlRight | AJ11: xlRight | AK11: xlRight | AL11: xlRight | AM11: xlRight | AN11: xlRight | AO11: xlRight | AP11: xlRight | AQ11: xlLeft | AS11: =C11 -> xlRight | AT11: xlRight | AU11: xlRight | AV11: xlRight | AW11: xlRight | AX11: xlRight | AY11: xlRight | AZ11: xlRight | BA11: xlRight | BB11: xlRight | BC11: xlRight | BD11: xlRight | BE11: xlRight | BF11: xlRight | BG11: xlRight | BH11: xlRight | BI11: =S11 -> xlRight | BJ11: xlLeft | BK11: xlRight | BL11: xlLeft | BM11: xlRight | BN11: xlRight | BO11: xlRight | BP11: xlRight | BQ11: xlRight | BR11: xlRight | BS11: xlRight | BT11: xlRight | BU11: xlRight | BV11: xlRight | BW11: xlRight | BX11: xlCenter | BY11: =AI11 -> xlRight | BZ11: xlRight | CA11: xlRight | CB11: xlRight | CC11: xlRight | CD11: xlRight | CE11: xlRight | CF11: xlRight | CG11: xlLeft
A12: Total Rows Needed | B12: =SUM(B8:B10) -> 43 | C12: 0.0 | D12: #+00.00 | E12: General | F12: 0 | G12: General | H12: 0 | I12: General | J12: 0.0 | K12: 0.00 | L12: General | M12: General | N12: 0 | O12: 0 | P12: 0 | Q12: 0 | R12: 0 | S12: 0 | T12: General | U12: 0 | V12: General | W12: 0 | X12: 0.00 | Y12: 0.00 | Z12: 0.00 | AA12: 0.00 | AB12: 0.0 | AC12: 0.0 | AD12: 0.0 | AE12: 0.0 | AF12: 0 | AG12: 0 | AH12: General | AI12: #+00.00 | AJ12: 0.00 | AK12: General | AL12: 0.0 | AM12: 0.0 | AN12: 0.0 | AO12: 0.0 | AP12: 0.0 | AQ12: General | AS12: 0.0 | AT12: #+00.00 | AU12: General | AV12: 0 | AW12: General | AX12: 0 | AY12: General | AZ12: 0.0 | BA12: 0.00 | BB12: General | BC12: General | BD12: 0 | BE12: 0 | BF12: 0 | BG12: 0 | BH12: 0 | BI12: 0 | BJ12: General | BK12: 0 | BL12: General | BM12: 0 | BN12: 0.00 | BO12: 0.00 | BP12: 0.00 | BQ12: 0.00 | BR12: 0.0 | BS12: 0.0 | BT12: 0.0 | BU12: 0.0 | BV12: 0 | BW12: 0 | BX12: General | BY12: #+00.00 | BZ12: 0.00 | CA12: General | CB12: 0.0 | CC12: 0.0 | CD12: 0.0 | CE12: 0.0 | CF12: 0.0 | CG12: General
A13: Last Tab DE Starter Row | B13: 35 | C13: =CELL("width",C13) -> 6 | D13: 16 | E13: 8 | F13: 7 | G13: 6 | H13: 6 | I13: 5 | J13: 6 | K13: 6 | L13: 5 | M13: 5 | N13: 5 | O13: 5 | P13: 5 | Q13: 5 | R13: 5 | S13: 5 | T13: 6 | U13: 5 | V13: 8 | W13: 7 | X13: 10 | Y13: 10 | Z13: 10 | AA13: 10 | AB13: 7 | AC13: 7 | AD13: 7 | AE13: 7 | AF13: 5 | AG13: 5 | AH13: 5 | AI13: 13 | AJ13: 12 | AK13: 5 | AL13: 8 | AM13: 8 | AN13: 8 | AO13: 8 | AP13: 8 | AQ13: 10 | AS13: =CELL("width",AS13) -> 0 | AT13: 0 | AU13: 0 | AV13: 0 | AW13: 0 | AX13: 0 | AY13: 0 | AZ13: 0 | BA13: 0 | BB13: 0 | BC13: 0 | BD13: 0 | BE13: 0 | BF13: 0 | BG13: 0 | BH13: 0 | BI13: 0 | BJ13: 0 | BK13: 0 | BL13: 0 | BM13: 0 | BN13: 0 | BO13: 0 | BP13: 0 | BQ13: 0 | BR13: 0 | BS13: 0 | BT13: 0 | BU13: 0 | BV13: 0 | BW13: 0 | BX13: 0 | BY13: 0 | BZ13: 0 | CA13: 0 | CB13: 0 | CC13: 0 | CD13: 0 | CE13: 0 | CF13: 0 | CG13: 0
A14: Last Tab Tabsheet Starter Row | B14: 21 | C14: A | D14: B | E14: C | F14: D | G14: E | H14: F | I14: G | J14: H | K14: I | L14: J | M14: K | N14: L | O14: M | P14: N | Q14: O | R14: P | S14: Q | T14: R | U14: S | V14: T | W14: U | X14: V | Y14: W | Z14: X | AA14: Y | AB14: Z | AC14: AA | AD14: AB | AE14: AC | AF14: AD | AG14: AE | AH14: AF | AI14: AG | AJ14: AH | AK14: AI | AL14: AJ | AM14: AK | AN14: AL | AO14: AM | AP14: AN | AQ14: AO | AS14: =LOWER(C14) -> a | AT14: b | AU14: c | AV14: d | AW14: e | AX14: f | AY14: g | AZ14: h | BA14: i | BB14: j | BC14: k | BD14: l | BE14: m | BF14: n | BG14: o | BH14: p | BI14: q | BJ14: r | BK14: s | BL14: t | BM14: u | BN14: v | BO14: w | BP14: x | BQ14: y | BR14: z | BS14: aa | BT14: ab | BU14: ac | BV14: ad | BW14: ae | BX14: af | BY14: ag | BZ14: ah | CA14: ai | CB14: aj | CC14: ak | CD14: al | CE14: am | CF14: an | CG14: ao
A15: Last Copy Starter Row | B15: 1 | AK15: Totals: | AL15: =SUBTOTAL(9,AL36:AL6009) -> 7563.459422 | AM15: =SUBTOTAL(9,AM36:AM6009) -> 20.38284444 | AN15: =SUBTOTAL(9,AN36:AN6009) -> 7113.194222 | AO15: =SUBTOTAL(9,AO36:AO6009) -> 95.87733333 | AP15: =SUBTOTAL(9,AP36:AP6009) -> 7209.071556 | AS15: 104-3 | CI15: =G25 -> Kind Of Pipe | CJ15: Pipe Type | CK15: =T25 -> Type 'C' Connections* (DR-122) | CL15: =V25 -> Connected Pipe Joint* (DR-121)
A16: Tab Loop Number | B16: 2 | C16: DRAINAGE STRUCTURE BY ROAD CONTRACTOR | AS16: =B17 -> 2017-10-17 | CI16: CMP | CJ16: Reinforced Concrete Pipe. | CK16: C-1 | CL16: Type 1
A17: Revision Date | B17: 2017-10-17 | AS17: =C16 -> DRAINAGE STRUCTURE BY ROAD CONTRACTOR | CI17: LCP | CJ17: Corrugated Metal Pipe. | CK17: C-2 | CL17: Type 2
A18: Tabulation Width | B18: 4 | CI18: RCP | CK18: C-3 | CL18: Type 3
A19: Horizontal Grid Lines | B19: Yes | C19: Length of unclassified pipe calculated is based on using | L19: Reinforced Concrete Pipe. | CI19: SARC | CK19: C-4
C20: * Not a bid item | AS20: =C19 -> Length of unclassified pipe calculated is based on using | BB20: =L19 -> Reinforced Concrete Pipe. | CI20: UNCL
C21: Diameter or equivalent diameter | AS21: =C20 -> * Not a bid item
C22: UNCL = Unclassified Pipe CMP = Corrugated Metal Pipe RCP = Reinforced Concrete Pipe LCP = Arch or Elliptical Low Clearance Pipe SARC = Steel Arch Pipe | AS22: =C21 -> Diameter or equivalent diameter
C23: Backfill according to DR-101 | AS23: =C22 -> UNCL = Unclassified Pipe CMP = Corrugated Metal Pipe RCP = Reinforced Concrete Pipe LCP = Arch or Elliptical Low Clearance Pipe SARC = Steel Arch Pipe
C24: ="This Data Entry Sheet fills Tab "&AS15&" effective "&TEXT(B17,"mm-dd-yy") -> This Data Entry Sheet fills Tab 104-3 effective 10-17-17 | AS24: =C23 -> Backfill according to DR-101
C25: Drainage Area | D25: Location | E25: Type | F25: Size | G25: Kind Of Pipe | H25: Length New Const. | I25: Bedding Class | J25: Design Cover (H) | K25: Camber* (DR-102) | L25: Apron No. | N25: Apron Guard* (DR-213) | O25: Elbow* (DR-141) | P25: Diaphragm* (DR-501) | Q25: Tee Section* (DR-142) | R25: "D" Section* (DR-141) | S25: Reducer* | T25: Type 'C' Connections* (DR-122) | V25: Connected Pipe Joint* (DR-121) | W25: 4" Perforated Subdrain* | X25: Flow Line Elevations | AB25: Dimensions Lin. Ft. | AF25: Skew Ahead Degrees | AH25: Dike | AL25: Class 20 | AM25: Flowable Mortar | AN25: Floodable* Backfill | AO25: Porous* Backfill | AP25: Flooded Backfill | AQ25: Remarks | AS25: =C25 -> Drainage Area | AT25: Location | AU25: Type | AV25: Size | AW25: Kind Of Pipe | AX25: Length New Const. | AY25: Bedding Class | AZ25: Design Cover (H) | BA25: Camber* (DR-102) | BB25: Apron No. | BD25: =N25 -> Apron Guard* (DR-213) | BE25: Elbow* (DR-141) | BF25: Diaphragm* (DR-501) | BG25: Tee Section* (DR-142) | BH25: "D" Section* (DR-141) | BI25: Reducer* | BJ25: Type 'C' Connections* (DR-122) | BL25: =V25 -> Connected Pipe Joint* (DR-121) | BM25: =W25 -> 4" Perforated Subdrain* | BN25: =X25 -> Flow Line Elevations | BR25: =AB25 -> Dimensions Lin. Ft. | BV25: =AF25 -> Skew Ahead Degrees | BX25: =AH25 -> Dike | CB25: =AL25 -> Class 20 | CC25: Flowable Mortar | CD25: Floodable* Backfill | CE25: Porous* Backfill | CF25: Flooded Backfill | CG25: Remarks
AH32: Rt. | AI32: Location Station | AJ32: Top Elevation | AK32: Type | BX32: =AH32 -> Rt. | BY32: =AI32 -> Location Station | BZ32: =AJ32 -> Top Elevation | CA32: =AK32 -> Type
AB33: Total | AD33: Extensions | AN33: (A) | AO33: (B) | AP33: (A+B) | BR33: =AB33 -> Total | BT33: =AD33 -> Extensions | CD33: =AN33 -> (A) | CE33: (B) | CF33: (A+B)
C34: ACRE | F34: IN | H34: LF | J34: FT | K34: FT | L34: IN | M34: OUT | N34: No. | O34: No. | P34: No. | Q34: No. | R34: No. | S34: No. | T34: Type | U34: No. | V34: Type | W34: FT | X34: Lt. | Y34: Rt. | Z34: Other | AA34: Other | AB34: Lt. | AC34: Rt. | AD34: Lt. | AE34: Rt. | AF34: Lt. | AG34: Rt. | AH34: Lt. | AL34: CY | AM34: CY | AN34: CY | AO34: CY | AP34: CY | AS34: =C34 -> ACRE | AV34: =F34 -> IN | AX34: =H34 -> LF | AZ34: =J34 -> FT | BA34: FT | BB34: IN | BC34: OUT | BD34: No. | BE34: No. | BF34: No. | BG34: No. | BH34: No. | BI34: No. | BJ34: Type | BK34: No. | BL34: Type | BM34: FT | BN34: Lt. | BO34: Rt. | BP34: Other | BQ34: Other | BR34: =AB34 -> Lt. | BS34: =AC34 -> Rt. | BT34: =AD34 -> Lt. | BU34: =AE34 -> Rt. | BV34: =AF34 -> Lt. | BW34: =AG34 -> Rt. | BX34: =AH34 -> Lt. | CB34: =AL34 -> CY | CC34: =AM34 -> CY | CD34: CY | CE34: CY | CF34: CY
K36: =IF(AND(J36>0,J36<=5),0.08,IF(AND(J36>5,J36<=10),0.17,IF(AND(J36>10,J36<=15),0.25,IF(AND(J36>15,J36<=20),0.33,IF(AND(J36>20,J36<=25),0.42,IF(AND(J36>25,J36<=30),0.5,IF(AND(J36>30,J36<=35),0.58,""))))))) -> 
D37: US 63
C38: 9 | D38: 89307 | E38: (1) | F38: 30 | G38: RCP | H38: 224 | I38: B | J38: 6 | L38: 1 | M38: 1 | X38: 635 | Y38: 631.2 | Z38: 633.74 | AA38: 633.74 | AB38: 77.38 | AC38: 161.87 | AF38: 10 | AL38: =(135.444*H38)/27 -> 1123.683556 | AN38: =(128.258*H38)/27 -> 1064.06637 | AO38: =(2.2778*H38)/27 -> 18.8973037 | AP38: =SUM(AN38:AO38) -> 1082.963674 | AQ38: (2)
D39: 91082 | E39: DR-601 | F39: 48 | G39: RCP | H39: 168 | I39: B | J39: 11 | K39: 0.042 | L39: 1 | M39: 1 | X39: 627.5 | Y39: 627 | AB39: 91 | AC39: 93 | AL39: =(357.7778*H39)/27 -> 2226.172978 | AN39: =(342.4336*H39)/27 -> 2130.697956 | AO39: =(2.7778*H39)/27 -> 17.28408889 | AP39: =SUM(AN39:AO39) -> 2147.982044
D41: BIKE TRAIL
D42: 880397 | E42: DR-651 | F42: 29x18 | G42: LCP | H42: 18 | I42: B | J42: 1.319 | K42: 0.08 | L42: 1 | M42: 1 | X42: 638.49 | Y42: 638.25 | AB42: 14.5007 | AC42: 15.498 | AL42: =(29.9233*H42)/27 -> 19.94886667 | AM42: =(5.2917*H42)/27 -> 3.5278 | AN42: =(10.0279*H42)/27 -> 6.685266667 | AO42: =(2.25*H42)/27 -> 1.5 | AP42: =SUM(AN42:AO42) -> 8.185266667
C43: 1.5 | D43: 880628 | E43: DR-651 | F43: 29x18 | G43: LCP | H43: 34 | I43: B | J43: 1.788 | K43: 0.08 | L43: 1 | M43: 1 | X43: 636.99 | Y43: 636.48 | AB43: 21.85 | AC43: 24.1475 | AL43: =(36.515*H43)/27 -> 45.98185185 | AM43: =(5.2917*H43)/27 -> 6.663622222 | AN43: =(10.0279*H43)/27 -> 12.62772593 | AO43: =(2.25*H43)/27 -> 2.833333333 | AP43: =SUM(AN43:AO43) -> 15.46105926
D45: RABBIT RUN RD
C46: 5 | D46: 882460 | E46: DR-651 | F46: 30 | G46: (3) | H46: 88 | I46: B | J46: 5 | K46: 0.008 | L46: 1 | M46: 1 | X46: 632.55 | Y46: 632.55 | AB46: 48.37 | AC46: 48.37 | AL46: =(112.2778*H46)/27 -> 365.9424593 | AN46: =(105.0913*H46)/27 -> 342.5197926 | AO46: =(2.2778*H46)/27 -> 7.423940741 | AP46: =SUM(AN46:AO46) -> 349.9437333
C48: TOTALS: | K48: =IF(AND(J48>0,J48<=5),0.08,IF(AND(J48>5,J48<=10),0.17,IF(AND(J48>10,J48<=15),0.25,IF(AND(J48>15,J48<=20),0.33,IF(AND(J48>20,J48<=25),0.42,IF(AND(J48>25,J48<=30),0.5,IF(AND(J48>30,J48<=35),0.58,""))))))) ->  | AL48: =SUM(AL37:AL46) -> 3781.729711 | AM48: =SUM(AM37:AM46) -> 10.19142222 | AN48: =SUM(AN37:AN46) -> 3556.597111 | AO48: =SUM(AO37:AO46) -> 47.93866667 | AP48: =SUM(AP37:AP46) -> 3604.535778
C52: BID ITEMS:
C53: CULVERT, LOW CLEARANCE CONCRETE ROADWAY PIPE, EQUIVALENT DIAMETER 24 IN. | O53: 52 | Q53: LF
C54: UNCLASSIFIED PIPE CULVERT, 30 IN. ARCH | O54: 88 | Q54: LF
C55: CULVERT, CONCRETE ROADWAY PIPE, 30 IN. DIA. | O55: 224 | Q55: LF
C56: CULVERT, CONCRETE ROADWAY PIPE, 48 IN. DIA. | O56: 168 | Q56: LF
C57: APRON, LOW CLEARANCE CONCRETE, EQUIVALENT DIAMETER 24 IN. | O57: 4 | Q57: EACH
C58: UNCLASSIFIED APRONS, 30 IN. ARCH | O58: 2 | Q58: EACH
C59: APRONS, CONCRETE, 30 IN. DIA. | O59: 2 | Q59: EACH
C60: APRONS, CONCRETE, 48 IN. DIA. | O60: 2 | Q60: EACH
C61: EXCAVATION, CLASS 20, FOR ROADWAY PIPE CULVERT | O61: 3781.729711 | Q61: CY
C62: FLOWABLE MORTAR | O62: 10.19142222 | Q62: CY
C63: FLOODED BACKFILL | O63: 3604.535778 | Q63: CY
C67: NOTES:
C68: ALL PIPES WILL BE 2000D UNLESS NOTED
C69: (1) DR-601 WITH SW-562. SEE TAB 104-5A FOR INTAKE INFORMATION.
C70: (2) INTO INTAKE 633.74, 68.76' RT. OUT OF INTAKE 633.74, 71.76' RT @ 10° SKEW LEFT. FORM GRADE 638.68
C71: (3) UNCL. ARCH
K109: =IF(AND(J109>0,J109<=5),0.08,IF(AND(J109>5,J109<=10),0.17,IF(AND(J109>10,J109<=15),0.25,IF(AND(J109>15,J109<=20),0.33,IF(AND(J109>20,J109<=25),0.42,IF(AND(J109>25,J109<=30),0.5,IF(AND(J109>30,J109<=35),0.58,""))))))) -> 
K173: =IF(AND(J173>0,J173<=5),0.08,IF(AND(J173>5,J173<=10),0.17,IF(AND(J173>10,J173<=15),0.25,IF(AND(J173>15,J173<=20),0.33,IF(AND(J173>20,J173<=25),0.42,IF(AND(J173>25,J173<=30),0.5,IF(AND(J173>30,J173<=35),0.58,""))))))) -> 
K237: =IF(AND(J237>0,J237<=5),0.08,IF(AND(J237>5,J237<=10),0.17,IF(AND(J237>10,J237<=15),0.25,IF(AND(J237>15,J237<=20),0.33,IF(AND(J237>20,J237<=25),0.42,IF(AND(J237>25,J237<=30),0.5,IF(AND(J237>30,J237<=35),0.58,""))))))) -> 
K301: =IF(AND(J301>0,J301<=5),0.08,IF(AND(J301>5,J301<=10),0.17,IF(AND(J301>10,J301<=15),0.25,IF(AND(J301>15,J301<=20),0.33,IF(AND(J301>20,J301<=25),0.42,IF(AND(J301>25,J301<=30),0.5,IF(AND(J301>30,J301<=35),0.58,""))))))) -> 
K365: =IF(AND(J365>0,J365<=5),0.08,IF(AND(J365>5,J365<=10),0.17,IF(AND(J365>10,J365<=15),0.25,IF(AND(J365>15,J365<=20),0.33,IF(AND(J365>20,J365<=25),0.42,IF(AND(J365>25,J365<=30),0.5,IF(AND(J365>30,J365<=35),0.58,""))))))) -> 
K429: =IF(AND(J429>0,J429<=5),0.08,IF(AND(J429>5,J429<=10),0.17,IF(AND(J429>10,J429<=15),0.25,IF(AND(J429>15,J429<=20),0.33,IF(AND(J429>20,J429<=25),0.42,IF(AND(J429>25,J429<=30),0.5,IF(AND(J429>30,J429<=35),0.58,""))))))) -> 
K493: =IF(AND(J493>0,J493<=5),0.08,IF(AND(J493>5,J493<=10),0.17,IF(AND(J493>10,J493<=15),0.25,IF(AND(J493>15,J493<=20),0.33,IF(AND(J493>20,J493<=25),0.42,IF(AND(J493>25,J493<=30),0.5,IF(AND(J493>30,J493<=35),0.58,""))))))) -> 
K557: =IF(AND(J557>0,J557<=5),0.08,IF(AND(J557>5,J557<=10),0.17,IF(AND(J557>10,J557<=15),0.25,IF(AND(J557>15,J557<=20),0.33,IF(AND(J557>20,J557<=25),0.42,IF(AND(J557>25,J557<=30),0.5,IF(AND(J557>30,J557<=35),0.58,""))))))) -> 
K621: =IF(AND(J621>0,J621<=5),0.08,IF(AND(J621>5,J621<=10),0.17,IF(AND(J621>10,J621<=15),0.25,IF(AND(J621>15,J621<=20),0.33,IF(AND(J621>20,J621<=25),0.42,IF(AND(J621>25,J621<=30),0.5,IF(AND(J621>30,J621<=35),0.58,""))))))) -> 
K685: =IF(AND(J685>0,J685<=5),0.08,IF(AND(J685>5,J685<=10),0.17,IF(AND(J685>10,J685<=15),0.25,IF(AND(J685>15,J685<=20),0.33,IF(AND(J685>20,J685<=25),0.42,IF(AND(J685>25,J685<=30),0.5,IF(AND(J685>30,J685<=35),0.58,""))))))) -> 
K749: =IF(AND(J749>0,J749<=5),0.08,IF(AND(J749>5,J749<=10),0.17,IF(AND(J749>10,J749<=15),0.25,IF(AND(J749>15,J749<=20),0.33,IF(AND(J749>20,J749<=25),0.42,IF(AND(J749>25,J749<=30),0.5,IF(AND(J749>30,J749<=35),0.58,""))))))) -> 
K813: =IF(AND(J813>0,J813<=5),0.08,IF(AND(J813>5,J813<=10),0.17,IF(AND(J813>10,J813<=15),0.25,IF(AND(J813>15,J813<=20),0.33,IF(AND(J813>20,J813<=25),0.42,IF(AND(J813>25,J813<=30),0.5,IF(AND(J813>30,J813<=35),0.58,""))))))) -> 
K877: =IF(AND(J877>0,J877<=5),0.08,IF(AND(J877>5,J877<=10),0.17,IF(AND(J877>10,J877<=15),0.25,IF(AND(J877>15,J877<=20),0.33,IF(AND(J877>20,J877<=25),0.42,IF(AND(J877>25,J877<=30),0.5,IF(AND(J877>30,J877<=35),0.58,""))))))) -> 
K941: =IF(AND(J941>0,J941<=5),0.08,IF(AND(J941>5,J941<=10),0.17,IF(AND(J941>10,J941<=15),0.25,IF(AND(J941>15,J941<=20),0.33,IF(AND(J941>20,J941<=25),0.42,IF(AND(J941>25,J941<=30),0.5,IF(AND(J941>30,J941<=35),0.58,""))))))) -> 
K1005: =IF(AND(J1005>0,J1005<=5),0.08,IF(AND(J1005>5,J1005<=10),0.17,IF(AND(J1005>10,J1005<=15),0.25,IF(AND(J1005>15,J1005<=20),0.33,IF(AND(J1005>20,J1005<=25),0.42,IF(AND(J1005>25,J1005<=30),0.5,IF(AND(J1005>30,J1005<=35),0.58,""))))))) -> 
K1069: =IF(AND(J1069>0,J1069<=5),0.08,IF(AND(J1069>5,J1069<=10),0.17,IF(AND(J1069>10,J1069<=15),0.25,IF(AND(J1069>15,J1069<=20),0.33,IF(AND(J1069>20,J1069<=25),0.42,IF(AND(J1069>25,J1069<=30),0.5,IF(AND(J1069>30,J1069<=35),0.58,""))))))) -> 
K1133: =IF(AND(J1133>0,J1133<=5),0.08,IF(AND(J1133>5,J1133<=10),0.17,IF(AND(J1133>10,J1133<=15),0.25,IF(AND(J1133>15,J1133<=20),0.33,IF(AND(J1133>20,J1133<=25),0.42,IF(AND(J1133>25,J1133<=30),0.5,IF(AND(J1133>30,J1133<=35),0.58,""))))))) -> 
K1197: =IF(AND(J1197>0,J1197<=5),0.08,IF(AND(J1197>5,J1197<=10),0.17,IF(AND(J1197>10,J1197<=15),0.25,IF(AND(J1197>15,J1197<=20),0.33,IF(AND(J1197>20,J1197<=25),0.42,IF(AND(J1197>25,J1197<=30),0.5,IF(AND(J1197>30,J1197<=35),0.58,""))))))) -> 
K1261: =IF(AND(J1261>0,J1261<=5),0.08,IF(AND(J1261>5,J1261<=10),0.17,IF(AND(J1261>10,J1261<=15),0.25,IF(AND(J1261>15,J1261<=20),0.33,IF(AND(J1261>20,J1261<=25),0.42,IF(AND(J1261>25,J1261<=30),0.5,IF(AND(J1261>30,J1261<=35),0.58,""))))))) -> 
K1325: =IF(AND(J1325>0,J1325<=5),0.08,IF(AND(J1325>5,J1325<=10),0.17,IF(AND(J1325>10,J1325<=15),0.25,IF(AND(J1325>15,J1325<=20),0.33,IF(AND(J1325>20,J1325<=25),0.42,IF(AND(J1325>25,J1325<=30),0.5,IF(AND(J1325>30,J1325<=35),0.58,""))))))) -> 
K1389: =IF(AND(J1389>0,J1389<=5),0.08,IF(AND(J1389>5,J1389<=10),0.17,IF(AND(J1389>10,J1389<=15),0.25,IF(AND(J1389>15,J1389<=20),0.33,IF(AND(J1389>20,J1389<=25),0.42,IF(AND(J1389>25,J1389<=30),0.5,IF(AND(J1389>30,J1389<=35),0.58,""))))))) -> 
K1453: =IF(AND(J1453>0,J1453<=5),0.08,IF(AND(J1453>5,J1453<=10),0.17,IF(AND(J1453>10,J1453<=15),0.25,IF(AND(J1453>15,J1453<=20),0.33,IF(AND(J1453>20,J1453<=25),0.42,IF(AND(J1453>25,J1453<=30),0.5,IF(AND(J1453>30,J1453<=35),0.58,""))))))) -> 
K1517: =IF(AND(J1517>0,J1517<=5),0.08,IF(AND(J1517>5,J1517<=10),0.17,IF(AND(J1517>10,J1517<=15),0.25,IF(AND(J1517>15,J1517<=20),0.33,IF(AND(J1517>20,J1517<=25),0.42,IF(AND(J1517>25,J1517<=30),0.5,IF(AND(J1517>30,J1517<=35),0.58,""))))))) -> 
K1581: =IF(AND(J1581>0,J1581<=5),0.08,IF(AND(J1581>5,J1581<=10),0.17,IF(AND(J1581>10,J1581<=15),0.25,IF(AND(J1581>15,J1581<=20),0.33,IF(AND(J1581>20,J1581<=25),0.42,IF(AND(J1581>25,J1581<=30),0.5,IF(AND(J1581>30,J1581<=35),0.58,""))))))) -> 
K1645: =IF(AND(J1645>0,J1645<=5),0.08,IF(AND(J1645>5,J1645<=10),0.17,IF(AND(J1645>10,J1645<=15),0.25,IF(AND(J1645>15,J1645<=20),0.33,IF(AND(J1645>20,J1645<=25),0.42,IF(AND(J1645>25,J1645<=30),0.5,IF(AND(J1645>30,J1645<=35),0.58,""))))))) -> 
K1709: =IF(AND(J1709>0,J1709<=5),0.08,IF(AND(J1709>5,J1709<=10),0.17,IF(AND(J1709>10,J1709<=15),0.25,IF(AND(J1709>15,J1709<=20),0.33,IF(AND(J1709>20,J1709<=25),0.42,IF(AND(J1709>25,J1709<=30),0.5,IF(AND(J1709>30,J1709<=35),0.58,""))))))) -> 
K1773: =IF(AND(J1773>0,J1773<=5),0.08,IF(AND(J1773>5,J1773<=10),0.17,IF(AND(J1773>10,J1773<=15),0.25,IF(AND(J1773>15,J1773<=20),0.33,IF(AND(J1773>20,J1773<=25),0.42,IF(AND(J1773>25,J1773<=30),0.5,IF(AND(J1773>30,J1773<=35),0.58,""))))))) -> 
K1837: =IF(AND(J1837>0,J1837<=5),0.08,IF(AND(J1837>5,J1837<=10),0.17,IF(AND(J1837>10,J1837<=15),0.25,IF(AND(J1837>15,J1837<=20),0.33,IF(AND(J1837>20,J1837<=25),0.42,IF(AND(J1837>25,J1837<=30),0.5,IF(AND(J1837>30,J1837<=35),0.58,""))))))) -> 
K1901: =IF(AND(J1901>0,J1901<=5),0.08,IF(AND(J1901>5,J1901<=10),0.17,IF(AND(J1901>10,J1901<=15),0.25,IF(AND(J1901>15,J1901<=20),0.33,IF(AND(J1901>20,J1901<=25),0.42,IF(AND(J1901>25,J1901<=30),0.5,IF(AND(J1901>30,J1901<=35),0.58,""))))))) -> 
K1965: =IF(AND(J1965>0,J1965<=5),0.08,IF(AND(J1965>5,J1965<=10),0.17,IF(AND(J1965>10,J1965<=15),0.25,IF(AND(J1965>15,J1965<=20),0.33,IF(AND(J1965>20,J1965<=25),0.42,IF(AND(J1965>25,J1965<=30),0.5,IF(AND(J1965>30,J1965<=35),0.58,""))))))) -> 
K2029: =IF(AND(J2029>0,J2029<=5),0.08,IF(AND(J2029>5,J2029<=10),0.17,IF(AND(J2029>10,J2029<=15),0.25,IF(AND(J2029>15,J2029<=20),0.33,IF(AND(J2029>20,J2029<=25),0.42,IF(AND(J2029>25,J2029<=30),0.5,IF(AND(J2029>30,J2029<=35),0.58,""))))))) -> 
K2093: =IF(AND(J2093>0,J2093<=5),0.08,IF(AND(J2093>5,J2093<=10),0.17,IF(AND(J2093>10,J2093<=15),0.25,IF(AND(J2093>15,J2093<=20),0.33,IF(AND(J2093>20,J2093<=25),0.42,IF(AND(J2093>25,J2093<=30),0.5,IF(AND(J2093>30,J2093<=35),0.58,""))))))) -> 
K2157: =IF(AND(J2157>0,J2157<=5),0.08,IF(AND(J2157>5,J2157<=10),0.17,IF(AND(J2157>10,J2157<=15),0.25,IF(AND(J2157>15,J2157<=20),0.33,IF(AND(J2157>20,J2157<=25),0.42,IF(AND(J2157>25,J2157<=30),0.5,IF(AND(J2157>30,J2157<=35),0.58,""))))))) -> 
K2221: =IF(AND(J2221>0,J2221<=5),0.08,IF(AND(J2221>5,J2221<=10),0.17,IF(AND(J2221>10,J2221<=15),0.25,IF(AND(J2221>15,J2221<=20),0.33,IF(AND(J2221>20,J2221<=25),0.42,IF(AND(J2221>25,J2221<=30),0.5,IF(AND(J2221>30,J2221<=35),0.58,""))))))) -> 
K2285: =IF(AND(J2285>0,J2285<=5),0.08,IF(AND(J2285>5,J2285<=10),0.17,IF(AND(J2285>10,J2285<=15),0.25,IF(AND(J2285>15,J2285<=20),0.33,IF(AND(J2285>20,J2285<=25),0.42,IF(AND(J2285>25,J2285<=30),0.5,IF(AND(J2285>30,J2285<=35),0.58,""))))))) -> 
K2349: =IF(AND(J2349>0,J2349<=5),0.08,IF(AND(J2349>5,J2349<=10),0.17,IF(AND(J2349>10,J2349<=15),0.25,IF(AND(J2349>15,J2349<=20),0.33,IF(AND(J2349>20,J2349<=25),0.42,IF(AND(J2349>25,J2349<=30),0.5,IF(AND(J2349>30,J2349<=35),0.58,""))))))) -> 
K2413: =IF(AND(J2413>0,J2413<=5),0.08,IF(AND(J2413>5,J2413<=10),0.17,IF(AND(J2413>10,J2413<=15),0.25,IF(AND(J2413>15,J2413<=20),0.33,IF(AND(J2413>20,J2413<=25),0.42,IF(AND(J2413>25,J2413<=30),0.5,IF(AND(J2413>30,J2413<=35),0.58,""))))))) -> 
K2477: =IF(AND(J2477>0,J2477<=5),0.08,IF(AND(J2477>5,J2477<=10),0.17,IF(AND(J2477>10,J2477<=15),0.25,IF(AND(J2477>15,J2477<=20),0.33,IF(AND(J2477>20,J2477<=25),0.42,IF(AND(J2477>25,J2477<=30),0.5,IF(AND(J2477>30,J2477<=35),0.58,""))))))) -> 
K2541: =IF(AND(J2541>0,J2541<=5),0.08,IF(AND(J2541>5,J2541<=10),0.17,IF(AND(J2541>10,J2541<=15),0.25,IF(AND(J2541>15,J2541<=20),0.33,IF(AND(J2541>20,J2541<=25),0.42,IF(AND(J2541>25,J2541<=30),0.5,IF(AND(J2541>30,J2541<=35),0.58,""))))))) -> 
K2605: =IF(AND(J2605>0,J2605<=5),0.08,IF(AND(J2605>5,J2605<=10),0.17,IF(AND(J2605>10,J2605<=15),0.25,IF(AND(J2605>15,J2605<=20),0.33,IF(AND(J2605>20,J2605<=25),0.42,IF(AND(J2605>25,J2605<=30),0.5,IF(AND(J2605>30,J2605<=35),0.58,""))))))) -> 
K2669: =IF(AND(J2669>0,J2669<=5),0.08,IF(AND(J2669>5,J2669<=10),0.17,IF(AND(J2669>10,J2669<=15),0.25,IF(AND(J2669>15,J2669<=20),0.33,IF(AND(J2669>20,J2669<=25),0.42,IF(AND(J2669>25,J2669<=30),0.5,IF(AND(J2669>30,J2669<=35),0.58,""))))))) -> 
K2733: =IF(AND(J2733>0,J2733<=5),0.08,IF(AND(J2733>5,J2733<=10),0.17,IF(AND(J2733>10,J2733<=15),0.25,IF(AND(J2733>15,J2733<=20),0.33,IF(AND(J2733>20,J2733<=25),0.42,IF(AND(J2733>25,J2733<=30),0.5,IF(AND(J2733>30,J2733<=35),0.58,""))))))) -> 
K2797: =IF(AND(J2797>0,J2797<=5),0.08,IF(AND(J2797>5,J2797<=10),0.17,IF(AND(J2797>10,J2797<=15),0.25,IF(AND(J2797>15,J2797<=20),0.33,IF(AND(J2797>20,J2797<=25),0.42,IF(AND(J2797>25,J2797<=30),0.5,IF(AND(J2797>30,J2797<=35),0.58,""))))))) -> 
K2861: =IF(AND(J2861>0,J2861<=5),0.08,IF(AND(J2861>5,J2861<=10),0.17,IF(AND(J2861>10,J2861<=15),0.25,IF(AND(J2861>15,J2861<=20),0.33,IF(AND(J2861>20,J2861<=25),0.42,IF(AND(J2861>25,J2861<=30),0.5,IF(AND(J2861>30,J2861<=35),0.58,""))))))) -> 
K2925: =IF(AND(J2925>0,J2925<=5),0.08,IF(AND(J2925>5,J2925<=10),0.17,IF(AND(J2925>10,J2925<=15),0.25,IF(AND(J2925>15,J2925<=20),0.33,IF(AND(J2925>20,J2925<=25),0.42,IF(AND(J2925>25,J2925<=30),0.5,IF(AND(J2925>30,J2925<=35),0.58,""))))))) -> 
K2989: =IF(AND(J2989>0,J2989<=5),0.08,IF(AND(J2989>5,J2989<=10),0.17,IF(AND(J2989>10,J2989<=15),0.25,IF(AND(J2989>15,J2989<=20),0.33,IF(AND(J2989>20,J2989<=25),0.42,IF(AND(J2989>25,J2989<=30),0.5,IF(AND(J2989>30,J2989<=35),0.58,""))))))) -> 
K3053: =IF(AND(J3053>0,J3053<=5),0.08,IF(AND(J3053>5,J3053<=10),0.17,IF(AND(J3053>10,J3053<=15),0.25,IF(AND(J3053>15,J3053<=20),0.33,IF(AND(J3053>20,J3053<=25),0.42,IF(AND(J3053>25,J3053<=30),0.5,IF(AND(J3053>30,J3053<=35),0.58,""))))))) -> 
K3117: =IF(AND(J3117>0,J3117<=5),0.08,IF(AND(J3117>5,J3117<=10),0.17,IF(AND(J3117>10,J3117<=15),0.25,IF(AND(J3117>15,J3117<=20),0.33,IF(AND(J3117>20,J3117<=25),0.42,IF(AND(J3117>25,J3117<=30),0.5,IF(AND(J3117>30,J3117<=35),0.58,""))))))) -> 
K3181: =IF(AND(J3181>0,J3181<=5),0.08,IF(AND(J3181>5,J3181<=10),0.17,IF(AND(J3181>10,J3181<=15),0.25,IF(AND(J3181>15,J3181<=20),0.33,IF(AND(J3181>20,J3181<=25),0.42,IF(AND(J3181>25,J3181<=30),0.5,IF(AND(J3181>30,J3181<=35),0.58,""))))))) -> 
K3245: =IF(AND(J3245>0,J3245<=5),0.08,IF(AND(J3245>5,J3245<=10),0.17,IF(AND(J3245>10,J3245<=15),0.25,IF(AND(J3245>15,J3245<=20),0.33,IF(AND(J3245>20,J3245<=25),0.42,IF(AND(J3245>25,J3245<=30),0.5,IF(AND(J3245>30,J3245<=35),0.58,""))))))) -> 
K3309: =IF(AND(J3309>0,J3309<=5),0.08,IF(AND(J3309>5,J3309<=10),0.17,IF(AND(J3309>10,J3309<=15),0.25,IF(AND(J3309>15,J3309<=20),0.33,IF(AND(J3309>20,J3309<=25),0.42,IF(AND(J3309>25,J3309<=30),0.5,IF(AND(J3309>30,J3309<=35),0.58,""))))))) -> 
K3373: =IF(AND(J3373>0,J3373<=5),0.08,IF(AND(J3373>5,J3373<=10),0.17,IF(AND(J3373>10,J3373<=15),0.25,IF(AND(J3373>15,J3373<=20),0.33,IF(AND(J3373>20,J3373<=25),0.42,IF(AND(J3373>25,J3373<=30),0.5,IF(AND(J3373>30,J3373<=35),0.58,""))))))) -> 
K3437: =IF(AND(J3437>0,J3437<=5),0.08,IF(AND(J3437>5,J3437<=10),0.17,IF(AND(J3437>10,J3437<=15),0.25,IF(AND(J3437>15,J3437<=20),0.33,IF(AND(J3437>20,J3437<=25),0.42,IF(AND(J3437>25,J3437<=30),0.5,IF(AND(J3437>30,J3437<=35),0.58,""))))))) -> 
K3501: =IF(AND(J3501>0,J3501<=5),0.08,IF(AND(J3501>5,J3501<=10),0.17,IF(AND(J3501>10,J3501<=15),0.25,IF(AND(J3501>15,J3501<=20),0.33,IF(AND(J3501>20,J3501<=25),0.42,IF(AND(J3501>25,J3501<=30),0.5,IF(AND(J3501>30,J3501<=35),0.58,""))))))) -> 
K3565: =IF(AND(J3565>0,J3565<=5),0.08,IF(AND(J3565>5,J3565<=10),0.17,IF(AND(J3565>10,J3565<=15),0.25,IF(AND(J3565>15,J3565<=20),0.33,IF(AND(J3565>20,J3565<=25),0.42,IF(AND(J3565>25,J3565<=30),0.5,IF(AND(J3565>30,J3565<=35),0.58,""))))))) -> 
K3629: =IF(AND(J3629>0,J3629<=5),0.08,IF(AND(J3629>5,J3629<=10),0.17,IF(AND(J3629>10,J3629<=15),0.25,IF(AND(J3629>15,J3629<=20),0.33,IF(AND(J3629>20,J3629<=25),0.42,IF(AND(J3629>25,J3629<=30),0.5,IF(AND(J3629>30,J3629<=35),0.58,""))))))) -> 
K3693: =IF(AND(J3693>0,J3693<=5),0.08,IF(AND(J3693>5,J3693<=10),0.17,IF(AND(J3693>10,J3693<=15),0.25,IF(AND(J3693>15,J3693<=20),0.33,IF(AND(J3693>20,J3693<=25),0.42,IF(AND(J3693>25,J3693<=30),0.5,IF(AND(J3693>30,J3693<=35),0.58,""))))))) -> 
K3757: =IF(AND(J3757>0,J3757<=5),0.08,IF(AND(J3757>5,J3757<=10),0.17,IF(AND(J3757>10,J3757<=15),0.25,IF(AND(J3757>15,J3757<=20),0.33,IF(AND(J3757>20,J3757<=25),0.42,IF(AND(J3757>25,J3757<=30),0.5,IF(AND(J3757>30,J3757<=35),0.58,""))))))) -> 
K3821: =IF(AND(J3821>0,J3821<=5),0.08,IF(AND(J3821>5,J3821<=10),0.17,IF(AND(J3821>10,J3821<=15),0.25,IF(AND(J3821>15,J3821<=20),0.33,IF(AND(J3821>20,J3821<=25),0.42,IF(AND(J3821>25,J3821<=30),0.5,IF(AND(J3821>30,J3821<=35),0.58,""))))))) -> 
K3885: =IF(AND(J3885>0,J3885<=5),0.08,IF(AND(J3885>5,J3885<=10),0.17,IF(AND(J3885>10,J3885<=15),0.25,IF(AND(J3885>15,J3885<=20),0.33,IF(AND(J3885>20,J3885<=25),0.42,IF(AND(J3885>25,J3885<=30),0.5,IF(AND(J3885>30,J3885<=35),0.58,""))))))) -> 
K3949: =IF(AND(J3949>0,J3949<=5),0.08,IF(AND(J3949>5,J3949<=10),0.17,IF(AND(J3949>10,J3949<=15),0.25,IF(AND(J3949>15,J3949<=20),0.33,IF(AND(J3949>20,J3949<=25),0.42,IF(AND(J3949>25,J3949<=30),0.5,IF(AND(J3949>30,J3949<=35),0.58,""))))))) -> 
K4013: =IF(AND(J4013>0,J4013<=5),0.08,IF(AND(J4013>5,J4013<=10),0.17,IF(AND(J4013>10,J4013<=15),0.25,IF(AND(J4013>15,J4013<=20),0.33,IF(AND(J4013>20,J4013<=25),0.42,IF(AND(J4013>25,J4013<=30),0.5,IF(AND(J4013>30,J4013<=35),0.58,""))))))) -> 
K4077: =IF(AND(J4077>0,J4077<=5),0.08,IF(AND(J4077>5,J4077<=10),0.17,IF(AND(J4077>10,J4077<=15),0.25,IF(AND(J4077>15,J4077<=20),0.33,IF(AND(J4077>20,J4077<=25),0.42,IF(AND(J4077>25,J4077<=30),0.5,IF(AND(J4077>30,J4077<=35),0.58,""))))))) -> 
K4141: =IF(AND(J4141>0,J4141<=5),0.08,IF(AND(J4141>5,J4141<=10),0.17,IF(AND(J4141>10,J4141<=15),0.25,IF(AND(J4141>15,J4141<=20),0.33,IF(AND(J4141>20,J4141<=25),0.42,IF(AND(J4141>25,J4141<=30),0.5,IF(AND(J4141>30,J4141<=35),0.58,""))))))) -> 
K4205: =IF(AND(J4205>0,J4205<=5),0.08,IF(AND(J4205>5,J4205<=10),0.17,IF(AND(J4205>10,J4205<=15),0.25,IF(AND(J4205>15,J4205<=20),0.33,IF(AND(J4205>20,J4205<=25),0.42,IF(AND(J4205>25,J4205<=30),0.5,IF(AND(J4205>30,J4205<=35),0.58,""))))))) -> 
K4269: =IF(AND(J4269>0,J4269<=5),0.08,IF(AND(J4269>5,J4269<=10),0.17,IF(AND(J4269>10,J4269<=15),0.25,IF(AND(J4269>15,J4269<=20),0.33,IF(AND(J4269>20,J4269<=25),0.42,IF(AND(J4269>25,J4269<=30),0.5,IF(AND(J4269>30,J4269<=35),0.58,""))))))) -> 
K4333: =IF(AND(J4333>0,J4333<=5),0.08,IF(AND(J4333>5,J4333<=10),0.17,IF(AND(J4333>10,J4333<=15),0.25,IF(AND(J4333>15,J4333<=20),0.33,IF(AND(J4333>20,J4333<=25),0.42,IF(AND(J4333>25,J4333<=30),0.5,IF(AND(J4333>30,J4333<=35),0.58,""))))))) -> 
K4397: =IF(AND(J4397>0,J4397<=5),0.08,IF(AND(J4397>5,J4397<=10),0.17,IF(AND(J4397>10,J4397<=15),0.25,IF(AND(J4397>15,J4397<=20),0.33,IF(AND(J4397>20,J4397<=25),0.42,IF(AND(J4397>25,J4397<=30),0.5,IF(AND(J4397>30,J4397<=35),0.58,""))))))) -> 
K4461: =IF(AND(J4461>0,J4461<=5),0.08,IF(AND(J4461>5,J4461<=10),0.17,IF(AND(J4461>10,J4461<=15),0.25,IF(AND(J4461>15,J4461<=20),0.33,IF(AND(J4461>20,J4461<=25),0.42,IF(AND(J4461>25,J4461<=30),0.5,IF(AND(J4461>30,J4461<=35),0.58,""))))))) -> 
K4525: =IF(AND(J4525>0,J4525<=5),0.08,IF(AND(J4525>5,J4525<=10),0.17,IF(AND(J4525>10,J4525<=15),0.25,IF(AND(J4525>15,J4525<=20),0.33,IF(AND(J4525>20,J4525<=25),0.42,IF(AND(J4525>25,J4525<=30),0.5,IF(AND(J4525>30,J4525<=35),0.58,""))))))) -> 
K4589: =IF(AND(J4589>0,J4589<=5),0.08,IF(AND(J4589>5,J4589<=10),0.17,IF(AND(J4589>10,J4589<=15),0.25,IF(AND(J4589>15,J4589<=20),0.33,IF(AND(J4589>20,J4589<=25),0.42,IF(AND(J4589>25,J4589<=30),0.5,IF(AND(J4589>30,J4589<=35),0.58,""))))))) -> 
K4653: =IF(AND(J4653>0,J4653<=5),0.08,IF(AND(J4653>5,J4653<=10),0.17,IF(AND(J4653>10,J4653<=15),0.25,IF(AND(J4653>15,J4653<=20),0.33,IF(AND(J4653>20,J4653<=25),0.42,IF(AND(J4653>25,J4653<=30),0.5,IF(AND(J4653>30,J4653<=35),0.58,""))))))) -> 
K4717: =IF(AND(J4717>0,J4717<=5),0.08,IF(AND(J4717>5,J4717<=10),0.17,IF(AND(J4717>10,J4717<=15),0.25,IF(AND(J4717>15,J4717<=20),0.33,IF(AND(J4717>20,J4717<=25),0.42,IF(AND(J4717>25,J4717<=30),0.5,IF(AND(J4717>30,J4717<=35),0.58,""))))))) -> 
K4781: =IF(AND(J4781>0,J4781<=5),0.08,IF(AND(J4781>5,J4781<=10),0.17,IF(AND(J4781>10,J4781<=15),0.25,IF(AND(J4781>15,J4781<=20),0.33,IF(AND(J4781>20,J4781<=25),0.42,IF(AND(J4781>25,J4781<=30),0.5,IF(AND(J4781>30,J4781<=35),0.58,""))))))) -> 
K4845: =IF(AND(J4845>0,J4845<=5),0.08,IF(AND(J4845>5,J4845<=10),0.17,IF(AND(J4845>10,J4845<=15),0.25,IF(AND(J4845>15,J4845<=20),0.33,IF(AND(J4845>20,J4845<=25),0.42,IF(AND(J4845>25,J4845<=30),0.5,IF(AND(J4845>30,J4845<=35),0.58,""))))))) -> 
K4909: =IF(AND(J4909>0,J4909<=5),0.08,IF(AND(J4909>5,J4909<=10),0.17,IF(AND(J4909>10,J4909<=15),0.25,IF(AND(J4909>15,J4909<=20),0.33,IF(AND(J4909>20,J4909<=25),0.42,IF(AND(J4909>25,J4909<=30),0.5,IF(AND(J4909>30,J4909<=35),0.58,""))))))) -> 
K4973: =IF(AND(J4973>0,J4973<=5),0.08,IF(AND(J4973>5,J4973<=10),0.17,IF(AND(J4973>10,J4973<=15),0.25,IF(AND(J4973>15,J4973<=20),0.33,IF(AND(J4973>20,J4973<=25),0.42,IF(AND(J4973>25,J4973<=30),0.5,IF(AND(J4973>30,J4973<=35),0.58,""))))))) -> 
K5037: =IF(AND(J5037>0,J5037<=5),0.08,IF(AND(J5037>5,J5037<=10),0.17,IF(AND(J5037>10,J5037<=15),0.25,IF(AND(J5037>15,J5037<=20),0.33,IF(AND(J5037>20,J5037<=25),0.42,IF(AND(J5037>25,J5037<=30),0.5,IF(AND(J5037>30,J5037<=35),0.58,""))))))) -> 
K5101: =IF(AND(J5101>0,J5101<=5),0.08,IF(AND(J5101>5,J5101<=10),0.17,IF(AND(J5101>10,J5101<=15),0.25,IF(AND(J5101>15,J5101<=20),0.33,IF(AND(J5101>20,J5101<=25),0.42,IF(AND(J5101>25,J5101<=30),0.5,IF(AND(J5101>30,J5101<=35),0.58,""))))))) -> 
K5165: =IF(AND(J5165>0,J5165<=5),0.08,IF(AND(J5165>5,J5165<=10),0.17,IF(AND(J5165>10,J5165<=15),0.25,IF(AND(J5165>15,J5165<=20),0.33,IF(AND(J5165>20,J5165<=25),0.42,IF(AND(J5165>25,J5165<=30),0.5,IF(AND(J5165>30,J5165<=35),0.58,""))))))) -> 
K5229: =IF(AND(J5229>0,J5229<=5),0.08,IF(AND(J5229>5,J5229<=10),0.17,IF(AND(J5229>10,J5229<=15),0.25,IF(AND(J5229>15,J5229<=20),0.33,IF(AND(J5229>20,J5229<=25),0.42,IF(AND(J5229>25,J5229<=30),0.5,IF(AND(J5229>30,J5229<=35),0.58,""))))))) -> 
K5293: =IF(AND(J5293>0,J5293<=5),0.08,IF(AND(J5293>5,J5293<=10),0.17,IF(AND(J5293>10,J5293<=15),0.25,IF(AND(J5293>15,J5293<=20),0.33,IF(AND(J5293>20,J5293<=25),0.42,IF(AND(J5293>25,J5293<=30),0.5,IF(AND(J5293>30,J5293<=35),0.58,""))))))) -> 
K5357: =IF(AND(J5357>0,J5357<=5),0.08,IF(AND(J5357>5,J5357<=10),0.17,IF(AND(J5357>10,J5357<=15),0.25,IF(AND(J5357>15,J5357<=20),0.33,IF(AND(J5357>20,J5357<=25),0.42,IF(AND(J5357>25,J5357<=30),0.5,IF(AND(J5357>30,J5357<=35),0.58,""))))))) -> 
K5421: =IF(AND(J5421>0,J5421<=5),0.08,IF(AND(J5421>5,J5421<=10),0.17,IF(AND(J5421>10,J5421<=15),0.25,IF(AND(J5421>15,J5421<=20),0.33,IF(AND(J5421>20,J5421<=25),0.42,IF(AND(J5421>25,J5421<=30),0.5,IF(AND(J5421>30,J5421<=35),0.58,""))))))) -> 
K5485: =IF(AND(J5485>0,J5485<=5),0.08,IF(AND(J5485>5,J5485<=10),0.17,IF(AND(J5485>10,J5485<=15),0.25,IF(AND(J5485>15,J5485<=20),0.33,IF(AND(J5485>20,J5485<=25),0.42,IF(AND(J5485>25,J5485<=30),0.5,IF(AND(J5485>30,J5485<=35),0.58,""))))))) -> 
K5549: =IF(AND(J5549>0,J5549<=5),0.08,IF(AND(J5549>5,J5549<=10),0.17,IF(AND(J5549>10,J5549<=15),0.25,IF(AND(J5549>15,J5549<=20),0.33,IF(AND(J5549>20,J5549<=25),0.42,IF(AND(J5549>25,J5549<=30),0.5,IF(AND(J5549>30,J5549<=35),0.58,""))))))) -> 
K5613: =IF(AND(J5613>0,J5613<=5),0.08,IF(AND(J5613>5,J5613<=10),0.17,IF(AND(J5613>10,J5613<=15),0.25,IF(AND(J5613>15,J5613<=20),0.33,IF(AND(J5613>20,J5613<=25),0.42,IF(AND(J5613>25,J5613<=30),0.5,IF(AND(J5613>30,J5613<=35),0.58,""))))))) -> 
K5677: =IF(AND(J5677>0,J5677<=5),0.08,IF(AND(J5677>5,J5677<=10),0.17,IF(AND(J5677>10,J5677<=15),0.25,IF(AND(J5677>15,J5677<=20),0.33,IF(AND(J5677>20,J5677<=25),0.42,IF(AND(J5677>25,J5677<=30),0.5,IF(AND(J5677>30,J5677<=35),0.58,""))))))) -> 
K5741: =IF(AND(J5741>0,J5741<=5),0.08,IF(AND(J5741>5,J5741<=10),0.17,IF(AND(J5741>10,J5741<=15),0.25,IF(AND(J5741>15,J5741<=20),0.33,IF(AND(J5741>20,J5741<=25),0.42,IF(AND(J5741>25,J5741<=30),0.5,IF(AND(J5741>30,J5741<=35),0.58,""))))))) -> 
K5805: =IF(AND(J5805>0,J5805<=5),0.08,IF(AND(J5805>5,J5805<=10),0.17,IF(AND(J5805>10,J5805<=15),0.25,IF(AND(J5805>15,J5805<=20),0.33,IF(AND(J5805>20,J5805<=25),0.42,IF(AND(J5805>25,J5805<=30),0.5,IF(AND(J5805>30,J5805<=35),0.58,""))))))) -> 
K5869: =IF(AND(J5869>0,J5869<=5),0.08,IF(AND(J5869>5,J5869<=10),0.17,IF(AND(J5869>10,J5869<=15),0.25,IF(AND(J5869>15,J5869<=20),0.33,IF(AND(J5869>20,J5869<=25),0.42,IF(AND(J5869>25,J5869<=30),0.5,IF(AND(J5869>30,J5869<=35),0.58,""))))))) -> 
K5933: =IF(AND(J5933>0,J5933<=5),0.08,IF(AND(J5933>5,J5933<=10),0.17,IF(AND(J5933>10,J5933<=15),0.25,IF(AND(J5933>15,J5933<=20),0.33,IF(AND(J5933>20,J5933<=25),0.42,IF(AND(J5933>25,J5933<=30),0.5,IF(AND(J5933>30,J5933<=35),0.58,""))))))) -> 
K5997: =IF(AND(J5997>0,J5997<=5),0.08,IF(AND(J5997>5,J5997<=10),0.17,IF(AND(J5997>10,J5997<=15),0.25,IF(AND(J5997>15,J5997<=20),0.33,IF(AND(J5997>20,J5997<=25),0.42,IF(AND(J5997>25,J5997<=30),0.5,IF(AND(J5997>30,J5997<=35),0.58,""))))))) -> 

Sheet DE104_4
A1: TabTitle | B1: =C16 -> ROADWAY ITEMS FOR DRAINAGE STRUCTURES INSTALLED BY CULVERT CONTRACTOR
A2: Number of Tab Columns | B2: 21
A3: DE Starter Row Number | B3: 27
A4: TabSheet Starter Row Number | B4: 13
A5: TabSheet Header Row Count | B5: 12
A6: Top Header Cell | B6: AB15
A7: Bottom Header Cell | B7: AV26
A8: DESheet Row Count | B8: 4
A9: Fixed Empty Rows | B9: 10
A10: Usable Empty Rows | B10: 0
A11: Total Rows Placed | B11: 14 | C11: xlRight(1) | D11: xlRight(1) | E11: xlRight(1) | F11: xlRight(1) | G11: xlCenter | H11: xlCenter | I11: xlRight(1) | J11: xlRight(1) | K11: xlCenter | L11: xlRight(1) | M11: xlRight(1) | N11: xlRight(1) | O11: xlRight(1) | P11: xlRight(1) | Q11: xlRight(1) | R11: xlLeft(1) | S11: xlRight(1) | T11: xlLeft(1) | U11: xlRight(1) | V11: xlRight(1) | W11: xlLeft(1) | AB11: =C11 -> xlRight(1) | AC11: xlRight(1) | AD11: xlRight(1) | AE11: xlRight(1) | AF11: xlCenter | AG11: xlCenter | AH11: xlRight(1) | AI11: xlRight(1) | AJ11: xlCenter | AK11: xlRight(1) | AL11: xlRight(1) | AM11: xlRight(1) | AN11: xlRight(1) | AO11: xlRight(1) | AP11: xlRight(1) | AQ11: xlLeft(1) | AR11: xlRight(1) | AS11: xlLeft(1) | AT11: xlRight(1) | AU11: xlRight(1) | AV11: xlLeft(1)
A12: Total Rows Needed | B12: =SUM(B8:B10) -> 14 | C12: #+00.00 | D12: General | E12: General | F12: General | G12: General | H12: General | I12: #+00.0 | J12: 0.00 | K12: General | L12: 0.0 | M12: 0.0 | N12: 0.0 | O12: 0.0 | P12: 0.0 | Q12: 0.0 | R12: General | S12: 0.0 | T12: General | U12: 0.000 | V12: 0.0 | W12: General | AB12: =IF(C12<>"",C12,"") -> #+00.00 | AC12: General | AD12: General | AE12: General | AF12: General | AG12: General | AH12: #+00.0 | AI12: 0.00 | AJ12: General | AK12: 0.0 | AL12: 0.0 | AM12: 0.0 | AN12: 0.0 | AO12: 0.0 | AP12: 0.0 | AQ12: General | AR12: 0.0 | AS12: General | AT12: 0.000 | AU12: 0.0 | AV12: General
A13: Last Tab DE Starter Row | B13: 27 | C13: =CELL("width",C13) -> 16 | D13: =CELL("width",D13) -> 13 | E13: 18 | F13: 20 | G13: 5 | H13: 5 | I13: 16 | J13: 11 | K13: 6 | L13: 14 | M13: 14 | N13: 14 | O13: 14 | P13: 14 | Q13: =CELL("width",Q13) -> 14 | R13: =CELL("width",R13) -> 50 | S13: 11 | T13: 11 | U13: 11 | V13: 13 | W13: =CELL("width",W13) -> 20 | AB13: =CELL("width",AB13) -> 0 | AC13: =CELL("width",AC13) -> 0 | AD13: 0 | AE13: 0 | AF13: 0 | AG13: 0 | AH13: 0 | AI13: 0 | AJ13: 0 | AK13: 0 | AL13: 0 | AM13: 0 | AN13: 0 | AO13: 0 | AP13: 0 | AQ13: 0 | AR13: 0 | AS13: 0 | AT13: 0 | AU13: 0 | AV13: 0
A14: Last Tab Tabsheet Starter Row | B14: 13 | C14: A | D14: B | E14: C | F14: D | G14: E | H14: F | I14: G | J14: H | K14: I | L14: J | M14: K | N14: L | O14: M | P14: N | Q14: O | R14: P | S14: Q | T14: R | U14: S | V14: T | W14: U | AB14: =LOWER(C14) -> a | AC14: b | AD14: c | AE14: d | AF14: e | AG14: f | AH14: g | AI14: h | AJ14: i | AK14: j | AL14: k | AM14: l | AN14: m | AO14: n | AP14: o | AQ14: p | AR14: q | AS14: r | AT14: s | AU14: t | AV14: u
A15: Last Copy Starter Row | B15: 1 | K15: Totals: | L15: =SUBTOTAL(9,L27:L6000) -> 204.0736444 | M15: =SUBTOTAL(9,M27:M6000) -> 0 | N15: =SUBTOTAL(9,N27:N6000) -> 0 | Q15: =SUBTOTAL(9,Q27:Q6000) -> 294.0309778 | V15: =SUBTOTAL(9,V27:V6000) -> 0 | Y15: Excavation Type | Z15: Quantity, CY | AB15: 104-4 | AX15: =F21 -> Kind | AY15: =R21 -> Excavation | AZ15: =T21 -> Revetment
A16: Tab Loop Number | B16: 2 | C16: ROADWAY ITEMS FOR DRAINAGE STRUCTURES INSTALLED BY CULVERT CONTRACTOR | Y16: =AY16 -> Class 10, Roadway and Borrow | Z16: =SUMIF(R27:R6000,Y16,S27:S6000) -> 0 | AB16: =B17 -> 2017-10-17 | AX16: RCB | AY16: Class 10, Roadway and Borrow | AZ16: Class D
A17: Revision Date | B17: 2017-10-17 | Y17: Class 10, Unsuitable or Unstable Material | Z17: =SUMIF(R27:R6000,Y17,S27:S6000) -> 0 | AB17: =C16 -> ROADWAY ITEMS FOR DRAINAGE STRUCTURES INSTALLED BY CULVERT CONTRACTOR | AX17: Flume | AY17: Class 10, Unsuitable or Unstable Material | AZ17: Class E
A18: Tabulation Width | B18: 4 | C18: * Not a Bid Item | Y18: Class 10, Waste | Z18: =SUMIF(R27:R6000,Y18,S27:S6000) -> 0 | AX18: Drop Inlet | AY18: Class 10, Waste
A19: Horizontal Grid Lines | B19: Yes | C19: Backfill according to DR-111 | Y19: Class 12, Bounders or Rock Fragments | Z19: =SUMIF(R27:R6000,Y19,S27:S6000) -> 0 | AB19: =C18 -> * Not a Bid Item | AX19: 3-sided Arch | AY19: Class 12, Bounders or Rock Fragments
C20: ="This Data Entry Sheet fills Tab "&AB15&" effective "&TEXT(B17,"mm-dd-yy") -> This Data Entry Sheet fills Tab 104-4 effective 10-17-17 | Y20: Class 10, Channel | Z20: =SUMIF(R27:R6000,Y20,S27:S6000) -> 0 | AB20: =C19 -> Backfill according to DR-111 | AY20: Class 10, Channel
C21: Location | D21: Design Number | E21: Size | F21: Kind | G21: By Road Contractor | O21: Floodable* Backfill | P21: Porous* Backfill | Q21: Flooded Backfill | R21: Excavation | T21: Revetment | V21: Engineering Fabric | W21: Remarks | Y21: Class 12, Channel | Z21: =SUMIF(R27:R6000,Y21,S27:S6000) -> 0 | AB21: =C21 -> Location | AC21: =D21 -> Design Number | AD21: =E21 -> Size | AE21: =F21 -> Kind | AF21: =G21 -> By Road Contractor | AN21: =O21 -> Floodable* Backfill | AO21: =P21 -> Porous* Backfill | AP21: =Q21 -> Flooded Backfill | AQ21: =R21 -> Excavation | AS21: =T21 -> Revetment | AU21: =V21 -> Engineering Fabric | AV21: =W21 -> Remarks | AY21: Class 12, Channel
G22: Dike | L22: Compacting Backfill Adjacent | M22: Compaction w/Moisture Control | N22: Compaction w/Moisture and Density | Y22: Class 13, Channel | Z22: =SUMIF(R27:R6000,Y22,S27:S6000) -> 0 | AF22: =G22 -> Dike | AK22: =L22 -> Compacting Backfill Adjacent | AL22: =M22 -> Compaction w/Moisture Control | AM22: Compaction w/Moisture and Density | AY22: Class 13, Channel
H24: Rt. | I24: Location Station | J24: Top. Elev. | K24: Type | Y24: Revetment Type | Z24: Quantity, TONS | AF24: =G24 ->  | AG24: =H24 -> Rt. | AH24: Location Station | AI24: Top. Elev. | AJ24: =K24 -> Type
O25: (A) | P25: (B) | Q25: (A+B) | R25: Type | S25: Quantity | T25: Type | U25: Quantity | Y25: =AZ16 -> Class D | Z25: =SUMIF(T27:T6000,Y25,U27:U6000) -> 0 | AN25: =O25 -> (A) | AO25: (B) | AP25: (A+B) | AQ25: =R25 -> Type | AR25: =S25 -> Quantity | AS25: =T25 -> Type | AT25: =U25 -> Quantity
G26: Lt. | L26: CY | M26: CY | N26: CY | O26: CY | P26: CY | Q26: CY | S26: CY | U26: TONS | V26: SY | Y26: =AZ17 -> Class E | Z26: =SUMIF(T27:T6000,Y26,U27:U6000) -> 0 | AF26: =G26 -> Lt. | AK26: =L26 -> CY | AL26: =M26 -> CY | AM26: CY | AN26: CY | AO26: CY | AP26: CY | AR26: =S26 -> CY | AT26: =U26 -> TONS | AU26: =V26 -> SY
C28: 88400 | D28: 714 | E28: 12'x11'-4"x134' | F28: RCB | L28: =((15.8333)*2*87)/27 -> 102.0368222 | O28: =((22.1093)*2*87)/27 -> 142.4821556 | P28: =(0.36*2*170)/27 -> 4.533333333 | Q28: =SUM(O28:P28) -> 147.0154889 | W28: BIKE TRAIL
C30: TOTALS: | L30: =SUM(L28) -> 102.0368222 | O30: =SUM(O28) -> 142.4821556 | P30: 4.533333333 | Q30: =SUM(Q28) -> 147.0154889

Sheet DE104_5A
A1: TabTitle | B1: =C15 -> INTAKES AND UTILITY ACCESSES
A2: Number of Tab Columns | B2: 7
A3: DE Starter Row Number | B3: 24
A4: TabSheet Starter Row Number | B4: 11
A5: TabSheet Header Row Count | B5: 10
A6: Top Header Cell | B6: P15
A7: Bottom Header Cell | B7: V24
A8: DESheet Row Count | B8: 2
A9: Fixed Empty Rows | B9: 5
A10: Usable Empty Rows | B10: 0
A11: Total Rows Placed | B11: 7 | C11: xlRight(1) | D11: xlRight(1) | E11: xlCenter | F11: xlRight(1) | G11: xlRight(1) | H11: xlRight(1) | N11: xlLeft(1) | P11: =C11 -> xlRight(1) | Q11: xlRight(1) | R11: xlCenter | S11: xlRight(1) | T11: xlRight(1) | U11: xlRight(1) | V11: =N11 -> xlLeft(1)
A12: Total Rows Needed | B12: =SUM(B8:B10) -> 7 | C12: General | D12: #+00.00 | E12: General | F12: 0.0 | G12: 0.0 | H12: 0.0 | N12: General | P12: General | Q12: #+00.00 | R12: General | S12: 0.0 | T12: 0.0 | U12: 0.0 | V12: =N12 -> General
A13: Last Tab DE Starter Row | B13: 24 | C13: =CELL("width",C13) -> 6 | D13: 19 | E13: 14 | F13: 13 | G13: 13 | H13: 14 | N13: =CELL("width",N13) -> 75 | P13: =CELL("width",P13) -> 0 | Q13: 0 | R13: 0 | S13: 0 | T13: 0 | U13: 0 | V13: 0
A14: Last Tab Tabsheet Starter Row | B14: 11 | C14: A | D14: B | E14: C | F14: D | G14: E | H14: F | N14: G | P14: =LOWER(C14) -> a | Q14: b | R14: c | S14: d | T14: e | U14: f | V14: =LOWER(N14) -> g
A15: Last Copy Starter Row | B15: 1 | C15: INTAKES AND UTILITY ACCESSES | P15: 104-5A
A16: Tab Loop Number | B16: 2 | P16: =B17 -> 2013-10-15
A17: Revision Date | B17: 2013-10-15 | C17: * Bid Item | P17: =C15 -> INTAKES AND UTILITY ACCESSES
A18: Tabulation Width | B18: 2 | C18: ** For SW-545
A19: Horizontal Grid Lines | B19: Yes | C19: ="This Data Entry Sheet fills Tab "&P15&" effective "&TEXT(B17,"mm-dd-yy") -> This Data Entry Sheet fills Tab 104-5A effective 10-15-13 | P19: =C17 -> * Bid Item
C20: No. | D20: Location Station | E20: Type or Standard Road Plan* | F20: Form Grade | G20: Bottom Well | H20: Extension Length** | I20: Length | J20: Width | K20: Depth | L20: Volume | M20: Weight | N20: Notes | P20: =C18 -> ** For SW-545
P21: =C20 -> No. | Q21: Location Station | R21: Type or Standard Road Plan* | S21: Form Grade | T21: Bottom Well | U21: Extension Length** | V21: =N20 -> Notes
F23: Elev. | G23: Elev. | H23: FT | I23: FT | J23: FT | K23: FT | L23: CF | M23: LBS
L24: =I24*J24*K24 -> 0 | M24: =L24*125 -> 0 | S24: =F23 -> Elev. | T24: =G23 -> Elev. | U24: =H23 -> FT
C25: 1 | D25: 89307 | E25: SW-562 | F25: 638.69 | G25: 633 | L25: 0 | M25: 0 | N25: See Tab. 104-3
L26: 0 | M26: 0
L27: 0 | M27: 0
L28: 0 | M28: 0
L29: 0 | M29: 0
L30: 0 | M30: 0
L31: 0 | M31: 0
L32: 0 | M32: 0
L33: 0 | M33: 0
L34: 0 | M34: 0
L35: 0 | M35: 0
L36: 0 | M36: 0
L37: 0 | M37: 0
L38: 0 | M38: 0
L39: 0 | M39: 0
L40: 0 | M40: 0
L41: 0 | M41: 0
L42: 0 | M42: 0
L43: 0 | M43: 0
L44: 0 | M44: 0
L45: 0 | M45: 0
L46: 0 | M46: 0
L47: 0 | M47: 0
L48: 0 | M48: 0
L49: 0 | M49: 0
L50: 0 | M50: 0
L51: 0 | M51: 0
L52: 0 | M52: 0
L53: 0 | M53: 0
L54: 0 | M54: 0
L55: 0 | M55: 0
L56: 0 | M56: 0
L57: 0 | M57: 0
L58: 0 | M58: 0
L59: 0 | M59: 0
L60: 0 | M60: 0
L61: 0 | M61: 0
L62: 0 | M62: 0
L63: 0 | M63: 0
L64: 0 | M64: 0
L65: 0 | M65: 0
L66: 0 | M66: 0
L67: 0 | M67: 0
L68: 0 | M68: 0
L69: 0 | M69: 0
L70: 0 | M70: 0
L71: 0 | M71: 0
L72: 0 | M72: 0
L73: 0 | M73: 0
L74: 0 | M74: 0
L75: 0 | M75: 0
L76: 0 | M76: 0
L77: 0 | M77: 0
L78: 0 | M78: 0
L79: 0 | M79: 0
L80: 0 | M80: 0
L81: 0 | M81: 0
L82: 0 | M82: 0
L83: 0 | M83: 0
L84: 0 | M84: 0
L85: 0 | M85: 0
L86: 0 | M86: 0
L87: 0 | M87: 0
L88: =I88*J88*K88 -> 0 | M88: =L88*125 -> 0
L89: 0 | M89: 0
L90: 0 | M90: 0
L91: 0 | M91: 0
L92: 0 | M92: 0
L93: 0 | M93: 0
L94: 0 | M94: 0
L95: 0 | M95: 0
L96: 0 | M96: 0
L97: 0 | M97: 0
L98: 0 | M98: 0
L99: 0 | M99: 0
L100: 0 | M100: 0
L101: 0 | M101: 0
L102: 0 | M102: 0
L103: 0 | M103: 0
L104: 0 | M104: 0
L105: 0 | M105: 0
L106: 0 | M106: 0
L107: 0 | M107: 0
L108: 0 | M108: 0
L109: 0 | M109: 0
L110: 0 | M110: 0
L111: 0 | M111: 0
L112: 0 | M112: 0
L113: 0 | M113: 0
L114: 0 | M114: 0
L115: 0 | M115: 0
L116: 0 | M116: 0
L117: 0 | M117: 0
L118: 0 | M118: 0
L119: 0 | M119: 0
L120: 0 | M120: 0
L121: 0 | M121: 0
L122: 0 | M122: 0
L123: 0 | M123: 0
L124: 0 | M124: 0
L125: 0 | M125: 0
L126: 0 | M126: 0
L127: 0 | M127: 0
L128: 0 | M128: 0
L129: 0 | M129: 0
L130: 0 | M130: 0
L131: 0 | M131: 0
L132: 0 | M132: 0
L133: 0 | M133: 0
L134: 0 | M134: 0
L135: 0 | M135: 0
L136: 0 | M136: 0
L137: 0 | M137: 0
L138: 0 | M138: 0
L139: 0 | M139: 0
L140: 0 | M140: 0
L141: 0 | M141: 0
L142: 0 | M142: 0
L143: 0 | M143: 0
L144: 0 | M144: 0
L145: 0 | M145: 0
L146: 0 | M146: 0
L147: 0 | M147: 0
L148: 0 | M148: 0
L149: 0 | M149: 0
L150: 0 | M150: 0
L151: 0 | M151: 0
L152: =I152*J152*K152 -> 0 | M152: =L152*125 -> 0
L153: 0 | M153: 0
L154: 0 | M154: 0
L155: 0 | M155: 0
L156: 0 | M156: 0
L157: 0 | M157: 0
L158: 0 | M158: 0
L159: 0 | M159: 0
L160: 0 | M160: 0
L161: 0 | M161: 0
L162: 0 | M162: 0
L163: 0 | M163: 0
L164: 0 | M164: 0
L165: 0 | M165: 0
L166: 0 | M166: 0
L167: 0 | M167: 0
L168: 0 | M168: 0
L169: 0 | M169: 0
L170: 0 | M170: 0
L171: 0 | M171: 0
L172: 0 | M172: 0
L173: 0 | M173: 0
L174: 0 | M174: 0
L175: 0 | M175: 0
L176: 0 | M176: 0
L177: 0 | M177: 0
L178: 0 | M178: 0
L179: 0 | M179: 0
L180: 0 | M180: 0
L181: 0 | M181: 0
L182: 0 | M182: 0
L183: 0 | M183: 0
L184: 0 | M184: 0
L185: 0 | M185: 0
L186: 0 | M186: 0
L187: 0 | M187: 0
L188: 0 | M188: 0
L189: 0 | M189: 0
L190: 0 | M190: 0
L191: 0 | M191: 0
L192: 0 | M192: 0
L193: 0 | M193: 0
L194: 0 | M194: 0
L195: 0 | M195: 0
L196: 0 | M196: 0
L197: 0 | M197: 0
L198: 0 | M198: 0
L199: 0 | M199: 0
L200: 0 | M200: 0
L201: 0 | M201: 0
... 5799 more rows

Sheet 104_3
A1: 104-3
A2: 2017-10-17
A3: DRAINAGE STRUCTURE BY ROAD CONTRACTOR
A6: Length of unclassified pipe calculated is based on using | J6: Reinforced Concrete Pipe.
A7: * Not a bid item
A8: Diameter or equivalent diameter
A9: UNCL = Unclassified Pipe CMP = Corrugated Metal Pipe RCP = Reinforced Concrete Pipe LCP = Arch or Elliptical Low Clearance Pipe SARC = Steel Arch Pipe
A10: Backfill according to DR-101
A11: Drainage Area | B11: Location | C11: Type | D11: Size | E11: Kind Of Pipe | F11: Length New Const. | G11: Bedding Class | H11: Design Cover (H) | I11: Camber* (DR-102) | J11: Apron No. | L11: Apron Guard* (DR-213) | M11: Elbow* (DR-141) | N11: Diaphragm* (DR-501) | O11: Tee Section* (DR-142) | P11: "D" Section* (DR-141) | Q11: Reducer* | R11: Type 'C' Connections* (DR-122) | T11: Connected Pipe Joint* (DR-121) | U11: 4" Perforated Subdrain* | V11: Flow Line Elevations | Z11: Dimensions Lin. Ft. | AD11: Skew Ahead Degrees | AF11: Dike | AJ11: Class 20 | AK11: Flowable Mortar | AL11: Floodable* Backfill | AM11: Porous* Backfill | AN11: Flooded Backfill | AO11: Remarks
AF18: Rt. | AG18: Location Station | AH18: Top Elevation | AI18: Type
Z19: Total | AB19: Extensions | AL19: (A) | AM19: (B) | AN19: (A+B)
A20: ACRE | D20: IN | F20: LF | H20: FT | I20: FT | J20: IN | K20: OUT | L20: No. | M20: No. | N20: No. | O20: No. | P20: No. | Q20: No. | R20: Type | S20: No. | T20: Type | U20: FT | V20: Lt. | W20: Rt. | X20: Other | Y20: Other | Z20: Lt. | AA20: Rt. | AB20: Lt. | AC20: Rt. | AD20: Lt. | AE20: Rt. | AF20: Lt. | AJ20: CY | AK20: CY | AL20: CY | AM20: CY | AN20: CY
A21: =IF(OFFSET(DE104_3!$C$35,ROWS($C$35:C35)-1,COLUMNS($C$35:C35)-1)<>"",OFFSET(DE104_3!$C$35,ROWS($C$35:C35)-1,COLUMNS($C$35:C35)-1),"") ->  | B21: =IF(OFFSET(DE104_3!$D$35,ROWS($D$35:D35)-1,COLUMNS($D$35:D35)-1)<>"",OFFSET(DE104_3!$D$35,ROWS($D$35:D35)-1,COLUMNS($D$35:D35)-1),"") ->  | C21: =IF(OFFSET(DE104_3!$E$35,ROWS($E$35:E35)-1,COLUMNS($E$35:E35)-1)<>"",OFFSET(DE104_3!$E$35,ROWS($E$35:E35)-1,COLUMNS($E$35:E35)-1),"") ->  | D21: =IF(OFFSET(DE104_3!$F$35,ROWS($F$35:F35)-1,COLUMNS($F$35:F35)-1)<>"",OFFSET(DE104_3!$F$35,ROWS($F$35:F35)-1,COLUMNS($F$35:F35)-1),"") ->  | E21: =IF(OFFSET(DE104_3!$G$35,ROWS($G$35:G35)-1,COLUMNS($G$35:G35)-1)<>"",OFFSET(DE104_3!$G$35,ROWS($G$35:G35)-1,COLUMNS($G$35:G35)-1),"") ->  | F21: =IF(OFFSET(DE104_3!$H$35,ROWS($H$35:H35)-1,COLUMNS($H$35:H35)-1)<>"",OFFSET(DE104_3!$H$35,ROWS($H$35:H35)-1,COLUMNS($H$35:H35)-1),"") ->  | G21: =IF(OFFSET(DE104_3!$I$35,ROWS($I$35:I35)-1,COLUMNS($I$35:I35)-1)<>"",OFFSET(DE104_3!$I$35,ROWS($I$35:I35)-1,COLUMNS($I$35:I35)-1),"") ->  | H21: =IF(OFFSET(DE104_3!$J$35,ROWS($J$35:J35)-1,COLUMNS($J$35:J35)-1)<>"",OFFSET(DE104_3!$J$35,ROWS($J$35:J35)-1,COLUMNS($J$35:J35)-1),"") ->  | I21: =IF(OFFSET(DE104_3!$K$35,ROWS($K$35:K35)-1,COLUMNS($K$35:K35)-1)<>"",OFFSET(DE104_3!$K$35,ROWS($K$35:K35)-1,COLUMNS($K$35:K35)-1),"") ->  | J21: =IF(OFFSET(DE104_3!$L$35,ROWS($L$35:L35)-1,COLUMNS($L$35:L35)-1)<>"",OFFSET(DE104_3!$L$35,ROWS($L$35:L35)-1,COLUMNS($L$35:L35)-1),"") ->  | K21: =IF(OFFSET(DE104_3!$M$35,ROWS($M$35:M35)-1,COLUMNS($M$35:M35)-1)<>"",OFFSET(DE104_3!$M$35,ROWS($M$35:M35)-1,COLUMNS($M$35:M35)-1),"") ->  | L21: =IF(OFFSET(DE104_3!$N$35,ROWS($N$35:N35)-1,COLUMNS($N$35:N35)-1)<>"",OFFSET(DE104_3!$N$35,ROWS($N$35:N35)-1,COLUMNS($N$35:N35)-1),"") ->  | M21: =IF(OFFSET(DE104_3!$O$35,ROWS($O$35:O35)-1,COLUMNS($O$35:O35)-1)<>"",OFFSET(DE104_3!$O$35,ROWS($O$35:O35)-1,COLUMNS($O$35:O35)-1),"") ->  | N21: =IF(OFFSET(DE104_3!$P$35,ROWS($P$35:P35)-1,COLUMNS($P$35:P35)-1)<>"",OFFSET(DE104_3!$P$35,ROWS($P$35:P35)-1,COLUMNS($P$35:P35)-1),"") ->  | O21: =IF(OFFSET(DE104_3!$Q$35,ROWS($Q$35:Q35)-1,COLUMNS($Q$35:Q35)-1)<>"",OFFSET(DE104_3!$Q$35,ROWS($Q$35:Q35)-1,COLUMNS($Q$35:Q35)-1),"") ->  | P21: =IF(OFFSET(DE104_3!$R$35,ROWS($R$35:R35)-1,COLUMNS($R$35:R35)-1)<>"",OFFSET(DE104_3!$R$35,ROWS($R$35:R35)-1,COLUMNS($R$35:R35)-1),"") ->  | Q21: =IF(OFFSET(DE104_3!$S$35,ROWS($S$35:S35)-1,COLUMNS($S$35:S35)-1)<>"",OFFSET(DE104_3!$S$35,ROWS($S$35:S35)-1,COLUMNS($S$35:S35)-1),"") ->  | R21: =IF(OFFSET(DE104_3!$T$35,ROWS($T$35:T35)-1,COLUMNS($T$35:T35)-1)<>"",OFFSET(DE104_3!$T$35,ROWS($T$35:T35)-1,COLUMNS($T$35:T35)-1),"") ->  | S21: =IF(OFFSET(DE104_3!$U$35,ROWS($U$35:U35)-1,COLUMNS($U$35:U35)-1)<>"",OFFSET(DE104_3!$U$35,ROWS($U$35:U35)-1,COLUMNS($U$35:U35)-1),"") ->  | T21: =IF(OFFSET(DE104_3!$V$35,ROWS($V$35:V35)-1,COLUMNS($V$35:V35)-1)<>"",OFFSET(DE104_3!$V$35,ROWS($V$35:V35)-1,COLUMNS($V$35:V35)-1),"") ->  | U21: =IF(OFFSET(DE104_3!$W$35,ROWS($W$35:W35)-1,COLUMNS($W$35:W35)-1)<>"",OFFSET(DE104_3!$W$35,ROWS($W$35:W35)-1,COLUMNS($W$35:W35)-1),"") ->  | V21: =IF(OFFSET(DE104_3!$X$35,ROWS($X$35:X35)-1,COLUMNS($X$35:X35)-1)<>"",OFFSET(DE104_3!$X$35,ROWS($X$35:X35)-1,COLUMNS($X$35:X35)-1),"") ->  | W21: =IF(OFFSET(DE104_3!$Y$35,ROWS($Y$35:Y35)-1,COLUMNS($Y$35:Y35)-1)<>"",OFFSET(DE104_3!$Y$35,ROWS($Y$35:Y35)-1,COLUMNS($Y$35:Y35)-1),"") ->  | X21: =IF(OFFSET(DE104_3!$Z$35,ROWS($Z$35:Z35)-1,COLUMNS($Z$35:Z35)-1)<>"",OFFSET(DE104_3!$Z$35,ROWS($Z$35:Z35)-1,COLUMNS($Z$35:Z35)-1),"") ->  | Y21: =IF(OFFSET(DE104_3!$AA$35,ROWS($AA$35:AA35)-1,COLUMNS($AA$35:AA35)-1)<>"",OFFSET(DE104_3!$AA$35,ROWS($AA$35:AA35)-1,COLUMNS($AA$35:AA35)-1),"") ->  | Z21: =IF(OFFSET(DE104_3!$AB$35,ROWS($AB$35:AB35)-1,COLUMNS($AB$35:AB35)-1)<>"",OFFSET(DE104_3!$AB$35,ROWS($AB$35:AB35)-1,COLUMNS($AB$35:AB35)-1),"") ->  | AA21: =IF(OFFSET(DE104_3!$AC$35,ROWS($AC$35:AC35)-1,COLUMNS($AC$35:AC35)-1)<>"",OFFSET(DE104_3!$AC$35,ROWS($AC$35:AC35)-1,COLUMNS($AC$35:AC35)-1),"") ->  | AB21: =IF(OFFSET(DE104_3!$AD$35,ROWS($AD$35:AD35)-1,COLUMNS($AD$35:AD35)-1)<>"",OFFSET(DE104_3!$AD$35,ROWS($AD$35:AD35)-1,COLUMNS($AD$35:AD35)-1),"") ->  | AC21: =IF(OFFSET(DE104_3!$AE$35,ROWS($AE$35:AE35)-1,COLUMNS($AE$35:AE35)-1)<>"",OFFSET(DE104_3!$AE$35,ROWS($AE$35:AE35)-1,COLUMNS($AE$35:AE35)-1),"") ->  | AD21: =IF(OFFSET(DE104_3!$AF$35,ROWS($AF$35:AF35)-1,COLUMNS($AF$35:AF35)-1)<>"",OFFSET(DE104_3!$AF$35,ROWS($AF$35:AF35)-1,COLUMNS($AF$35:AF35)-1),"") ->  | AE21: =IF(OFFSET(DE104_3!$AG$35,ROWS($AG$35:AG35)-1,COLUMNS($AG$35:AG35)-1)<>"",OFFSET(DE104_3!$AG$35,ROWS($AG$35:AG35)-1,COLUMNS($AG$35:AG35)-1),"") ->  | AF21: =IF(OFFSET(DE104_3!$AH$35,ROWS($AH$35:AH35)-1,COLUMNS($AH$35:AH35)-1)<>"",OFFSET(DE104_3!$AH$35,ROWS($AH$35:AH35)-1,COLUMNS($AH$35:AH35)-1),"") ->  | AG21: =IF(OFFSET(DE104_3!$AI$35,ROWS($AI$35:AI35)-1,COLUMNS($AI$35:AI35)-1)<>"",OFFSET(DE104_3!$AI$35,ROWS($AI$35:AI35)-1,COLUMNS($AI$35:AI35)-1),"") ->  | AH21: =IF(OFFSET(DE104_3!$AJ$35,ROWS($AJ$35:AJ35)-1,COLUMNS($AJ$35:AJ35)-1)<>"",OFFSET(DE104_3!$AJ$35,ROWS($AJ$35:AJ35)-1,COLUMNS($AJ$35:AJ35)-1),"") ->  | AI21: =IF(OFFSET(DE104_3!$AK$35,ROWS($AK$35:AK35)-1,COLUMNS($AK$35:AK35)-1)<>"",OFFSET(DE104_3!$AK$35,ROWS($AK$35:AK35)-1,COLUMNS($AK$35:AK35)-1),"") ->  | AJ21: =IF(OFFSET(DE104_3!$AL$35,ROWS($AL$35:AL35)-1,COLUMNS($AL$35:AL35)-1)<>"",OFFSET(DE104_3!$AL$35,ROWS($AL$35:AL35)-1,COLUMNS($AL$35:AL35)-1),"") ->  | AK21: =IF(OFFSET(DE104_3!$AM$35,ROWS($AM$35:AM35)-1,COLUMNS($AM$35:AM35)-1)<>"",OFFSET(DE104_3!$AM$35,ROWS($AM$35:AM35)-1,COLUMNS($AM$35:AM35)-1),"") ->  | AL21: =IF(OFFSET(DE104_3!$AN$35,ROWS($AN$35:AN35)-1,COLUMNS($AN$35:AN35)-1)<>"",OFFSET(DE104_3!$AN$35,ROWS($AN$35:AN35)-1,COLUMNS($AN$35:AN35)-1),"") ->  | AM21: =IF(OFFSET(DE104_3!$AO$35,ROWS($AO$35:AO35)-1,COLUMNS($AO$35:AO35)-1)<>"",OFFSET(DE104_3!$AO$35,ROWS($AO$35:AO35)-1,COLUMNS($AO$35:AO35)-1),"") ->  | AN21: =IF(OFFSET(DE104_3!$AP$35,ROWS($AP$35:AP35)-1,COLUMNS($AP$35:AP35)-1)<>"",OFFSET(DE104_3!$AP$35,ROWS($AP$35:AP35)-1,COLUMNS($AP$35:AP35)-1),"") ->  | AO21: =IF(OFFSET(DE104_3!$AQ$35,ROWS($AQ$35:AQ35)-1,COLUMNS($AQ$35:AQ35)-1)<>"",OFFSET(DE104_3!$AQ$35,ROWS($AQ$35:AQ35)-1,COLUMNS($AQ$35:AQ35)-1),"") -> 
A22: =IF(OFFSET(DE104_3!$C$35,ROWS($C$35:C36)-1,COLUMNS($C$35:C36)-1)<>"",OFFSET(DE104_3!$C$35,ROWS($C$35:C36)-1,COLUMNS($C$35:C36)-1),"") ->  | B22: =IF(OFFSET(DE104_3!$D$35,ROWS($D$35:D36)-1,COLUMNS($D$35:D36)-1)<>"",OFFSET(DE104_3!$D$35,ROWS($D$35:D36)-1,COLUMNS($D$35:D36)-1),"") ->  | C22: =IF(OFFSET(DE104_3!$E$35,ROWS($E$35:E36)-1,COLUMNS($E$35:E36)-1)<>"",OFFSET(DE104_3!$E$35,ROWS($E$35:E36)-1,COLUMNS($E$35:E36)-1),"") ->  | D22: =IF(OFFSET(DE104_3!$F$35,ROWS($F$35:F36)-1,COLUMNS($F$35:F36)-1)<>"",OFFSET(DE104_3!$F$35,ROWS($F$35:F36)-1,COLUMNS($F$35:F36)-1),"") ->  | E22: =IF(OFFSET(DE104_3!$G$35,ROWS($G$35:G36)-1,COLUMNS($G$35:G36)-1)<>"",OFFSET(DE104_3!$G$35,ROWS($G$35:G36)-1,COLUMNS($G$35:G36)-1),"") ->  | F22: =IF(OFFSET(DE104_3!$H$35,ROWS($H$35:H36)-1,COLUMNS($H$35:H36)-1)<>"",OFFSET(DE104_3!$H$35,ROWS($H$35:H36)-1,COLUMNS($H$35:H36)-1),"") ->  | G22: =IF(OFFSET(DE104_3!$I$35,ROWS($I$35:I36)-1,COLUMNS($I$35:I36)-1)<>"",OFFSET(DE104_3!$I$35,ROWS($I$35:I36)-1,COLUMNS($I$35:I36)-1),"") ->  | H22: =IF(OFFSET(DE104_3!$J$35,ROWS($J$35:J36)-1,COLUMNS($J$35:J36)-1)<>"",OFFSET(DE104_3!$J$35,ROWS($J$35:J36)-1,COLUMNS($J$35:J36)-1),"") ->  | I22: =IF(OFFSET(DE104_3!$K$35,ROWS($K$35:K36)-1,COLUMNS($K$35:K36)-1)<>"",OFFSET(DE104_3!$K$35,ROWS($K$35:K36)-1,COLUMNS($K$35:K36)-1),"") ->  | J22: =IF(OFFSET(DE104_3!$L$35,ROWS($L$35:L36)-1,COLUMNS($L$35:L36)-1)<>"",OFFSET(DE104_3!$L$35,ROWS($L$35:L36)-1,COLUMNS($L$35:L36)-1),"") ->  | K22: =IF(OFFSET(DE104_3!$M$35,ROWS($M$35:M36)-1,COLUMNS($M$35:M36)-1)<>"",OFFSET(DE104_3!$M$35,ROWS($M$35:M36)-1,COLUMNS($M$35:M36)-1),"") ->  | L22: =IF(OFFSET(DE104_3!$N$35,ROWS($N$35:N36)-1,COLUMNS($N$35:N36)-1)<>"",OFFSET(DE104_3!$N$35,ROWS($N$35:N36)-1,COLUMNS($N$35:N36)-1),"") ->  | M22: =IF(OFFSET(DE104_3!$O$35,ROWS($O$35:O36)-1,COLUMNS($O$35:O36)-1)<>"",OFFSET(DE104_3!$O$35,ROWS($O$35:O36)-1,COLUMNS($O$35:O36)-1),"") ->  | N22: =IF(OFFSET(DE104_3!$P$35,ROWS($P$35:P36)-1,COLUMNS($P$35:P36)-1)<>"",OFFSET(DE104_3!$P$35,ROWS($P$35:P36)-1,COLUMNS($P$35:P36)-1),"") ->  | O22: =IF(OFFSET(DE104_3!$Q$35,ROWS($Q$35:Q36)-1,COLUMNS($Q$35:Q36)-1)<>"",OFFSET(DE104_3!$Q$35,ROWS($Q$35:Q36)-1,COLUMNS($Q$35:Q36)-1),"") ->  | P22: =IF(OFFSET(DE104_3!$R$35,ROWS($R$35:R36)-1,COLUMNS($R$35:R36)-1)<>"",OFFSET(DE104_3!$R$35,ROWS($R$35:R36)-1,COLUMNS($R$35:R36)-1),"") ->  | Q22: =IF(OFFSET(DE104_3!$S$35,ROWS($S$35:S36)-1,COLUMNS($S$35:S36)-1)<>"",OFFSET(DE104_3!$S$35,ROWS($S$35:S36)-1,COLUMNS($S$35:S36)-1),"") ->  | R22: =IF(OFFSET(DE104_3!$T$35,ROWS($T$35:T36)-1,COLUMNS($T$35:T36)-1)<>"",OFFSET(DE104_3!$T$35,ROWS($T$35:T36)-1,COLUMNS($T$35:T36)-1),"") ->  | S22: =IF(OFFSET(DE104_3!$U$35,ROWS($U$35:U36)-1,COLUMNS($U$35:U36)-1)<>"",OFFSET(DE104_3!$U$35,ROWS($U$35:U36)-1,COLUMNS($U$35:U36)-1),"") ->  | T22: =IF(OFFSET(DE104_3!$V$35,ROWS($V$35:V36)-1,COLUMNS($V$35:V36)-1)<>"",OFFSET(DE104_3!$V$35,ROWS($V$35:V36)-1,COLUMNS($V$35:V36)-1),"") ->  | U22: =IF(OFFSET(DE104_3!$W$35,ROWS($W$35:W36)-1,COLUMNS($W$35:W36)-1)<>"",OFFSET(DE104_3!$W$35,ROWS($W$35:W36)-1,COLUMNS($W$35:W36)-1),"") ->  | V22: =IF(OFFSET(DE104_3!$X$35,ROWS($X$35:X36)-1,COLUMNS($X$35:X36)-1)<>"",OFFSET(DE104_3!$X$35,ROWS($X$35:X36)-1,COLUMNS($X$35:X36)-1),"") ->  | W22: =IF(OFFSET(DE104_3!$Y$35,ROWS($Y$35:Y36)-1,COLUMNS($Y$35:Y36)-1)<>"",OFFSET(DE104_3!$Y$35,ROWS($Y$35:Y36)-1,COLUMNS($Y$35:Y36)-1),"") ->  | X22: =IF(OFFSET(DE104_3!$Z$35,ROWS($Z$35:Z36)-1,COLUMNS($Z$35:Z36)-1)<>"",OFFSET(DE104_3!$Z$35,ROWS($Z$35:Z36)-1,COLUMNS($Z$35:Z36)-1),"") ->  | Y22: =IF(OFFSET(DE104_3!$AA$35,ROWS($AA$35:AA36)-1,COLUMNS($AA$35:AA36)-1)<>"",OFFSET(DE104_3!$AA$35,ROWS($AA$35:AA36)-1,COLUMNS($AA$35:AA36)-1),"") ->  | Z22: =IF(OFFSET(DE104_3!$AB$35,ROWS($AB$35:AB36)-1,COLUMNS($AB$35:AB36)-1)<>"",OFFSET(DE104_3!$AB$35,ROWS($AB$35:AB36)-1,COLUMNS($AB$35:AB36)-1),"") ->  | AA22: =IF(OFFSET(DE104_3!$AC$35,ROWS($AC$35:AC36)-1,COLUMNS($AC$35:AC36)-1)<>"",OFFSET(DE104_3!$AC$35,ROWS($AC$35:AC36)-1,COLUMNS($AC$35:AC36)-1),"") ->  | AB22: =IF(OFFSET(DE104_3!$AD$35,ROWS($AD$35:AD36)-1,COLUMNS($AD$35:AD36)-1)<>"",OFFSET(DE104_3!$AD$35,ROWS($AD$35:AD36)-1,COLUMNS($AD$35:AD36)-1),"") ->  | AC22: =IF(OFFSET(DE104_3!$AE$35,ROWS($AE$35:AE36)-1,COLUMNS($AE$35:AE36)-1)<>"",OFFSET(DE104_3!$AE$35,ROWS($AE$35:AE36)-1,COLUMNS($AE$35:AE36)-1),"") ->  | AD22: =IF(OFFSET(DE104_3!$AF$35,ROWS($AF$35:AF36)-1,COLUMNS($AF$35:AF36)-1)<>"",OFFSET(DE104_3!$AF$35,ROWS($AF$35:AF36)-1,COLUMNS($AF$35:AF36)-1),"") ->  | AE22: =IF(OFFSET(DE104_3!$AG$35,ROWS($AG$35:AG36)-1,COLUMNS($AG$35:AG36)-1)<>"",OFFSET(DE104_3!$AG$35,ROWS($AG$35:AG36)-1,COLUMNS($AG$35:AG36)-1),"") ->  | AF22: =IF(OFFSET(DE104_3!$AH$35,ROWS($AH$35:AH36)-1,COLUMNS($AH$35:AH36)-1)<>"",OFFSET(DE104_3!$AH$35,ROWS($AH$35:AH36)-1,COLUMNS($AH$35:AH36)-1),"") ->  | AG22: =IF(OFFSET(DE104_3!$AI$35,ROWS($AI$35:AI36)-1,COLUMNS($AI$35:AI36)-1)<>"",OFFSET(DE104_3!$AI$35,ROWS($AI$35:AI36)-1,COLUMNS($AI$35:AI36)-1),"") ->  | AH22: =IF(OFFSET(DE104_3!$AJ$35,ROWS($AJ$35:AJ36)-1,COLUMNS($AJ$35:AJ36)-1)<>"",OFFSET(DE104_3!$AJ$35,ROWS($AJ$35:AJ36)-1,COLUMNS($AJ$35:AJ36)-1),"") ->  | AI22: =IF(OFFSET(DE104_3!$AK$35,ROWS($AK$35:AK36)-1,COLUMNS($AK$35:AK36)-1)<>"",OFFSET(DE104_3!$AK$35,ROWS($AK$35:AK36)-1,COLUMNS($AK$35:AK36)-1),"") ->  | AJ22: =IF(OFFSET(DE104_3!$AL$35,ROWS($AL$35:AL36)-1,COLUMNS($AL$35:AL36)-1)<>"",OFFSET(DE104_3!$AL$35,ROWS($AL$35:AL36)-1,COLUMNS($AL$35:AL36)-1),"") ->  | AK22: =IF(OFFSET(DE104_3!$AM$35,ROWS($AM$35:AM36)-1,COLUMNS($AM$35:AM36)-1)<>"",OFFSET(DE104_3!$AM$35,ROWS($AM$35:AM36)-1,COLUMNS($AM$35:AM36)-1),"") ->  | AL22: =IF(OFFSET(DE104_3!$AN$35,ROWS($AN$35:AN36)-1,COLUMNS($AN$35:AN36)-1)<>"",OFFSET(DE104_3!$AN$35,ROWS($AN$35:AN36)-1,COLUMNS($AN$35:AN36)-1),"") ->  | AM22: =IF(OFFSET(DE104_3!$AO$35,ROWS($AO$35:AO36)-1,COLUMNS($AO$35:AO36)-1)<>"",OFFSET(DE104_3!$AO$35,ROWS($AO$35:AO36)-1,COLUMNS($AO$35:AO36)-1),"") ->  | AN22: =IF(OFFSET(DE104_3!$AP$35,ROWS($AP$35:AP36)-1,COLUMNS($AP$35:AP36)-1)<>"",OFFSET(DE104_3!$AP$35,ROWS($AP$35:AP36)-1,COLUMNS($AP$35:AP36)-1),"") ->  | AO22: =IF(OFFSET(DE104_3!$AQ$35,ROWS($AQ$35:AQ36)-1,COLUMNS($AQ$35:AQ36)-1)<>"",OFFSET(DE104_3!$AQ$35,ROWS($AQ$35:AQ36)-1,COLUMNS($AQ$35:AQ36)-1),"") -> 
A23: =IF(OFFSET(DE104_3!$C$35,ROWS($C$35:C37)-1,COLUMNS($C$35:C37)-1)<>"",OFFSET(DE104_3!$C$35,ROWS($C$35:C37)-1,COLUMNS($C$35:C37)-1),"") ->  | B23: =IF(OFFSET(DE104_3!$D$35,ROWS($D$35:D37)-1,COLUMNS($D$35:D37)-1)<>"",OFFSET(DE104_3!$D$35,ROWS($D$35:D37)-1,COLUMNS($D$35:D37)-1),"") -> US 63 | C23: =IF(OFFSET(DE104_3!$E$35,ROWS($E$35:E37)-1,COLUMNS($E$35:E37)-1)<>"",OFFSET(DE104_3!$E$35,ROWS($E$35:E37)-1,COLUMNS($E$35:E37)-1),"") ->  | D23: =IF(OFFSET(DE104_3!$F$35,ROWS($F$35:F37)-1,COLUMNS($F$35:F37)-1)<>"",OFFSET(DE104_3!$F$35,ROWS($F$35:F37)-1,COLUMNS($F$35:F37)-1),"") ->  | E23: =IF(OFFSET(DE104_3!$G$35,ROWS($G$35:G37)-1,COLUMNS($G$35:G37)-1)<>"",OFFSET(DE104_3!$G$35,ROWS($G$35:G37)-1,COLUMNS($G$35:G37)-1),"") ->  | F23: =IF(OFFSET(DE104_3!$H$35,ROWS($H$35:H37)-1,COLUMNS($H$35:H37)-1)<>"",OFFSET(DE104_3!$H$35,ROWS($H$35:H37)-1,COLUMNS($H$35:H37)-1),"") ->  | G23: =IF(OFFSET(DE104_3!$I$35,ROWS($I$35:I37)-1,COLUMNS($I$35:I37)-1)<>"",OFFSET(DE104_3!$I$35,ROWS($I$35:I37)-1,COLUMNS($I$35:I37)-1),"") ->  | H23: =IF(OFFSET(DE104_3!$J$35,ROWS($J$35:J37)-1,COLUMNS($J$35:J37)-1)<>"",OFFSET(DE104_3!$J$35,ROWS($J$35:J37)-1,COLUMNS($J$35:J37)-1),"") ->  | I23: =IF(OFFSET(DE104_3!$K$35,ROWS($K$35:K37)-1,COLUMNS($K$35:K37)-1)<>"",OFFSET(DE104_3!$K$35,ROWS($K$35:K37)-1,COLUMNS($K$35:K37)-1),"") ->  | J23: =IF(OFFSET(DE104_3!$L$35,ROWS($L$35:L37)-1,COLUMNS($L$35:L37)-1)<>"",OFFSET(DE104_3!$L$35,ROWS($L$35:L37)-1,COLUMNS($L$35:L37)-1),"") ->  | K23: =IF(OFFSET(DE104_3!$M$35,ROWS($M$35:M37)-1,COLUMNS($M$35:M37)-1)<>"",OFFSET(DE104_3!$M$35,ROWS($M$35:M37)-1,COLUMNS($M$35:M37)-1),"") ->  | L23: =IF(OFFSET(DE104_3!$N$35,ROWS($N$35:N37)-1,COLUMNS($N$35:N37)-1)<>"",OFFSET(DE104_3!$N$35,ROWS($N$35:N37)-1,COLUMNS($N$35:N37)-1),"") ->  | M23: =IF(OFFSET(DE104_3!$O$35,ROWS($O$35:O37)-1,COLUMNS($O$35:O37)-1)<>"",OFFSET(DE104_3!$O$35,ROWS($O$35:O37)-1,COLUMNS($O$35:O37)-1),"") ->  | N23: =IF(OFFSET(DE104_3!$P$35,ROWS($P$35:P37)-1,COLUMNS($P$35:P37)-1)<>"",OFFSET(DE104_3!$P$35,ROWS($P$35:P37)-1,COLUMNS($P$35:P37)-1),"") ->  | O23: =IF(OFFSET(DE104_3!$Q$35,ROWS($Q$35:Q37)-1,COLUMNS($Q$35:Q37)-1)<>"",OFFSET(DE104_3!$Q$35,ROWS($Q$35:Q37)-1,COLUMNS($Q$35:Q37)-1),"") ->  | P23: =IF(OFFSET(DE104_3!$R$35,ROWS($R$35:R37)-1,COLUMNS($R$35:R37)-1)<>"",OFFSET(DE104_3!$R$35,ROWS($R$35:R37)-1,COLUMNS($R$35:R37)-1),"") ->  | Q23: =IF(OFFSET(DE104_3!$S$35,ROWS($S$35:S37)-1,COLUMNS($S$35:S37)-1)<>"",OFFSET(DE104_3!$S$35,ROWS($S$35:S37)-1,COLUMNS($S$35:S37)-1),"") ->  | R23: =IF(OFFSET(DE104_3!$T$35,ROWS($T$35:T37)-1,COLUMNS($T$35:T37)-1)<>"",OFFSET(DE104_3!$T$35,ROWS($T$35:T37)-1,COLUMNS($T$35:T37)-1),"") ->  | S23: =IF(OFFSET(DE104_3!$U$35,ROWS($U$35:U37)-1,COLUMNS($U$35:U37)-1)<>"",OFFSET(DE104_3!$U$35,ROWS($U$35:U37)-1,COLUMNS($U$35:U37)-1),"") ->  | T23: =IF(OFFSET(DE104_3!$V$35,ROWS($V$35:V37)-1,COLUMNS($V$35:V37)-1)<>"",OFFSET(DE104_3!$V$35,ROWS($V$35:V37)-1,COLUMNS($V$35:V37)-1),"") ->  | U23: =IF(OFFSET(DE104_3!$W$35,ROWS($W$35:W37)-1,COLUMNS($W$35:W37)-1)<>"",OFFSET(DE104_3!$W$35,ROWS($W$35:W37)-1,COLUMNS($W$35:W37)-1),"") ->  | V23: =IF(OFFSET(DE104_3!$X$35,ROWS($X$35:X37)-1,COLUMNS($X$35:X37)-1)<>"",OFFSET(DE104_3!$X$35,ROWS($X$35:X37)-1,COLUMNS($X$35:X37)-1),"") ->  | W23: =IF(OFFSET(DE104_3!$Y$35,ROWS($Y$35:Y37)-1,COLUMNS($Y$35:Y37)-1)<>"",OFFSET(DE104_3!$Y$35,ROWS($Y$35:Y37)-1,COLUMNS($Y$35:Y37)-1),"") ->  | X23: =IF(OFFSET(DE104_3!$Z$35,ROWS($Z$35:Z37)-1,COLUMNS($Z$35:Z37)-1)<>"",OFFSET(DE104_3!$Z$35,ROWS($Z$35:Z37)-1,COLUMNS($Z$35:Z37)-1),"") ->  | Y23: =IF(OFFSET(DE104_3!$AA$35,ROWS($AA$35:AA37)-1,COLUMNS($AA$35:AA37)-1)<>"",OFFSET(DE104_3!$AA$35,ROWS($AA$35:AA37)-1,COLUMNS($AA$35:AA37)-1),"") ->  | Z23: =IF(OFFSET(DE104_3!$AB$35,ROWS($AB$35:AB37)-1,COLUMNS($AB$35:AB37)-1)<>"",OFFSET(DE104_3!$AB$35,ROWS($AB$35:AB37)-1,COLUMNS($AB$35:AB37)-1),"") ->  | AA23: =IF(OFFSET(DE104_3!$AC$35,ROWS($AC$35:AC37)-1,COLUMNS($AC$35:AC37)-1)<>"",OFFSET(DE104_3!$AC$35,ROWS($AC$35:AC37)-1,COLUMNS($AC$35:AC37)-1),"") ->  | AB23: =IF(OFFSET(DE104_3!$AD$35,ROWS($AD$35:AD37)-1,COLUMNS($AD$35:AD37)-1)<>"",OFFSET(DE104_3!$AD$35,ROWS($AD$35:AD37)-1,COLUMNS($AD$35:AD37)-1),"") ->  | AC23: =IF(OFFSET(DE104_3!$AE$35,ROWS($AE$35:AE37)-1,COLUMNS($AE$35:AE37)-1)<>"",OFFSET(DE104_3!$AE$35,ROWS($AE$35:AE37)-1,COLUMNS($AE$35:AE37)-1),"") ->  | AD23: =IF(OFFSET(DE104_3!$AF$35,ROWS($AF$35:AF37)-1,COLUMNS($AF$35:AF37)-1)<>"",OFFSET(DE104_3!$AF$35,ROWS($AF$35:AF37)-1,COLUMNS($AF$35:AF37)-1),"") ->  | AE23: =IF(OFFSET(DE104_3!$AG$35,ROWS($AG$35:AG37)-1,COLUMNS($AG$35:AG37)-1)<>"",OFFSET(DE104_3!$AG$35,ROWS($AG$35:AG37)-1,COLUMNS($AG$35:AG37)-1),"") ->  | AF23: =IF(OFFSET(DE104_3!$AH$35,ROWS($AH$35:AH37)-1,COLUMNS($AH$35:AH37)-1)<>"",OFFSET(DE104_3!$AH$35,ROWS($AH$35:AH37)-1,COLUMNS($AH$35:AH37)-1),"") ->  | AG23: =IF(OFFSET(DE104_3!$AI$35,ROWS($AI$35:AI37)-1,COLUMNS($AI$35:AI37)-1)<>"",OFFSET(DE104_3!$AI$35,ROWS($AI$35:AI37)-1,COLUMNS($AI$35:AI37)-1),"") ->  | AH23: =IF(OFFSET(DE104_3!$AJ$35,ROWS($AJ$35:AJ37)-1,COLUMNS($AJ$35:AJ37)-1)<>"",OFFSET(DE104_3!$AJ$35,ROWS($AJ$35:AJ37)-1,COLUMNS($AJ$35:AJ37)-1),"") ->  | AI23: =IF(OFFSET(DE104_3!$AK$35,ROWS($AK$35:AK37)-1,COLUMNS($AK$35:AK37)-1)<>"",OFFSET(DE104_3!$AK$35,ROWS($AK$35:AK37)-1,COLUMNS($AK$35:AK37)-1),"") ->  | AJ23: =IF(OFFSET(DE104_3!$AL$35,ROWS($AL$35:AL37)-1,COLUMNS($AL$35:AL37)-1)<>"",OFFSET(DE104_3!$AL$35,ROWS($AL$35:AL37)-1,COLUMNS($AL$35:AL37)-1),"") ->  | AK23: =IF(OFFSET(DE104_3!$AM$35,ROWS($AM$35:AM37)-1,COLUMNS($AM$35:AM37)-1)<>"",OFFSET(DE104_3!$AM$35,ROWS($AM$35:AM37)-1,COLUMNS($AM$35:AM37)-1),"") ->  | AL23: =IF(OFFSET(DE104_3!$AN$35,ROWS($AN$35:AN37)-1,COLUMNS($AN$35:AN37)-1)<>"",OFFSET(DE104_3!$AN$35,ROWS($AN$35:AN37)-1,COLUMNS($AN$35:AN37)-1),"") ->  | AM23: =IF(OFFSET(DE104_3!$AO$35,ROWS($AO$35:AO37)-1,COLUMNS($AO$35:AO37)-1)<>"",OFFSET(DE104_3!$AO$35,ROWS($AO$35:AO37)-1,COLUMNS($AO$35:AO37)-1),"") ->  | AN23: =IF(OFFSET(DE104_3!$AP$35,ROWS($AP$35:AP37)-1,COLUMNS($AP$35:AP37)-1)<>"",OFFSET(DE104_3!$AP$35,ROWS($AP$35:AP37)-1,COLUMNS($AP$35:AP37)-1),"") ->  | AO23: =IF(OFFSET(DE104_3!$AQ$35,ROWS($AQ$35:AQ37)-1,COLUMNS($AQ$35:AQ37)-1)<>"",OFFSET(DE104_3!$AQ$35,ROWS($AQ$35:AQ37)-1,COLUMNS($AQ$35:AQ37)-1),"") -> 
A24: =IF(OFFSET(DE104_3!$C$35,ROWS($C$35:C38)-1,COLUMNS($C$35:C38)-1)<>"",OFFSET(DE104_3!$C$35,ROWS($C$35:C38)-1,COLUMNS($C$35:C38)-1),"") -> 9 | B24: =IF(OFFSET(DE104_3!$D$35,ROWS($D$35:D38)-1,COLUMNS($D$35:D38)-1)<>"",OFFSET(DE104_3!$D$35,ROWS($D$35:D38)-1,COLUMNS($D$35:D38)-1),"") -> 89307 | C24: =IF(OFFSET(DE104_3!$E$35,ROWS($E$35:E38)-1,COLUMNS($E$35:E38)-1)<>"",OFFSET(DE104_3!$E$35,ROWS($E$35:E38)-1,COLUMNS($E$35:E38)-1),"") -> (1) | D24: =IF(OFFSET(DE104_3!$F$35,ROWS($F$35:F38)-1,COLUMNS($F$35:F38)-1)<>"",OFFSET(DE104_3!$F$35,ROWS($F$35:F38)-1,COLUMNS($F$35:F38)-1),"") -> 30 | E24: =IF(OFFSET(DE104_3!$G$35,ROWS($G$35:G38)-1,COLUMNS($G$35:G38)-1)<>"",OFFSET(DE104_3!$G$35,ROWS($G$35:G38)-1,COLUMNS($G$35:G38)-1),"") -> RCP | F24: =IF(OFFSET(DE104_3!$H$35,ROWS($H$35:H38)-1,COLUMNS($H$35:H38)-1)<>"",OFFSET(DE104_3!$H$35,ROWS($H$35:H38)-1,COLUMNS($H$35:H38)-1),"") -> 224 | G24: =IF(OFFSET(DE104_3!$I$35,ROWS($I$35:I38)-1,COLUMNS($I$35:I38)-1)<>"",OFFSET(DE104_3!$I$35,ROWS($I$35:I38)-1,COLUMNS($I$35:I38)-1),"") -> B | H24: =IF(OFFSET(DE104_3!$J$35,ROWS($J$35:J38)-1,COLUMNS($J$35:J38)-1)<>"",OFFSET(DE104_3!$J$35,ROWS($J$35:J38)-1,COLUMNS($J$35:J38)-1),"") -> 6 | I24: =IF(OFFSET(DE104_3!$K$35,ROWS($K$35:K38)-1,COLUMNS($K$35:K38)-1)<>"",OFFSET(DE104_3!$K$35,ROWS($K$35:K38)-1,COLUMNS($K$35:K38)-1),"") ->  | J24: =IF(OFFSET(DE104_3!$L$35,ROWS($L$35:L38)-1,COLUMNS($L$35:L38)-1)<>"",OFFSET(DE104_3!$L$35,ROWS($L$35:L38)-1,COLUMNS($L$35:L38)-1),"") -> 1 | K24: =IF(OFFSET(DE104_3!$M$35,ROWS($M$35:M38)-1,COLUMNS($M$35:M38)-1)<>"",OFFSET(DE104_3!$M$35,ROWS($M$35:M38)-1,COLUMNS($M$35:M38)-1),"") -> 1 | L24: =IF(OFFSET(DE104_3!$N$35,ROWS($N$35:N38)-1,COLUMNS($N$35:N38)-1)<>"",OFFSET(DE104_3!$N$35,ROWS($N$35:N38)-1,COLUMNS($N$35:N38)-1),"") ->  | M24: =IF(OFFSET(DE104_3!$O$35,ROWS($O$35:O38)-1,COLUMNS($O$35:O38)-1)<>"",OFFSET(DE104_3!$O$35,ROWS($O$35:O38)-1,COLUMNS($O$35:O38)-1),"") ->  | N24: =IF(OFFSET(DE104_3!$P$35,ROWS($P$35:P38)-1,COLUMNS($P$35:P38)-1)<>"",OFFSET(DE104_3!$P$35,ROWS($P$35:P38)-1,COLUMNS($P$35:P38)-1),"") ->  | O24: =IF(OFFSET(DE104_3!$Q$35,ROWS($Q$35:Q38)-1,COLUMNS($Q$35:Q38)-1)<>"",OFFSET(DE104_3!$Q$35,ROWS($Q$35:Q38)-1,COLUMNS($Q$35:Q38)-1),"") ->  | P24: =IF(OFFSET(DE104_3!$R$35,ROWS($R$35:R38)-1,COLUMNS($R$35:R38)-1)<>"",OFFSET(DE104_3!$R$35,ROWS($R$35:R38)-1,COLUMNS($R$35:R38)-1),"") ->  | Q24: =IF(OFFSET(DE104_3!$S$35,ROWS($S$35:S38)-1,COLUMNS($S$35:S38)-1)<>"",OFFSET(DE104_3!$S$35,ROWS($S$35:S38)-1,COLUMNS($S$35:S38)-1),"") ->  | R24: =IF(OFFSET(DE104_3!$T$35,ROWS($T$35:T38)-1,COLUMNS($T$35:T38)-1)<>"",OFFSET(DE104_3!$T$35,ROWS($T$35:T38)-1,COLUMNS($T$35:T38)-1),"") ->  | S24: =IF(OFFSET(DE104_3!$U$35,ROWS($U$35:U38)-1,COLUMNS($U$35:U38)-1)<>"",OFFSET(DE104_3!$U$35,ROWS($U$35:U38)-1,COLUMNS($U$35:U38)-1),"") ->  | T24: =IF(OFFSET(DE104_3!$V$35,ROWS($V$35:V38)-1,COLUMNS($V$35:V38)-1)<>"",OFFSET(DE104_3!$V$35,ROWS($V$35:V38)-1,COLUMNS($V$35:V38)-1),"") ->  | U24: =IF(OFFSET(DE104_3!$W$35,ROWS($W$35:W38)-1,COLUMNS($W$35:W38)-1)<>"",OFFSET(DE104_3!$W$35,ROWS($W$35:W38)-1,COLUMNS($W$35:W38)-1),"") ->  | V24: =IF(OFFSET(DE104_3!$X$35,ROWS($X$35:X38)-1,COLUMNS($X$35:X38)-1)<>"",OFFSET(DE104_3!$X$35,ROWS($X$35:X38)-1,COLUMNS($X$35:X38)-1),"") -> 635 | W24: =IF(OFFSET(DE104_3!$Y$35,ROWS($Y$35:Y38)-1,COLUMNS($Y$35:Y38)-1)<>"",OFFSET(DE104_3!$Y$35,ROWS($Y$35:Y38)-1,COLUMNS($Y$35:Y38)-1),"") -> 631.2 | X24: =IF(OFFSET(DE104_3!$Z$35,ROWS($Z$35:Z38)-1,COLUMNS($Z$35:Z38)-1)<>"",OFFSET(DE104_3!$Z$35,ROWS($Z$35:Z38)-1,COLUMNS($Z$35:Z38)-1),"") -> 633.74 | Y24: =IF(OFFSET(DE104_3!$AA$35,ROWS($AA$35:AA38)-1,COLUMNS($AA$35:AA38)-1)<>"",OFFSET(DE104_3!$AA$35,ROWS($AA$35:AA38)-1,COLUMNS($AA$35:AA38)-1),"") -> 633.74 | Z24: =IF(OFFSET(DE104_3!$AB$35,ROWS($AB$35:AB38)-1,COLUMNS($AB$35:AB38)-1)<>"",OFFSET(DE104_3!$AB$35,ROWS($AB$35:AB38)-1,COLUMNS($AB$35:AB38)-1),"") -> 77.38 | AA24: =IF(OFFSET(DE104_3!$AC$35,ROWS($AC$35:AC38)-1,COLUMNS($AC$35:AC38)-1)<>"",OFFSET(DE104_3!$AC$35,ROWS($AC$35:AC38)-1,COLUMNS($AC$35:AC38)-1),"") -> 161.87 | AB24: =IF(OFFSET(DE104_3!$AD$35,ROWS($AD$35:AD38)-1,COLUMNS($AD$35:AD38)-1)<>"",OFFSET(DE104_3!$AD$35,ROWS($AD$35:AD38)-1,COLUMNS($AD$35:AD38)-1),"") ->  | AC24: =IF(OFFSET(DE104_3!$AE$35,ROWS($AE$35:AE38)-1,COLUMNS($AE$35:AE38)-1)<>"",OFFSET(DE104_3!$AE$35,ROWS($AE$35:AE38)-1,COLUMNS($AE$35:AE38)-1),"") ->  | AD24: =IF(OFFSET(DE104_3!$AF$35,ROWS($AF$35:AF38)-1,COLUMNS($AF$35:AF38)-1)<>"",OFFSET(DE104_3!$AF$35,ROWS($AF$35:AF38)-1,COLUMNS($AF$35:AF38)-1),"") -> 10 | AE24: =IF(OFFSET(DE104_3!$AG$35,ROWS($AG$35:AG38)-1,COLUMNS($AG$35:AG38)-1)<>"",OFFSET(DE104_3!$AG$35,ROWS($AG$35:AG38)-1,COLUMNS($AG$35:AG38)-1),"") ->  | AF24: =IF(OFFSET(DE104_3!$AH$35,ROWS($AH$35:AH38)-1,COLUMNS($AH$35:AH38)-1)<>"",OFFSET(DE104_3!$AH$35,ROWS($AH$35:AH38)-1,COLUMNS($AH$35:AH38)-1),"") ->  | AG24: =IF(OFFSET(DE104_3!$AI$35,ROWS($AI$35:AI38)-1,COLUMNS($AI$35:AI38)-1)<>"",OFFSET(DE104_3!$AI$35,ROWS($AI$35:AI38)-1,COLUMNS($AI$35:AI38)-1),"") ->  | AH24: =IF(OFFSET(DE104_3!$AJ$35,ROWS($AJ$35:AJ38)-1,COLUMNS($AJ$35:AJ38)-1)<>"",OFFSET(DE104_3!$AJ$35,ROWS($AJ$35:AJ38)-1,COLUMNS($AJ$35:AJ38)-1),"") ->  | AI24: =IF(OFFSET(DE104_3!$AK$35,ROWS($AK$35:AK38)-1,COLUMNS($AK$35:AK38)-1)<>"",OFFSET(DE104_3!$AK$35,ROWS($AK$35:AK38)-1,COLUMNS($AK$35:AK38)-1),"") ->  | AJ24: =IF(OFFSET(DE104_3!$AL$35,ROWS($AL$35:AL38)-1,COLUMNS($AL$35:AL38)-1)<>"",OFFSET(DE104_3!$AL$35,ROWS($AL$35:AL38)-1,COLUMNS($AL$35:AL38)-1),"") -> 1123.683556 | AK24: =IF(OFFSET(DE104_3!$AM$35,ROWS($AM$35:AM38)-1,COLUMNS($AM$35:AM38)-1)<>"",OFFSET(DE104_3!$AM$35,ROWS($AM$35:AM38)-1,COLUMNS($AM$35:AM38)-1),"") ->  | AL24: =IF(OFFSET(DE104_3!$AN$35,ROWS($AN$35:AN38)-1,COLUMNS($AN$35:AN38)-1)<>"",OFFSET(DE104_3!$AN$35,ROWS($AN$35:AN38)-1,COLUMNS($AN$35:AN38)-1),"") -> 1064.06637 | AM24: =IF(OFFSET(DE104_3!$AO$35,ROWS($AO$35:AO38)-1,COLUMNS($AO$35:AO38)-1)<>"",OFFSET(DE104_3!$AO$35,ROWS($AO$35:AO38)-1,COLUMNS($AO$35:AO38)-1),"") -> 18.8973037 | AN24: =IF(OFFSET(DE104_3!$AP$35,ROWS($AP$35:AP38)-1,COLUMNS($AP$35:AP38)-1)<>"",OFFSET(DE104_3!$AP$35,ROWS($AP$35:AP38)-1,COLUMNS($AP$35:AP38)-1),"") -> 1082.963674 | AO24: =IF(OFFSET(DE104_3!$AQ$35,ROWS($AQ$35:AQ38)-1,COLUMNS($AQ$35:AQ38)-1)<>"",OFFSET(DE104_3!$AQ$35,ROWS($AQ$35:AQ38)-1,COLUMNS($AQ$35:AQ38)-1),"") -> (2)
A25: =IF(OFFSET(DE104_3!$C$35,ROWS($C$35:C39)-1,COLUMNS($C$35:C39)-1)<>"",OFFSET(DE104_3!$C$35,ROWS($C$35:C39)-1,COLUMNS($C$35:C39)-1),"") ->  | B25: =IF(OFFSET(DE104_3!$D$35,ROWS($D$35:D39)-1,COLUMNS($D$35:D39)-1)<>"",OFFSET(DE104_3!$D$35,ROWS($D$35:D39)-1,COLUMNS($D$35:D39)-1),"") -> 91082 | C25: =IF(OFFSET(DE104_3!$E$35,ROWS($E$35:E39)-1,COLUMNS($E$35:E39)-1)<>"",OFFSET(DE104_3!$E$35,ROWS($E$35:E39)-1,COLUMNS($E$35:E39)-1),"") -> DR-601 | D25: =IF(OFFSET(DE104_3!$F$35,ROWS($F$35:F39)-1,COLUMNS($F$35:F39)-1)<>"",OFFSET(DE104_3!$F$35,ROWS($F$35:F39)-1,COLUMNS($F$35:F39)-1),"") -> 48 | E25: =IF(OFFSET(DE104_3!$G$35,ROWS($G$35:G39)-1,COLUMNS($G$35:G39)-1)<>"",OFFSET(DE104_3!$G$35,ROWS($G$35:G39)-1,COLUMNS($G$35:G39)-1),"") -> RCP | F25: =IF(OFFSET(DE104_3!$H$35,ROWS($H$35:H39)-1,COLUMNS($H$35:H39)-1)<>"",OFFSET(DE104_3!$H$35,ROWS($H$35:H39)-1,COLUMNS($H$35:H39)-1),"") -> 168 | G25: =IF(OFFSET(DE104_3!$I$35,ROWS($I$35:I39)-1,COLUMNS($I$35:I39)-1)<>"",OFFSET(DE104_3!$I$35,ROWS($I$35:I39)-1,COLUMNS($I$35:I39)-1),"") -> B | H25: =IF(OFFSET(DE104_3!$J$35,ROWS($J$35:J39)-1,COLUMNS($J$35:J39)-1)<>"",OFFSET(DE104_3!$J$35,ROWS($J$35:J39)-1,COLUMNS($J$35:J39)-1),"") -> 11 | I25: =IF(OFFSET(DE104_3!$K$35,ROWS($K$35:K39)-1,COLUMNS($K$35:K39)-1)<>"",OFFSET(DE104_3!$K$35,ROWS($K$35:K39)-1,COLUMNS($K$35:K39)-1),"") -> 0.042 | J25: =IF(OFFSET(DE104_3!$L$35,ROWS($L$35:L39)-1,COLUMNS($L$35:L39)-1)<>"",OFFSET(DE104_3!$L$35,ROWS($L$35:L39)-1,COLUMNS($L$35:L39)-1),"") -> 1 | K25: =IF(OFFSET(DE104_3!$M$35,ROWS($M$35:M39)-1,COLUMNS($M$35:M39)-1)<>"",OFFSET(DE104_3!$M$35,ROWS($M$35:M39)-1,COLUMNS($M$35:M39)-1),"") -> 1 | L25: =IF(OFFSET(DE104_3!$N$35,ROWS($N$35:N39)-1,COLUMNS($N$35:N39)-1)<>"",OFFSET(DE104_3!$N$35,ROWS($N$35:N39)-1,COLUMNS($N$35:N39)-1),"") ->  | M25: =IF(OFFSET(DE104_3!$O$35,ROWS($O$35:O39)-1,COLUMNS($O$35:O39)-1)<>"",OFFSET(DE104_3!$O$35,ROWS($O$35:O39)-1,COLUMNS($O$35:O39)-1),"") ->  | N25: =IF(OFFSET(DE104_3!$P$35,ROWS($P$35:P39)-1,COLUMNS($P$35:P39)-1)<>"",OFFSET(DE104_3!$P$35,ROWS($P$35:P39)-1,COLUMNS($P$35:P39)-1),"") ->  | O25: =IF(OFFSET(DE104_3!$Q$35,ROWS($Q$35:Q39)-1,COLUMNS($Q$35:Q39)-1)<>"",OFFSET(DE104_3!$Q$35,ROWS($Q$35:Q39)-1,COLUMNS($Q$35:Q39)-1),"") ->  | P25: =IF(OFFSET(DE104_3!$R$35,ROWS($R$35:R39)-1,COLUMNS($R$35:R39)-1)<>"",OFFSET(DE104_3!$R$35,ROWS($R$35:R39)-1,COLUMNS($R$35:R39)-1),"") ->  | Q25: =IF(OFFSET(DE104_3!$S$35,ROWS($S$35:S39)-1,COLUMNS($S$35:S39)-1)<>"",OFFSET(DE104_3!$S$35,ROWS($S$35:S39)-1,COLUMNS($S$35:S39)-1),"") ->  | R25: =IF(OFFSET(DE104_3!$T$35,ROWS($T$35:T39)-1,COLUMNS($T$35:T39)-1)<>"",OFFSET(DE104_3!$T$35,ROWS($T$35:T39)-1,COLUMNS($T$35:T39)-1),"") ->  | S25: =IF(OFFSET(DE104_3!$U$35,ROWS($U$35:U39)-1,COLUMNS($U$35:U39)-1)<>"",OFFSET(DE104_3!$U$35,ROWS($U$35:U39)-1,COLUMNS($U$35:U39)-1),"") ->  | T25: =IF(OFFSET(DE104_3!$V$35,ROWS($V$35:V39)-1,COLUMNS($V$35:V39)-1)<>"",OFFSET(DE104_3!$V$35,ROWS($V$35:V39)-1,COLUMNS($V$35:V39)-1),"") ->  | U25: =IF(OFFSET(DE104_3!$W$35,ROWS($W$35:W39)-1,COLUMNS($W$35:W39)-1)<>"",OFFSET(DE104_3!$W$35,ROWS($W$35:W39)-1,COLUMNS($W$35:W39)-1),"") ->  | V25: =IF(OFFSET(DE104_3!$X$35,ROWS($X$35:X39)-1,COLUMNS($X$35:X39)-1)<>"",OFFSET(DE104_3!$X$35,ROWS($X$35:X39)-1,COLUMNS($X$35:X39)-1),"") -> 627.5 | W25: =IF(OFFSET(DE104_3!$Y$35,ROWS($Y$35:Y39)-1,COLUMNS($Y$35:Y39)-1)<>"",OFFSET(DE104_3!$Y$35,ROWS($Y$35:Y39)-1,COLUMNS($Y$35:Y39)-1),"") -> 627 | X25: =IF(OFFSET(DE104_3!$Z$35,ROWS($Z$35:Z39)-1,COLUMNS($Z$35:Z39)-1)<>"",OFFSET(DE104_3!$Z$35,ROWS($Z$35:Z39)-1,COLUMNS($Z$35:Z39)-1),"") ->  | Y25: =IF(OFFSET(DE104_3!$AA$35,ROWS($AA$35:AA39)-1,COLUMNS($AA$35:AA39)-1)<>"",OFFSET(DE104_3!$AA$35,ROWS($AA$35:AA39)-1,COLUMNS($AA$35:AA39)-1),"") ->  | Z25: =IF(OFFSET(DE104_3!$AB$35,ROWS($AB$35:AB39)-1,COLUMNS($AB$35:AB39)-1)<>"",OFFSET(DE104_3!$AB$35,ROWS($AB$35:AB39)-1,COLUMNS($AB$35:AB39)-1),"") -> 91 | AA25: =IF(OFFSET(DE104_3!$AC$35,ROWS($AC$35:AC39)-1,COLUMNS($AC$35:AC39)-1)<>"",OFFSET(DE104_3!$AC$35,ROWS($AC$35:AC39)-1,COLUMNS($AC$35:AC39)-1),"") -> 93 | AB25: =IF(OFFSET(DE104_3!$AD$35,ROWS($AD$35:AD39)-1,COLUMNS($AD$35:AD39)-1)<>"",OFFSET(DE104_3!$AD$35,ROWS($AD$35:AD39)-1,COLUMNS($AD$35:AD39)-1),"") ->  | AC25: =IF(OFFSET(DE104_3!$AE$35,ROWS($AE$35:AE39)-1,COLUMNS($AE$35:AE39)-1)<>"",OFFSET(DE104_3!$AE$35,ROWS($AE$35:AE39)-1,COLUMNS($AE$35:AE39)-1),"") ->  | AD25: =IF(OFFSET(DE104_3!$AF$35,ROWS($AF$35:AF39)-1,COLUMNS($AF$35:AF39)-1)<>"",OFFSET(DE104_3!$AF$35,ROWS($AF$35:AF39)-1,COLUMNS($AF$35:AF39)-1),"") ->  | AE25: =IF(OFFSET(DE104_3!$AG$35,ROWS($AG$35:AG39)-1,COLUMNS($AG$35:AG39)-1)<>"",OFFSET(DE104_3!$AG$35,ROWS($AG$35:AG39)-1,COLUMNS($AG$35:AG39)-1),"") ->  | AF25: =IF(OFFSET(DE104_3!$AH$35,ROWS($AH$35:AH39)-1,COLUMNS($AH$35:AH39)-1)<>"",OFFSET(DE104_3!$AH$35,ROWS($AH$35:AH39)-1,COLUMNS($AH$35:AH39)-1),"") ->  | AG25: =IF(OFFSET(DE104_3!$AI$35,ROWS($AI$35:AI39)-1,COLUMNS($AI$35:AI39)-1)<>"",OFFSET(DE104_3!$AI$35,ROWS($AI$35:AI39)-1,COLUMNS($AI$35:AI39)-1),"") ->  | AH25: =IF(OFFSET(DE104_3!$AJ$35,ROWS($AJ$35:AJ39)-1,COLUMNS($AJ$35:AJ39)-1)<>"",OFFSET(DE104_3!$AJ$35,ROWS($AJ$35:AJ39)-1,COLUMNS($AJ$35:AJ39)-1),"") ->  | AI25: =IF(OFFSET(DE104_3!$AK$35,ROWS($AK$35:AK39)-1,COLUMNS($AK$35:AK39)-1)<>"",OFFSET(DE104_3!$AK$35,ROWS($AK$35:AK39)-1,COLUMNS($AK$35:AK39)-1),"") ->  | AJ25: =IF(OFFSET(DE104_3!$AL$35,ROWS($AL$35:AL39)-1,COLUMNS($AL$35:AL39)-1)<>"",OFFSET(DE104_3!$AL$35,ROWS($AL$35:AL39)-1,COLUMNS($AL$35:AL39)-1),"") -> 2226.172978 | AK25: =IF(OFFSET(DE104_3!$AM$35,ROWS($AM$35:AM39)-1,COLUMNS($AM$35:AM39)-1)<>"",OFFSET(DE104_3!$AM$35,ROWS($AM$35:AM39)-1,COLUMNS($AM$35:AM39)-1),"") ->  | AL25: =IF(OFFSET(DE104_3!$AN$35,ROWS($AN$35:AN39)-1,COLUMNS($AN$35:AN39)-1)<>"",OFFSET(DE104_3!$AN$35,ROWS($AN$35:AN39)-1,COLUMNS($AN$35:AN39)-1),"") -> 2130.697956 | AM25: =IF(OFFSET(DE104_3!$AO$35,ROWS($AO$35:AO39)-1,COLUMNS($AO$35:AO39)-1)<>"",OFFSET(DE104_3!$AO$35,ROWS($AO$35:AO39)-1,COLUMNS($AO$35:AO39)-1),"") -> 17.28408889 | AN25: =IF(OFFSET(DE104_3!$AP$35,ROWS($AP$35:AP39)-1,COLUMNS($AP$35:AP39)-1)<>"",OFFSET(DE104_3!$AP$35,ROWS($AP$35:AP39)-1,COLUMNS($AP$35:AP39)-1),"") -> 2147.982044 | AO25: =IF(OFFSET(DE104_3!$AQ$35,ROWS($AQ$35:AQ39)-1,COLUMNS($AQ$35:AQ39)-1)<>"",OFFSET(DE104_3!$AQ$35,ROWS($AQ$35:AQ39)-1,COLUMNS($AQ$35:AQ39)-1),"") -> 
A26: =IF(OFFSET(DE104_3!$C$35,ROWS($C$35:C40)-1,COLUMNS($C$35:C40)-1)<>"",OFFSET(DE104_3!$C$35,ROWS($C$35:C40)-1,COLUMNS($C$35:C40)-1),"") ->  | B26: =IF(OFFSET(DE104_3!$D$35,ROWS($D$35:D40)-1,COLUMNS($D$35:D40)-1)<>"",OFFSET(DE104_3!$D$35,ROWS($D$35:D40)-1,COLUMNS($D$35:D40)-1),"") ->  | C26: =IF(OFFSET(DE104_3!$E$35,ROWS($E$35:E40)-1,COLUMNS($E$35:E40)-1)<>"",OFFSET(DE104_3!$E$35,ROWS($E$35:E40)-1,COLUMNS($E$35:E40)-1),"") ->  | D26: =IF(OFFSET(DE104_3!$F$35,ROWS($F$35:F40)-1,COLUMNS($F$35:F40)-1)<>"",OFFSET(DE104_3!$F$35,ROWS($F$35:F40)-1,COLUMNS($F$35:F40)-1),"") ->  | E26: =IF(OFFSET(DE104_3!$G$35,ROWS($G$35:G40)-1,COLUMNS($G$35:G40)-1)<>"",OFFSET(DE104_3!$G$35,ROWS($G$35:G40)-1,COLUMNS($G$35:G40)-1),"") ->  | F26: =IF(OFFSET(DE104_3!$H$35,ROWS($H$35:H40)-1,COLUMNS($H$35:H40)-1)<>"",OFFSET(DE104_3!$H$35,ROWS($H$35:H40)-1,COLUMNS($H$35:H40)-1),"") ->  | G26: =IF(OFFSET(DE104_3!$I$35,ROWS($I$35:I40)-1,COLUMNS($I$35:I40)-1)<>"",OFFSET(DE104_3!$I$35,ROWS($I$35:I40)-1,COLUMNS($I$35:I40)-1),"") ->  | H26: =IF(OFFSET(DE104_3!$J$35,ROWS($J$35:J40)-1,COLUMNS($J$35:J40)-1)<>"",OFFSET(DE104_3!$J$35,ROWS($J$35:J40)-1,COLUMNS($J$35:J40)-1),"") ->  | I26: =IF(OFFSET(DE104_3!$K$35,ROWS($K$35:K40)-1,COLUMNS($K$35:K40)-1)<>"",OFFSET(DE104_3!$K$35,ROWS($K$35:K40)-1,COLUMNS($K$35:K40)-1),"") ->  | J26: =IF(OFFSET(DE104_3!$L$35,ROWS($L$35:L40)-1,COLUMNS($L$35:L40)-1)<>"",OFFSET(DE104_3!$L$35,ROWS($L$35:L40)-1,COLUMNS($L$35:L40)-1),"") ->  | K26: =IF(OFFSET(DE104_3!$M$35,ROWS($M$35:M40)-1,COLUMNS($M$35:M40)-1)<>"",OFFSET(DE104_3!$M$35,ROWS($M$35:M40)-1,COLUMNS($M$35:M40)-1),"") ->  | L26: =IF(OFFSET(DE104_3!$N$35,ROWS($N$35:N40)-1,COLUMNS($N$35:N40)-1)<>"",OFFSET(DE104_3!$N$35,ROWS($N$35:N40)-1,COLUMNS($N$35:N40)-1),"") ->  | M26: =IF(OFFSET(DE104_3!$O$35,ROWS($O$35:O40)-1,COLUMNS($O$35:O40)-1)<>"",OFFSET(DE104_3!$O$35,ROWS($O$35:O40)-1,COLUMNS($O$35:O40)-1),"") ->  | N26: =IF(OFFSET(DE104_3!$P$35,ROWS($P$35:P40)-1,COLUMNS($P$35:P40)-1)<>"",OFFSET(DE104_3!$P$35,ROWS($P$35:P40)-1,COLUMNS($P$35:P40)-1),"") ->  | O26: =IF(OFFSET(DE104_3!$Q$35,ROWS($Q$35:Q40)-1,COLUMNS($Q$35:Q40)-1)<>"",OFFSET(DE104_3!$Q$35,ROWS($Q$35:Q40)-1,COLUMNS($Q$35:Q40)-1),"") ->  | P26: =IF(OFFSET(DE104_3!$R$35,ROWS($R$35:R40)-1,COLUMNS($R$35:R40)-1)<>"",OFFSET(DE104_3!$R$35,ROWS($R$35:R40)-1,COLUMNS($R$35:R40)-1),"") ->  | Q26: =IF(OFFSET(DE104_3!$S$35,ROWS($S$35:S40)-1,COLUMNS($S$35:S40)-1)<>"",OFFSET(DE104_3!$S$35,ROWS($S$35:S40)-1,COLUMNS($S$35:S40)-1),"") ->  | R26: =IF(OFFSET(DE104_3!$T$35,ROWS($T$35:T40)-1,COLUMNS($T$35:T40)-1)<>"",OFFSET(DE104_3!$T$35,ROWS($T$35:T40)-1,COLUMNS($T$35:T40)-1),"") ->  | S26: =IF(OFFSET(DE104_3!$U$35,ROWS($U$35:U40)-1,COLUMNS($U$35:U40)-1)<>"",OFFSET(DE104_3!$U$35,ROWS($U$35:U40)-1,COLUMNS($U$35:U40)-1),"") ->  | T26: =IF(OFFSET(DE104_3!$V$35,ROWS($V$35:V40)-1,COLUMNS($V$35:V40)-1)<>"",OFFSET(DE104_3!$V$35,ROWS($V$35:V40)-1,COLUMNS($V$35:V40)-1),"") ->  | U26: =IF(OFFSET(DE104_3!$W$35,ROWS($W$35:W40)-1,COLUMNS($W$35:W40)-1)<>"",OFFSET(DE104_3!$W$35,ROWS($W$35:W40)-1,COLUMNS($W$35:W40)-1),"") ->  | V26: =IF(OFFSET(DE104_3!$X$35,ROWS($X$35:X40)-1,COLUMNS($X$35:X40)-1)<>"",OFFSET(DE104_3!$X$35,ROWS($X$35:X40)-1,COLUMNS($X$35:X40)-1),"") ->  | W26: =IF(OFFSET(DE104_3!$Y$35,ROWS($Y$35:Y40)-1,COLUMNS($Y$35:Y40)-1)<>"",OFFSET(DE104_3!$Y$35,ROWS($Y$35:Y40)-1,COLUMNS($Y$35:Y40)-1),"") ->  | X26: =IF(OFFSET(DE104_3!$Z$35,ROWS($Z$35:Z40)-1,COLUMNS($Z$35:Z40)-1)<>"",OFFSET(DE104_3!$Z$35,ROWS($Z$35:Z40)-1,COLUMNS($Z$35:Z40)-1),"") ->  | Y26: =IF(OFFSET(DE104_3!$AA$35,ROWS($AA$35:AA40)-1,COLUMNS($AA$35:AA40)-1)<>"",OFFSET(DE104_3!$AA$35,ROWS($AA$35:AA40)-1,COLUMNS($AA$35:AA40)-1),"") ->  | Z26: =IF(OFFSET(DE104_3!$AB$35,ROWS($AB$35:AB40)-1,COLUMNS($AB$35:AB40)-1)<>"",OFFSET(DE104_3!$AB$35,ROWS($AB$35:AB40)-1,COLUMNS($AB$35:AB40)-1),"") ->  | AA26: =IF(OFFSET(DE104_3!$AC$35,ROWS($AC$35:AC40)-1,COLUMNS($AC$35:AC40)-1)<>"",OFFSET(DE104_3!$AC$35,ROWS($AC$35:AC40)-1,COLUMNS($AC$35:AC40)-1),"") ->  | AB26: =IF(OFFSET(DE104_3!$AD$35,ROWS($AD$35:AD40)-1,COLUMNS($AD$35:AD40)-1)<>"",OFFSET(DE104_3!$AD$35,ROWS($AD$35:AD40)-1,COLUMNS($AD$35:AD40)-1),"") ->  | AC26: =IF(OFFSET(DE104_3!$AE$35,ROWS($AE$35:AE40)-1,COLUMNS($AE$35:AE40)-1)<>"",OFFSET(DE104_3!$AE$35,ROWS($AE$35:AE40)-1,COLUMNS($AE$35:AE40)-1),"") ->  | AD26: =IF(OFFSET(DE104_3!$AF$35,ROWS($AF$35:AF40)-1,COLUMNS($AF$35:AF40)-1)<>"",OFFSET(DE104_3!$AF$35,ROWS($AF$35:AF40)-1,COLUMNS($AF$35:AF40)-1),"") ->  | AE26: =IF(OFFSET(DE104_3!$AG$35,ROWS($AG$35:AG40)-1,COLUMNS($AG$35:AG40)-1)<>"",OFFSET(DE104_3!$AG$35,ROWS($AG$35:AG40)-1,COLUMNS($AG$35:AG40)-1),"") ->  | AF26: =IF(OFFSET(DE104_3!$AH$35,ROWS($AH$35:AH40)-1,COLUMNS($AH$35:AH40)-1)<>"",OFFSET(DE104_3!$AH$35,ROWS($AH$35:AH40)-1,COLUMNS($AH$35:AH40)-1),"") ->  | AG26: =IF(OFFSET(DE104_3!$AI$35,ROWS($AI$35:AI40)-1,COLUMNS($AI$35:AI40)-1)<>"",OFFSET(DE104_3!$AI$35,ROWS($AI$35:AI40)-1,COLUMNS($AI$35:AI40)-1),"") ->  | AH26: =IF(OFFSET(DE104_3!$AJ$35,ROWS($AJ$35:AJ40)-1,COLUMNS($AJ$35:AJ40)-1)<>"",OFFSET(DE104_3!$AJ$35,ROWS($AJ$35:AJ40)-1,COLUMNS($AJ$35:AJ40)-1),"") ->  | AI26: =IF(OFFSET(DE104_3!$AK$35,ROWS($AK$35:AK40)-1,COLUMNS($AK$35:AK40)-1)<>"",OFFSET(DE104_3!$AK$35,ROWS($AK$35:AK40)-1,COLUMNS($AK$35:AK40)-1),"") ->  | AJ26: =IF(OFFSET(DE104_3!$AL$35,ROWS($AL$35:AL40)-1,COLUMNS($AL$35:AL40)-1)<>"",OFFSET(DE104_3!$AL$35,ROWS($AL$35:AL40)-1,COLUMNS($AL$35:AL40)-1),"") ->  | AK26: =IF(OFFSET(DE104_3!$AM$35,ROWS($AM$35:AM40)-1,COLUMNS($AM$35:AM40)-1)<>"",OFFSET(DE104_3!$AM$35,ROWS($AM$35:AM40)-1,COLUMNS($AM$35:AM40)-1),"") ->  | AL26: =IF(OFFSET(DE104_3!$AN$35,ROWS($AN$35:AN40)-1,COLUMNS($AN$35:AN40)-1)<>"",OFFSET(DE104_3!$AN$35,ROWS($AN$35:AN40)-1,COLUMNS($AN$35:AN40)-1),"") ->  | AM26: =IF(OFFSET(DE104_3!$AO$35,ROWS($AO$35:AO40)-1,COLUMNS($AO$35:AO40)-1)<>"",OFFSET(DE104_3!$AO$35,ROWS($AO$35:AO40)-1,COLUMNS($AO$35:AO40)-1),"") ->  | AN26: =IF(OFFSET(DE104_3!$AP$35,ROWS($AP$35:AP40)-1,COLUMNS($AP$35:AP40)-1)<>"",OFFSET(DE104_3!$AP$35,ROWS($AP$35:AP40)-1,COLUMNS($AP$35:AP40)-1),"") ->  | AO26: =IF(OFFSET(DE104_3!$AQ$35,ROWS($AQ$35:AQ40)-1,COLUMNS($AQ$35:AQ40)-1)<>"",OFFSET(DE104_3!$AQ$35,ROWS($AQ$35:AQ40)-1,COLUMNS($AQ$35:AQ40)-1),"") -> 
A27: =IF(OFFSET(DE104_3!$C$35,ROWS($C$35:C41)-1,COLUMNS($C$35:C41)-1)<>"",OFFSET(DE104_3!$C$35,ROWS($C$35:C41)-1,COLUMNS($C$35:C41)-1),"") ->  | B27: =IF(OFFSET(DE104_3!$D$35,ROWS($D$35:D41)-1,COLUMNS($D$35:D41)-1)<>"",OFFSET(DE104_3!$D$35,ROWS($D$35:D41)-1,COLUMNS($D$35:D41)-1),"") -> BIKE TRAIL | C27: =IF(OFFSET(DE104_3!$E$35,ROWS($E$35:E41)-1,COLUMNS($E$35:E41)-1)<>"",OFFSET(DE104_3!$E$35,ROWS($E$35:E41)-1,COLUMNS($E$35:E41)-1),"") ->  | D27: =IF(OFFSET(DE104_3!$F$35,ROWS($F$35:F41)-1,COLUMNS($F$35:F41)-1)<>"",OFFSET(DE104_3!$F$35,ROWS($F$35:F41)-1,COLUMNS($F$35:F41)-1),"") ->  | E27: =IF(OFFSET(DE104_3!$G$35,ROWS($G$35:G41)-1,COLUMNS($G$35:G41)-1)<>"",OFFSET(DE104_3!$G$35,ROWS($G$35:G41)-1,COLUMNS($G$35:G41)-1),"") ->  | F27: =IF(OFFSET(DE104_3!$H$35,ROWS($H$35:H41)-1,COLUMNS($H$35:H41)-1)<>"",OFFSET(DE104_3!$H$35,ROWS($H$35:H41)-1,COLUMNS($H$35:H41)-1),"") ->  | G27: =IF(OFFSET(DE104_3!$I$35,ROWS($I$35:I41)-1,COLUMNS($I$35:I41)-1)<>"",OFFSET(DE104_3!$I$35,ROWS($I$35:I41)-1,COLUMNS($I$35:I41)-1),"") ->  | H27: =IF(OFFSET(DE104_3!$J$35,ROWS($J$35:J41)-1,COLUMNS($J$35:J41)-1)<>"",OFFSET(DE104_3!$J$35,ROWS($J$35:J41)-1,COLUMNS($J$35:J41)-1),"") ->  | I27: =IF(OFFSET(DE104_3!$K$35,ROWS($K$35:K41)-1,COLUMNS($K$35:K41)-1)<>"",OFFSET(DE104_3!$K$35,ROWS($K$35:K41)-1,COLUMNS($K$35:K41)-1),"") ->  | J27: =IF(OFFSET(DE104_3!$L$35,ROWS($L$35:L41)-1,COLUMNS($L$35:L41)-1)<>"",OFFSET(DE104_3!$L$35,ROWS($L$35:L41)-1,COLUMNS($L$35:L41)-1),"") ->  | K27: =IF(OFFSET(DE104_3!$M$35,ROWS($M$35:M41)-1,COLUMNS($M$35:M41)-1)<>"",OFFSET(DE104_3!$M$35,ROWS($M$35:M41)-1,COLUMNS($M$35:M41)-1),"") ->  | L27: =IF(OFFSET(DE104_3!$N$35,ROWS($N$35:N41)-1,COLUMNS($N$35:N41)-1)<>"",OFFSET(DE104_3!$N$35,ROWS($N$35:N41)-1,COLUMNS($N$35:N41)-1),"") ->  | M27: =IF(OFFSET(DE104_3!$O$35,ROWS($O$35:O41)-1,COLUMNS($O$35:O41)-1)<>"",OFFSET(DE104_3!$O$35,ROWS($O$35:O41)-1,COLUMNS($O$35:O41)-1),"") ->  | N27: =IF(OFFSET(DE104_3!$P$35,ROWS($P$35:P41)-1,COLUMNS($P$35:P41)-1)<>"",OFFSET(DE104_3!$P$35,ROWS($P$35:P41)-1,COLUMNS($P$35:P41)-1),"") ->  | O27: =IF(OFFSET(DE104_3!$Q$35,ROWS($Q$35:Q41)-1,COLUMNS($Q$35:Q41)-1)<>"",OFFSET(DE104_3!$Q$35,ROWS($Q$35:Q41)-1,COLUMNS($Q$35:Q41)-1),"") ->  | P27: =IF(OFFSET(DE104_3!$R$35,ROWS($R$35:R41)-1,COLUMNS($R$35:R41)-1)<>"",OFFSET(DE104_3!$R$35,ROWS($R$35:R41)-1,COLUMNS($R$35:R41)-1),"") ->  | Q27: =IF(OFFSET(DE104_3!$S$35,ROWS($S$35:S41)-1,COLUMNS($S$35:S41)-1)<>"",OFFSET(DE104_3!$S$35,ROWS($S$35:S41)-1,COLUMNS($S$35:S41)-1),"") ->  | R27: =IF(OFFSET(DE104_3!$T$35,ROWS($T$35:T41)-1,COLUMNS($T$35:T41)-1)<>"",OFFSET(DE104_3!$T$35,ROWS($T$35:T41)-1,COLUMNS($T$35:T41)-1),"") ->  | S27: =IF(OFFSET(DE104_3!$U$35,ROWS($U$35:U41)-1,COLUMNS($U$35:U41)-1)<>"",OFFSET(DE104_3!$U$35,ROWS($U$35:U41)-1,COLUMNS($U$35:U41)-1),"") ->  | T27: =IF(OFFSET(DE104_3!$V$35,ROWS($V$35:V41)-1,COLUMNS($V$35:V41)-1)<>"",OFFSET(DE104_3!$V$35,ROWS($V$35:V41)-1,COLUMNS($V$35:V41)-1),"") ->  | U27: =IF(OFFSET(DE104_3!$W$35,ROWS($W$35:W41)-1,COLUMNS($W$35:W41)-1)<>"",OFFSET(DE104_3!$W$35,ROWS($W$35:W41)-1,COLUMNS($W$35:W41)-1),"") ->  | V27: =IF(OFFSET(DE104_3!$X$35,ROWS($X$35:X41)-1,COLUMNS($X$35:X41)-1)<>"",OFFSET(DE104_3!$X$35,ROWS($X$35:X41)-1,COLUMNS($X$35:X41)-1),"") ->  | W27: =IF(OFFSET(DE104_3!$Y$35,ROWS($Y$35:Y41)-1,COLUMNS($Y$35:Y41)-1)<>"",OFFSET(DE104_3!$Y$35,ROWS($Y$35:Y41)-1,COLUMNS($Y$35:Y41)-1),"") ->  | X27: =IF(OFFSET(DE104_3!$Z$35,ROWS($Z$35:Z41)-1,COLUMNS($Z$35:Z41)-1)<>"",OFFSET(DE104_3!$Z$35,ROWS($Z$35:Z41)-1,COLUMNS($Z$35:Z41)-1),"") ->  | Y27: =IF(OFFSET(DE104_3!$AA$35,ROWS($AA$35:AA41)-1,COLUMNS($AA$35:AA41)-1)<>"",OFFSET(DE104_3!$AA$35,ROWS($AA$35:AA41)-1,COLUMNS($AA$35:AA41)-1),"") ->  | Z27: =IF(OFFSET(DE104_3!$AB$35,ROWS($AB$35:AB41)-1,COLUMNS($AB$35:AB41)-1)<>"",OFFSET(DE104_3!$AB$35,ROWS($AB$35:AB41)-1,COLUMNS($AB$35:AB41)-1),"") ->  | AA27: =IF(OFFSET(DE104_3!$AC$35,ROWS($AC$35:AC41)-1,COLUMNS($AC$35:AC41)-1)<>"",OFFSET(DE104_3!$AC$35,ROWS($AC$35:AC41)-1,COLUMNS($AC$35:AC41)-1),"") ->  | AB27: =IF(OFFSET(DE104_3!$AD$35,ROWS($AD$35:AD41)-1,COLUMNS($AD$35:AD41)-1)<>"",OFFSET(DE104_3!$AD$35,ROWS($AD$35:AD41)-1,COLUMNS($AD$35:AD41)-1),"") ->  | AC27: =IF(OFFSET(DE104_3!$AE$35,ROWS($AE$35:AE41)-1,COLUMNS($AE$35:AE41)-1)<>"",OFFSET(DE104_3!$AE$35,ROWS($AE$35:AE41)-1,COLUMNS($AE$35:AE41)-1),"") ->  | AD27: =IF(OFFSET(DE104_3!$AF$35,ROWS($AF$35:AF41)-1,COLUMNS($AF$35:AF41)-1)<>"",OFFSET(DE104_3!$AF$35,ROWS($AF$35:AF41)-1,COLUMNS($AF$35:AF41)-1),"") ->  | AE27: =IF(OFFSET(DE104_3!$AG$35,ROWS($AG$35:AG41)-1,COLUMNS($AG$35:AG41)-1)<>"",OFFSET(DE104_3!$AG$35,ROWS($AG$35:AG41)-1,COLUMNS($AG$35:AG41)-1),"") ->  | AF27: =IF(OFFSET(DE104_3!$AH$35,ROWS($AH$35:AH41)-1,COLUMNS($AH$35:AH41)-1)<>"",OFFSET(DE104_3!$AH$35,ROWS($AH$35:AH41)-1,COLUMNS($AH$35:AH41)-1),"") ->  | AG27: =IF(OFFSET(DE104_3!$AI$35,ROWS($AI$35:AI41)-1,COLUMNS($AI$35:AI41)-1)<>"",OFFSET(DE104_3!$AI$35,ROWS($AI$35:AI41)-1,COLUMNS($AI$35:AI41)-1),"") ->  | AH27: =IF(OFFSET(DE104_3!$AJ$35,ROWS($AJ$35:AJ41)-1,COLUMNS($AJ$35:AJ41)-1)<>"",OFFSET(DE104_3!$AJ$35,ROWS($AJ$35:AJ41)-1,COLUMNS($AJ$35:AJ41)-1),"") ->  | AI27: =IF(OFFSET(DE104_3!$AK$35,ROWS($AK$35:AK41)-1,COLUMNS($AK$35:AK41)-1)<>"",OFFSET(DE104_3!$AK$35,ROWS($AK$35:AK41)-1,COLUMNS($AK$35:AK41)-1),"") ->  | AJ27: =IF(OFFSET(DE104_3!$AL$35,ROWS($AL$35:AL41)-1,COLUMNS($AL$35:AL41)-1)<>"",OFFSET(DE104_3!$AL$35,ROWS($AL$35:AL41)-1,COLUMNS($AL$35:AL41)-1),"") ->  | AK27: =IF(OFFSET(DE104_3!$AM$35,ROWS($AM$35:AM41)-1,COLUMNS($AM$35:AM41)-1)<>"",OFFSET(DE104_3!$AM$35,ROWS($AM$35:AM41)-1,COLUMNS($AM$35:AM41)-1),"") ->  | AL27: =IF(OFFSET(DE104_3!$AN$35,ROWS($AN$35:AN41)-1,COLUMNS($AN$35:AN41)-1)<>"",OFFSET(DE104_3!$AN$35,ROWS($AN$35:AN41)-1,COLUMNS($AN$35:AN41)-1),"") ->  | AM27: =IF(OFFSET(DE104_3!$AO$35,ROWS($AO$35:AO41)-1,COLUMNS($AO$35:AO41)-1)<>"",OFFSET(DE104_3!$AO$35,ROWS($AO$35:AO41)-1,COLUMNS($AO$35:AO41)-1),"") ->  | AN27: =IF(OFFSET(DE104_3!$AP$35,ROWS($AP$35:AP41)-1,COLUMNS($AP$35:AP41)-1)<>"",OFFSET(DE104_3!$AP$35,ROWS($AP$35:AP41)-1,COLUMNS($AP$35:AP41)-1),"") ->  | AO27: =IF(OFFSET(DE104_3!$AQ$35,ROWS($AQ$35:AQ41)-1,COLUMNS($AQ$35:AQ41)-1)<>"",OFFSET(DE104_3!$AQ$35,ROWS($AQ$35:AQ41)-1,COLUMNS($AQ$35:AQ41)-1),"") -> 
A28: =IF(OFFSET(DE104_3!$C$35,ROWS($C$35:C42)-1,COLUMNS($C$35:C42)-1)<>"",OFFSET(DE104_3!$C$35,ROWS($C$35:C42)-1,COLUMNS($C$35:C42)-1),"") ->  | B28: =IF(OFFSET(DE104_3!$D$35,ROWS($D$35:D42)-1,COLUMNS($D$35:D42)-1)<>"",OFFSET(DE104_3!$D$35,ROWS($D$35:D42)-1,COLUMNS($D$35:D42)-1),"") -> 880397 | C28: =IF(OFFSET(DE104_3!$E$35,ROWS($E$35:E42)-1,COLUMNS($E$35:E42)-1)<>"",OFFSET(DE104_3!$E$35,ROWS($E$35:E42)-1,COLUMNS($E$35:E42)-1),"") -> DR-651 | D28: =IF(OFFSET(DE104_3!$F$35,ROWS($F$35:F42)-1,COLUMNS($F$35:F42)-1)<>"",OFFSET(DE104_3!$F$35,ROWS($F$35:F42)-1,COLUMNS($F$35:F42)-1),"") -> 29x18 | E28: =IF(OFFSET(DE104_3!$G$35,ROWS($G$35:G42)-1,COLUMNS($G$35:G42)-1)<>"",OFFSET(DE104_3!$G$35,ROWS($G$35:G42)-1,COLUMNS($G$35:G42)-1),"") -> LCP | F28: =IF(OFFSET(DE104_3!$H$35,ROWS($H$35:H42)-1,COLUMNS($H$35:H42)-1)<>"",OFFSET(DE104_3!$H$35,ROWS($H$35:H42)-1,COLUMNS($H$35:H42)-1),"") -> 18 | G28: =IF(OFFSET(DE104_3!$I$35,ROWS($I$35:I42)-1,COLUMNS($I$35:I42)-1)<>"",OFFSET(DE104_3!$I$35,ROWS($I$35:I42)-1,COLUMNS($I$35:I42)-1),"") -> B | H28: =IF(OFFSET(DE104_3!$J$35,ROWS($J$35:J42)-1,COLUMNS($J$35:J42)-1)<>"",OFFSET(DE104_3!$J$35,ROWS($J$35:J42)-1,COLUMNS($J$35:J42)-1),"") -> 1.319 | I28: =IF(OFFSET(DE104_3!$K$35,ROWS($K$35:K42)-1,COLUMNS($K$35:K42)-1)<>"",OFFSET(DE104_3!$K$35,ROWS($K$35:K42)-1,COLUMNS($K$35:K42)-1),"") -> 0.08 | J28: =IF(OFFSET(DE104_3!$L$35,ROWS($L$35:L42)-1,COLUMNS($L$35:L42)-1)<>"",OFFSET(DE104_3!$L$35,ROWS($L$35:L42)-1,COLUMNS($L$35:L42)-1),"") -> 1 | K28: =IF(OFFSET(DE104_3!$M$35,ROWS($M$35:M42)-1,COLUMNS($M$35:M42)-1)<>"",OFFSET(DE104_3!$M$35,ROWS($M$35:M42)-1,COLUMNS($M$35:M42)-1),"") -> 1 | L28: =IF(OFFSET(DE104_3!$N$35,ROWS($N$35:N42)-1,COLUMNS($N$35:N42)-1)<>"",OFFSET(DE104_3!$N$35,ROWS($N$35:N42)-1,COLUMNS($N$35:N42)-1),"") ->  | M28: =IF(OFFSET(DE104_3!$O$35,ROWS($O$35:O42)-1,COLUMNS($O$35:O42)-1)<>"",OFFSET(DE104_3!$O$35,ROWS($O$35:O42)-1,COLUMNS($O$35:O42)-1),"") ->  | N28: =IF(OFFSET(DE104_3!$P$35,ROWS($P$35:P42)-1,COLUMNS($P$35:P42)-1)<>"",OFFSET(DE104_3!$P$35,ROWS($P$35:P42)-1,COLUMNS($P$35:P42)-1),"") ->  | O28: =IF(OFFSET(DE104_3!$Q$35,ROWS($Q$35:Q42)-1,COLUMNS($Q$35:Q42)-1)<>"",OFFSET(DE104_3!$Q$35,ROWS($Q$35:Q42)-1,COLUMNS($Q$35:Q42)-1),"") ->  | P28: =IF(OFFSET(DE104_3!$R$35,ROWS($R$35:R42)-1,COLUMNS($R$35:R42)-1)<>"",OFFSET(DE104_3!$R$35,ROWS($R$35:R42)-1,COLUMNS($R$35:R42)-1),"") ->  | Q28: =IF(OFFSET(DE104_3!$S$35,ROWS($S$35:S42)-1,COLUMNS($S$35:S42)-1)<>"",OFFSET(DE104_3!$S$35,ROWS($S$35:S42)-1,COLUMNS($S$35:S42)-1),"") ->  | R28: =IF(OFFSET(DE104_3!$T$35,ROWS($T$35:T42)-1,COLUMNS($T$35:T42)-1)<>"",OFFSET(DE104_3!$T$35,ROWS($T$35:T42)-1,COLUMNS($T$35:T42)-1),"") ->  | S28: =IF(OFFSET(DE104_3!$U$35,ROWS($U$35:U42)-1,COLUMNS($U$35:U42)-1)<>"",OFFSET(DE104_3!$U$35,ROWS($U$35:U42)-1,COLUMNS($U$35:U42)-1),"") ->  | T28: =IF(OFFSET(DE104_3!$V$35,ROWS($V$35:V42)-1,COLUMNS($V$35:V42)-1)<>"",OFFSET(DE104_3!$V$35,ROWS($V$35:V42)-1,COLUMNS($V$35:V42)-1),"") ->  | U28: =IF(OFFSET(DE104_3!$W$35,ROWS($W$35:W42)-1,COLUMNS($W$35:W42)-1)<>"",OFFSET(DE104_3!$W$35,ROWS($W$35:W42)-1,COLUMNS($W$35:W42)-1),"") ->  | V28: =IF(OFFSET(DE104_3!$X$35,ROWS($X$35:X42)-1,COLUMNS($X$35:X42)-1)<>"",OFFSET(DE104_3!$X$35,ROWS($X$35:X42)-1,COLUMNS($X$35:X42)-1),"") -> 638.49 | W28: =IF(OFFSET(DE104_3!$Y$35,ROWS($Y$35:Y42)-1,COLUMNS($Y$35:Y42)-1)<>"",OFFSET(DE104_3!$Y$35,ROWS($Y$35:Y42)-1,COLUMNS($Y$35:Y42)-1),"") -> 638.25 | X28: =IF(OFFSET(DE104_3!$Z$35,ROWS($Z$35:Z42)-1,COLUMNS($Z$35:Z42)-1)<>"",OFFSET(DE104_3!$Z$35,ROWS($Z$35:Z42)-1,COLUMNS($Z$35:Z42)-1),"") ->  | Y28: =IF(OFFSET(DE104_3!$AA$35,ROWS($AA$35:AA42)-1,COLUMNS($AA$35:AA42)-1)<>"",OFFSET(DE104_3!$AA$35,ROWS($AA$35:AA42)-1,COLUMNS($AA$35:AA42)-1),"") ->  | Z28: =IF(OFFSET(DE104_3!$AB$35,ROWS($AB$35:AB42)-1,COLUMNS($AB$35:AB42)-1)<>"",OFFSET(DE104_3!$AB$35,ROWS($AB$35:AB42)-1,COLUMNS($AB$35:AB42)-1),"") -> 14.5007 | AA28: =IF(OFFSET(DE104_3!$AC$35,ROWS($AC$35:AC42)-1,COLUMNS($AC$35:AC42)-1)<>"",OFFSET(DE104_3!$AC$35,ROWS($AC$35:AC42)-1,COLUMNS($AC$35:AC42)-1),"") -> 15.498 | AB28: =IF(OFFSET(DE104_3!$AD$35,ROWS($AD$35:AD42)-1,COLUMNS($AD$35:AD42)-1)<>"",OFFSET(DE104_3!$AD$35,ROWS($AD$35:AD42)-1,COLUMNS($AD$35:AD42)-1),"") ->  | AC28: =IF(OFFSET(DE104_3!$AE$35,ROWS($AE$35:AE42)-1,COLUMNS($AE$35:AE42)-1)<>"",OFFSET(DE104_3!$AE$35,ROWS($AE$35:AE42)-1,COLUMNS($AE$35:AE42)-1),"") ->  | AD28: =IF(OFFSET(DE104_3!$AF$35,ROWS($AF$35:AF42)-1,COLUMNS($AF$35:AF42)-1)<>"",OFFSET(DE104_3!$AF$35,ROWS($AF$35:AF42)-1,COLUMNS($AF$35:AF42)-1),"") ->  | AE28: =IF(OFFSET(DE104_3!$AG$35,ROWS($AG$35:AG42)-1,COLUMNS($AG$35:AG42)-1)<>"",OFFSET(DE104_3!$AG$35,ROWS($AG$35:AG42)-1,COLUMNS($AG$35:AG42)-1),"") ->  | AF28: =IF(OFFSET(DE104_3!$AH$35,ROWS($AH$35:AH42)-1,COLUMNS($AH$35:AH42)-1)<>"",OFFSET(DE104_3!$AH$35,ROWS($AH$35:AH42)-1,COLUMNS($AH$35:AH42)-1),"") ->  | AG28: =IF(OFFSET(DE104_3!$AI$35,ROWS($AI$35:AI42)-1,COLUMNS($AI$35:AI42)-1)<>"",OFFSET(DE104_3!$AI$35,ROWS($AI$35:AI42)-1,COLUMNS($AI$35:AI42)-1),"") ->  | AH28: =IF(OFFSET(DE104_3!$AJ$35,ROWS($AJ$35:AJ42)-1,COLUMNS($AJ$35:AJ42)-1)<>"",OFFSET(DE104_3!$AJ$35,ROWS($AJ$35:AJ42)-1,COLUMNS($AJ$35:AJ42)-1),"") ->  | AI28: =IF(OFFSET(DE104_3!$AK$35,ROWS($AK$35:AK42)-1,COLUMNS($AK$35:AK42)-1)<>"",OFFSET(DE104_3!$AK$35,ROWS($AK$35:AK42)-1,COLUMNS($AK$35:AK42)-1),"") ->  | AJ28: =IF(OFFSET(DE104_3!$AL$35,ROWS($AL$35:AL42)-1,COLUMNS($AL$35:AL42)-1)<>"",OFFSET(DE104_3!$AL$35,ROWS($AL$35:AL42)-1,COLUMNS($AL$35:AL42)-1),"") -> 19.94886667 | AK28: =IF(OFFSET(DE104_3!$AM$35,ROWS($AM$35:AM42)-1,COLUMNS($AM$35:AM42)-1)<>"",OFFSET(DE104_3!$AM$35,ROWS($AM$35:AM42)-1,COLUMNS($AM$35:AM42)-1),"") -> 3.5278 | AL28: =IF(OFFSET(DE104_3!$AN$35,ROWS($AN$35:AN42)-1,COLUMNS($AN$35:AN42)-1)<>"",OFFSET(DE104_3!$AN$35,ROWS($AN$35:AN42)-1,COLUMNS($AN$35:AN42)-1),"") -> 6.685266667 | AM28: =IF(OFFSET(DE104_3!$AO$35,ROWS($AO$35:AO42)-1,COLUMNS($AO$35:AO42)-1)<>"",OFFSET(DE104_3!$AO$35,ROWS($AO$35:AO42)-1,COLUMNS($AO$35:AO42)-1),"") -> 1.5 | AN28: =IF(OFFSET(DE104_3!$AP$35,ROWS($AP$35:AP42)-1,COLUMNS($AP$35:AP42)-1)<>"",OFFSET(DE104_3!$AP$35,ROWS($AP$35:AP42)-1,COLUMNS($AP$35:AP42)-1),"") -> 8.185266667 | AO28: =IF(OFFSET(DE104_3!$AQ$35,ROWS($AQ$35:AQ42)-1,COLUMNS($AQ$35:AQ42)-1)<>"",OFFSET(DE104_3!$AQ$35,ROWS($AQ$35:AQ42)-1,COLUMNS($AQ$35:AQ42)-1),"") -> 
A29: =IF(OFFSET(DE104_3!$C$35,ROWS($C$35:C43)-1,COLUMNS($C$35:C43)-1)<>"",OFFSET(DE104_3!$C$35,ROWS($C$35:C43)-1,COLUMNS($C$35:C43)-1),"") -> 1.5 | B29: =IF(OFFSET(DE104_3!$D$35,ROWS($D$35:D43)-1,COLUMNS($D$35:D43)-1)<>"",OFFSET(DE104_3!$D$35,ROWS($D$35:D43)-1,COLUMNS($D$35:D43)-1),"") -> 880628 | C29: =IF(OFFSET(DE104_3!$E$35,ROWS($E$35:E43)-1,COLUMNS($E$35:E43)-1)<>"",OFFSET(DE104_3!$E$35,ROWS($E$35:E43)-1,COLUMNS($E$35:E43)-1),"") -> DR-651 | D29: =IF(OFFSET(DE104_3!$F$35,ROWS($F$35:F43)-1,COLUMNS($F$35:F43)-1)<>"",OFFSET(DE104_3!$F$35,ROWS($F$35:F43)-1,COLUMNS($F$35:F43)-1),"") -> 29x18 | E29: =IF(OFFSET(DE104_3!$G$35,ROWS($G$35:G43)-1,COLUMNS($G$35:G43)-1)<>"",OFFSET(DE104_3!$G$35,ROWS($G$35:G43)-1,COLUMNS($G$35:G43)-1),"") -> LCP | F29: =IF(OFFSET(DE104_3!$H$35,ROWS($H$35:H43)-1,COLUMNS($H$35:H43)-1)<>"",OFFSET(DE104_3!$H$35,ROWS($H$35:H43)-1,COLUMNS($H$35:H43)-1),"") -> 34 | G29: =IF(OFFSET(DE104_3!$I$35,ROWS($I$35:I43)-1,COLUMNS($I$35:I43)-1)<>"",OFFSET(DE104_3!$I$35,ROWS($I$35:I43)-1,COLUMNS($I$35:I43)-1),"") -> B | H29: =IF(OFFSET(DE104_3!$J$35,ROWS($J$35:J43)-1,COLUMNS($J$35:J43)-1)<>"",OFFSET(DE104_3!$J$35,ROWS($J$35:J43)-1,COLUMNS($J$35:J43)-1),"") -> 1.788 | I29: =IF(OFFSET(DE104_3!$K$35,ROWS($K$35:K43)-1,COLUMNS($K$35:K43)-1)<>"",OFFSET(DE104_3!$K$35,ROWS($K$35:K43)-1,COLUMNS($K$35:K43)-1),"") -> 0.08 | J29: =IF(OFFSET(DE104_3!$L$35,ROWS($L$35:L43)-1,COLUMNS($L$35:L43)-1)<>"",OFFSET(DE104_3!$L$35,ROWS($L$35:L43)-1,COLUMNS($L$35:L43)-1),"") -> 1 | K29: =IF(OFFSET(DE104_3!$M$35,ROWS($M$35:M43)-1,COLUMNS($M$35:M43)-1)<>"",OFFSET(DE104_3!$M$35,ROWS($M$35:M43)-1,COLUMNS($M$35:M43)-1),"") -> 1 | L29: =IF(OFFSET(DE104_3!$N$35,ROWS($N$35:N43)-1,COLUMNS($N$35:N43)-1)<>"",OFFSET(DE104_3!$N$35,ROWS($N$35:N43)-1,COLUMNS($N$35:N43)-1),"") ->  | M29: =IF(OFFSET(DE104_3!$O$35,ROWS($O$35:O43)-1,COLUMNS($O$35:O43)-1)<>"",OFFSET(DE104_3!$O$35,ROWS($O$35:O43)-1,COLUMNS($O$35:O43)-1),"") ->  | N29: =IF(OFFSET(DE104_3!$P$35,ROWS($P$35:P43)-1,COLUMNS($P$35:P43)-1)<>"",OFFSET(DE104_3!$P$35,ROWS($P$35:P43)-1,COLUMNS($P$35:P43)-1),"") ->  | O29: =IF(OFFSET(DE104_3!$Q$35,ROWS($Q$35:Q43)-1,COLUMNS($Q$35:Q43)-1)<>"",OFFSET(DE104_3!$Q$35,ROWS($Q$35:Q43)-1,COLUMNS($Q$35:Q43)-1),"") ->  | P29: =IF(OFFSET(DE104_3!$R$35,ROWS($R$35:R43)-1,COLUMNS($R$35:R43)-1)<>"",OFFSET(DE104_3!$R$35,ROWS($R$35:R43)-1,COLUMNS($R$35:R43)-1),"") ->  | Q29: =IF(OFFSET(DE104_3!$S$35,ROWS($S$35:S43)-1,COLUMNS($S$35:S43)-1)<>"",OFFSET(DE104_3!$S$35,ROWS($S$35:S43)-1,COLUMNS($S$35:S43)-1),"") ->  | R29: =IF(OFFSET(DE104_3!$T$35,ROWS($T$35:T43)-1,COLUMNS($T$35:T43)-1)<>"",OFFSET(DE104_3!$T$35,ROWS($T$35:T43)-1,COLUMNS($T$35:T43)-1),"") ->  | S29: =IF(OFFSET(DE104_3!$U$35,ROWS($U$35:U43)-1,COLUMNS($U$35:U43)-1)<>"",OFFSET(DE104_3!$U$35,ROWS($U$35:U43)-1,COLUMNS($U$35:U43)-1),"") ->  | T29: =IF(OFFSET(DE104_3!$V$35,ROWS($V$35:V43)-1,COLUMNS($V$35:V43)-1)<>"",OFFSET(DE104_3!$V$35,ROWS($V$35:V43)-1,COLUMNS($V$35:V43)-1),"") ->  | U29: =IF(OFFSET(DE104_3!$W$35,ROWS($W$35:W43)-1,COLUMNS($W$35:W43)-1)<>"",OFFSET(DE104_3!$W$35,ROWS($W$35:W43)-1,COLUMNS($W$35:W43)-1),"") ->  | V29: =IF(OFFSET(DE104_3!$X$35,ROWS($X$35:X43)-1,COLUMNS($X$35:X43)-1)<>"",OFFSET(DE104_3!$X$35,ROWS($X$35:X43)-1,COLUMNS($X$35:X43)-1),"") -> 636.99 | W29: =IF(OFFSET(DE104_3!$Y$35,ROWS($Y$35:Y43)-1,COLUMNS($Y$35:Y43)-1)<>"",OFFSET(DE104_3!$Y$35,ROWS($Y$35:Y43)-1,COLUMNS($Y$35:Y43)-1),"") -> 636.48 | X29: =IF(OFFSET(DE104_3!$Z$35,ROWS($Z$35:Z43)-1,COLUMNS($Z$35:Z43)-1)<>"",OFFSET(DE104_3!$Z$35,ROWS($Z$35:Z43)-1,COLUMNS($Z$35:Z43)-1),"") ->  | Y29: =IF(OFFSET(DE104_3!$AA$35,ROWS($AA$35:AA43)-1,COLUMNS($AA$35:AA43)-1)<>"",OFFSET(DE104_3!$AA$35,ROWS($AA$35:AA43)-1,COLUMNS($AA$35:AA43)-1),"") ->  | Z29: =IF(OFFSET(DE104_3!$AB$35,ROWS($AB$35:AB43)-1,COLUMNS($AB$35:AB43)-1)<>"",OFFSET(DE104_3!$AB$35,ROWS($AB$35:AB43)-1,COLUMNS($AB$35:AB43)-1),"") -> 21.85 | AA29: =IF(OFFSET(DE104_3!$AC$35,ROWS($AC$35:AC43)-1,COLUMNS($AC$35:AC43)-1)<>"",OFFSET(DE104_3!$AC$35,ROWS($AC$35:AC43)-1,COLUMNS($AC$35:AC43)-1),"") -> 24.1475 | AB29: =IF(OFFSET(DE104_3!$AD$35,ROWS($AD$35:AD43)-1,COLUMNS($AD$35:AD43)-1)<>"",OFFSET(DE104_3!$AD$35,ROWS($AD$35:AD43)-1,COLUMNS($AD$35:AD43)-1),"") ->  | AC29: =IF(OFFSET(DE104_3!$AE$35,ROWS($AE$35:AE43)-1,COLUMNS($AE$35:AE43)-1)<>"",OFFSET(DE104_3!$AE$35,ROWS($AE$35:AE43)-1,COLUMNS($AE$35:AE43)-1),"") ->  | AD29: =IF(OFFSET(DE104_3!$AF$35,ROWS($AF$35:AF43)-1,COLUMNS($AF$35:AF43)-1)<>"",OFFSET(DE104_3!$AF$35,ROWS($AF$35:AF43)-1,COLUMNS($AF$35:AF43)-1),"") ->  | AE29: =IF(OFFSET(DE104_3!$AG$35,ROWS($AG$35:AG43)-1,COLUMNS($AG$35:AG43)-1)<>"",OFFSET(DE104_3!$AG$35,ROWS($AG$35:AG43)-1,COLUMNS($AG$35:AG43)-1),"") ->  | AF29: =IF(OFFSET(DE104_3!$AH$35,ROWS($AH$35:AH43)-1,COLUMNS($AH$35:AH43)-1)<>"",OFFSET(DE104_3!$AH$35,ROWS($AH$35:AH43)-1,COLUMNS($AH$35:AH43)-1),"") ->  | AG29: =IF(OFFSET(DE104_3!$AI$35,ROWS($AI$35:AI43)-1,COLUMNS($AI$35:AI43)-1)<>"",OFFSET(DE104_3!$AI$35,ROWS($AI$35:AI43)-1,COLUMNS($AI$35:AI43)-1),"") ->  | AH29: =IF(OFFSET(DE104_3!$AJ$35,ROWS($AJ$35:AJ43)-1,COLUMNS($AJ$35:AJ43)-1)<>"",OFFSET(DE104_3!$AJ$35,ROWS($AJ$35:AJ43)-1,COLUMNS($AJ$35:AJ43)-1),"") ->  | AI29: =IF(OFFSET(DE104_3!$AK$35,ROWS($AK$35:AK43)-1,COLUMNS($AK$35:AK43)-1)<>"",OFFSET(DE104_3!$AK$35,ROWS($AK$35:AK43)-1,COLUMNS($AK$35:AK43)-1),"") ->  | AJ29: =IF(OFFSET(DE104_3!$AL$35,ROWS($AL$35:AL43)-1,COLUMNS($AL$35:AL43)-1)<>"",OFFSET(DE104_3!$AL$35,ROWS($AL$35:AL43)-1,COLUMNS($AL$35:AL43)-1),"") -> 45.98185185 | AK29: =IF(OFFSET(DE104_3!$AM$35,ROWS($AM$35:AM43)-1,COLUMNS($AM$35:AM43)-1)<>"",OFFSET(DE104_3!$AM$35,ROWS($AM$35:AM43)-1,COLUMNS($AM$35:AM43)-1),"") -> 6.663622222 | AL29: =IF(OFFSET(DE104_3!$AN$35,ROWS($AN$35:AN43)-1,COLUMNS($AN$35:AN43)-1)<>"",OFFSET(DE104_3!$AN$35,ROWS($AN$35:AN43)-1,COLUMNS($AN$35:AN43)-1),"") -> 12.62772593 | AM29: =IF(OFFSET(DE104_3!$AO$35,ROWS($AO$35:AO43)-1,COLUMNS($AO$35:AO43)-1)<>"",OFFSET(DE104_3!$AO$35,ROWS($AO$35:AO43)-1,COLUMNS($AO$35:AO43)-1),"") -> 2.833333333 | AN29: =IF(OFFSET(DE104_3!$AP$35,ROWS($AP$35:AP43)-1,COLUMNS($AP$35:AP43)-1)<>"",OFFSET(DE104_3!$AP$35,ROWS($AP$35:AP43)-1,COLUMNS($AP$35:AP43)-1),"") -> 15.46105926 | AO29: =IF(OFFSET(DE104_3!$AQ$35,ROWS($AQ$35:AQ43)-1,COLUMNS($AQ$35:AQ43)-1)<>"",OFFSET(DE104_3!$AQ$35,ROWS($AQ$35:AQ43)-1,COLUMNS($AQ$35:AQ43)-1),"") -> 
A30: =IF(OFFSET(DE104_3!$C$35,ROWS($C$35:C44)-1,COLUMNS($C$35:C44)-1)<>"",OFFSET(DE104_3!$C$35,ROWS($C$35:C44)-1,COLUMNS($C$35:C44)-1),"") ->  | B30: =IF(OFFSET(DE104_3!$D$35,ROWS($D$35:D44)-1,COLUMNS($D$35:D44)-1)<>"",OFFSET(DE104_3!$D$35,ROWS($D$35:D44)-1,COLUMNS($D$35:D44)-1),"") ->  | C30: =IF(OFFSET(DE104_3!$E$35,ROWS($E$35:E44)-1,COLUMNS($E$35:E44)-1)<>"",OFFSET(DE104_3!$E$35,ROWS($E$35:E44)-1,COLUMNS($E$35:E44)-1),"") ->  | D30: =IF(OFFSET(DE104_3!$F$35,ROWS($F$35:F44)-1,COLUMNS($F$35:F44)-1)<>"",OFFSET(DE104_3!$F$35,ROWS($F$35:F44)-1,COLUMNS($F$35:F44)-1),"") ->  | E30: =IF(OFFSET(DE104_3!$G$35,ROWS($G$35:G44)-1,COLUMNS($G$35:G44)-1)<>"",OFFSET(DE104_3!$G$35,ROWS($G$35:G44)-1,COLUMNS($G$35:G44)-1),"") ->  | F30: =IF(OFFSET(DE104_3!$H$35,ROWS($H$35:H44)-1,COLUMNS($H$35:H44)-1)<>"",OFFSET(DE104_3!$H$35,ROWS($H$35:H44)-1,COLUMNS($H$35:H44)-1),"") ->  | G30: =IF(OFFSET(DE104_3!$I$35,ROWS($I$35:I44)-1,COLUMNS($I$35:I44)-1)<>"",OFFSET(DE104_3!$I$35,ROWS($I$35:I44)-1,COLUMNS($I$35:I44)-1),"") ->  | H30: =IF(OFFSET(DE104_3!$J$35,ROWS($J$35:J44)-1,COLUMNS($J$35:J44)-1)<>"",OFFSET(DE104_3!$J$35,ROWS($J$35:J44)-1,COLUMNS($J$35:J44)-1),"") ->  | I30: =IF(OFFSET(DE104_3!$K$35,ROWS($K$35:K44)-1,COLUMNS($K$35:K44)-1)<>"",OFFSET(DE104_3!$K$35,ROWS($K$35:K44)-1,COLUMNS($K$35:K44)-1),"") ->  | J30: =IF(OFFSET(DE104_3!$L$35,ROWS($L$35:L44)-1,COLUMNS($L$35:L44)-1)<>"",OFFSET(DE104_3!$L$35,ROWS($L$35:L44)-1,COLUMNS($L$35:L44)-1),"") ->  | K30: =IF(OFFSET(DE104_3!$M$35,ROWS($M$35:M44)-1,COLUMNS($M$35:M44)-1)<>"",OFFSET(DE104_3!$M$35,ROWS($M$35:M44)-1,COLUMNS($M$35:M44)-1),"") ->  | L30: =IF(OFFSET(DE104_3!$N$35,ROWS($N$35:N44)-1,COLUMNS($N$35:N44)-1)<>"",OFFSET(DE104_3!$N$35,ROWS($N$35:N44)-1,COLUMNS($N$35:N44)-1),"") ->  | M30: =IF(OFFSET(DE104_3!$O$35,ROWS($O$35:O44)-1,COLUMNS($O$35:O44)-1)<>"",OFFSET(DE104_3!$O$35,ROWS($O$35:O44)-1,COLUMNS($O$35:O44)-1),"") ->  | N30: =IF(OFFSET(DE104_3!$P$35,ROWS($P$35:P44)-1,COLUMNS($P$35:P44)-1)<>"",OFFSET(DE104_3!$P$35,ROWS($P$35:P44)-1,COLUMNS($P$35:P44)-1),"") ->  | O30: =IF(OFFSET(DE104_3!$Q$35,ROWS($Q$35:Q44)-1,COLUMNS($Q$35:Q44)-1)<>"",OFFSET(DE104_3!$Q$35,ROWS($Q$35:Q44)-1,COLUMNS($Q$35:Q44)-1),"") ->  | P30: =IF(OFFSET(DE104_3!$R$35,ROWS($R$35:R44)-1,COLUMNS($R$35:R44)-1)<>"",OFFSET(DE104_3!$R$35,ROWS($R$35:R44)-1,COLUMNS($R$35:R44)-1),"") ->  | Q30: =IF(OFFSET(DE104_3!$S$35,ROWS($S$35:S44)-1,COLUMNS($S$35:S44)-1)<>"",OFFSET(DE104_3!$S$35,ROWS($S$35:S44)-1,COLUMNS($S$35:S44)-1),"") ->  | R30: =IF(OFFSET(DE104_3!$T$35,ROWS($T$35:T44)-1,COLUMNS($T$35:T44)-1)<>"",OFFSET(DE104_3!$T$35,ROWS($T$35:T44)-1,COLUMNS($T$35:T44)-1),"") ->  | S30: =IF(OFFSET(DE104_3!$U$35,ROWS($U$35:U44)-1,COLUMNS($U$35:U44)-1)<>"",OFFSET(DE104_3!$U$35,ROWS($U$35:U44)-1,COLUMNS($U$35:U44)-1),"") ->  | T30: =IF(OFFSET(DE104_3!$V$35,ROWS($V$35:V44)-1,COLUMNS($V$35:V44)-1)<>"",OFFSET(DE104_3!$V$35,ROWS($V$35:V44)-1,COLUMNS($V$35:V44)-1),"") ->  | U30: =IF(OFFSET(DE104_3!$W$35,ROWS($W$35:W44)-1,COLUMNS($W$35:W44)-1)<>"",OFFSET(DE104_3!$W$35,ROWS($W$35:W44)-1,COLUMNS($W$35:W44)-1),"") ->  | V30: =IF(OFFSET(DE104_3!$X$35,ROWS($X$35:X44)-1,COLUMNS($X$35:X44)-1)<>"",OFFSET(DE104_3!$X$35,ROWS($X$35:X44)-1,COLUMNS($X$35:X44)-1),"") ->  | W30: =IF(OFFSET(DE104_3!$Y$35,ROWS($Y$35:Y44)-1,COLUMNS($Y$35:Y44)-1)<>"",OFFSET(DE104_3!$Y$35,ROWS($Y$35:Y44)-1,COLUMNS($Y$35:Y44)-1),"") ->  | X30: =IF(OFFSET(DE104_3!$Z$35,ROWS($Z$35:Z44)-1,COLUMNS($Z$35:Z44)-1)<>"",OFFSET(DE104_3!$Z$35,ROWS($Z$35:Z44)-1,COLUMNS($Z$35:Z44)-1),"") ->  | Y30: =IF(OFFSET(DE104_3!$AA$35,ROWS($AA$35:AA44)-1,COLUMNS($AA$35:AA44)-1)<>"",OFFSET(DE104_3!$AA$35,ROWS($AA$35:AA44)-1,COLUMNS($AA$35:AA44)-1),"") ->  | Z30: =IF(OFFSET(DE104_3!$AB$35,ROWS($AB$35:AB44)-1,COLUMNS($AB$35:AB44)-1)<>"",OFFSET(DE104_3!$AB$35,ROWS($AB$35:AB44)-1,COLUMNS($AB$35:AB44)-1),"") ->  | AA30: =IF(OFFSET(DE104_3!$AC$35,ROWS($AC$35:AC44)-1,COLUMNS($AC$35:AC44)-1)<>"",OFFSET(DE104_3!$AC$35,ROWS($AC$35:AC44)-1,COLUMNS($AC$35:AC44)-1),"") ->  | AB30: =IF(OFFSET(DE104_3!$AD$35,ROWS($AD$35:AD44)-1,COLUMNS($AD$35:AD44)-1)<>"",OFFSET(DE104_3!$AD$35,ROWS($AD$35:AD44)-1,COLUMNS($AD$35:AD44)-1),"") ->  | AC30: =IF(OFFSET(DE104_3!$AE$35,ROWS($AE$35:AE44)-1,COLUMNS($AE$35:AE44)-1)<>"",OFFSET(DE104_3!$AE$35,ROWS($AE$35:AE44)-1,COLUMNS($AE$35:AE44)-1),"") ->  | AD30: =IF(OFFSET(DE104_3!$AF$35,ROWS($AF$35:AF44)-1,COLUMNS($AF$35:AF44)-1)<>"",OFFSET(DE104_3!$AF$35,ROWS($AF$35:AF44)-1,COLUMNS($AF$35:AF44)-1),"") ->  | AE30: =IF(OFFSET(DE104_3!$AG$35,ROWS($AG$35:AG44)-1,COLUMNS($AG$35:AG44)-1)<>"",OFFSET(DE104_3!$AG$35,ROWS($AG$35:AG44)-1,COLUMNS($AG$35:AG44)-1),"") ->  | AF30: =IF(OFFSET(DE104_3!$AH$35,ROWS($AH$35:AH44)-1,COLUMNS($AH$35:AH44)-1)<>"",OFFSET(DE104_3!$AH$35,ROWS($AH$35:AH44)-1,COLUMNS($AH$35:AH44)-1),"") ->  | AG30: =IF(OFFSET(DE104_3!$AI$35,ROWS($AI$35:AI44)-1,COLUMNS($AI$35:AI44)-1)<>"",OFFSET(DE104_3!$AI$35,ROWS($AI$35:AI44)-1,COLUMNS($AI$35:AI44)-1),"") ->  | AH30: =IF(OFFSET(DE104_3!$AJ$35,ROWS($AJ$35:AJ44)-1,COLUMNS($AJ$35:AJ44)-1)<>"",OFFSET(DE104_3!$AJ$35,ROWS($AJ$35:AJ44)-1,COLUMNS($AJ$35:AJ44)-1),"") ->  | AI30: =IF(OFFSET(DE104_3!$AK$35,ROWS($AK$35:AK44)-1,COLUMNS($AK$35:AK44)-1)<>"",OFFSET(DE104_3!$AK$35,ROWS($AK$35:AK44)-1,COLUMNS($AK$35:AK44)-1),"") ->  | AJ30: =IF(OFFSET(DE104_3!$AL$35,ROWS($AL$35:AL44)-1,COLUMNS($AL$35:AL44)-1)<>"",OFFSET(DE104_3!$AL$35,ROWS($AL$35:AL44)-1,COLUMNS($AL$35:AL44)-1),"") ->  | AK30: =IF(OFFSET(DE104_3!$AM$35,ROWS($AM$35:AM44)-1,COLUMNS($AM$35:AM44)-1)<>"",OFFSET(DE104_3!$AM$35,ROWS($AM$35:AM44)-1,COLUMNS($AM$35:AM44)-1),"") ->  | AL30: =IF(OFFSET(DE104_3!$AN$35,ROWS($AN$35:AN44)-1,COLUMNS($AN$35:AN44)-1)<>"",OFFSET(DE104_3!$AN$35,ROWS($AN$35:AN44)-1,COLUMNS($AN$35:AN44)-1),"") ->  | AM30: =IF(OFFSET(DE104_3!$AO$35,ROWS($AO$35:AO44)-1,COLUMNS($AO$35:AO44)-1)<>"",OFFSET(DE104_3!$AO$35,ROWS($AO$35:AO44)-1,COLUMNS($AO$35:AO44)-1),"") ->  | AN30: =IF(OFFSET(DE104_3!$AP$35,ROWS($AP$35:AP44)-1,COLUMNS($AP$35:AP44)-1)<>"",OFFSET(DE104_3!$AP$35,ROWS($AP$35:AP44)-1,COLUMNS($AP$35:AP44)-1),"") ->  | AO30: =IF(OFFSET(DE104_3!$AQ$35,ROWS($AQ$35:AQ44)-1,COLUMNS($AQ$35:AQ44)-1)<>"",OFFSET(DE104_3!$AQ$35,ROWS($AQ$35:AQ44)-1,COLUMNS($AQ$35:AQ44)-1),"") -> 
A31: =IF(OFFSET(DE104_3!$C$35,ROWS($C$35:C45)-1,COLUMNS($C$35:C45)-1)<>"",OFFSET(DE104_3!$C$35,ROWS($C$35:C45)-1,COLUMNS($C$35:C45)-1),"") ->  | B31: =IF(OFFSET(DE104_3!$D$35,ROWS($D$35:D45)-1,COLUMNS($D$35:D45)-1)<>"",OFFSET(DE104_3!$D$35,ROWS($D$35:D45)-1,COLUMNS($D$35:D45)-1),"") -> RABBIT RUN RD | C31: =IF(OFFSET(DE104_3!$E$35,ROWS($E$35:E45)-1,COLUMNS($E$35:E45)-1)<>"",OFFSET(DE104_3!$E$35,ROWS($E$35:E45)-1,COLUMNS($E$35:E45)-1),"") ->  | D31: =IF(OFFSET(DE104_3!$F$35,ROWS($F$35:F45)-1,COLUMNS($F$35:F45)-1)<>"",OFFSET(DE104_3!$F$35,ROWS($F$35:F45)-1,COLUMNS($F$35:F45)-1),"") ->  | E31: =IF(OFFSET(DE104_3!$G$35,ROWS($G$35:G45)-1,COLUMNS($G$35:G45)-1)<>"",OFFSET(DE104_3!$G$35,ROWS($G$35:G45)-1,COLUMNS($G$35:G45)-1),"") ->  | F31: =IF(OFFSET(DE104_3!$H$35,ROWS($H$35:H45)-1,COLUMNS($H$35:H45)-1)<>"",OFFSET(DE104_3!$H$35,ROWS($H$35:H45)-1,COLUMNS($H$35:H45)-1),"") ->  | G31: =IF(OFFSET(DE104_3!$I$35,ROWS($I$35:I45)-1,COLUMNS($I$35:I45)-1)<>"",OFFSET(DE104_3!$I$35,ROWS($I$35:I45)-1,COLUMNS($I$35:I45)-1),"") ->  | H31: =IF(OFFSET(DE104_3!$J$35,ROWS($J$35:J45)-1,COLUMNS($J$35:J45)-1)<>"",OFFSET(DE104_3!$J$35,ROWS($J$35:J45)-1,COLUMNS($J$35:J45)-1),"") ->  | I31: =IF(OFFSET(DE104_3!$K$35,ROWS($K$35:K45)-1,COLUMNS($K$35:K45)-1)<>"",OFFSET(DE104_3!$K$35,ROWS($K$35:K45)-1,COLUMNS($K$35:K45)-1),"") ->  | J31: =IF(OFFSET(DE104_3!$L$35,ROWS($L$35:L45)-1,COLUMNS($L$35:L45)-1)<>"",OFFSET(DE104_3!$L$35,ROWS($L$35:L45)-1,COLUMNS($L$35:L45)-1),"") ->  | K31: =IF(OFFSET(DE104_3!$M$35,ROWS($M$35:M45)-1,COLUMNS($M$35:M45)-1)<>"",OFFSET(DE104_3!$M$35,ROWS($M$35:M45)-1,COLUMNS($M$35:M45)-1),"") ->  | L31: =IF(OFFSET(DE104_3!$N$35,ROWS($N$35:N45)-1,COLUMNS($N$35:N45)-1)<>"",OFFSET(DE104_3!$N$35,ROWS($N$35:N45)-1,COLUMNS($N$35:N45)-1),"") ->  | M31: =IF(OFFSET(DE104_3!$O$35,ROWS($O$35:O45)-1,COLUMNS($O$35:O45)-1)<>"",OFFSET(DE104_3!$O$35,ROWS($O$35:O45)-1,COLUMNS($O$35:O45)-1),"") ->  | N31: =IF(OFFSET(DE104_3!$P$35,ROWS($P$35:P45)-1,COLUMNS($P$35:P45)-1)<>"",OFFSET(DE104_3!$P$35,ROWS($P$35:P45)-1,COLUMNS($P$35:P45)-1),"") ->  | O31: =IF(OFFSET(DE104_3!$Q$35,ROWS($Q$35:Q45)-1,COLUMNS($Q$35:Q45)-1)<>"",OFFSET(DE104_3!$Q$35,ROWS($Q$35:Q45)-1,COLUMNS($Q$35:Q45)-1),"") ->  | P31: =IF(OFFSET(DE104_3!$R$35,ROWS($R$35:R45)-1,COLUMNS($R$35:R45)-1)<>"",OFFSET(DE104_3!$R$35,ROWS($R$35:R45)-1,COLUMNS($R$35:R45)-1),"") ->  | Q31: =IF(OFFSET(DE104_3!$S$35,ROWS($S$35:S45)-1,COLUMNS($S$35:S45)-1)<>"",OFFSET(DE104_3!$S$35,ROWS($S$35:S45)-1,COLUMNS($S$35:S45)-1),"") ->  | R31: =IF(OFFSET(DE104_3!$T$35,ROWS($T$35:T45)-1,COLUMNS($T$35:T45)-1)<>"",OFFSET(DE104_3!$T$35,ROWS($T$35:T45)-1,COLUMNS($T$35:T45)-1),"") ->  | S31: =IF(OFFSET(DE104_3!$U$35,ROWS($U$35:U45)-1,COLUMNS($U$35:U45)-1)<>"",OFFSET(DE104_3!$U$35,ROWS($U$35:U45)-1,COLUMNS($U$35:U45)-1),"") ->  | T31: =IF(OFFSET(DE104_3!$V$35,ROWS($V$35:V45)-1,COLUMNS($V$35:V45)-1)<>"",OFFSET(DE104_3!$V$35,ROWS($V$35:V45)-1,COLUMNS($V$35:V45)-1),"") ->  | U31: =IF(OFFSET(DE104_3!$W$35,ROWS($W$35:W45)-1,COLUMNS($W$35:W45)-1)<>"",OFFSET(DE104_3!$W$35,ROWS($W$35:W45)-1,COLUMNS($W$35:W45)-1),"") ->  | V31: =IF(OFFSET(DE104_3!$X$35,ROWS($X$35:X45)-1,COLUMNS($X$35:X45)-1)<>"",OFFSET(DE104_3!$X$35,ROWS($X$35:X45)-1,COLUMNS($X$35:X45)-1),"") ->  | W31: =IF(OFFSET(DE104_3!$Y$35,ROWS($Y$35:Y45)-1,COLUMNS($Y$35:Y45)-1)<>"",OFFSET(DE104_3!$Y$35,ROWS($Y$35:Y45)-1,COLUMNS($Y$35:Y45)-1),"") ->  | X31: =IF(OFFSET(DE104_3!$Z$35,ROWS($Z$35:Z45)-1,COLUMNS($Z$35:Z45)-1)<>"",OFFSET(DE104_3!$Z$35,ROWS($Z$35:Z45)-1,COLUMNS($Z$35:Z45)-1),"") ->  | Y31: =IF(OFFSET(DE104_3!$AA$35,ROWS($AA$35:AA45)-1,COLUMNS($AA$35:AA45)-1)<>"",OFFSET(DE104_3!$AA$35,ROWS($AA$35:AA45)-1,COLUMNS($AA$35:AA45)-1),"") ->  | Z31: =IF(OFFSET(DE104_3!$AB$35,ROWS($AB$35:AB45)-1,COLUMNS($AB$35:AB45)-1)<>"",OFFSET(DE104_3!$AB$35,ROWS($AB$35:AB45)-1,COLUMNS($AB$35:AB45)-1),"") ->  | AA31: =IF(OFFSET(DE104_3!$AC$35,ROWS($AC$35:AC45)-1,COLUMNS($AC$35:AC45)-1)<>"",OFFSET(DE104_3!$AC$35,ROWS($AC$35:AC45)-1,COLUMNS($AC$35:AC45)-1),"") ->  | AB31: =IF(OFFSET(DE104_3!$AD$35,ROWS($AD$35:AD45)-1,COLUMNS($AD$35:AD45)-1)<>"",OFFSET(DE104_3!$AD$35,ROWS($AD$35:AD45)-1,COLUMNS($AD$35:AD45)-1),"") ->  | AC31: =IF(OFFSET(DE104_3!$AE$35,ROWS($AE$35:AE45)-1,COLUMNS($AE$35:AE45)-1)<>"",OFFSET(DE104_3!$AE$35,ROWS($AE$35:AE45)-1,COLUMNS($AE$35:AE45)-1),"") ->  | AD31: =IF(OFFSET(DE104_3!$AF$35,ROWS($AF$35:AF45)-1,COLUMNS($AF$35:AF45)-1)<>"",OFFSET(DE104_3!$AF$35,ROWS($AF$35:AF45)-1,COLUMNS($AF$35:AF45)-1),"") ->  | AE31: =IF(OFFSET(DE104_3!$AG$35,ROWS($AG$35:AG45)-1,COLUMNS($AG$35:AG45)-1)<>"",OFFSET(DE104_3!$AG$35,ROWS($AG$35:AG45)-1,COLUMNS($AG$35:AG45)-1),"") ->  | AF31: =IF(OFFSET(DE104_3!$AH$35,ROWS($AH$35:AH45)-1,COLUMNS($AH$35:AH45)-1)<>"",OFFSET(DE104_3!$AH$35,ROWS($AH$35:AH45)-1,COLUMNS($AH$35:AH45)-1),"") ->  | AG31: =IF(OFFSET(DE104_3!$AI$35,ROWS($AI$35:AI45)-1,COLUMNS($AI$35:AI45)-1)<>"",OFFSET(DE104_3!$AI$35,ROWS($AI$35:AI45)-1,COLUMNS($AI$35:AI45)-1),"") ->  | AH31: =IF(OFFSET(DE104_3!$AJ$35,ROWS($AJ$35:AJ45)-1,COLUMNS($AJ$35:AJ45)-1)<>"",OFFSET(DE104_3!$AJ$35,ROWS($AJ$35:AJ45)-1,COLUMNS($AJ$35:AJ45)-1),"") ->  | AI31: =IF(OFFSET(DE104_3!$AK$35,ROWS($AK$35:AK45)-1,COLUMNS($AK$35:AK45)-1)<>"",OFFSET(DE104_3!$AK$35,ROWS($AK$35:AK45)-1,COLUMNS($AK$35:AK45)-1),"") ->  | AJ31: =IF(OFFSET(DE104_3!$AL$35,ROWS($AL$35:AL45)-1,COLUMNS($AL$35:AL45)-1)<>"",OFFSET(DE104_3!$AL$35,ROWS($AL$35:AL45)-1,COLUMNS($AL$35:AL45)-1),"") ->  | AK31: =IF(OFFSET(DE104_3!$AM$35,ROWS($AM$35:AM45)-1,COLUMNS($AM$35:AM45)-1)<>"",OFFSET(DE104_3!$AM$35,ROWS($AM$35:AM45)-1,COLUMNS($AM$35:AM45)-1),"") ->  | AL31: =IF(OFFSET(DE104_3!$AN$35,ROWS($AN$35:AN45)-1,COLUMNS($AN$35:AN45)-1)<>"",OFFSET(DE104_3!$AN$35,ROWS($AN$35:AN45)-1,COLUMNS($AN$35:AN45)-1),"") ->  | AM31: =IF(OFFSET(DE104_3!$AO$35,ROWS($AO$35:AO45)-1,COLUMNS($AO$35:AO45)-1)<>"",OFFSET(DE104_3!$AO$35,ROWS($AO$35:AO45)-1,COLUMNS($AO$35:AO45)-1),"") ->  | AN31: =IF(OFFSET(DE104_3!$AP$35,ROWS($AP$35:AP45)-1,COLUMNS($AP$35:AP45)-1)<>"",OFFSET(DE104_3!$AP$35,ROWS($AP$35:AP45)-1,COLUMNS($AP$35:AP45)-1),"") ->  | AO31: =IF(OFFSET(DE104_3!$AQ$35,ROWS($AQ$35:AQ45)-1,COLUMNS($AQ$35:AQ45)-1)<>"",OFFSET(DE104_3!$AQ$35,ROWS($AQ$35:AQ45)-1,COLUMNS($AQ$35:AQ45)-1),"") -> 
A32: =IF(OFFSET(DE104_3!$C$35,ROWS($C$35:C46)-1,COLUMNS($C$35:C46)-1)<>"",OFFSET(DE104_3!$C$35,ROWS($C$35:C46)-1,COLUMNS($C$35:C46)-1),"") -> 5 | B32: =IF(OFFSET(DE104_3!$D$35,ROWS($D$35:D46)-1,COLUMNS($D$35:D46)-1)<>"",OFFSET(DE104_3!$D$35,ROWS($D$35:D46)-1,COLUMNS($D$35:D46)-1),"") -> 882460 | C32: =IF(OFFSET(DE104_3!$E$35,ROWS($E$35:E46)-1,COLUMNS($E$35:E46)-1)<>"",OFFSET(DE104_3!$E$35,ROWS($E$35:E46)-1,COLUMNS($E$35:E46)-1),"") -> DR-651 | D32: =IF(OFFSET(DE104_3!$F$35,ROWS($F$35:F46)-1,COLUMNS($F$35:F46)-1)<>"",OFFSET(DE104_3!$F$35,ROWS($F$35:F46)-1,COLUMNS($F$35:F46)-1),"") -> 30 | E32: =IF(OFFSET(DE104_3!$G$35,ROWS($G$35:G46)-1,COLUMNS($G$35:G46)-1)<>"",OFFSET(DE104_3!$G$35,ROWS($G$35:G46)-1,COLUMNS($G$35:G46)-1),"") -> (3) | F32: =IF(OFFSET(DE104_3!$H$35,ROWS($H$35:H46)-1,COLUMNS($H$35:H46)-1)<>"",OFFSET(DE104_3!$H$35,ROWS($H$35:H46)-1,COLUMNS($H$35:H46)-1),"") -> 88 | G32: =IF(OFFSET(DE104_3!$I$35,ROWS($I$35:I46)-1,COLUMNS($I$35:I46)-1)<>"",OFFSET(DE104_3!$I$35,ROWS($I$35:I46)-1,COLUMNS($I$35:I46)-1),"") -> B | H32: =IF(OFFSET(DE104_3!$J$35,ROWS($J$35:J46)-1,COLUMNS($J$35:J46)-1)<>"",OFFSET(DE104_3!$J$35,ROWS($J$35:J46)-1,COLUMNS($J$35:J46)-1),"") -> 5 | I32: =IF(OFFSET(DE104_3!$K$35,ROWS($K$35:K46)-1,COLUMNS($K$35:K46)-1)<>"",OFFSET(DE104_3!$K$35,ROWS($K$35:K46)-1,COLUMNS($K$35:K46)-1),"") -> 0.008 | J32: =IF(OFFSET(DE104_3!$L$35,ROWS($L$35:L46)-1,COLUMNS($L$35:L46)-1)<>"",OFFSET(DE104_3!$L$35,ROWS($L$35:L46)-1,COLUMNS($L$35:L46)-1),"") -> 1 | K32: =IF(OFFSET(DE104_3!$M$35,ROWS($M$35:M46)-1,COLUMNS($M$35:M46)-1)<>"",OFFSET(DE104_3!$M$35,ROWS($M$35:M46)-1,COLUMNS($M$35:M46)-1),"") -> 1 | L32: =IF(OFFSET(DE104_3!$N$35,ROWS($N$35:N46)-1,COLUMNS($N$35:N46)-1)<>"",OFFSET(DE104_3!$N$35,ROWS($N$35:N46)-1,COLUMNS($N$35:N46)-1),"") ->  | M32: =IF(OFFSET(DE104_3!$O$35,ROWS($O$35:O46)-1,COLUMNS($O$35:O46)-1)<>"",OFFSET(DE104_3!$O$35,ROWS($O$35:O46)-1,COLUMNS($O$35:O46)-1),"") ->  | N32: =IF(OFFSET(DE104_3!$P$35,ROWS($P$35:P46)-1,COLUMNS($P$35:P46)-1)<>"",OFFSET(DE104_3!$P$35,ROWS($P$35:P46)-1,COLUMNS($P$35:P46)-1),"") ->  | O32: =IF(OFFSET(DE104_3!$Q$35,ROWS($Q$35:Q46)-1,COLUMNS($Q$35:Q46)-1)<>"",OFFSET(DE104_3!$Q$35,ROWS($Q$35:Q46)-1,COLUMNS($Q$35:Q46)-1),"") ->  | P32: =IF(OFFSET(DE104_3!$R$35,ROWS($R$35:R46)-1,COLUMNS($R$35:R46)-1)<>"",OFFSET(DE104_3!$R$35,ROWS($R$35:R46)-1,COLUMNS($R$35:R46)-1),"") ->  | Q32: =IF(OFFSET(DE104_3!$S$35,ROWS($S$35:S46)-1,COLUMNS($S$35:S46)-1)<>"",OFFSET(DE104_3!$S$35,ROWS($S$35:S46)-1,COLUMNS($S$35:S46)-1),"") ->  | R32: =IF(OFFSET(DE104_3!$T$35,ROWS($T$35:T46)-1,COLUMNS($T$35:T46)-1)<>"",OFFSET(DE104_3!$T$35,ROWS($T$35:T46)-1,COLUMNS($T$35:T46)-1),"") ->  | S32: =IF(OFFSET(DE104_3!$U$35,ROWS($U$35:U46)-1,COLUMNS($U$35:U46)-1)<>"",OFFSET(DE104_3!$U$35,ROWS($U$35:U46)-1,COLUMNS($U$35:U46)-1),"") ->  | T32: =IF(OFFSET(DE104_3!$V$35,ROWS($V$35:V46)-1,COLUMNS($V$35:V46)-1)<>"",OFFSET(DE104_3!$V$35,ROWS($V$35:V46)-1,COLUMNS($V$35:V46)-1),"") ->  | U32: =IF(OFFSET(DE104_3!$W$35,ROWS($W$35:W46)-1,COLUMNS($W$35:W46)-1)<>"",OFFSET(DE104_3!$W$35,ROWS($W$35:W46)-1,COLUMNS($W$35:W46)-1),"") ->  | V32: =IF(OFFSET(DE104_3!$X$35,ROWS($X$35:X46)-1,COLUMNS($X$35:X46)-1)<>"",OFFSET(DE104_3!$X$35,ROWS($X$35:X46)-1,COLUMNS($X$35:X46)-1),"") -> 632.55 | W32: =IF(OFFSET(DE104_3!$Y$35,ROWS($Y$35:Y46)-1,COLUMNS($Y$35:Y46)-1)<>"",OFFSET(DE104_3!$Y$35,ROWS($Y$35:Y46)-1,COLUMNS($Y$35:Y46)-1),"") -> 632.55 | X32: =IF(OFFSET(DE104_3!$Z$35,ROWS($Z$35:Z46)-1,COLUMNS($Z$35:Z46)-1)<>"",OFFSET(DE104_3!$Z$35,ROWS($Z$35:Z46)-1,COLUMNS($Z$35:Z46)-1),"") ->  | Y32: =IF(OFFSET(DE104_3!$AA$35,ROWS($AA$35:AA46)-1,COLUMNS($AA$35:AA46)-1)<>"",OFFSET(DE104_3!$AA$35,ROWS($AA$35:AA46)-1,COLUMNS($AA$35:AA46)-1),"") ->  | Z32: =IF(OFFSET(DE104_3!$AB$35,ROWS($AB$35:AB46)-1,COLUMNS($AB$35:AB46)-1)<>"",OFFSET(DE104_3!$AB$35,ROWS($AB$35:AB46)-1,COLUMNS($AB$35:AB46)-1),"") -> 48.37 | AA32: =IF(OFFSET(DE104_3!$AC$35,ROWS($AC$35:AC46)-1,COLUMNS($AC$35:AC46)-1)<>"",OFFSET(DE104_3!$AC$35,ROWS($AC$35:AC46)-1,COLUMNS($AC$35:AC46)-1),"") -> 48.37 | AB32: =IF(OFFSET(DE104_3!$AD$35,ROWS($AD$35:AD46)-1,COLUMNS($AD$35:AD46)-1)<>"",OFFSET(DE104_3!$AD$35,ROWS($AD$35:AD46)-1,COLUMNS($AD$35:AD46)-1),"") ->  | AC32: =IF(OFFSET(DE104_3!$AE$35,ROWS($AE$35:AE46)-1,COLUMNS($AE$35:AE46)-1)<>"",OFFSET(DE104_3!$AE$35,ROWS($AE$35:AE46)-1,COLUMNS($AE$35:AE46)-1),"") ->  | AD32: =IF(OFFSET(DE104_3!$AF$35,ROWS($AF$35:AF46)-1,COLUMNS($AF$35:AF46)-1)<>"",OFFSET(DE104_3!$AF$35,ROWS($AF$35:AF46)-1,COLUMNS($AF$35:AF46)-1),"") ->  | AE32: =IF(OFFSET(DE104_3!$AG$35,ROWS($AG$35:AG46)-1,COLUMNS($AG$35:AG46)-1)<>"",OFFSET(DE104_3!$AG$35,ROWS($AG$35:AG46)-1,COLUMNS($AG$35:AG46)-1),"") ->  | AF32: =IF(OFFSET(DE104_3!$AH$35,ROWS($AH$35:AH46)-1,COLUMNS($AH$35:AH46)-1)<>"",OFFSET(DE104_3!$AH$35,ROWS($AH$35:AH46)-1,COLUMNS($AH$35:AH46)-1),"") ->  | AG32: =IF(OFFSET(DE104_3!$AI$35,ROWS($AI$35:AI46)-1,COLUMNS($AI$35:AI46)-1)<>"",OFFSET(DE104_3!$AI$35,ROWS($AI$35:AI46)-1,COLUMNS($AI$35:AI46)-1),"") ->  | AH32: =IF(OFFSET(DE104_3!$AJ$35,ROWS($AJ$35:AJ46)-1,COLUMNS($AJ$35:AJ46)-1)<>"",OFFSET(DE104_3!$AJ$35,ROWS($AJ$35:AJ46)-1,COLUMNS($AJ$35:AJ46)-1),"") ->  | AI32: =IF(OFFSET(DE104_3!$AK$35,ROWS($AK$35:AK46)-1,COLUMNS($AK$35:AK46)-1)<>"",OFFSET(DE104_3!$AK$35,ROWS($AK$35:AK46)-1,COLUMNS($AK$35:AK46)-1),"") ->  | AJ32: =IF(OFFSET(DE104_3!$AL$35,ROWS($AL$35:AL46)-1,COLUMNS($AL$35:AL46)-1)<>"",OFFSET(DE104_3!$AL$35,ROWS($AL$35:AL46)-1,COLUMNS($AL$35:AL46)-1),"") -> 365.9424593 | AK32: =IF(OFFSET(DE104_3!$AM$35,ROWS($AM$35:AM46)-1,COLUMNS($AM$35:AM46)-1)<>"",OFFSET(DE104_3!$AM$35,ROWS($AM$35:AM46)-1,COLUMNS($AM$35:AM46)-1),"") ->  | AL32: =IF(OFFSET(DE104_3!$AN$35,ROWS($AN$35:AN46)-1,COLUMNS($AN$35:AN46)-1)<>"",OFFSET(DE104_3!$AN$35,ROWS($AN$35:AN46)-1,COLUMNS($AN$35:AN46)-1),"") -> 342.5197926 | AM32: =IF(OFFSET(DE104_3!$AO$35,ROWS($AO$35:AO46)-1,COLUMNS($AO$35:AO46)-1)<>"",OFFSET(DE104_3!$AO$35,ROWS($AO$35:AO46)-1,COLUMNS($AO$35:AO46)-1),"") -> 7.423940741 | AN32: =IF(OFFSET(DE104_3!$AP$35,ROWS($AP$35:AP46)-1,COLUMNS($AP$35:AP46)-1)<>"",OFFSET(DE104_3!$AP$35,ROWS($AP$35:AP46)-1,COLUMNS($AP$35:AP46)-1),"") -> 349.9437333 | AO32: =IF(OFFSET(DE104_3!$AQ$35,ROWS($AQ$35:AQ46)-1,COLUMNS($AQ$35:AQ46)-1)<>"",OFFSET(DE104_3!$AQ$35,ROWS($AQ$35:AQ46)-1,COLUMNS($AQ$35:AQ46)-1),"") -> 
A33: =IF(OFFSET(DE104_3!$C$35,ROWS($C$35:C47)-1,COLUMNS($C$35:C47)-1)<>"",OFFSET(DE104_3!$C$35,ROWS($C$35:C47)-1,COLUMNS($C$35:C47)-1),"") ->  | B33: =IF(OFFSET(DE104_3!$D$35,ROWS($D$35:D47)-1,COLUMNS($D$35:D47)-1)<>"",OFFSET(DE104_3!$D$35,ROWS($D$35:D47)-1,COLUMNS($D$35:D47)-1),"") ->  | C33: =IF(OFFSET(DE104_3!$E$35,ROWS($E$35:E47)-1,COLUMNS($E$35:E47)-1)<>"",OFFSET(DE104_3!$E$35,ROWS($E$35:E47)-1,COLUMNS($E$35:E47)-1),"") ->  | D33: =IF(OFFSET(DE104_3!$F$35,ROWS($F$35:F47)-1,COLUMNS($F$35:F47)-1)<>"",OFFSET(DE104_3!$F$35,ROWS($F$35:F47)-1,COLUMNS($F$35:F47)-1),"") ->  | E33: =IF(OFFSET(DE104_3!$G$35,ROWS($G$35:G47)-1,COLUMNS($G$35:G47)-1)<>"",OFFSET(DE104_3!$G$35,ROWS($G$35:G47)-1,COLUMNS($G$35:G47)-1),"") ->  | F33: =IF(OFFSET(DE104_3!$H$35,ROWS($H$35:H47)-1,COLUMNS($H$35:H47)-1)<>"",OFFSET(DE104_3!$H$35,ROWS($H$35:H47)-1,COLUMNS($H$35:H47)-1),"") ->  | G33: =IF(OFFSET(DE104_3!$I$35,ROWS($I$35:I47)-1,COLUMNS($I$35:I47)-1)<>"",OFFSET(DE104_3!$I$35,ROWS($I$35:I47)-1,COLUMNS($I$35:I47)-1),"") ->  | H33: =IF(OFFSET(DE104_3!$J$35,ROWS($J$35:J47)-1,COLUMNS($J$35:J47)-1)<>"",OFFSET(DE104_3!$J$35,ROWS($J$35:J47)-1,COLUMNS($J$35:J47)-1),"") ->  | I33: =IF(OFFSET(DE104_3!$K$35,ROWS($K$35:K47)-1,COLUMNS($K$35:K47)-1)<>"",OFFSET(DE104_3!$K$35,ROWS($K$35:K47)-1,COLUMNS($K$35:K47)-1),"") ->  | J33: =IF(OFFSET(DE104_3!$L$35,ROWS($L$35:L47)-1,COLUMNS($L$35:L47)-1)<>"",OFFSET(DE104_3!$L$35,ROWS($L$35:L47)-1,COLUMNS($L$35:L47)-1),"") ->  | K33: =IF(OFFSET(DE104_3!$M$35,ROWS($M$35:M47)-1,COLUMNS($M$35:M47)-1)<>"",OFFSET(DE104_3!$M$35,ROWS($M$35:M47)-1,COLUMNS($M$35:M47)-1),"") ->  | L33: =IF(OFFSET(DE104_3!$N$35,ROWS($N$35:N47)-1,COLUMNS($N$35:N47)-1)<>"",OFFSET(DE104_3!$N$35,ROWS($N$35:N47)-1,COLUMNS($N$35:N47)-1),"") ->  | M33: =IF(OFFSET(DE104_3!$O$35,ROWS($O$35:O47)-1,COLUMNS($O$35:O47)-1)<>"",OFFSET(DE104_3!$O$35,ROWS($O$35:O47)-1,COLUMNS($O$35:O47)-1),"") ->  | N33: =IF(OFFSET(DE104_3!$P$35,ROWS($P$35:P47)-1,COLUMNS($P$35:P47)-1)<>"",OFFSET(DE104_3!$P$35,ROWS($P$35:P47)-1,COLUMNS($P$35:P47)-1),"") ->  | O33: =IF(OFFSET(DE104_3!$Q$35,ROWS($Q$35:Q47)-1,COLUMNS($Q$35:Q47)-1)<>"",OFFSET(DE104_3!$Q$35,ROWS($Q$35:Q47)-1,COLUMNS($Q$35:Q47)-1),"") ->  | P33: =IF(OFFSET(DE104_3!$R$35,ROWS($R$35:R47)-1,COLUMNS($R$35:R47)-1)<>"",OFFSET(DE104_3!$R$35,ROWS($R$35:R47)-1,COLUMNS($R$35:R47)-1),"") ->  | Q33: =IF(OFFSET(DE104_3!$S$35,ROWS($S$35:S47)-1,COLUMNS($S$35:S47)-1)<>"",OFFSET(DE104_3!$S$35,ROWS($S$35:S47)-1,COLUMNS($S$35:S47)-1),"") ->  | R33: =IF(OFFSET(DE104_3!$T$35,ROWS($T$35:T47)-1,COLUMNS($T$35:T47)-1)<>"",OFFSET(DE104_3!$T$35,ROWS($T$35:T47)-1,COLUMNS($T$35:T47)-1),"") ->  | S33: =IF(OFFSET(DE104_3!$U$35,ROWS($U$35:U47)-1,COLUMNS($U$35:U47)-1)<>"",OFFSET(DE104_3!$U$35,ROWS($U$35:U47)-1,COLUMNS($U$35:U47)-1),"") ->  | T33: =IF(OFFSET(DE104_3!$V$35,ROWS($V$35:V47)-1,COLUMNS($V$35:V47)-1)<>"",OFFSET(DE104_3!$V$35,ROWS($V$35:V47)-1,COLUMNS($V$35:V47)-1),"") ->  | U33: =IF(OFFSET(DE104_3!$W$35,ROWS($W$35:W47)-1,COLUMNS($W$35:W47)-1)<>"",OFFSET(DE104_3!$W$35,ROWS($W$35:W47)-1,COLUMNS($W$35:W47)-1),"") ->  | V33: =IF(OFFSET(DE104_3!$X$35,ROWS($X$35:X47)-1,COLUMNS($X$35:X47)-1)<>"",OFFSET(DE104_3!$X$35,ROWS($X$35:X47)-1,COLUMNS($X$35:X47)-1),"") ->  | W33: =IF(OFFSET(DE104_3!$Y$35,ROWS($Y$35:Y47)-1,COLUMNS($Y$35:Y47)-1)<>"",OFFSET(DE104_3!$Y$35,ROWS($Y$35:Y47)-1,COLUMNS($Y$35:Y47)-1),"") ->  | X33: =IF(OFFSET(DE104_3!$Z$35,ROWS($Z$35:Z47)-1,COLUMNS($Z$35:Z47)-1)<>"",OFFSET(DE104_3!$Z$35,ROWS($Z$35:Z47)-1,COLUMNS($Z$35:Z47)-1),"") ->  | Y33: =IF(OFFSET(DE104_3!$AA$35,ROWS($AA$35:AA47)-1,COLUMNS($AA$35:AA47)-1)<>"",OFFSET(DE104_3!$AA$35,ROWS($AA$35:AA47)-1,COLUMNS($AA$35:AA47)-1),"") ->  | Z33: =IF(OFFSET(DE104_3!$AB$35,ROWS($AB$35:AB47)-1,COLUMNS($AB$35:AB47)-1)<>"",OFFSET(DE104_3!$AB$35,ROWS($AB$35:AB47)-1,COLUMNS($AB$35:AB47)-1),"") ->  | AA33: =IF(OFFSET(DE104_3!$AC$35,ROWS($AC$35:AC47)-1,COLUMNS($AC$35:AC47)-1)<>"",OFFSET(DE104_3!$AC$35,ROWS($AC$35:AC47)-1,COLUMNS($AC$35:AC47)-1),"") ->  | AB33: =IF(OFFSET(DE104_3!$AD$35,ROWS($AD$35:AD47)-1,COLUMNS($AD$35:AD47)-1)<>"",OFFSET(DE104_3!$AD$35,ROWS($AD$35:AD47)-1,COLUMNS($AD$35:AD47)-1),"") ->  | AC33: =IF(OFFSET(DE104_3!$AE$35,ROWS($AE$35:AE47)-1,COLUMNS($AE$35:AE47)-1)<>"",OFFSET(DE104_3!$AE$35,ROWS($AE$35:AE47)-1,COLUMNS($AE$35:AE47)-1),"") ->  | AD33: =IF(OFFSET(DE104_3!$AF$35,ROWS($AF$35:AF47)-1,COLUMNS($AF$35:AF47)-1)<>"",OFFSET(DE104_3!$AF$35,ROWS($AF$35:AF47)-1,COLUMNS($AF$35:AF47)-1),"") ->  | AE33: =IF(OFFSET(DE104_3!$AG$35,ROWS($AG$35:AG47)-1,COLUMNS($AG$35:AG47)-1)<>"",OFFSET(DE104_3!$AG$35,ROWS($AG$35:AG47)-1,COLUMNS($AG$35:AG47)-1),"") ->  | AF33: =IF(OFFSET(DE104_3!$AH$35,ROWS($AH$35:AH47)-1,COLUMNS($AH$35:AH47)-1)<>"",OFFSET(DE104_3!$AH$35,ROWS($AH$35:AH47)-1,COLUMNS($AH$35:AH47)-1),"") ->  | AG33: =IF(OFFSET(DE104_3!$AI$35,ROWS($AI$35:AI47)-1,COLUMNS($AI$35:AI47)-1)<>"",OFFSET(DE104_3!$AI$35,ROWS($AI$35:AI47)-1,COLUMNS($AI$35:AI47)-1),"") ->  | AH33: =IF(OFFSET(DE104_3!$AJ$35,ROWS($AJ$35:AJ47)-1,COLUMNS($AJ$35:AJ47)-1)<>"",OFFSET(DE104_3!$AJ$35,ROWS($AJ$35:AJ47)-1,COLUMNS($AJ$35:AJ47)-1),"") ->  | AI33: =IF(OFFSET(DE104_3!$AK$35,ROWS($AK$35:AK47)-1,COLUMNS($AK$35:AK47)-1)<>"",OFFSET(DE104_3!$AK$35,ROWS($AK$35:AK47)-1,COLUMNS($AK$35:AK47)-1),"") ->  | AJ33: =IF(OFFSET(DE104_3!$AL$35,ROWS($AL$35:AL47)-1,COLUMNS($AL$35:AL47)-1)<>"",OFFSET(DE104_3!$AL$35,ROWS($AL$35:AL47)-1,COLUMNS($AL$35:AL47)-1),"") ->  | AK33: =IF(OFFSET(DE104_3!$AM$35,ROWS($AM$35:AM47)-1,COLUMNS($AM$35:AM47)-1)<>"",OFFSET(DE104_3!$AM$35,ROWS($AM$35:AM47)-1,COLUMNS($AM$35:AM47)-1),"") ->  | AL33: =IF(OFFSET(DE104_3!$AN$35,ROWS($AN$35:AN47)-1,COLUMNS($AN$35:AN47)-1)<>"",OFFSET(DE104_3!$AN$35,ROWS($AN$35:AN47)-1,COLUMNS($AN$35:AN47)-1),"") ->  | AM33: =IF(OFFSET(DE104_3!$AO$35,ROWS($AO$35:AO47)-1,COLUMNS($AO$35:AO47)-1)<>"",OFFSET(DE104_3!$AO$35,ROWS($AO$35:AO47)-1,COLUMNS($AO$35:AO47)-1),"") ->  | AN33: =IF(OFFSET(DE104_3!$AP$35,ROWS($AP$35:AP47)-1,COLUMNS($AP$35:AP47)-1)<>"",OFFSET(DE104_3!$AP$35,ROWS($AP$35:AP47)-1,COLUMNS($AP$35:AP47)-1),"") ->  | AO33: =IF(OFFSET(DE104_3!$AQ$35,ROWS($AQ$35:AQ47)-1,COLUMNS($AQ$35:AQ47)-1)<>"",OFFSET(DE104_3!$AQ$35,ROWS($AQ$35:AQ47)-1,COLUMNS($AQ$35:AQ47)-1),"") -> 
A34: =IF(OFFSET(DE104_3!$C$35,ROWS($C$35:C48)-1,COLUMNS($C$35:C48)-1)<>"",OFFSET(DE104_3!$C$35,ROWS($C$35:C48)-1,COLUMNS($C$35:C48)-1),"") -> TOTALS: | C34: =IF(OFFSET(DE104_3!$E$35,ROWS($E$35:E48)-1,COLUMNS($E$35:E48)-1)<>"",OFFSET(DE104_3!$E$35,ROWS($E$35:E48)-1,COLUMNS($E$35:E48)-1),"") ->  | D34: =IF(OFFSET(DE104_3!$F$35,ROWS($F$35:F48)-1,COLUMNS($F$35:F48)-1)<>"",OFFSET(DE104_3!$F$35,ROWS($F$35:F48)-1,COLUMNS($F$35:F48)-1),"") ->  | E34: =IF(OFFSET(DE104_3!$G$35,ROWS($G$35:G48)-1,COLUMNS($G$35:G48)-1)<>"",OFFSET(DE104_3!$G$35,ROWS($G$35:G48)-1,COLUMNS($G$35:G48)-1),"") ->  | F34: =IF(OFFSET(DE104_3!$H$35,ROWS($H$35:H48)-1,COLUMNS($H$35:H48)-1)<>"",OFFSET(DE104_3!$H$35,ROWS($H$35:H48)-1,COLUMNS($H$35:H48)-1),"") ->  | G34: =IF(OFFSET(DE104_3!$I$35,ROWS($I$35:I48)-1,COLUMNS($I$35:I48)-1)<>"",OFFSET(DE104_3!$I$35,ROWS($I$35:I48)-1,COLUMNS($I$35:I48)-1),"") ->  | H34: =IF(OFFSET(DE104_3!$J$35,ROWS($J$35:J48)-1,COLUMNS($J$35:J48)-1)<>"",OFFSET(DE104_3!$J$35,ROWS($J$35:J48)-1,COLUMNS($J$35:J48)-1),"") ->  | I34: =IF(OFFSET(DE104_3!$K$35,ROWS($K$35:K48)-1,COLUMNS($K$35:K48)-1)<>"",OFFSET(DE104_3!$K$35,ROWS($K$35:K48)-1,COLUMNS($K$35:K48)-1),"") ->  | J34: =IF(OFFSET(DE104_3!$L$35,ROWS($L$35:L48)-1,COLUMNS($L$35:L48)-1)<>"",OFFSET(DE104_3!$L$35,ROWS($L$35:L48)-1,COLUMNS($L$35:L48)-1),"") ->  | K34: =IF(OFFSET(DE104_3!$M$35,ROWS($M$35:M48)-1,COLUMNS($M$35:M48)-1)<>"",OFFSET(DE104_3!$M$35,ROWS($M$35:M48)-1,COLUMNS($M$35:M48)-1),"") ->  | L34: =IF(OFFSET(DE104_3!$N$35,ROWS($N$35:N48)-1,COLUMNS($N$35:N48)-1)<>"",OFFSET(DE104_3!$N$35,ROWS($N$35:N48)-1,COLUMNS($N$35:N48)-1),"") ->  | M34: =IF(OFFSET(DE104_3!$O$35,ROWS($O$35:O48)-1,COLUMNS($O$35:O48)-1)<>"",OFFSET(DE104_3!$O$35,ROWS($O$35:O48)-1,COLUMNS($O$35:O48)-1),"") ->  | N34: =IF(OFFSET(DE104_3!$P$35,ROWS($P$35:P48)-1,COLUMNS($P$35:P48)-1)<>"",OFFSET(DE104_3!$P$35,ROWS($P$35:P48)-1,COLUMNS($P$35:P48)-1),"") ->  | O34: =IF(OFFSET(DE104_3!$Q$35,ROWS($Q$35:Q48)-1,COLUMNS($Q$35:Q48)-1)<>"",OFFSET(DE104_3!$Q$35,ROWS($Q$35:Q48)-1,COLUMNS($Q$35:Q48)-1),"") ->  | P34: =IF(OFFSET(DE104_3!$R$35,ROWS($R$35:R48)-1,COLUMNS($R$35:R48)-1)<>"",OFFSET(DE104_3!$R$35,ROWS($R$35:R48)-1,COLUMNS($R$35:R48)-1),"") ->  | Q34: =IF(OFFSET(DE104_3!$S$35,ROWS($S$35:S48)-1,COLUMNS($S$35:S48)-1)<>"",OFFSET(DE104_3!$S$35,ROWS($S$35:S48)-1,COLUMNS($S$35:S48)-1),"") ->  | R34: =IF(OFFSET(DE104_3!$T$35,ROWS($T$35:T48)-1,COLUMNS($T$35:T48)-1)<>"",OFFSET(DE104_3!$T$35,ROWS($T$35:T48)-1,COLUMNS($T$35:T48)-1),"") ->  | S34: =IF(OFFSET(DE104_3!$U$35,ROWS($U$35:U48)-1,COLUMNS($U$35:U48)-1)<>"",OFFSET(DE104_3!$U$35,ROWS($U$35:U48)-1,COLUMNS($U$35:U48)-1),"") ->  | T34: =IF(OFFSET(DE104_3!$V$35,ROWS($V$35:V48)-1,COLUMNS($V$35:V48)-1)<>"",OFFSET(DE104_3!$V$35,ROWS($V$35:V48)-1,COLUMNS($V$35:V48)-1),"") ->  | U34: =IF(OFFSET(DE104_3!$W$35,ROWS($W$35:W48)-1,COLUMNS($W$35:W48)-1)<>"",OFFSET(DE104_3!$W$35,ROWS($W$35:W48)-1,COLUMNS($W$35:W48)-1),"") ->  | V34: =IF(OFFSET(DE104_3!$X$35,ROWS($X$35:X48)-1,COLUMNS($X$35:X48)-1)<>"",OFFSET(DE104_3!$X$35,ROWS($X$35:X48)-1,COLUMNS($X$35:X48)-1),"") ->  | W34: =IF(OFFSET(DE104_3!$Y$35,ROWS($Y$35:Y48)-1,COLUMNS($Y$35:Y48)-1)<>"",OFFSET(DE104_3!$Y$35,ROWS($Y$35:Y48)-1,COLUMNS($Y$35:Y48)-1),"") ->  | X34: =IF(OFFSET(DE104_3!$Z$35,ROWS($Z$35:Z48)-1,COLUMNS($Z$35:Z48)-1)<>"",OFFSET(DE104_3!$Z$35,ROWS($Z$35:Z48)-1,COLUMNS($Z$35:Z48)-1),"") ->  | Y34: =IF(OFFSET(DE104_3!$AA$35,ROWS($AA$35:AA48)-1,COLUMNS($AA$35:AA48)-1)<>"",OFFSET(DE104_3!$AA$35,ROWS($AA$35:AA48)-1,COLUMNS($AA$35:AA48)-1),"") ->  | Z34: =IF(OFFSET(DE104_3!$AB$35,ROWS($AB$35:AB48)-1,COLUMNS($AB$35:AB48)-1)<>"",OFFSET(DE104_3!$AB$35,ROWS($AB$35:AB48)-1,COLUMNS($AB$35:AB48)-1),"") ->  | AA34: =IF(OFFSET(DE104_3!$AC$35,ROWS($AC$35:AC48)-1,COLUMNS($AC$35:AC48)-1)<>"",OFFSET(DE104_3!$AC$35,ROWS($AC$35:AC48)-1,COLUMNS($AC$35:AC48)-1),"") ->  | AB34: =IF(OFFSET(DE104_3!$AD$35,ROWS($AD$35:AD48)-1,COLUMNS($AD$35:AD48)-1)<>"",OFFSET(DE104_3!$AD$35,ROWS($AD$35:AD48)-1,COLUMNS($AD$35:AD48)-1),"") ->  | AC34: =IF(OFFSET(DE104_3!$AE$35,ROWS($AE$35:AE48)-1,COLUMNS($AE$35:AE48)-1)<>"",OFFSET(DE104_3!$AE$35,ROWS($AE$35:AE48)-1,COLUMNS($AE$35:AE48)-1),"") ->  | AD34: =IF(OFFSET(DE104_3!$AF$35,ROWS($AF$35:AF48)-1,COLUMNS($AF$35:AF48)-1)<>"",OFFSET(DE104_3!$AF$35,ROWS($AF$35:AF48)-1,COLUMNS($AF$35:AF48)-1),"") ->  | AE34: =IF(OFFSET(DE104_3!$AG$35,ROWS($AG$35:AG48)-1,COLUMNS($AG$35:AG48)-1)<>"",OFFSET(DE104_3!$AG$35,ROWS($AG$35:AG48)-1,COLUMNS($AG$35:AG48)-1),"") ->  | AF34: =IF(OFFSET(DE104_3!$AH$35,ROWS($AH$35:AH48)-1,COLUMNS($AH$35:AH48)-1)<>"",OFFSET(DE104_3!$AH$35,ROWS($AH$35:AH48)-1,COLUMNS($AH$35:AH48)-1),"") ->  | AG34: =IF(OFFSET(DE104_3!$AI$35,ROWS($AI$35:AI48)-1,COLUMNS($AI$35:AI48)-1)<>"",OFFSET(DE104_3!$AI$35,ROWS($AI$35:AI48)-1,COLUMNS($AI$35:AI48)-1),"") ->  | AH34: =IF(OFFSET(DE104_3!$AJ$35,ROWS($AJ$35:AJ48)-1,COLUMNS($AJ$35:AJ48)-1)<>"",OFFSET(DE104_3!$AJ$35,ROWS($AJ$35:AJ48)-1,COLUMNS($AJ$35:AJ48)-1),"") ->  | AI34: =IF(OFFSET(DE104_3!$AK$35,ROWS($AK$35:AK48)-1,COLUMNS($AK$35:AK48)-1)<>"",OFFSET(DE104_3!$AK$35,ROWS($AK$35:AK48)-1,COLUMNS($AK$35:AK48)-1),"") ->  | AJ34: =IF(OFFSET(DE104_3!$AL$35,ROWS($AL$35:AL48)-1,COLUMNS($AL$35:AL48)-1)<>"",OFFSET(DE104_3!$AL$35,ROWS($AL$35:AL48)-1,COLUMNS($AL$35:AL48)-1),"") -> 3781.729711 | AK34: =IF(OFFSET(DE104_3!$AM$35,ROWS($AM$35:AM48)-1,COLUMNS($AM$35:AM48)-1)<>"",OFFSET(DE104_3!$AM$35,ROWS($AM$35:AM48)-1,COLUMNS($AM$35:AM48)-1),"") -> 10.19142222 | AL34: =IF(OFFSET(DE104_3!$AN$35,ROWS($AN$35:AN48)-1,COLUMNS($AN$35:AN48)-1)<>"",OFFSET(DE104_3!$AN$35,ROWS($AN$35:AN48)-1,COLUMNS($AN$35:AN48)-1),"") -> 3556.597111 | AM34: =IF(OFFSET(DE104_3!$AO$35,ROWS($AO$35:AO48)-1,COLUMNS($AO$35:AO48)-1)<>"",OFFSET(DE104_3!$AO$35,ROWS($AO$35:AO48)-1,COLUMNS($AO$35:AO48)-1),"") -> 47.93866667 | AN34: =IF(OFFSET(DE104_3!$AP$35,ROWS($AP$35:AP48)-1,COLUMNS($AP$35:AP48)-1)<>"",OFFSET(DE104_3!$AP$35,ROWS($AP$35:AP48)-1,COLUMNS($AP$35:AP48)-1),"") -> 3604.535778 | AO34: =IF(OFFSET(DE104_3!$AQ$35,ROWS($AQ$35:AQ48)-1,COLUMNS($AQ$35:AQ48)-1)<>"",OFFSET(DE104_3!$AQ$35,ROWS($AQ$35:AQ48)-1,COLUMNS($AQ$35:AQ48)-1),"") -> 
A35: =IF(OFFSET(DE104_3!$C$35,ROWS($C$35:C49)-1,COLUMNS($C$35:C49)-1)<>"",OFFSET(DE104_3!$C$35,ROWS($C$35:C49)-1,COLUMNS($C$35:C49)-1),"") ->  | B35: =IF(OFFSET(DE104_3!$D$35,ROWS($D$35:D49)-1,COLUMNS($D$35:D49)-1)<>"",OFFSET(DE104_3!$D$35,ROWS($D$35:D49)-1,COLUMNS($D$35:D49)-1),"") ->  | C35: =IF(OFFSET(DE104_3!$E$35,ROWS($E$35:E49)-1,COLUMNS($E$35:E49)-1)<>"",OFFSET(DE104_3!$E$35,ROWS($E$35:E49)-1,COLUMNS($E$35:E49)-1),"") ->  | D35: =IF(OFFSET(DE104_3!$F$35,ROWS($F$35:F49)-1,COLUMNS($F$35:F49)-1)<>"",OFFSET(DE104_3!$F$35,ROWS($F$35:F49)-1,COLUMNS($F$35:F49)-1),"") ->  | E35: =IF(OFFSET(DE104_3!$G$35,ROWS($G$35:G49)-1,COLUMNS($G$35:G49)-1)<>"",OFFSET(DE104_3!$G$35,ROWS($G$35:G49)-1,COLUMNS($G$35:G49)-1),"") ->  | F35: =IF(OFFSET(DE104_3!$H$35,ROWS($H$35:H49)-1,COLUMNS($H$35:H49)-1)<>"",OFFSET(DE104_3!$H$35,ROWS($H$35:H49)-1,COLUMNS($H$35:H49)-1),"") ->  | G35: =IF(OFFSET(DE104_3!$I$35,ROWS($I$35:I49)-1,COLUMNS($I$35:I49)-1)<>"",OFFSET(DE104_3!$I$35,ROWS($I$35:I49)-1,COLUMNS($I$35:I49)-1),"") ->  | H35: =IF(OFFSET(DE104_3!$J$35,ROWS($J$35:J49)-1,COLUMNS($J$35:J49)-1)<>"",OFFSET(DE104_3!$J$35,ROWS($J$35:J49)-1,COLUMNS($J$35:J49)-1),"") ->  | I35: =IF(OFFSET(DE104_3!$K$35,ROWS($K$35:K49)-1,COLUMNS($K$35:K49)-1)<>"",OFFSET(DE104_3!$K$35,ROWS($K$35:K49)-1,COLUMNS($K$35:K49)-1),"") ->  | J35: =IF(OFFSET(DE104_3!$L$35,ROWS($L$35:L49)-1,COLUMNS($L$35:L49)-1)<>"",OFFSET(DE104_3!$L$35,ROWS($L$35:L49)-1,COLUMNS($L$35:L49)-1),"") ->  | K35: =IF(OFFSET(DE104_3!$M$35,ROWS($M$35:M49)-1,COLUMNS($M$35:M49)-1)<>"",OFFSET(DE104_3!$M$35,ROWS($M$35:M49)-1,COLUMNS($M$35:M49)-1),"") ->  | L35: =IF(OFFSET(DE104_3!$N$35,ROWS($N$35:N49)-1,COLUMNS($N$35:N49)-1)<>"",OFFSET(DE104_3!$N$35,ROWS($N$35:N49)-1,COLUMNS($N$35:N49)-1),"") ->  | M35: =IF(OFFSET(DE104_3!$O$35,ROWS($O$35:O49)-1,COLUMNS($O$35:O49)-1)<>"",OFFSET(DE104_3!$O$35,ROWS($O$35:O49)-1,COLUMNS($O$35:O49)-1),"") ->  | N35: =IF(OFFSET(DE104_3!$P$35,ROWS($P$35:P49)-1,COLUMNS($P$35:P49)-1)<>"",OFFSET(DE104_3!$P$35,ROWS($P$35:P49)-1,COLUMNS($P$35:P49)-1),"") ->  | O35: =IF(OFFSET(DE104_3!$Q$35,ROWS($Q$35:Q49)-1,COLUMNS($Q$35:Q49)-1)<>"",OFFSET(DE104_3!$Q$35,ROWS($Q$35:Q49)-1,COLUMNS($Q$35:Q49)-1),"") ->  | P35: =IF(OFFSET(DE104_3!$R$35,ROWS($R$35:R49)-1,COLUMNS($R$35:R49)-1)<>"",OFFSET(DE104_3!$R$35,ROWS($R$35:R49)-1,COLUMNS($R$35:R49)-1),"") ->  | Q35: =IF(OFFSET(DE104_3!$S$35,ROWS($S$35:S49)-1,COLUMNS($S$35:S49)-1)<>"",OFFSET(DE104_3!$S$35,ROWS($S$35:S49)-1,COLUMNS($S$35:S49)-1),"") ->  | R35: =IF(OFFSET(DE104_3!$T$35,ROWS($T$35:T49)-1,COLUMNS($T$35:T49)-1)<>"",OFFSET(DE104_3!$T$35,ROWS($T$35:T49)-1,COLUMNS($T$35:T49)-1),"") ->  | S35: =IF(OFFSET(DE104_3!$U$35,ROWS($U$35:U49)-1,COLUMNS($U$35:U49)-1)<>"",OFFSET(DE104_3!$U$35,ROWS($U$35:U49)-1,COLUMNS($U$35:U49)-1),"") ->  | T35: =IF(OFFSET(DE104_3!$V$35,ROWS($V$35:V49)-1,COLUMNS($V$35:V49)-1)<>"",OFFSET(DE104_3!$V$35,ROWS($V$35:V49)-1,COLUMNS($V$35:V49)-1),"") ->  | U35: =IF(OFFSET(DE104_3!$W$35,ROWS($W$35:W49)-1,COLUMNS($W$35:W49)-1)<>"",OFFSET(DE104_3!$W$35,ROWS($W$35:W49)-1,COLUMNS($W$35:W49)-1),"") ->  | V35: =IF(OFFSET(DE104_3!$X$35,ROWS($X$35:X49)-1,COLUMNS($X$35:X49)-1)<>"",OFFSET(DE104_3!$X$35,ROWS($X$35:X49)-1,COLUMNS($X$35:X49)-1),"") ->  | W35: =IF(OFFSET(DE104_3!$Y$35,ROWS($Y$35:Y49)-1,COLUMNS($Y$35:Y49)-1)<>"",OFFSET(DE104_3!$Y$35,ROWS($Y$35:Y49)-1,COLUMNS($Y$35:Y49)-1),"") ->  | X35: =IF(OFFSET(DE104_3!$Z$35,ROWS($Z$35:Z49)-1,COLUMNS($Z$35:Z49)-1)<>"",OFFSET(DE104_3!$Z$35,ROWS($Z$35:Z49)-1,COLUMNS($Z$35:Z49)-1),"") ->  | Y35: =IF(OFFSET(DE104_3!$AA$35,ROWS($AA$35:AA49)-1,COLUMNS($AA$35:AA49)-1)<>"",OFFSET(DE104_3!$AA$35,ROWS($AA$35:AA49)-1,COLUMNS($AA$35:AA49)-1),"") ->  | Z35: =IF(OFFSET(DE104_3!$AB$35,ROWS($AB$35:AB49)-1,COLUMNS($AB$35:AB49)-1)<>"",OFFSET(DE104_3!$AB$35,ROWS($AB$35:AB49)-1,COLUMNS($AB$35:AB49)-1),"") ->  | AA35: =IF(OFFSET(DE104_3!$AC$35,ROWS($AC$35:AC49)-1,COLUMNS($AC$35:AC49)-1)<>"",OFFSET(DE104_3!$AC$35,ROWS($AC$35:AC49)-1,COLUMNS($AC$35:AC49)-1),"") ->  | AB35: =IF(OFFSET(DE104_3!$AD$35,ROWS($AD$35:AD49)-1,COLUMNS($AD$35:AD49)-1)<>"",OFFSET(DE104_3!$AD$35,ROWS($AD$35:AD49)-1,COLUMNS($AD$35:AD49)-1),"") ->  | AC35: =IF(OFFSET(DE104_3!$AE$35,ROWS($AE$35:AE49)-1,COLUMNS($AE$35:AE49)-1)<>"",OFFSET(DE104_3!$AE$35,ROWS($AE$35:AE49)-1,COLUMNS($AE$35:AE49)-1),"") ->  | AD35: =IF(OFFSET(DE104_3!$AF$35,ROWS($AF$35:AF49)-1,COLUMNS($AF$35:AF49)-1)<>"",OFFSET(DE104_3!$AF$35,ROWS($AF$35:AF49)-1,COLUMNS($AF$35:AF49)-1),"") ->  | AE35: =IF(OFFSET(DE104_3!$AG$35,ROWS($AG$35:AG49)-1,COLUMNS($AG$35:AG49)-1)<>"",OFFSET(DE104_3!$AG$35,ROWS($AG$35:AG49)-1,COLUMNS($AG$35:AG49)-1),"") ->  | AF35: =IF(OFFSET(DE104_3!$AH$35,ROWS($AH$35:AH49)-1,COLUMNS($AH$35:AH49)-1)<>"",OFFSET(DE104_3!$AH$35,ROWS($AH$35:AH49)-1,COLUMNS($AH$35:AH49)-1),"") ->  | AG35: =IF(OFFSET(DE104_3!$AI$35,ROWS($AI$35:AI49)-1,COLUMNS($AI$35:AI49)-1)<>"",OFFSET(DE104_3!$AI$35,ROWS($AI$35:AI49)-1,COLUMNS($AI$35:AI49)-1),"") ->  | AH35: =IF(OFFSET(DE104_3!$AJ$35,ROWS($AJ$35:AJ49)-1,COLUMNS($AJ$35:AJ49)-1)<>"",OFFSET(DE104_3!$AJ$35,ROWS($AJ$35:AJ49)-1,COLUMNS($AJ$35:AJ49)-1),"") ->  | AI35: =IF(OFFSET(DE104_3!$AK$35,ROWS($AK$35:AK49)-1,COLUMNS($AK$35:AK49)-1)<>"",OFFSET(DE104_3!$AK$35,ROWS($AK$35:AK49)-1,COLUMNS($AK$35:AK49)-1),"") ->  | AJ35: =IF(OFFSET(DE104_3!$AL$35,ROWS($AL$35:AL49)-1,COLUMNS($AL$35:AL49)-1)<>"",OFFSET(DE104_3!$AL$35,ROWS($AL$35:AL49)-1,COLUMNS($AL$35:AL49)-1),"") ->  | AK35: =IF(OFFSET(DE104_3!$AM$35,ROWS($AM$35:AM49)-1,COLUMNS($AM$35:AM49)-1)<>"",OFFSET(DE104_3!$AM$35,ROWS($AM$35:AM49)-1,COLUMNS($AM$35:AM49)-1),"") ->  | AL35: =IF(OFFSET(DE104_3!$AN$35,ROWS($AN$35:AN49)-1,COLUMNS($AN$35:AN49)-1)<>"",OFFSET(DE104_3!$AN$35,ROWS($AN$35:AN49)-1,COLUMNS($AN$35:AN49)-1),"") ->  | AM35: =IF(OFFSET(DE104_3!$AO$35,ROWS($AO$35:AO49)-1,COLUMNS($AO$35:AO49)-1)<>"",OFFSET(DE104_3!$AO$35,ROWS($AO$35:AO49)-1,COLUMNS($AO$35:AO49)-1),"") ->  | AN35: =IF(OFFSET(DE104_3!$AP$35,ROWS($AP$35:AP49)-1,COLUMNS($AP$35:AP49)-1)<>"",OFFSET(DE104_3!$AP$35,ROWS($AP$35:AP49)-1,COLUMNS($AP$35:AP49)-1),"") ->  | AO35: =IF(OFFSET(DE104_3!$AQ$35,ROWS($AQ$35:AQ49)-1,COLUMNS($AQ$35:AQ49)-1)<>"",OFFSET(DE104_3!$AQ$35,ROWS($AQ$35:AQ49)-1,COLUMNS($AQ$35:AQ49)-1),"") -> 
A36: =IF(OFFSET(DE104_3!$C$35,ROWS($C$35:C50)-1,COLUMNS($C$35:C50)-1)<>"",OFFSET(DE104_3!$C$35,ROWS($C$35:C50)-1,COLUMNS($C$35:C50)-1),"") ->  | B36: =IF(OFFSET(DE104_3!$D$35,ROWS($D$35:D50)-1,COLUMNS($D$35:D50)-1)<>"",OFFSET(DE104_3!$D$35,ROWS($D$35:D50)-1,COLUMNS($D$35:D50)-1),"") ->  | C36: =IF(OFFSET(DE104_3!$E$35,ROWS($E$35:E50)-1,COLUMNS($E$35:E50)-1)<>"",OFFSET(DE104_3!$E$35,ROWS($E$35:E50)-1,COLUMNS($E$35:E50)-1),"") ->  | D36: =IF(OFFSET(DE104_3!$F$35,ROWS($F$35:F50)-1,COLUMNS($F$35:F50)-1)<>"",OFFSET(DE104_3!$F$35,ROWS($F$35:F50)-1,COLUMNS($F$35:F50)-1),"") ->  | E36: =IF(OFFSET(DE104_3!$G$35,ROWS($G$35:G50)-1,COLUMNS($G$35:G50)-1)<>"",OFFSET(DE104_3!$G$35,ROWS($G$35:G50)-1,COLUMNS($G$35:G50)-1),"") ->  | F36: =IF(OFFSET(DE104_3!$H$35,ROWS($H$35:H50)-1,COLUMNS($H$35:H50)-1)<>"",OFFSET(DE104_3!$H$35,ROWS($H$35:H50)-1,COLUMNS($H$35:H50)-1),"") ->  | G36: =IF(OFFSET(DE104_3!$I$35,ROWS($I$35:I50)-1,COLUMNS($I$35:I50)-1)<>"",OFFSET(DE104_3!$I$35,ROWS($I$35:I50)-1,COLUMNS($I$35:I50)-1),"") ->  | H36: =IF(OFFSET(DE104_3!$J$35,ROWS($J$35:J50)-1,COLUMNS($J$35:J50)-1)<>"",OFFSET(DE104_3!$J$35,ROWS($J$35:J50)-1,COLUMNS($J$35:J50)-1),"") ->  | I36: =IF(OFFSET(DE104_3!$K$35,ROWS($K$35:K50)-1,COLUMNS($K$35:K50)-1)<>"",OFFSET(DE104_3!$K$35,ROWS($K$35:K50)-1,COLUMNS($K$35:K50)-1),"") ->  | J36: =IF(OFFSET(DE104_3!$L$35,ROWS($L$35:L50)-1,COLUMNS($L$35:L50)-1)<>"",OFFSET(DE104_3!$L$35,ROWS($L$35:L50)-1,COLUMNS($L$35:L50)-1),"") ->  | K36: =IF(OFFSET(DE104_3!$M$35,ROWS($M$35:M50)-1,COLUMNS($M$35:M50)-1)<>"",OFFSET(DE104_3!$M$35,ROWS($M$35:M50)-1,COLUMNS($M$35:M50)-1),"") ->  | L36: =IF(OFFSET(DE104_3!$N$35,ROWS($N$35:N50)-1,COLUMNS($N$35:N50)-1)<>"",OFFSET(DE104_3!$N$35,ROWS($N$35:N50)-1,COLUMNS($N$35:N50)-1),"") ->  | M36: =IF(OFFSET(DE104_3!$O$35,ROWS($O$35:O50)-1,COLUMNS($O$35:O50)-1)<>"",OFFSET(DE104_3!$O$35,ROWS($O$35:O50)-1,COLUMNS($O$35:O50)-1),"") ->  | N36: =IF(OFFSET(DE104_3!$P$35,ROWS($P$35:P50)-1,COLUMNS($P$35:P50)-1)<>"",OFFSET(DE104_3!$P$35,ROWS($P$35:P50)-1,COLUMNS($P$35:P50)-1),"") ->  | O36: =IF(OFFSET(DE104_3!$Q$35,ROWS($Q$35:Q50)-1,COLUMNS($Q$35:Q50)-1)<>"",OFFSET(DE104_3!$Q$35,ROWS($Q$35:Q50)-1,COLUMNS($Q$35:Q50)-1),"") ->  | P36: =IF(OFFSET(DE104_3!$R$35,ROWS($R$35:R50)-1,COLUMNS($R$35:R50)-1)<>"",OFFSET(DE104_3!$R$35,ROWS($R$35:R50)-1,COLUMNS($R$35:R50)-1),"") ->  | Q36: =IF(OFFSET(DE104_3!$S$35,ROWS($S$35:S50)-1,COLUMNS($S$35:S50)-1)<>"",OFFSET(DE104_3!$S$35,ROWS($S$35:S50)-1,COLUMNS($S$35:S50)-1),"") ->  | R36: =IF(OFFSET(DE104_3!$T$35,ROWS($T$35:T50)-1,COLUMNS($T$35:T50)-1)<>"",OFFSET(DE104_3!$T$35,ROWS($T$35:T50)-1,COLUMNS($T$35:T50)-1),"") ->  | S36: =IF(OFFSET(DE104_3!$U$35,ROWS($U$35:U50)-1,COLUMNS($U$35:U50)-1)<>"",OFFSET(DE104_3!$U$35,ROWS($U$35:U50)-1,COLUMNS($U$35:U50)-1),"") ->  | T36: =IF(OFFSET(DE104_3!$V$35,ROWS($V$35:V50)-1,COLUMNS($V$35:V50)-1)<>"",OFFSET(DE104_3!$V$35,ROWS($V$35:V50)-1,COLUMNS($V$35:V50)-1),"") ->  | U36: =IF(OFFSET(DE104_3!$W$35,ROWS($W$35:W50)-1,COLUMNS($W$35:W50)-1)<>"",OFFSET(DE104_3!$W$35,ROWS($W$35:W50)-1,COLUMNS($W$35:W50)-1),"") ->  | V36: =IF(OFFSET(DE104_3!$X$35,ROWS($X$35:X50)-1,COLUMNS($X$35:X50)-1)<>"",OFFSET(DE104_3!$X$35,ROWS($X$35:X50)-1,COLUMNS($X$35:X50)-1),"") ->  | W36: =IF(OFFSET(DE104_3!$Y$35,ROWS($Y$35:Y50)-1,COLUMNS($Y$35:Y50)-1)<>"",OFFSET(DE104_3!$Y$35,ROWS($Y$35:Y50)-1,COLUMNS($Y$35:Y50)-1),"") ->  | X36: =IF(OFFSET(DE104_3!$Z$35,ROWS($Z$35:Z50)-1,COLUMNS($Z$35:Z50)-1)<>"",OFFSET(DE104_3!$Z$35,ROWS($Z$35:Z50)-1,COLUMNS($Z$35:Z50)-1),"") ->  | Y36: =IF(OFFSET(DE104_3!$AA$35,ROWS($AA$35:AA50)-1,COLUMNS($AA$35:AA50)-1)<>"",OFFSET(DE104_3!$AA$35,ROWS($AA$35:AA50)-1,COLUMNS($AA$35:AA50)-1),"") ->  | Z36: =IF(OFFSET(DE104_3!$AB$35,ROWS($AB$35:AB50)-1,COLUMNS($AB$35:AB50)-1)<>"",OFFSET(DE104_3!$AB$35,ROWS($AB$35:AB50)-1,COLUMNS($AB$35:AB50)-1),"") ->  | AA36: =IF(OFFSET(DE104_3!$AC$35,ROWS($AC$35:AC50)-1,COLUMNS($AC$35:AC50)-1)<>"",OFFSET(DE104_3!$AC$35,ROWS($AC$35:AC50)-1,COLUMNS($AC$35:AC50)-1),"") ->  | AB36: =IF(OFFSET(DE104_3!$AD$35,ROWS($AD$35:AD50)-1,COLUMNS($AD$35:AD50)-1)<>"",OFFSET(DE104_3!$AD$35,ROWS($AD$35:AD50)-1,COLUMNS($AD$35:AD50)-1),"") ->  | AC36: =IF(OFFSET(DE104_3!$AE$35,ROWS($AE$35:AE50)-1,COLUMNS($AE$35:AE50)-1)<>"",OFFSET(DE104_3!$AE$35,ROWS($AE$35:AE50)-1,COLUMNS($AE$35:AE50)-1),"") ->  | AD36: =IF(OFFSET(DE104_3!$AF$35,ROWS($AF$35:AF50)-1,COLUMNS($AF$35:AF50)-1)<>"",OFFSET(DE104_3!$AF$35,ROWS($AF$35:AF50)-1,COLUMNS($AF$35:AF50)-1),"") ->  | AE36: =IF(OFFSET(DE104_3!$AG$35,ROWS($AG$35:AG50)-1,COLUMNS($AG$35:AG50)-1)<>"",OFFSET(DE104_3!$AG$35,ROWS($AG$35:AG50)-1,COLUMNS($AG$35:AG50)-1),"") ->  | AF36: =IF(OFFSET(DE104_3!$AH$35,ROWS($AH$35:AH50)-1,COLUMNS($AH$35:AH50)-1)<>"",OFFSET(DE104_3!$AH$35,ROWS($AH$35:AH50)-1,COLUMNS($AH$35:AH50)-1),"") ->  | AG36: =IF(OFFSET(DE104_3!$AI$35,ROWS($AI$35:AI50)-1,COLUMNS($AI$35:AI50)-1)<>"",OFFSET(DE104_3!$AI$35,ROWS($AI$35:AI50)-1,COLUMNS($AI$35:AI50)-1),"") ->  | AH36: =IF(OFFSET(DE104_3!$AJ$35,ROWS($AJ$35:AJ50)-1,COLUMNS($AJ$35:AJ50)-1)<>"",OFFSET(DE104_3!$AJ$35,ROWS($AJ$35:AJ50)-1,COLUMNS($AJ$35:AJ50)-1),"") ->  | AI36: =IF(OFFSET(DE104_3!$AK$35,ROWS($AK$35:AK50)-1,COLUMNS($AK$35:AK50)-1)<>"",OFFSET(DE104_3!$AK$35,ROWS($AK$35:AK50)-1,COLUMNS($AK$35:AK50)-1),"") ->  | AJ36: =IF(OFFSET(DE104_3!$AL$35,ROWS($AL$35:AL50)-1,COLUMNS($AL$35:AL50)-1)<>"",OFFSET(DE104_3!$AL$35,ROWS($AL$35:AL50)-1,COLUMNS($AL$35:AL50)-1),"") ->  | AK36: =IF(OFFSET(DE104_3!$AM$35,ROWS($AM$35:AM50)-1,COLUMNS($AM$35:AM50)-1)<>"",OFFSET(DE104_3!$AM$35,ROWS($AM$35:AM50)-1,COLUMNS($AM$35:AM50)-1),"") ->  | AL36: =IF(OFFSET(DE104_3!$AN$35,ROWS($AN$35:AN50)-1,COLUMNS($AN$35:AN50)-1)<>"",OFFSET(DE104_3!$AN$35,ROWS($AN$35:AN50)-1,COLUMNS($AN$35:AN50)-1),"") ->  | AM36: =IF(OFFSET(DE104_3!$AO$35,ROWS($AO$35:AO50)-1,COLUMNS($AO$35:AO50)-1)<>"",OFFSET(DE104_3!$AO$35,ROWS($AO$35:AO50)-1,COLUMNS($AO$35:AO50)-1),"") ->  | AN36: =IF(OFFSET(DE104_3!$AP$35,ROWS($AP$35:AP50)-1,COLUMNS($AP$35:AP50)-1)<>"",OFFSET(DE104_3!$AP$35,ROWS($AP$35:AP50)-1,COLUMNS($AP$35:AP50)-1),"") ->  | AO36: =IF(OFFSET(DE104_3!$AQ$35,ROWS($AQ$35:AQ50)-1,COLUMNS($AQ$35:AQ50)-1)<>"",OFFSET(DE104_3!$AQ$35,ROWS($AQ$35:AQ50)-1,COLUMNS($AQ$35:AQ50)-1),"") -> 
A37: =IF(OFFSET(DE104_3!$C$35,ROWS($C$35:C51)-1,COLUMNS($C$35:C51)-1)<>"",OFFSET(DE104_3!$C$35,ROWS($C$35:C51)-1,COLUMNS($C$35:C51)-1),"") ->  | B37: =IF(OFFSET(DE104_3!$D$35,ROWS($D$35:D51)-1,COLUMNS($D$35:D51)-1)<>"",OFFSET(DE104_3!$D$35,ROWS($D$35:D51)-1,COLUMNS($D$35:D51)-1),"") ->  | C37: =IF(OFFSET(DE104_3!$E$35,ROWS($E$35:E51)-1,COLUMNS($E$35:E51)-1)<>"",OFFSET(DE104_3!$E$35,ROWS($E$35:E51)-1,COLUMNS($E$35:E51)-1),"") ->  | D37: =IF(OFFSET(DE104_3!$F$35,ROWS($F$35:F51)-1,COLUMNS($F$35:F51)-1)<>"",OFFSET(DE104_3!$F$35,ROWS($F$35:F51)-1,COLUMNS($F$35:F51)-1),"") ->  | E37: =IF(OFFSET(DE104_3!$G$35,ROWS($G$35:G51)-1,COLUMNS($G$35:G51)-1)<>"",OFFSET(DE104_3!$G$35,ROWS($G$35:G51)-1,COLUMNS($G$35:G51)-1),"") ->  | F37: =IF(OFFSET(DE104_3!$H$35,ROWS($H$35:H51)-1,COLUMNS($H$35:H51)-1)<>"",OFFSET(DE104_3!$H$35,ROWS($H$35:H51)-1,COLUMNS($H$35:H51)-1),"") ->  | G37: =IF(OFFSET(DE104_3!$I$35,ROWS($I$35:I51)-1,COLUMNS($I$35:I51)-1)<>"",OFFSET(DE104_3!$I$35,ROWS($I$35:I51)-1,COLUMNS($I$35:I51)-1),"") ->  | H37: =IF(OFFSET(DE104_3!$J$35,ROWS($J$35:J51)-1,COLUMNS($J$35:J51)-1)<>"",OFFSET(DE104_3!$J$35,ROWS($J$35:J51)-1,COLUMNS($J$35:J51)-1),"") ->  | I37: =IF(OFFSET(DE104_3!$K$35,ROWS($K$35:K51)-1,COLUMNS($K$35:K51)-1)<>"",OFFSET(DE104_3!$K$35,ROWS($K$35:K51)-1,COLUMNS($K$35:K51)-1),"") ->  | J37: =IF(OFFSET(DE104_3!$L$35,ROWS($L$35:L51)-1,COLUMNS($L$35:L51)-1)<>"",OFFSET(DE104_3!$L$35,ROWS($L$35:L51)-1,COLUMNS($L$35:L51)-1),"") ->  | K37: =IF(OFFSET(DE104_3!$M$35,ROWS($M$35:M51)-1,COLUMNS($M$35:M51)-1)<>"",OFFSET(DE104_3!$M$35,ROWS($M$35:M51)-1,COLUMNS($M$35:M51)-1),"") ->  | L37: =IF(OFFSET(DE104_3!$N$35,ROWS($N$35:N51)-1,COLUMNS($N$35:N51)-1)<>"",OFFSET(DE104_3!$N$35,ROWS($N$35:N51)-1,COLUMNS($N$35:N51)-1),"") ->  | M37: =IF(OFFSET(DE104_3!$O$35,ROWS($O$35:O51)-1,COLUMNS($O$35:O51)-1)<>"",OFFSET(DE104_3!$O$35,ROWS($O$35:O51)-1,COLUMNS($O$35:O51)-1),"") ->  | N37: =IF(OFFSET(DE104_3!$P$35,ROWS($P$35:P51)-1,COLUMNS($P$35:P51)-1)<>"",OFFSET(DE104_3!$P$35,ROWS($P$35:P51)-1,COLUMNS($P$35:P51)-1),"") ->  | O37: =IF(OFFSET(DE104_3!$Q$35,ROWS($Q$35:Q51)-1,COLUMNS($Q$35:Q51)-1)<>"",OFFSET(DE104_3!$Q$35,ROWS($Q$35:Q51)-1,COLUMNS($Q$35:Q51)-1),"") ->  | P37: =IF(OFFSET(DE104_3!$R$35,ROWS($R$35:R51)-1,COLUMNS($R$35:R51)-1)<>"",OFFSET(DE104_3!$R$35,ROWS($R$35:R51)-1,COLUMNS($R$35:R51)-1),"") ->  | Q37: =IF(OFFSET(DE104_3!$S$35,ROWS($S$35:S51)-1,COLUMNS($S$35:S51)-1)<>"",OFFSET(DE104_3!$S$35,ROWS($S$35:S51)-1,COLUMNS($S$35:S51)-1),"") ->  | R37: =IF(OFFSET(DE104_3!$T$35,ROWS($T$35:T51)-1,COLUMNS($T$35:T51)-1)<>"",OFFSET(DE104_3!$T$35,ROWS($T$35:T51)-1,COLUMNS($T$35:T51)-1),"") ->  | S37: =IF(OFFSET(DE104_3!$U$35,ROWS($U$35:U51)-1,COLUMNS($U$35:U51)-1)<>"",OFFSET(DE104_3!$U$35,ROWS($U$35:U51)-1,COLUMNS($U$35:U51)-1),"") ->  | T37: =IF(OFFSET(DE104_3!$V$35,ROWS($V$35:V51)-1,COLUMNS($V$35:V51)-1)<>"",OFFSET(DE104_3!$V$35,ROWS($V$35:V51)-1,COLUMNS($V$35:V51)-1),"") ->  | U37: =IF(OFFSET(DE104_3!$W$35,ROWS($W$35:W51)-1,COLUMNS($W$35:W51)-1)<>"",OFFSET(DE104_3!$W$35,ROWS($W$35:W51)-1,COLUMNS($W$35:W51)-1),"") ->  | V37: =IF(OFFSET(DE104_3!$X$35,ROWS($X$35:X51)-1,COLUMNS($X$35:X51)-1)<>"",OFFSET(DE104_3!$X$35,ROWS($X$35:X51)-1,COLUMNS($X$35:X51)-1),"") ->  | W37: =IF(OFFSET(DE104_3!$Y$35,ROWS($Y$35:Y51)-1,COLUMNS($Y$35:Y51)-1)<>"",OFFSET(DE104_3!$Y$35,ROWS($Y$35:Y51)-1,COLUMNS($Y$35:Y51)-1),"") ->  | X37: =IF(OFFSET(DE104_3!$Z$35,ROWS($Z$35:Z51)-1,COLUMNS($Z$35:Z51)-1)<>"",OFFSET(DE104_3!$Z$35,ROWS($Z$35:Z51)-1,COLUMNS($Z$35:Z51)-1),"") ->  | Y37: =IF(OFFSET(DE104_3!$AA$35,ROWS($AA$35:AA51)-1,COLUMNS($AA$35:AA51)-1)<>"",OFFSET(DE104_3!$AA$35,ROWS($AA$35:AA51)-1,COLUMNS($AA$35:AA51)-1),"") ->  | Z37: =IF(OFFSET(DE104_3!$AB$35,ROWS($AB$35:AB51)-1,COLUMNS($AB$35:AB51)-1)<>"",OFFSET(DE104_3!$AB$35,ROWS($AB$35:AB51)-1,COLUMNS($AB$35:AB51)-1),"") ->  | AA37: =IF(OFFSET(DE104_3!$AC$35,ROWS($AC$35:AC51)-1,COLUMNS($AC$35:AC51)-1)<>"",OFFSET(DE104_3!$AC$35,ROWS($AC$35:AC51)-1,COLUMNS($AC$35:AC51)-1),"") ->  | AB37: =IF(OFFSET(DE104_3!$AD$35,ROWS($AD$35:AD51)-1,COLUMNS($AD$35:AD51)-1)<>"",OFFSET(DE104_3!$AD$35,ROWS($AD$35:AD51)-1,COLUMNS($AD$35:AD51)-1),"") ->  | AC37: =IF(OFFSET(DE104_3!$AE$35,ROWS($AE$35:AE51)-1,COLUMNS($AE$35:AE51)-1)<>"",OFFSET(DE104_3!$AE$35,ROWS($AE$35:AE51)-1,COLUMNS($AE$35:AE51)-1),"") ->  | AD37: =IF(OFFSET(DE104_3!$AF$35,ROWS($AF$35:AF51)-1,COLUMNS($AF$35:AF51)-1)<>"",OFFSET(DE104_3!$AF$35,ROWS($AF$35:AF51)-1,COLUMNS($AF$35:AF51)-1),"") ->  | AE37: =IF(OFFSET(DE104_3!$AG$35,ROWS($AG$35:AG51)-1,COLUMNS($AG$35:AG51)-1)<>"",OFFSET(DE104_3!$AG$35,ROWS($AG$35:AG51)-1,COLUMNS($AG$35:AG51)-1),"") ->  | AF37: =IF(OFFSET(DE104_3!$AH$35,ROWS($AH$35:AH51)-1,COLUMNS($AH$35:AH51)-1)<>"",OFFSET(DE104_3!$AH$35,ROWS($AH$35:AH51)-1,COLUMNS($AH$35:AH51)-1),"") ->  | AG37: =IF(OFFSET(DE104_3!$AI$35,ROWS($AI$35:AI51)-1,COLUMNS($AI$35:AI51)-1)<>"",OFFSET(DE104_3!$AI$35,ROWS($AI$35:AI51)-1,COLUMNS($AI$35:AI51)-1),"") ->  | AH37: =IF(OFFSET(DE104_3!$AJ$35,ROWS($AJ$35:AJ51)-1,COLUMNS($AJ$35:AJ51)-1)<>"",OFFSET(DE104_3!$AJ$35,ROWS($AJ$35:AJ51)-1,COLUMNS($AJ$35:AJ51)-1),"") ->  | AI37: =IF(OFFSET(DE104_3!$AK$35,ROWS($AK$35:AK51)-1,COLUMNS($AK$35:AK51)-1)<>"",OFFSET(DE104_3!$AK$35,ROWS($AK$35:AK51)-1,COLUMNS($AK$35:AK51)-1),"") ->  | AJ37: =IF(OFFSET(DE104_3!$AL$35,ROWS($AL$35:AL51)-1,COLUMNS($AL$35:AL51)-1)<>"",OFFSET(DE104_3!$AL$35,ROWS($AL$35:AL51)-1,COLUMNS($AL$35:AL51)-1),"") ->  | AK37: =IF(OFFSET(DE104_3!$AM$35,ROWS($AM$35:AM51)-1,COLUMNS($AM$35:AM51)-1)<>"",OFFSET(DE104_3!$AM$35,ROWS($AM$35:AM51)-1,COLUMNS($AM$35:AM51)-1),"") ->  | AL37: =IF(OFFSET(DE104_3!$AN$35,ROWS($AN$35:AN51)-1,COLUMNS($AN$35:AN51)-1)<>"",OFFSET(DE104_3!$AN$35,ROWS($AN$35:AN51)-1,COLUMNS($AN$35:AN51)-1),"") ->  | AM37: =IF(OFFSET(DE104_3!$AO$35,ROWS($AO$35:AO51)-1,COLUMNS($AO$35:AO51)-1)<>"",OFFSET(DE104_3!$AO$35,ROWS($AO$35:AO51)-1,COLUMNS($AO$35:AO51)-1),"") ->  | AN37: =IF(OFFSET(DE104_3!$AP$35,ROWS($AP$35:AP51)-1,COLUMNS($AP$35:AP51)-1)<>"",OFFSET(DE104_3!$AP$35,ROWS($AP$35:AP51)-1,COLUMNS($AP$35:AP51)-1),"") ->  | AO37: =IF(OFFSET(DE104_3!$AQ$35,ROWS($AQ$35:AQ51)-1,COLUMNS($AQ$35:AQ51)-1)<>"",OFFSET(DE104_3!$AQ$35,ROWS($AQ$35:AQ51)-1,COLUMNS($AQ$35:AQ51)-1),"") -> 
A38: =IF(OFFSET(DE104_3!$C$35,ROWS($C$35:C52)-1,COLUMNS($C$35:C52)-1)<>"",OFFSET(DE104_3!$C$35,ROWS($C$35:C52)-1,COLUMNS($C$35:C52)-1),"") -> BID ITEMS: | C38: =IF(OFFSET(DE104_3!$E$35,ROWS($E$35:E52)-1,COLUMNS($E$35:E52)-1)<>"",OFFSET(DE104_3!$E$35,ROWS($E$35:E52)-1,COLUMNS($E$35:E52)-1),"") ->  | D38: =IF(OFFSET(DE104_3!$F$35,ROWS($F$35:F52)-1,COLUMNS($F$35:F52)-1)<>"",OFFSET(DE104_3!$F$35,ROWS($F$35:F52)-1,COLUMNS($F$35:F52)-1),"") ->  | E38: =IF(OFFSET(DE104_3!$G$35,ROWS($G$35:G52)-1,COLUMNS($G$35:G52)-1)<>"",OFFSET(DE104_3!$G$35,ROWS($G$35:G52)-1,COLUMNS($G$35:G52)-1),"") ->  | F38: =IF(OFFSET(DE104_3!$H$35,ROWS($H$35:H52)-1,COLUMNS($H$35:H52)-1)<>"",OFFSET(DE104_3!$H$35,ROWS($H$35:H52)-1,COLUMNS($H$35:H52)-1),"") ->  | G38: =IF(OFFSET(DE104_3!$I$35,ROWS($I$35:I52)-1,COLUMNS($I$35:I52)-1)<>"",OFFSET(DE104_3!$I$35,ROWS($I$35:I52)-1,COLUMNS($I$35:I52)-1),"") ->  | H38: =IF(OFFSET(DE104_3!$J$35,ROWS($J$35:J52)-1,COLUMNS($J$35:J52)-1)<>"",OFFSET(DE104_3!$J$35,ROWS($J$35:J52)-1,COLUMNS($J$35:J52)-1),"") ->  | I38: =IF(OFFSET(DE104_3!$K$35,ROWS($K$35:K52)-1,COLUMNS($K$35:K52)-1)<>"",OFFSET(DE104_3!$K$35,ROWS($K$35:K52)-1,COLUMNS($K$35:K52)-1),"") ->  | J38: =IF(OFFSET(DE104_3!$L$35,ROWS($L$35:L52)-1,COLUMNS($L$35:L52)-1)<>"",OFFSET(DE104_3!$L$35,ROWS($L$35:L52)-1,COLUMNS($L$35:L52)-1),"") ->  | K38: =IF(OFFSET(DE104_3!$M$35,ROWS($M$35:M52)-1,COLUMNS($M$35:M52)-1)<>"",OFFSET(DE104_3!$M$35,ROWS($M$35:M52)-1,COLUMNS($M$35:M52)-1),"") ->  | L38: =IF(OFFSET(DE104_3!$N$35,ROWS($N$35:N52)-1,COLUMNS($N$35:N52)-1)<>"",OFFSET(DE104_3!$N$35,ROWS($N$35:N52)-1,COLUMNS($N$35:N52)-1),"") ->  | M38: =IF(OFFSET(DE104_3!$O$35,ROWS($O$35:O52)-1,COLUMNS($O$35:O52)-1)<>"",OFFSET(DE104_3!$O$35,ROWS($O$35:O52)-1,COLUMNS($O$35:O52)-1),"") ->  | N38: =IF(OFFSET(DE104_3!$P$35,ROWS($P$35:P52)-1,COLUMNS($P$35:P52)-1)<>"",OFFSET(DE104_3!$P$35,ROWS($P$35:P52)-1,COLUMNS($P$35:P52)-1),"") ->  | O38: =IF(OFFSET(DE104_3!$Q$35,ROWS($Q$35:Q52)-1,COLUMNS($Q$35:Q52)-1)<>"",OFFSET(DE104_3!$Q$35,ROWS($Q$35:Q52)-1,COLUMNS($Q$35:Q52)-1),"") ->  | P38: =IF(OFFSET(DE104_3!$R$35,ROWS($R$35:R52)-1,COLUMNS($R$35:R52)-1)<>"",OFFSET(DE104_3!$R$35,ROWS($R$35:R52)-1,COLUMNS($R$35:R52)-1),"") ->  | Q38: =IF(OFFSET(DE104_3!$S$35,ROWS($S$35:S52)-1,COLUMNS($S$35:S52)-1)<>"",OFFSET(DE104_3!$S$35,ROWS($S$35:S52)-1,COLUMNS($S$35:S52)-1),"") ->  | R38: =IF(OFFSET(DE104_3!$T$35,ROWS($T$35:T52)-1,COLUMNS($T$35:T52)-1)<>"",OFFSET(DE104_3!$T$35,ROWS($T$35:T52)-1,COLUMNS($T$35:T52)-1),"") ->  | S38: =IF(OFFSET(DE104_3!$U$35,ROWS($U$35:U52)-1,COLUMNS($U$35:U52)-1)<>"",OFFSET(DE104_3!$U$35,ROWS($U$35:U52)-1,COLUMNS($U$35:U52)-1),"") ->  | T38: =IF(OFFSET(DE104_3!$V$35,ROWS($V$35:V52)-1,COLUMNS($V$35:V52)-1)<>"",OFFSET(DE104_3!$V$35,ROWS($V$35:V52)-1,COLUMNS($V$35:V52)-1),"") ->  | U38: =IF(OFFSET(DE104_3!$W$35,ROWS($W$35:W52)-1,COLUMNS($W$35:W52)-1)<>"",OFFSET(DE104_3!$W$35,ROWS($W$35:W52)-1,COLUMNS($W$35:W52)-1),"") ->  | V38: =IF(OFFSET(DE104_3!$X$35,ROWS($X$35:X52)-1,COLUMNS($X$35:X52)-1)<>"",OFFSET(DE104_3!$X$35,ROWS($X$35:X52)-1,COLUMNS($X$35:X52)-1),"") ->  | W38: =IF(OFFSET(DE104_3!$Y$35,ROWS($Y$35:Y52)-1,COLUMNS($Y$35:Y52)-1)<>"",OFFSET(DE104_3!$Y$35,ROWS($Y$35:Y52)-1,COLUMNS($Y$35:Y52)-1),"") ->  | X38: =IF(OFFSET(DE104_3!$Z$35,ROWS($Z$35:Z52)-1,COLUMNS($Z$35:Z52)-1)<>"",OFFSET(DE104_3!$Z$35,ROWS($Z$35:Z52)-1,COLUMNS($Z$35:Z52)-1),"") ->  | Y38: =IF(OFFSET(DE104_3!$AA$35,ROWS($AA$35:AA52)-1,COLUMNS($AA$35:AA52)-1)<>"",OFFSET(DE104_3!$AA$35,ROWS($AA$35:AA52)-1,COLUMNS($AA$35:AA52)-1),"") ->  | Z38: =IF(OFFSET(DE104_3!$AB$35,ROWS($AB$35:AB52)-1,COLUMNS($AB$35:AB52)-1)<>"",OFFSET(DE104_3!$AB$35,ROWS($AB$35:AB52)-1,COLUMNS($AB$35:AB52)-1),"") ->  | AA38: =IF(OFFSET(DE104_3!$AC$35,ROWS($AC$35:AC52)-1,COLUMNS($AC$35:AC52)-1)<>"",OFFSET(DE104_3!$AC$35,ROWS($AC$35:AC52)-1,COLUMNS($AC$35:AC52)-1),"") ->  | AB38: =IF(OFFSET(DE104_3!$AD$35,ROWS($AD$35:AD52)-1,COLUMNS($AD$35:AD52)-1)<>"",OFFSET(DE104_3!$AD$35,ROWS($AD$35:AD52)-1,COLUMNS($AD$35:AD52)-1),"") ->  | AC38: =IF(OFFSET(DE104_3!$AE$35,ROWS($AE$35:AE52)-1,COLUMNS($AE$35:AE52)-1)<>"",OFFSET(DE104_3!$AE$35,ROWS($AE$35:AE52)-1,COLUMNS($AE$35:AE52)-1),"") ->  | AD38: =IF(OFFSET(DE104_3!$AF$35,ROWS($AF$35:AF52)-1,COLUMNS($AF$35:AF52)-1)<>"",OFFSET(DE104_3!$AF$35,ROWS($AF$35:AF52)-1,COLUMNS($AF$35:AF52)-1),"") ->  | AE38: =IF(OFFSET(DE104_3!$AG$35,ROWS($AG$35:AG52)-1,COLUMNS($AG$35:AG52)-1)<>"",OFFSET(DE104_3!$AG$35,ROWS($AG$35:AG52)-1,COLUMNS($AG$35:AG52)-1),"") ->  | AF38: =IF(OFFSET(DE104_3!$AH$35,ROWS($AH$35:AH52)-1,COLUMNS($AH$35:AH52)-1)<>"",OFFSET(DE104_3!$AH$35,ROWS($AH$35:AH52)-1,COLUMNS($AH$35:AH52)-1),"") ->  | AG38: =IF(OFFSET(DE104_3!$AI$35,ROWS($AI$35:AI52)-1,COLUMNS($AI$35:AI52)-1)<>"",OFFSET(DE104_3!$AI$35,ROWS($AI$35:AI52)-1,COLUMNS($AI$35:AI52)-1),"") ->  | AH38: =IF(OFFSET(DE104_3!$AJ$35,ROWS($AJ$35:AJ52)-1,COLUMNS($AJ$35:AJ52)-1)<>"",OFFSET(DE104_3!$AJ$35,ROWS($AJ$35:AJ52)-1,COLUMNS($AJ$35:AJ52)-1),"") ->  | AI38: =IF(OFFSET(DE104_3!$AK$35,ROWS($AK$35:AK52)-1,COLUMNS($AK$35:AK52)-1)<>"",OFFSET(DE104_3!$AK$35,ROWS($AK$35:AK52)-1,COLUMNS($AK$35:AK52)-1),"") ->  | AJ38: =IF(OFFSET(DE104_3!$AL$35,ROWS($AL$35:AL52)-1,COLUMNS($AL$35:AL52)-1)<>"",OFFSET(DE104_3!$AL$35,ROWS($AL$35:AL52)-1,COLUMNS($AL$35:AL52)-1),"") ->  | AK38: =IF(OFFSET(DE104_3!$AM$35,ROWS($AM$35:AM52)-1,COLUMNS($AM$35:AM52)-1)<>"",OFFSET(DE104_3!$AM$35,ROWS($AM$35:AM52)-1,COLUMNS($AM$35:AM52)-1),"") ->  | AL38: =IF(OFFSET(DE104_3!$AN$35,ROWS($AN$35:AN52)-1,COLUMNS($AN$35:AN52)-1)<>"",OFFSET(DE104_3!$AN$35,ROWS($AN$35:AN52)-1,COLUMNS($AN$35:AN52)-1),"") ->  | AM38: =IF(OFFSET(DE104_3!$AO$35,ROWS($AO$35:AO52)-1,COLUMNS($AO$35:AO52)-1)<>"",OFFSET(DE104_3!$AO$35,ROWS($AO$35:AO52)-1,COLUMNS($AO$35:AO52)-1),"") ->  | AN38: =IF(OFFSET(DE104_3!$AP$35,ROWS($AP$35:AP52)-1,COLUMNS($AP$35:AP52)-1)<>"",OFFSET(DE104_3!$AP$35,ROWS($AP$35:AP52)-1,COLUMNS($AP$35:AP52)-1),"") ->  | AO38: =IF(OFFSET(DE104_3!$AQ$35,ROWS($AQ$35:AQ52)-1,COLUMNS($AQ$35:AQ52)-1)<>"",OFFSET(DE104_3!$AQ$35,ROWS($AQ$35:AQ52)-1,COLUMNS($AQ$35:AQ52)-1),"") -> 
A39: =IF(OFFSET(DE104_3!$C$35,ROWS($C$35:C53)-1,COLUMNS($C$35:C53)-1)<>"",OFFSET(DE104_3!$C$35,ROWS($C$35:C53)-1,COLUMNS($C$35:C53)-1),"") -> CULVERT, LOW CLEARANCE CONCRETE ROADWAY PIPE, EQUIVALENT DIAMETER 24 IN. | M39: =IF(OFFSET(DE104_3!$O$35,ROWS($O$35:O53)-1,COLUMNS($O$35:O53)-1)<>"",OFFSET(DE104_3!$O$35,ROWS($O$35:O53)-1,COLUMNS($O$35:O53)-1),"") -> 52 | O39: =IF(OFFSET(DE104_3!$Q$35,ROWS($Q$35:Q53)-1,COLUMNS($Q$35:Q53)-1)<>"",OFFSET(DE104_3!$Q$35,ROWS($Q$35:Q53)-1,COLUMNS($Q$35:Q53)-1),"") -> LF | P39: =IF(OFFSET(DE104_3!$R$35,ROWS($R$35:R53)-1,COLUMNS($R$35:R53)-1)<>"",OFFSET(DE104_3!$R$35,ROWS($R$35:R53)-1,COLUMNS($R$35:R53)-1),"") ->  | Q39: =IF(OFFSET(DE104_3!$S$35,ROWS($S$35:S53)-1,COLUMNS($S$35:S53)-1)<>"",OFFSET(DE104_3!$S$35,ROWS($S$35:S53)-1,COLUMNS($S$35:S53)-1),"") ->  | R39: =IF(OFFSET(DE104_3!$T$35,ROWS($T$35:T53)-1,COLUMNS($T$35:T53)-1)<>"",OFFSET(DE104_3!$T$35,ROWS($T$35:T53)-1,COLUMNS($T$35:T53)-1),"") ->  | S39: =IF(OFFSET(DE104_3!$U$35,ROWS($U$35:U53)-1,COLUMNS($U$35:U53)-1)<>"",OFFSET(DE104_3!$U$35,ROWS($U$35:U53)-1,COLUMNS($U$35:U53)-1),"") ->  | T39: =IF(OFFSET(DE104_3!$V$35,ROWS($V$35:V53)-1,COLUMNS($V$35:V53)-1)<>"",OFFSET(DE104_3!$V$35,ROWS($V$35:V53)-1,COLUMNS($V$35:V53)-1),"") ->  | U39: =IF(OFFSET(DE104_3!$W$35,ROWS($W$35:W53)-1,COLUMNS($W$35:W53)-1)<>"",OFFSET(DE104_3!$W$35,ROWS($W$35:W53)-1,COLUMNS($W$35:W53)-1),"") ->  | V39: =IF(OFFSET(DE104_3!$X$35,ROWS($X$35:X53)-1,COLUMNS($X$35:X53)-1)<>"",OFFSET(DE104_3!$X$35,ROWS($X$35:X53)-1,COLUMNS($X$35:X53)-1),"") ->  | W39: =IF(OFFSET(DE104_3!$Y$35,ROWS($Y$35:Y53)-1,COLUMNS($Y$35:Y53)-1)<>"",OFFSET(DE104_3!$Y$35,ROWS($Y$35:Y53)-1,COLUMNS($Y$35:Y53)-1),"") ->  | X39: =IF(OFFSET(DE104_3!$Z$35,ROWS($Z$35:Z53)-1,COLUMNS($Z$35:Z53)-1)<>"",OFFSET(DE104_3!$Z$35,ROWS($Z$35:Z53)-1,COLUMNS($Z$35:Z53)-1),"") ->  | Y39: =IF(OFFSET(DE104_3!$AA$35,ROWS($AA$35:AA53)-1,COLUMNS($AA$35:AA53)-1)<>"",OFFSET(DE104_3!$AA$35,ROWS($AA$35:AA53)-1,COLUMNS($AA$35:AA53)-1),"") ->  | Z39: =IF(OFFSET(DE104_3!$AB$35,ROWS($AB$35:AB53)-1,COLUMNS($AB$35:AB53)-1)<>"",OFFSET(DE104_3!$AB$35,ROWS($AB$35:AB53)-1,COLUMNS($AB$35:AB53)-1),"") ->  | AA39: =IF(OFFSET(DE104_3!$AC$35,ROWS($AC$35:AC53)-1,COLUMNS($AC$35:AC53)-1)<>"",OFFSET(DE104_3!$AC$35,ROWS($AC$35:AC53)-1,COLUMNS($AC$35:AC53)-1),"") ->  | AB39: =IF(OFFSET(DE104_3!$AD$35,ROWS($AD$35:AD53)-1,COLUMNS($AD$35:AD53)-1)<>"",OFFSET(DE104_3!$AD$35,ROWS($AD$35:AD53)-1,COLUMNS($AD$35:AD53)-1),"") ->  | AC39: =IF(OFFSET(DE104_3!$AE$35,ROWS($AE$35:AE53)-1,COLUMNS($AE$35:AE53)-1)<>"",OFFSET(DE104_3!$AE$35,ROWS($AE$35:AE53)-1,COLUMNS($AE$35:AE53)-1),"") ->  | AD39: =IF(OFFSET(DE104_3!$AF$35,ROWS($AF$35:AF53)-1,COLUMNS($AF$35:AF53)-1)<>"",OFFSET(DE104_3!$AF$35,ROWS($AF$35:AF53)-1,COLUMNS($AF$35:AF53)-1),"") ->  | AE39: =IF(OFFSET(DE104_3!$AG$35,ROWS($AG$35:AG53)-1,COLUMNS($AG$35:AG53)-1)<>"",OFFSET(DE104_3!$AG$35,ROWS($AG$35:AG53)-1,COLUMNS($AG$35:AG53)-1),"") ->  | AF39: =IF(OFFSET(DE104_3!$AH$35,ROWS($AH$35:AH53)-1,COLUMNS($AH$35:AH53)-1)<>"",OFFSET(DE104_3!$AH$35,ROWS($AH$35:AH53)-1,COLUMNS($AH$35:AH53)-1),"") ->  | AG39: =IF(OFFSET(DE104_3!$AI$35,ROWS($AI$35:AI53)-1,COLUMNS($AI$35:AI53)-1)<>"",OFFSET(DE104_3!$AI$35,ROWS($AI$35:AI53)-1,COLUMNS($AI$35:AI53)-1),"") ->  | AH39: =IF(OFFSET(DE104_3!$AJ$35,ROWS($AJ$35:AJ53)-1,COLUMNS($AJ$35:AJ53)-1)<>"",OFFSET(DE104_3!$AJ$35,ROWS($AJ$35:AJ53)-1,COLUMNS($AJ$35:AJ53)-1),"") ->  | AI39: =IF(OFFSET(DE104_3!$AK$35,ROWS($AK$35:AK53)-1,COLUMNS($AK$35:AK53)-1)<>"",OFFSET(DE104_3!$AK$35,ROWS($AK$35:AK53)-1,COLUMNS($AK$35:AK53)-1),"") ->  | AJ39: =IF(OFFSET(DE104_3!$AL$35,ROWS($AL$35:AL53)-1,COLUMNS($AL$35:AL53)-1)<>"",OFFSET(DE104_3!$AL$35,ROWS($AL$35:AL53)-1,COLUMNS($AL$35:AL53)-1),"") ->  | AK39: =IF(OFFSET(DE104_3!$AM$35,ROWS($AM$35:AM53)-1,COLUMNS($AM$35:AM53)-1)<>"",OFFSET(DE104_3!$AM$35,ROWS($AM$35:AM53)-1,COLUMNS($AM$35:AM53)-1),"") ->  | AL39: =IF(OFFSET(DE104_3!$AN$35,ROWS($AN$35:AN53)-1,COLUMNS($AN$35:AN53)-1)<>"",OFFSET(DE104_3!$AN$35,ROWS($AN$35:AN53)-1,COLUMNS($AN$35:AN53)-1),"") ->  | AM39: =IF(OFFSET(DE104_3!$AO$35,ROWS($AO$35:AO53)-1,COLUMNS($AO$35:AO53)-1)<>"",OFFSET(DE104_3!$AO$35,ROWS($AO$35:AO53)-1,COLUMNS($AO$35:AO53)-1),"") ->  | AN39: =IF(OFFSET(DE104_3!$AP$35,ROWS($AP$35:AP53)-1,COLUMNS($AP$35:AP53)-1)<>"",OFFSET(DE104_3!$AP$35,ROWS($AP$35:AP53)-1,COLUMNS($AP$35:AP53)-1),"") ->  | AO39: =IF(OFFSET(DE104_3!$AQ$35,ROWS($AQ$35:AQ53)-1,COLUMNS($AQ$35:AQ53)-1)<>"",OFFSET(DE104_3!$AQ$35,ROWS($AQ$35:AQ53)-1,COLUMNS($AQ$35:AQ53)-1),"") -> 
A40: =IF(OFFSET(DE104_3!$C$35,ROWS($C$35:C54)-1,COLUMNS($C$35:C54)-1)<>"",OFFSET(DE104_3!$C$35,ROWS($C$35:C54)-1,COLUMNS($C$35:C54)-1),"") -> UNCLASSIFIED PIPE CULVERT, 30 IN. ARCH | M40: =IF(OFFSET(DE104_3!$O$35,ROWS($O$35:O54)-1,COLUMNS($O$35:O54)-1)<>"",OFFSET(DE104_3!$O$35,ROWS($O$35:O54)-1,COLUMNS($O$35:O54)-1),"") -> 88 | O40: =IF(OFFSET(DE104_3!$Q$35,ROWS($Q$35:Q54)-1,COLUMNS($Q$35:Q54)-1)<>"",OFFSET(DE104_3!$Q$35,ROWS($Q$35:Q54)-1,COLUMNS($Q$35:Q54)-1),"") -> LF | P40: =IF(OFFSET(DE104_3!$R$35,ROWS($R$35:R54)-1,COLUMNS($R$35:R54)-1)<>"",OFFSET(DE104_3!$R$35,ROWS($R$35:R54)-1,COLUMNS($R$35:R54)-1),"") ->  | Q40: =IF(OFFSET(DE104_3!$S$35,ROWS($S$35:S54)-1,COLUMNS($S$35:S54)-1)<>"",OFFSET(DE104_3!$S$35,ROWS($S$35:S54)-1,COLUMNS($S$35:S54)-1),"") ->  | R40: =IF(OFFSET(DE104_3!$T$35,ROWS($T$35:T54)-1,COLUMNS($T$35:T54)-1)<>"",OFFSET(DE104_3!$T$35,ROWS($T$35:T54)-1,COLUMNS($T$35:T54)-1),"") ->  | S40: =IF(OFFSET(DE104_3!$U$35,ROWS($U$35:U54)-1,COLUMNS($U$35:U54)-1)<>"",OFFSET(DE104_3!$U$35,ROWS($U$35:U54)-1,COLUMNS($U$35:U54)-1),"") ->  | T40: =IF(OFFSET(DE104_3!$V$35,ROWS($V$35:V54)-1,COLUMNS($V$35:V54)-1)<>"",OFFSET(DE104_3!$V$35,ROWS($V$35:V54)-1,COLUMNS($V$35:V54)-1),"") ->  | U40: =IF(OFFSET(DE104_3!$W$35,ROWS($W$35:W54)-1,COLUMNS($W$35:W54)-1)<>"",OFFSET(DE104_3!$W$35,ROWS($W$35:W54)-1,COLUMNS($W$35:W54)-1),"") ->  | V40: =IF(OFFSET(DE104_3!$X$35,ROWS($X$35:X54)-1,COLUMNS($X$35:X54)-1)<>"",OFFSET(DE104_3!$X$35,ROWS($X$35:X54)-1,COLUMNS($X$35:X54)-1),"") ->  | W40: =IF(OFFSET(DE104_3!$Y$35,ROWS($Y$35:Y54)-1,COLUMNS($Y$35:Y54)-1)<>"",OFFSET(DE104_3!$Y$35,ROWS($Y$35:Y54)-1,COLUMNS($Y$35:Y54)-1),"") ->  | X40: =IF(OFFSET(DE104_3!$Z$35,ROWS($Z$35:Z54)-1,COLUMNS($Z$35:Z54)-1)<>"",OFFSET(DE104_3!$Z$35,ROWS($Z$35:Z54)-1,COLUMNS($Z$35:Z54)-1),"") ->  | Y40: =IF(OFFSET(DE104_3!$AA$35,ROWS($AA$35:AA54)-1,COLUMNS($AA$35:AA54)-1)<>"",OFFSET(DE104_3!$AA$35,ROWS($AA$35:AA54)-1,COLUMNS($AA$35:AA54)-1),"") ->  | Z40: =IF(OFFSET(DE104_3!$AB$35,ROWS($AB$35:AB54)-1,COLUMNS($AB$35:AB54)-1)<>"",OFFSET(DE104_3!$AB$35,ROWS($AB$35:AB54)-1,COLUMNS($AB$35:AB54)-1),"") ->  | AA40: =IF(OFFSET(DE104_3!$AC$35,ROWS($AC$35:AC54)-1,COLUMNS($AC$35:AC54)-1)<>"",OFFSET(DE104_3!$AC$35,ROWS($AC$35:AC54)-1,COLUMNS($AC$35:AC54)-1),"") ->  | AB40: =IF(OFFSET(DE104_3!$AD$35,ROWS($AD$35:AD54)-1,COLUMNS($AD$35:AD54)-1)<>"",OFFSET(DE104_3!$AD$35,ROWS($AD$35:AD54)-1,COLUMNS($AD$35:AD54)-1),"") ->  | AC40: =IF(OFFSET(DE104_3!$AE$35,ROWS($AE$35:AE54)-1,COLUMNS($AE$35:AE54)-1)<>"",OFFSET(DE104_3!$AE$35,ROWS($AE$35:AE54)-1,COLUMNS($AE$35:AE54)-1),"") ->  | AD40: =IF(OFFSET(DE104_3!$AF$35,ROWS($AF$35:AF54)-1,COLUMNS($AF$35:AF54)-1)<>"",OFFSET(DE104_3!$AF$35,ROWS($AF$35:AF54)-1,COLUMNS($AF$35:AF54)-1),"") ->  | AE40: =IF(OFFSET(DE104_3!$AG$35,ROWS($AG$35:AG54)-1,COLUMNS($AG$35:AG54)-1)<>"",OFFSET(DE104_3!$AG$35,ROWS($AG$35:AG54)-1,COLUMNS($AG$35:AG54)-1),"") ->  | AF40: =IF(OFFSET(DE104_3!$AH$35,ROWS($AH$35:AH54)-1,COLUMNS($AH$35:AH54)-1)<>"",OFFSET(DE104_3!$AH$35,ROWS($AH$35:AH54)-1,COLUMNS($AH$35:AH54)-1),"") ->  | AG40: =IF(OFFSET(DE104_3!$AI$35,ROWS($AI$35:AI54)-1,COLUMNS($AI$35:AI54)-1)<>"",OFFSET(DE104_3!$AI$35,ROWS($AI$35:AI54)-1,COLUMNS($AI$35:AI54)-1),"") ->  | AH40: =IF(OFFSET(DE104_3!$AJ$35,ROWS($AJ$35:AJ54)-1,COLUMNS($AJ$35:AJ54)-1)<>"",OFFSET(DE104_3!$AJ$35,ROWS($AJ$35:AJ54)-1,COLUMNS($AJ$35:AJ54)-1),"") ->  | AI40: =IF(OFFSET(DE104_3!$AK$35,ROWS($AK$35:AK54)-1,COLUMNS($AK$35:AK54)-1)<>"",OFFSET(DE104_3!$AK$35,ROWS($AK$35:AK54)-1,COLUMNS($AK$35:AK54)-1),"") ->  | AJ40: =IF(OFFSET(DE104_3!$AL$35,ROWS($AL$35:AL54)-1,COLUMNS($AL$35:AL54)-1)<>"",OFFSET(DE104_3!$AL$35,ROWS($AL$35:AL54)-1,COLUMNS($AL$35:AL54)-1),"") ->  | AK40: =IF(OFFSET(DE104_3!$AM$35,ROWS($AM$35:AM54)-1,COLUMNS($AM$35:AM54)-1)<>"",OFFSET(DE104_3!$AM$35,ROWS($AM$35:AM54)-1,COLUMNS($AM$35:AM54)-1),"") ->  | AL40: =IF(OFFSET(DE104_3!$AN$35,ROWS($AN$35:AN54)-1,COLUMNS($AN$35:AN54)-1)<>"",OFFSET(DE104_3!$AN$35,ROWS($AN$35:AN54)-1,COLUMNS($AN$35:AN54)-1),"") ->  | AM40: =IF(OFFSET(DE104_3!$AO$35,ROWS($AO$35:AO54)-1,COLUMNS($AO$35:AO54)-1)<>"",OFFSET(DE104_3!$AO$35,ROWS($AO$35:AO54)-1,COLUMNS($AO$35:AO54)-1),"") ->  | AN40: =IF(OFFSET(DE104_3!$AP$35,ROWS($AP$35:AP54)-1,COLUMNS($AP$35:AP54)-1)<>"",OFFSET(DE104_3!$AP$35,ROWS($AP$35:AP54)-1,COLUMNS($AP$35:AP54)-1),"") ->  | AO40: =IF(OFFSET(DE104_3!$AQ$35,ROWS($AQ$35:AQ54)-1,COLUMNS($AQ$35:AQ54)-1)<>"",OFFSET(DE104_3!$AQ$35,ROWS($AQ$35:AQ54)-1,COLUMNS($AQ$35:AQ54)-1),"") -> 
A41: =IF(OFFSET(DE104_3!$C$35,ROWS($C$35:C55)-1,COLUMNS($C$35:C55)-1)<>"",OFFSET(DE104_3!$C$35,ROWS($C$35:C55)-1,COLUMNS($C$35:C55)-1),"") -> CULVERT, CONCRETE ROADWAY PIPE, 30 IN. DIA. | M41: =IF(OFFSET(DE104_3!$O$35,ROWS($O$35:O55)-1,COLUMNS($O$35:O55)-1)<>"",OFFSET(DE104_3!$O$35,ROWS($O$35:O55)-1,COLUMNS($O$35:O55)-1),"") -> 224 | O41: =IF(OFFSET(DE104_3!$Q$35,ROWS($Q$35:Q55)-1,COLUMNS($Q$35:Q55)-1)<>"",OFFSET(DE104_3!$Q$35,ROWS($Q$35:Q55)-1,COLUMNS($Q$35:Q55)-1),"") -> LF | P41: =IF(OFFSET(DE104_3!$R$35,ROWS($R$35:R55)-1,COLUMNS($R$35:R55)-1)<>"",OFFSET(DE104_3!$R$35,ROWS($R$35:R55)-1,COLUMNS($R$35:R55)-1),"") ->  | Q41: =IF(OFFSET(DE104_3!$S$35,ROWS($S$35:S55)-1,COLUMNS($S$35:S55)-1)<>"",OFFSET(DE104_3!$S$35,ROWS($S$35:S55)-1,COLUMNS($S$35:S55)-1),"") ->  | R41: =IF(OFFSET(DE104_3!$T$35,ROWS($T$35:T55)-1,COLUMNS($T$35:T55)-1)<>"",OFFSET(DE104_3!$T$35,ROWS($T$35:T55)-1,COLUMNS($T$35:T55)-1),"") ->  | S41: =IF(OFFSET(DE104_3!$U$35,ROWS($U$35:U55)-1,COLUMNS($U$35:U55)-1)<>"",OFFSET(DE104_3!$U$35,ROWS($U$35:U55)-1,COLUMNS($U$35:U55)-1),"") ->  | T41: =IF(OFFSET(DE104_3!$V$35,ROWS($V$35:V55)-1,COLUMNS($V$35:V55)-1)<>"",OFFSET(DE104_3!$V$35,ROWS($V$35:V55)-1,COLUMNS($V$35:V55)-1),"") ->  | U41: =IF(OFFSET(DE104_3!$W$35,ROWS($W$35:W55)-1,COLUMNS($W$35:W55)-1)<>"",OFFSET(DE104_3!$W$35,ROWS($W$35:W55)-1,COLUMNS($W$35:W55)-1),"") ->  | V41: =IF(OFFSET(DE104_3!$X$35,ROWS($X$35:X55)-1,COLUMNS($X$35:X55)-1)<>"",OFFSET(DE104_3!$X$35,ROWS($X$35:X55)-1,COLUMNS($X$35:X55)-1),"") ->  | W41: =IF(OFFSET(DE104_3!$Y$35,ROWS($Y$35:Y55)-1,COLUMNS($Y$35:Y55)-1)<>"",OFFSET(DE104_3!$Y$35,ROWS($Y$35:Y55)-1,COLUMNS($Y$35:Y55)-1),"") ->  | X41: =IF(OFFSET(DE104_3!$Z$35,ROWS($Z$35:Z55)-1,COLUMNS($Z$35:Z55)-1)<>"",OFFSET(DE104_3!$Z$35,ROWS($Z$35:Z55)-1,COLUMNS($Z$35:Z55)-1),"") ->  | Y41: =IF(OFFSET(DE104_3!$AA$35,ROWS($AA$35:AA55)-1,COLUMNS($AA$35:AA55)-1)<>"",OFFSET(DE104_3!$AA$35,ROWS($AA$35:AA55)-1,COLUMNS($AA$35:AA55)-1),"") ->  | Z41: =IF(OFFSET(DE104_3!$AB$35,ROWS($AB$35:AB55)-1,COLUMNS($AB$35:AB55)-1)<>"",OFFSET(DE104_3!$AB$35,ROWS($AB$35:AB55)-1,COLUMNS($AB$35:AB55)-1),"") ->  | AA41: =IF(OFFSET(DE104_3!$AC$35,ROWS($AC$35:AC55)-1,COLUMNS($AC$35:AC55)-1)<>"",OFFSET(DE104_3!$AC$35,ROWS($AC$35:AC55)-1,COLUMNS($AC$35:AC55)-1),"") ->  | AB41: =IF(OFFSET(DE104_3!$AD$35,ROWS($AD$35:AD55)-1,COLUMNS($AD$35:AD55)-1)<>"",OFFSET(DE104_3!$AD$35,ROWS($AD$35:AD55)-1,COLUMNS($AD$35:AD55)-1),"") ->  | AC41: =IF(OFFSET(DE104_3!$AE$35,ROWS($AE$35:AE55)-1,COLUMNS($AE$35:AE55)-1)<>"",OFFSET(DE104_3!$AE$35,ROWS($AE$35:AE55)-1,COLUMNS($AE$35:AE55)-1),"") ->  | AD41: =IF(OFFSET(DE104_3!$AF$35,ROWS($AF$35:AF55)-1,COLUMNS($AF$35:AF55)-1)<>"",OFFSET(DE104_3!$AF$35,ROWS($AF$35:AF55)-1,COLUMNS($AF$35:AF55)-1),"") ->  | AE41: =IF(OFFSET(DE104_3!$AG$35,ROWS($AG$35:AG55)-1,COLUMNS($AG$35:AG55)-1)<>"",OFFSET(DE104_3!$AG$35,ROWS($AG$35:AG55)-1,COLUMNS($AG$35:AG55)-1),"") ->  | AF41: =IF(OFFSET(DE104_3!$AH$35,ROWS($AH$35:AH55)-1,COLUMNS($AH$35:AH55)-1)<>"",OFFSET(DE104_3!$AH$35,ROWS($AH$35:AH55)-1,COLUMNS($AH$35:AH55)-1),"") ->  | AG41: =IF(OFFSET(DE104_3!$AI$35,ROWS($AI$35:AI55)-1,COLUMNS($AI$35:AI55)-1)<>"",OFFSET(DE104_3!$AI$35,ROWS($AI$35:AI55)-1,COLUMNS($AI$35:AI55)-1),"") ->  | AH41: =IF(OFFSET(DE104_3!$AJ$35,ROWS($AJ$35:AJ55)-1,COLUMNS($AJ$35:AJ55)-1)<>"",OFFSET(DE104_3!$AJ$35,ROWS($AJ$35:AJ55)-1,COLUMNS($AJ$35:AJ55)-1),"") ->  | AI41: =IF(OFFSET(DE104_3!$AK$35,ROWS($AK$35:AK55)-1,COLUMNS($AK$35:AK55)-1)<>"",OFFSET(DE104_3!$AK$35,ROWS($AK$35:AK55)-1,COLUMNS($AK$35:AK55)-1),"") ->  | AJ41: =IF(OFFSET(DE104_3!$AL$35,ROWS($AL$35:AL55)-1,COLUMNS($AL$35:AL55)-1)<>"",OFFSET(DE104_3!$AL$35,ROWS($AL$35:AL55)-1,COLUMNS($AL$35:AL55)-1),"") ->  | AK41: =IF(OFFSET(DE104_3!$AM$35,ROWS($AM$35:AM55)-1,COLUMNS($AM$35:AM55)-1)<>"",OFFSET(DE104_3!$AM$35,ROWS($AM$35:AM55)-1,COLUMNS($AM$35:AM55)-1),"") ->  | AL41: =IF(OFFSET(DE104_3!$AN$35,ROWS($AN$35:AN55)-1,COLUMNS($AN$35:AN55)-1)<>"",OFFSET(DE104_3!$AN$35,ROWS($AN$35:AN55)-1,COLUMNS($AN$35:AN55)-1),"") ->  | AM41: =IF(OFFSET(DE104_3!$AO$35,ROWS($AO$35:AO55)-1,COLUMNS($AO$35:AO55)-1)<>"",OFFSET(DE104_3!$AO$35,ROWS($AO$35:AO55)-1,COLUMNS($AO$35:AO55)-1),"") ->  | AN41: =IF(OFFSET(DE104_3!$AP$35,ROWS($AP$35:AP55)-1,COLUMNS($AP$35:AP55)-1)<>"",OFFSET(DE104_3!$AP$35,ROWS($AP$35:AP55)-1,COLUMNS($AP$35:AP55)-1),"") ->  | AO41: =IF(OFFSET(DE104_3!$AQ$35,ROWS($AQ$35:AQ55)-1,COLUMNS($AQ$35:AQ55)-1)<>"",OFFSET(DE104_3!$AQ$35,ROWS($AQ$35:AQ55)-1,COLUMNS($AQ$35:AQ55)-1),"") -> 
A42: =IF(OFFSET(DE104_3!$C$35,ROWS($C$35:C56)-1,COLUMNS($C$35:C56)-1)<>"",OFFSET(DE104_3!$C$35,ROWS($C$35:C56)-1,COLUMNS($C$35:C56)-1),"") -> CULVERT, CONCRETE ROADWAY PIPE, 48 IN. DIA. | M42: =IF(OFFSET(DE104_3!$O$35,ROWS($O$35:O56)-1,COLUMNS($O$35:O56)-1)<>"",OFFSET(DE104_3!$O$35,ROWS($O$35:O56)-1,COLUMNS($O$35:O56)-1),"") -> 168 | O42: =IF(OFFSET(DE104_3!$Q$35,ROWS($Q$35:Q56)-1,COLUMNS($Q$35:Q56)-1)<>"",OFFSET(DE104_3!$Q$35,ROWS($Q$35:Q56)-1,COLUMNS($Q$35:Q56)-1),"") -> LF | P42: =IF(OFFSET(DE104_3!$R$35,ROWS($R$35:R56)-1,COLUMNS($R$35:R56)-1)<>"",OFFSET(DE104_3!$R$35,ROWS($R$35:R56)-1,COLUMNS($R$35:R56)-1),"") ->  | Q42: =IF(OFFSET(DE104_3!$S$35,ROWS($S$35:S56)-1,COLUMNS($S$35:S56)-1)<>"",OFFSET(DE104_3!$S$35,ROWS($S$35:S56)-1,COLUMNS($S$35:S56)-1),"") ->  | R42: =IF(OFFSET(DE104_3!$T$35,ROWS($T$35:T56)-1,COLUMNS($T$35:T56)-1)<>"",OFFSET(DE104_3!$T$35,ROWS($T$35:T56)-1,COLUMNS($T$35:T56)-1),"") ->  | S42: =IF(OFFSET(DE104_3!$U$35,ROWS($U$35:U56)-1,COLUMNS($U$35:U56)-1)<>"",OFFSET(DE104_3!$U$35,ROWS($U$35:U56)-1,COLUMNS($U$35:U56)-1),"") ->  | T42: =IF(OFFSET(DE104_3!$V$35,ROWS($V$35:V56)-1,COLUMNS($V$35:V56)-1)<>"",OFFSET(DE104_3!$V$35,ROWS($V$35:V56)-1,COLUMNS($V$35:V56)-1),"") ->  | U42: =IF(OFFSET(DE104_3!$W$35,ROWS($W$35:W56)-1,COLUMNS($W$35:W56)-1)<>"",OFFSET(DE104_3!$W$35,ROWS($W$35:W56)-1,COLUMNS($W$35:W56)-1),"") ->  | V42: =IF(OFFSET(DE104_3!$X$35,ROWS($X$35:X56)-1,COLUMNS($X$35:X56)-1)<>"",OFFSET(DE104_3!$X$35,ROWS($X$35:X56)-1,COLUMNS($X$35:X56)-1),"") ->  | W42: =IF(OFFSET(DE104_3!$Y$35,ROWS($Y$35:Y56)-1,COLUMNS($Y$35:Y56)-1)<>"",OFFSET(DE104_3!$Y$35,ROWS($Y$35:Y56)-1,COLUMNS($Y$35:Y56)-1),"") ->  | X42: =IF(OFFSET(DE104_3!$Z$35,ROWS($Z$35:Z56)-1,COLUMNS($Z$35:Z56)-1)<>"",OFFSET(DE104_3!$Z$35,ROWS($Z$35:Z56)-1,COLUMNS($Z$35:Z56)-1),"") ->  | Y42: =IF(OFFSET(DE104_3!$AA$35,ROWS($AA$35:AA56)-1,COLUMNS($AA$35:AA56)-1)<>"",OFFSET(DE104_3!$AA$35,ROWS($AA$35:AA56)-1,COLUMNS($AA$35:AA56)-1),"") ->  | Z42: =IF(OFFSET(DE104_3!$AB$35,ROWS($AB$35:AB56)-1,COLUMNS($AB$35:AB56)-1)<>"",OFFSET(DE104_3!$AB$35,ROWS($AB$35:AB56)-1,COLUMNS($AB$35:AB56)-1),"") ->  | AA42: =IF(OFFSET(DE104_3!$AC$35,ROWS($AC$35:AC56)-1,COLUMNS($AC$35:AC56)-1)<>"",OFFSET(DE104_3!$AC$35,ROWS($AC$35:AC56)-1,COLUMNS($AC$35:AC56)-1),"") ->  | AB42: =IF(OFFSET(DE104_3!$AD$35,ROWS($AD$35:AD56)-1,COLUMNS($AD$35:AD56)-1)<>"",OFFSET(DE104_3!$AD$35,ROWS($AD$35:AD56)-1,COLUMNS($AD$35:AD56)-1),"") ->  | AC42: =IF(OFFSET(DE104_3!$AE$35,ROWS($AE$35:AE56)-1,COLUMNS($AE$35:AE56)-1)<>"",OFFSET(DE104_3!$AE$35,ROWS($AE$35:AE56)-1,COLUMNS($AE$35:AE56)-1),"") ->  | AD42: =IF(OFFSET(DE104_3!$AF$35,ROWS($AF$35:AF56)-1,COLUMNS($AF$35:AF56)-1)<>"",OFFSET(DE104_3!$AF$35,ROWS($AF$35:AF56)-1,COLUMNS($AF$35:AF56)-1),"") ->  | AE42: =IF(OFFSET(DE104_3!$AG$35,ROWS($AG$35:AG56)-1,COLUMNS($AG$35:AG56)-1)<>"",OFFSET(DE104_3!$AG$35,ROWS($AG$35:AG56)-1,COLUMNS($AG$35:AG56)-1),"") ->  | AF42: =IF(OFFSET(DE104_3!$AH$35,ROWS($AH$35:AH56)-1,COLUMNS($AH$35:AH56)-1)<>"",OFFSET(DE104_3!$AH$35,ROWS($AH$35:AH56)-1,COLUMNS($AH$35:AH56)-1),"") ->  | AG42: =IF(OFFSET(DE104_3!$AI$35,ROWS($AI$35:AI56)-1,COLUMNS($AI$35:AI56)-1)<>"",OFFSET(DE104_3!$AI$35,ROWS($AI$35:AI56)-1,COLUMNS($AI$35:AI56)-1),"") ->  | AH42: =IF(OFFSET(DE104_3!$AJ$35,ROWS($AJ$35:AJ56)-1,COLUMNS($AJ$35:AJ56)-1)<>"",OFFSET(DE104_3!$AJ$35,ROWS($AJ$35:AJ56)-1,COLUMNS($AJ$35:AJ56)-1),"") ->  | AI42: =IF(OFFSET(DE104_3!$AK$35,ROWS($AK$35:AK56)-1,COLUMNS($AK$35:AK56)-1)<>"",OFFSET(DE104_3!$AK$35,ROWS($AK$35:AK56)-1,COLUMNS($AK$35:AK56)-1),"") ->  | AJ42: =IF(OFFSET(DE104_3!$AL$35,ROWS($AL$35:AL56)-1,COLUMNS($AL$35:AL56)-1)<>"",OFFSET(DE104_3!$AL$35,ROWS($AL$35:AL56)-1,COLUMNS($AL$35:AL56)-1),"") ->  | AK42: =IF(OFFSET(DE104_3!$AM$35,ROWS($AM$35:AM56)-1,COLUMNS($AM$35:AM56)-1)<>"",OFFSET(DE104_3!$AM$35,ROWS($AM$35:AM56)-1,COLUMNS($AM$35:AM56)-1),"") ->  | AL42: =IF(OFFSET(DE104_3!$AN$35,ROWS($AN$35:AN56)-1,COLUMNS($AN$35:AN56)-1)<>"",OFFSET(DE104_3!$AN$35,ROWS($AN$35:AN56)-1,COLUMNS($AN$35:AN56)-1),"") ->  | AM42: =IF(OFFSET(DE104_3!$AO$35,ROWS($AO$35:AO56)-1,COLUMNS($AO$35:AO56)-1)<>"",OFFSET(DE104_3!$AO$35,ROWS($AO$35:AO56)-1,COLUMNS($AO$35:AO56)-1),"") ->  | AN42: =IF(OFFSET(DE104_3!$AP$35,ROWS($AP$35:AP56)-1,COLUMNS($AP$35:AP56)-1)<>"",OFFSET(DE104_3!$AP$35,ROWS($AP$35:AP56)-1,COLUMNS($AP$35:AP56)-1),"") ->  | AO42: =IF(OFFSET(DE104_3!$AQ$35,ROWS($AQ$35:AQ56)-1,COLUMNS($AQ$35:AQ56)-1)<>"",OFFSET(DE104_3!$AQ$35,ROWS($AQ$35:AQ56)-1,COLUMNS($AQ$35:AQ56)-1),"") -> 
A43: =IF(OFFSET(DE104_3!$C$35,ROWS($C$35:C57)-1,COLUMNS($C$35:C57)-1)<>"",OFFSET(DE104_3!$C$35,ROWS($C$35:C57)-1,COLUMNS($C$35:C57)-1),"") -> APRON, LOW CLEARANCE CONCRETE, EQUIVALENT DIAMETER 24 IN. | M43: =IF(OFFSET(DE104_3!$O$35,ROWS($O$35:O57)-1,COLUMNS($O$35:O57)-1)<>"",OFFSET(DE104_3!$O$35,ROWS($O$35:O57)-1,COLUMNS($O$35:O57)-1),"") -> 4 | O43: =IF(OFFSET(DE104_3!$Q$35,ROWS($Q$35:Q57)-1,COLUMNS($Q$35:Q57)-1)<>"",OFFSET(DE104_3!$Q$35,ROWS($Q$35:Q57)-1,COLUMNS($Q$35:Q57)-1),"") -> EACH | P43: =IF(OFFSET(DE104_3!$R$35,ROWS($R$35:R57)-1,COLUMNS($R$35:R57)-1)<>"",OFFSET(DE104_3!$R$35,ROWS($R$35:R57)-1,COLUMNS($R$35:R57)-1),"") ->  | Q43: =IF(OFFSET(DE104_3!$S$35,ROWS($S$35:S57)-1,COLUMNS($S$35:S57)-1)<>"",OFFSET(DE104_3!$S$35,ROWS($S$35:S57)-1,COLUMNS($S$35:S57)-1),"") ->  | R43: =IF(OFFSET(DE104_3!$T$35,ROWS($T$35:T57)-1,COLUMNS($T$35:T57)-1)<>"",OFFSET(DE104_3!$T$35,ROWS($T$35:T57)-1,COLUMNS($T$35:T57)-1),"") ->  | S43: =IF(OFFSET(DE104_3!$U$35,ROWS($U$35:U57)-1,COLUMNS($U$35:U57)-1)<>"",OFFSET(DE104_3!$U$35,ROWS($U$35:U57)-1,COLUMNS($U$35:U57)-1),"") ->  | T43: =IF(OFFSET(DE104_3!$V$35,ROWS($V$35:V57)-1,COLUMNS($V$35:V57)-1)<>"",OFFSET(DE104_3!$V$35,ROWS($V$35:V57)-1,COLUMNS($V$35:V57)-1),"") ->  | U43: =IF(OFFSET(DE104_3!$W$35,ROWS($W$35:W57)-1,COLUMNS($W$35:W57)-1)<>"",OFFSET(DE104_3!$W$35,ROWS($W$35:W57)-1,COLUMNS($W$35:W57)-1),"") ->  | V43: =IF(OFFSET(DE104_3!$X$35,ROWS($X$35:X57)-1,COLUMNS($X$35:X57)-1)<>"",OFFSET(DE104_3!$X$35,ROWS($X$35:X57)-1,COLUMNS($X$35:X57)-1),"") ->  | W43: =IF(OFFSET(DE104_3!$Y$35,ROWS($Y$35:Y57)-1,COLUMNS($Y$35:Y57)-1)<>"",OFFSET(DE104_3!$Y$35,ROWS($Y$35:Y57)-1,COLUMNS($Y$35:Y57)-1),"") ->  | X43: =IF(OFFSET(DE104_3!$Z$35,ROWS($Z$35:Z57)-1,COLUMNS($Z$35:Z57)-1)<>"",OFFSET(DE104_3!$Z$35,ROWS($Z$35:Z57)-1,COLUMNS($Z$35:Z57)-1),"") ->  | Y43: =IF(OFFSET(DE104_3!$AA$35,ROWS($AA$35:AA57)-1,COLUMNS($AA$35:AA57)-1)<>"",OFFSET(DE104_3!$AA$35,ROWS($AA$35:AA57)-1,COLUMNS($AA$35:AA57)-1),"") ->  | Z43: =IF(OFFSET(DE104_3!$AB$35,ROWS($AB$35:AB57)-1,COLUMNS($AB$35:AB57)-1)<>"",OFFSET(DE104_3!$AB$35,ROWS($AB$35:AB57)-1,COLUMNS($AB$35:AB57)-1),"") ->  | AA43: =IF(OFFSET(DE104_3!$AC$35,ROWS($AC$35:AC57)-1,COLUMNS($AC$35:AC57)-1)<>"",OFFSET(DE104_3!$AC$35,ROWS($AC$35:AC57)-1,COLUMNS($AC$35:AC57)-1),"") ->  | AB43: =IF(OFFSET(DE104_3!$AD$35,ROWS($AD$35:AD57)-1,COLUMNS($AD$35:AD57)-1)<>"",OFFSET(DE104_3!$AD$35,ROWS($AD$35:AD57)-1,COLUMNS($AD$35:AD57)-1),"") ->  | AC43: =IF(OFFSET(DE104_3!$AE$35,ROWS($AE$35:AE57)-1,COLUMNS($AE$35:AE57)-1)<>"",OFFSET(DE104_3!$AE$35,ROWS($AE$35:AE57)-1,COLUMNS($AE$35:AE57)-1),"") ->  | AD43: =IF(OFFSET(DE104_3!$AF$35,ROWS($AF$35:AF57)-1,COLUMNS($AF$35:AF57)-1)<>"",OFFSET(DE104_3!$AF$35,ROWS($AF$35:AF57)-1,COLUMNS($AF$35:AF57)-1),"") ->  | AE43: =IF(OFFSET(DE104_3!$AG$35,ROWS($AG$35:AG57)-1,COLUMNS($AG$35:AG57)-1)<>"",OFFSET(DE104_3!$AG$35,ROWS($AG$35:AG57)-1,COLUMNS($AG$35:AG57)-1),"") ->  | AF43: =IF(OFFSET(DE104_3!$AH$35,ROWS($AH$35:AH57)-1,COLUMNS($AH$35:AH57)-1)<>"",OFFSET(DE104_3!$AH$35,ROWS($AH$35:AH57)-1,COLUMNS($AH$35:AH57)-1),"") ->  | AG43: =IF(OFFSET(DE104_3!$AI$35,ROWS($AI$35:AI57)-1,COLUMNS($AI$35:AI57)-1)<>"",OFFSET(DE104_3!$AI$35,ROWS($AI$35:AI57)-1,COLUMNS($AI$35:AI57)-1),"") ->  | AH43: =IF(OFFSET(DE104_3!$AJ$35,ROWS($AJ$35:AJ57)-1,COLUMNS($AJ$35:AJ57)-1)<>"",OFFSET(DE104_3!$AJ$35,ROWS($AJ$35:AJ57)-1,COLUMNS($AJ$35:AJ57)-1),"") ->  | AI43: =IF(OFFSET(DE104_3!$AK$35,ROWS($AK$35:AK57)-1,COLUMNS($AK$35:AK57)-1)<>"",OFFSET(DE104_3!$AK$35,ROWS($AK$35:AK57)-1,COLUMNS($AK$35:AK57)-1),"") ->  | AJ43: =IF(OFFSET(DE104_3!$AL$35,ROWS($AL$35:AL57)-1,COLUMNS($AL$35:AL57)-1)<>"",OFFSET(DE104_3!$AL$35,ROWS($AL$35:AL57)-1,COLUMNS($AL$35:AL57)-1),"") ->  | AK43: =IF(OFFSET(DE104_3!$AM$35,ROWS($AM$35:AM57)-1,COLUMNS($AM$35:AM57)-1)<>"",OFFSET(DE104_3!$AM$35,ROWS($AM$35:AM57)-1,COLUMNS($AM$35:AM57)-1),"") ->  | AL43: =IF(OFFSET(DE104_3!$AN$35,ROWS($AN$35:AN57)-1,COLUMNS($AN$35:AN57)-1)<>"",OFFSET(DE104_3!$AN$35,ROWS($AN$35:AN57)-1,COLUMNS($AN$35:AN57)-1),"") ->  | AM43: =IF(OFFSET(DE104_3!$AO$35,ROWS($AO$35:AO57)-1,COLUMNS($AO$35:AO57)-1)<>"",OFFSET(DE104_3!$AO$35,ROWS($AO$35:AO57)-1,COLUMNS($AO$35:AO57)-1),"") ->  | AN43: =IF(OFFSET(DE104_3!$AP$35,ROWS($AP$35:AP57)-1,COLUMNS($AP$35:AP57)-1)<>"",OFFSET(DE104_3!$AP$35,ROWS($AP$35:AP57)-1,COLUMNS($AP$35:AP57)-1),"") ->  | AO43: =IF(OFFSET(DE104_3!$AQ$35,ROWS($AQ$35:AQ57)-1,COLUMNS($AQ$35:AQ57)-1)<>"",OFFSET(DE104_3!$AQ$35,ROWS($AQ$35:AQ57)-1,COLUMNS($AQ$35:AQ57)-1),"") -> 
A44: =IF(OFFSET(DE104_3!$C$35,ROWS($C$35:C58)-1,COLUMNS($C$35:C58)-1)<>"",OFFSET(DE104_3!$C$35,ROWS($C$35:C58)-1,COLUMNS($C$35:C58)-1),"") -> UNCLASSIFIED APRONS, 30 IN. ARCH | M44: =IF(OFFSET(DE104_3!$O$35,ROWS($O$35:O58)-1,COLUMNS($O$35:O58)-1)<>"",OFFSET(DE104_3!$O$35,ROWS($O$35:O58)-1,COLUMNS($O$35:O58)-1),"") -> 2 | O44: =IF(OFFSET(DE104_3!$Q$35,ROWS($Q$35:Q58)-1,COLUMNS($Q$35:Q58)-1)<>"",OFFSET(DE104_3!$Q$35,ROWS($Q$35:Q58)-1,COLUMNS($Q$35:Q58)-1),"") -> EACH | P44: =IF(OFFSET(DE104_3!$R$35,ROWS($R$35:R58)-1,COLUMNS($R$35:R58)-1)<>"",OFFSET(DE104_3!$R$35,ROWS($R$35:R58)-1,COLUMNS($R$35:R58)-1),"") ->  | Q44: =IF(OFFSET(DE104_3!$S$35,ROWS($S$35:S58)-1,COLUMNS($S$35:S58)-1)<>"",OFFSET(DE104_3!$S$35,ROWS($S$35:S58)-1,COLUMNS($S$35:S58)-1),"") ->  | R44: =IF(OFFSET(DE104_3!$T$35,ROWS($T$35:T58)-1,COLUMNS($T$35:T58)-1)<>"",OFFSET(DE104_3!$T$35,ROWS($T$35:T58)-1,COLUMNS($T$35:T58)-1),"") ->  | S44: =IF(OFFSET(DE104_3!$U$35,ROWS($U$35:U58)-1,COLUMNS($U$35:U58)-1)<>"",OFFSET(DE104_3!$U$35,ROWS($U$35:U58)-1,COLUMNS($U$35:U58)-1),"") ->  | T44: =IF(OFFSET(DE104_3!$V$35,ROWS($V$35:V58)-1,COLUMNS($V$35:V58)-1)<>"",OFFSET(DE104_3!$V$35,ROWS($V$35:V58)-1,COLUMNS($V$35:V58)-1),"") ->  | U44: =IF(OFFSET(DE104_3!$W$35,ROWS($W$35:W58)-1,COLUMNS($W$35:W58)-1)<>"",OFFSET(DE104_3!$W$35,ROWS($W$35:W58)-1,COLUMNS($W$35:W58)-1),"") ->  | V44: =IF(OFFSET(DE104_3!$X$35,ROWS($X$35:X58)-1,COLUMNS($X$35:X58)-1)<>"",OFFSET(DE104_3!$X$35,ROWS($X$35:X58)-1,COLUMNS($X$35:X58)-1),"") ->  | W44: =IF(OFFSET(DE104_3!$Y$35,ROWS($Y$35:Y58)-1,COLUMNS($Y$35:Y58)-1)<>"",OFFSET(DE104_3!$Y$35,ROWS($Y$35:Y58)-1,COLUMNS($Y$35:Y58)-1),"") ->  | X44: =IF(OFFSET(DE104_3!$Z$35,ROWS($Z$35:Z58)-1,COLUMNS($Z$35:Z58)-1)<>"",OFFSET(DE104_3!$Z$35,ROWS($Z$35:Z58)-1,COLUMNS($Z$35:Z58)-1),"") ->  | Y44: =IF(OFFSET(DE104_3!$AA$35,ROWS($AA$35:AA58)-1,COLUMNS($AA$35:AA58)-1)<>"",OFFSET(DE104_3!$AA$35,ROWS($AA$35:AA58)-1,COLUMNS($AA$35:AA58)-1),"") ->  | Z44: =IF(OFFSET(DE104_3!$AB$35,ROWS($AB$35:AB58)-1,COLUMNS($AB$35:AB58)-1)<>"",OFFSET(DE104_3!$AB$35,ROWS($AB$35:AB58)-1,COLUMNS($AB$35:AB58)-1),"") ->  | AA44: =IF(OFFSET(DE104_3!$AC$35,ROWS($AC$35:AC58)-1,COLUMNS($AC$35:AC58)-1)<>"",OFFSET(DE104_3!$AC$35,ROWS($AC$35:AC58)-1,COLUMNS($AC$35:AC58)-1),"") ->  | AB44: =IF(OFFSET(DE104_3!$AD$35,ROWS($AD$35:AD58)-1,COLUMNS($AD$35:AD58)-1)<>"",OFFSET(DE104_3!$AD$35,ROWS($AD$35:AD58)-1,COLUMNS($AD$35:AD58)-1),"") ->  | AC44: =IF(OFFSET(DE104_3!$AE$35,ROWS($AE$35:AE58)-1,COLUMNS($AE$35:AE58)-1)<>"",OFFSET(DE104_3!$AE$35,ROWS($AE$35:AE58)-1,COLUMNS($AE$35:AE58)-1),"") ->  | AD44: =IF(OFFSET(DE104_3!$AF$35,ROWS($AF$35:AF58)-1,COLUMNS($AF$35:AF58)-1)<>"",OFFSET(DE104_3!$AF$35,ROWS($AF$35:AF58)-1,COLUMNS($AF$35:AF58)-1),"") ->  | AE44: =IF(OFFSET(DE104_3!$AG$35,ROWS($AG$35:AG58)-1,COLUMNS($AG$35:AG58)-1)<>"",OFFSET(DE104_3!$AG$35,ROWS($AG$35:AG58)-1,COLUMNS($AG$35:AG58)-1),"") ->  | AF44: =IF(OFFSET(DE104_3!$AH$35,ROWS($AH$35:AH58)-1,COLUMNS($AH$35:AH58)-1)<>"",OFFSET(DE104_3!$AH$35,ROWS($AH$35:AH58)-1,COLUMNS($AH$35:AH58)-1),"") ->  | AG44: =IF(OFFSET(DE104_3!$AI$35,ROWS($AI$35:AI58)-1,COLUMNS($AI$35:AI58)-1)<>"",OFFSET(DE104_3!$AI$35,ROWS($AI$35:AI58)-1,COLUMNS($AI$35:AI58)-1),"") ->  | AH44: =IF(OFFSET(DE104_3!$AJ$35,ROWS($AJ$35:AJ58)-1,COLUMNS($AJ$35:AJ58)-1)<>"",OFFSET(DE104_3!$AJ$35,ROWS($AJ$35:AJ58)-1,COLUMNS($AJ$35:AJ58)-1),"") ->  | AI44: =IF(OFFSET(DE104_3!$AK$35,ROWS($AK$35:AK58)-1,COLUMNS($AK$35:AK58)-1)<>"",OFFSET(DE104_3!$AK$35,ROWS($AK$35:AK58)-1,COLUMNS($AK$35:AK58)-1),"") ->  | AJ44: =IF(OFFSET(DE104_3!$AL$35,ROWS($AL$35:AL58)-1,COLUMNS($AL$35:AL58)-1)<>"",OFFSET(DE104_3!$AL$35,ROWS($AL$35:AL58)-1,COLUMNS($AL$35:AL58)-1),"") ->  | AK44: =IF(OFFSET(DE104_3!$AM$35,ROWS($AM$35:AM58)-1,COLUMNS($AM$35:AM58)-1)<>"",OFFSET(DE104_3!$AM$35,ROWS($AM$35:AM58)-1,COLUMNS($AM$35:AM58)-1),"") ->  | AL44: =IF(OFFSET(DE104_3!$AN$35,ROWS($AN$35:AN58)-1,COLUMNS($AN$35:AN58)-1)<>"",OFFSET(DE104_3!$AN$35,ROWS($AN$35:AN58)-1,COLUMNS($AN$35:AN58)-1),"") ->  | AM44: =IF(OFFSET(DE104_3!$AO$35,ROWS($AO$35:AO58)-1,COLUMNS($AO$35:AO58)-1)<>"",OFFSET(DE104_3!$AO$35,ROWS($AO$35:AO58)-1,COLUMNS($AO$35:AO58)-1),"") ->  | AN44: =IF(OFFSET(DE104_3!$AP$35,ROWS($AP$35:AP58)-1,COLUMNS($AP$35:AP58)-1)<>"",OFFSET(DE104_3!$AP$35,ROWS($AP$35:AP58)-1,COLUMNS($AP$35:AP58)-1),"") ->  | AO44: =IF(OFFSET(DE104_3!$AQ$35,ROWS($AQ$35:AQ58)-1,COLUMNS($AQ$35:AQ58)-1)<>"",OFFSET(DE104_3!$AQ$35,ROWS($AQ$35:AQ58)-1,COLUMNS($AQ$35:AQ58)-1),"") -> 
A45: =IF(OFFSET(DE104_3!$C$35,ROWS($C$35:C59)-1,COLUMNS($C$35:C59)-1)<>"",OFFSET(DE104_3!$C$35,ROWS($C$35:C59)-1,COLUMNS($C$35:C59)-1),"") -> APRONS, CONCRETE, 30 IN. DIA. | M45: =IF(OFFSET(DE104_3!$O$35,ROWS($O$35:O59)-1,COLUMNS($O$35:O59)-1)<>"",OFFSET(DE104_3!$O$35,ROWS($O$35:O59)-1,COLUMNS($O$35:O59)-1),"") -> 2 | O45: =IF(OFFSET(DE104_3!$Q$35,ROWS($Q$35:Q59)-1,COLUMNS($Q$35:Q59)-1)<>"",OFFSET(DE104_3!$Q$35,ROWS($Q$35:Q59)-1,COLUMNS($Q$35:Q59)-1),"") -> EACH | P45: =IF(OFFSET(DE104_3!$R$35,ROWS($R$35:R59)-1,COLUMNS($R$35:R59)-1)<>"",OFFSET(DE104_3!$R$35,ROWS($R$35:R59)-1,COLUMNS($R$35:R59)-1),"") ->  | Q45: =IF(OFFSET(DE104_3!$S$35,ROWS($S$35:S59)-1,COLUMNS($S$35:S59)-1)<>"",OFFSET(DE104_3!$S$35,ROWS($S$35:S59)-1,COLUMNS($S$35:S59)-1),"") ->  | R45: =IF(OFFSET(DE104_3!$T$35,ROWS($T$35:T59)-1,COLUMNS($T$35:T59)-1)<>"",OFFSET(DE104_3!$T$35,ROWS($T$35:T59)-1,COLUMNS($T$35:T59)-1),"") ->  | S45: =IF(OFFSET(DE104_3!$U$35,ROWS($U$35:U59)-1,COLUMNS($U$35:U59)-1)<>"",OFFSET(DE104_3!$U$35,ROWS($U$35:U59)-1,COLUMNS($U$35:U59)-1),"") ->  | T45: =IF(OFFSET(DE104_3!$V$35,ROWS($V$35:V59)-1,COLUMNS($V$35:V59)-1)<>"",OFFSET(DE104_3!$V$35,ROWS($V$35:V59)-1,COLUMNS($V$35:V59)-1),"") ->  | U45: =IF(OFFSET(DE104_3!$W$35,ROWS($W$35:W59)-1,COLUMNS($W$35:W59)-1)<>"",OFFSET(DE104_3!$W$35,ROWS($W$35:W59)-1,COLUMNS($W$35:W59)-1),"") ->  | V45: =IF(OFFSET(DE104_3!$X$35,ROWS($X$35:X59)-1,COLUMNS($X$35:X59)-1)<>"",OFFSET(DE104_3!$X$35,ROWS($X$35:X59)-1,COLUMNS($X$35:X59)-1),"") ->  | W45: =IF(OFFSET(DE104_3!$Y$35,ROWS($Y$35:Y59)-1,COLUMNS($Y$35:Y59)-1)<>"",OFFSET(DE104_3!$Y$35,ROWS($Y$35:Y59)-1,COLUMNS($Y$35:Y59)-1),"") ->  | X45: =IF(OFFSET(DE104_3!$Z$35,ROWS($Z$35:Z59)-1,COLUMNS($Z$35:Z59)-1)<>"",OFFSET(DE104_3!$Z$35,ROWS($Z$35:Z59)-1,COLUMNS($Z$35:Z59)-1),"") ->  | Y45: =IF(OFFSET(DE104_3!$AA$35,ROWS($AA$35:AA59)-1,COLUMNS($AA$35:AA59)-1)<>"",OFFSET(DE104_3!$AA$35,ROWS($AA$35:AA59)-1,COLUMNS($AA$35:AA59)-1),"") ->  | Z45: =IF(OFFSET(DE104_3!$AB$35,ROWS($AB$35:AB59)-1,COLUMNS($AB$35:AB59)-1)<>"",OFFSET(DE104_3!$AB$35,ROWS($AB$35:AB59)-1,COLUMNS($AB$35:AB59)-1),"") ->  | AA45: =IF(OFFSET(DE104_3!$AC$35,ROWS($AC$35:AC59)-1,COLUMNS($AC$35:AC59)-1)<>"",OFFSET(DE104_3!$AC$35,ROWS($AC$35:AC59)-1,COLUMNS($AC$35:AC59)-1),"") ->  | AB45: =IF(OFFSET(DE104_3!$AD$35,ROWS($AD$35:AD59)-1,COLUMNS($AD$35:AD59)-1)<>"",OFFSET(DE104_3!$AD$35,ROWS($AD$35:AD59)-1,COLUMNS($AD$35:AD59)-1),"") ->  | AC45: =IF(OFFSET(DE104_3!$AE$35,ROWS($AE$35:AE59)-1,COLUMNS($AE$35:AE59)-1)<>"",OFFSET(DE104_3!$AE$35,ROWS($AE$35:AE59)-1,COLUMNS($AE$35:AE59)-1),"") ->  | AD45: =IF(OFFSET(DE104_3!$AF$35,ROWS($AF$35:AF59)-1,COLUMNS($AF$35:AF59)-1)<>"",OFFSET(DE104_3!$AF$35,ROWS($AF$35:AF59)-1,COLUMNS($AF$35:AF59)-1),"") ->  | AE45: =IF(OFFSET(DE104_3!$AG$35,ROWS($AG$35:AG59)-1,COLUMNS($AG$35:AG59)-1)<>"",OFFSET(DE104_3!$AG$35,ROWS($AG$35:AG59)-1,COLUMNS($AG$35:AG59)-1),"") ->  | AF45: =IF(OFFSET(DE104_3!$AH$35,ROWS($AH$35:AH59)-1,COLUMNS($AH$35:AH59)-1)<>"",OFFSET(DE104_3!$AH$35,ROWS($AH$35:AH59)-1,COLUMNS($AH$35:AH59)-1),"") ->  | AG45: =IF(OFFSET(DE104_3!$AI$35,ROWS($AI$35:AI59)-1,COLUMNS($AI$35:AI59)-1)<>"",OFFSET(DE104_3!$AI$35,ROWS($AI$35:AI59)-1,COLUMNS($AI$35:AI59)-1),"") ->  | AH45: =IF(OFFSET(DE104_3!$AJ$35,ROWS($AJ$35:AJ59)-1,COLUMNS($AJ$35:AJ59)-1)<>"",OFFSET(DE104_3!$AJ$35,ROWS($AJ$35:AJ59)-1,COLUMNS($AJ$35:AJ59)-1),"") ->  | AI45: =IF(OFFSET(DE104_3!$AK$35,ROWS($AK$35:AK59)-1,COLUMNS($AK$35:AK59)-1)<>"",OFFSET(DE104_3!$AK$35,ROWS($AK$35:AK59)-1,COLUMNS($AK$35:AK59)-1),"") ->  | AJ45: =IF(OFFSET(DE104_3!$AL$35,ROWS($AL$35:AL59)-1,COLUMNS($AL$35:AL59)-1)<>"",OFFSET(DE104_3!$AL$35,ROWS($AL$35:AL59)-1,COLUMNS($AL$35:AL59)-1),"") ->  | AK45: =IF(OFFSET(DE104_3!$AM$35,ROWS($AM$35:AM59)-1,COLUMNS($AM$35:AM59)-1)<>"",OFFSET(DE104_3!$AM$35,ROWS($AM$35:AM59)-1,COLUMNS($AM$35:AM59)-1),"") ->  | AL45: =IF(OFFSET(DE104_3!$AN$35,ROWS($AN$35:AN59)-1,COLUMNS($AN$35:AN59)-1)<>"",OFFSET(DE104_3!$AN$35,ROWS($AN$35:AN59)-1,COLUMNS($AN$35:AN59)-1),"") ->  | AM45: =IF(OFFSET(DE104_3!$AO$35,ROWS($AO$35:AO59)-1,COLUMNS($AO$35:AO59)-1)<>"",OFFSET(DE104_3!$AO$35,ROWS($AO$35:AO59)-1,COLUMNS($AO$35:AO59)-1),"") ->  | AN45: =IF(OFFSET(DE104_3!$AP$35,ROWS($AP$35:AP59)-1,COLUMNS($AP$35:AP59)-1)<>"",OFFSET(DE104_3!$AP$35,ROWS($AP$35:AP59)-1,COLUMNS($AP$35:AP59)-1),"") ->  | AO45: =IF(OFFSET(DE104_3!$AQ$35,ROWS($AQ$35:AQ59)-1,COLUMNS($AQ$35:AQ59)-1)<>"",OFFSET(DE104_3!$AQ$35,ROWS($AQ$35:AQ59)-1,COLUMNS($AQ$35:AQ59)-1),"") -> 
A46: =IF(OFFSET(DE104_3!$C$35,ROWS($C$35:C60)-1,COLUMNS($C$35:C60)-1)<>"",OFFSET(DE104_3!$C$35,ROWS($C$35:C60)-1,COLUMNS($C$35:C60)-1),"") -> APRONS, CONCRETE, 48 IN. DIA. | M46: =IF(OFFSET(DE104_3!$O$35,ROWS($O$35:O60)-1,COLUMNS($O$35:O60)-1)<>"",OFFSET(DE104_3!$O$35,ROWS($O$35:O60)-1,COLUMNS($O$35:O60)-1),"") -> 2 | O46: =IF(OFFSET(DE104_3!$Q$35,ROWS($Q$35:Q60)-1,COLUMNS($Q$35:Q60)-1)<>"",OFFSET(DE104_3!$Q$35,ROWS($Q$35:Q60)-1,COLUMNS($Q$35:Q60)-1),"") -> EACH | P46: =IF(OFFSET(DE104_3!$R$35,ROWS($R$35:R60)-1,COLUMNS($R$35:R60)-1)<>"",OFFSET(DE104_3!$R$35,ROWS($R$35:R60)-1,COLUMNS($R$35:R60)-1),"") ->  | Q46: =IF(OFFSET(DE104_3!$S$35,ROWS($S$35:S60)-1,COLUMNS($S$35:S60)-1)<>"",OFFSET(DE104_3!$S$35,ROWS($S$35:S60)-1,COLUMNS($S$35:S60)-1),"") ->  | R46: =IF(OFFSET(DE104_3!$T$35,ROWS($T$35:T60)-1,COLUMNS($T$35:T60)-1)<>"",OFFSET(DE104_3!$T$35,ROWS($T$35:T60)-1,COLUMNS($T$35:T60)-1),"") ->  | S46: =IF(OFFSET(DE104_3!$U$35,ROWS($U$35:U60)-1,COLUMNS($U$35:U60)-1)<>"",OFFSET(DE104_3!$U$35,ROWS($U$35:U60)-1,COLUMNS($U$35:U60)-1),"") ->  | T46: =IF(OFFSET(DE104_3!$V$35,ROWS($V$35:V60)-1,COLUMNS($V$35:V60)-1)<>"",OFFSET(DE104_3!$V$35,ROWS($V$35:V60)-1,COLUMNS($V$35:V60)-1),"") ->  | U46: =IF(OFFSET(DE104_3!$W$35,ROWS($W$35:W60)-1,COLUMNS($W$35:W60)-1)<>"",OFFSET(DE104_3!$W$35,ROWS($W$35:W60)-1,COLUMNS($W$35:W60)-1),"") ->  | V46: =IF(OFFSET(DE104_3!$X$35,ROWS($X$35:X60)-1,COLUMNS($X$35:X60)-1)<>"",OFFSET(DE104_3!$X$35,ROWS($X$35:X60)-1,COLUMNS($X$35:X60)-1),"") ->  | W46: =IF(OFFSET(DE104_3!$Y$35,ROWS($Y$35:Y60)-1,COLUMNS($Y$35:Y60)-1)<>"",OFFSET(DE104_3!$Y$35,ROWS($Y$35:Y60)-1,COLUMNS($Y$35:Y60)-1),"") ->  | X46: =IF(OFFSET(DE104_3!$Z$35,ROWS($Z$35:Z60)-1,COLUMNS($Z$35:Z60)-1)<>"",OFFSET(DE104_3!$Z$35,ROWS($Z$35:Z60)-1,COLUMNS($Z$35:Z60)-1),"") ->  | Y46: =IF(OFFSET(DE104_3!$AA$35,ROWS($AA$35:AA60)-1,COLUMNS($AA$35:AA60)-1)<>"",OFFSET(DE104_3!$AA$35,ROWS($AA$35:AA60)-1,COLUMNS($AA$35:AA60)-1),"") ->  | Z46: =IF(OFFSET(DE104_3!$AB$35,ROWS($AB$35:AB60)-1,COLUMNS($AB$35:AB60)-1)<>"",OFFSET(DE104_3!$AB$35,ROWS($AB$35:AB60)-1,COLUMNS($AB$35:AB60)-1),"") ->  | AA46: =IF(OFFSET(DE104_3!$AC$35,ROWS($AC$35:AC60)-1,COLUMNS($AC$35:AC60)-1)<>"",OFFSET(DE104_3!$AC$35,ROWS($AC$35:AC60)-1,COLUMNS($AC$35:AC60)-1),"") ->  | AB46: =IF(OFFSET(DE104_3!$AD$35,ROWS($AD$35:AD60)-1,COLUMNS($AD$35:AD60)-1)<>"",OFFSET(DE104_3!$AD$35,ROWS($AD$35:AD60)-1,COLUMNS($AD$35:AD60)-1),"") ->  | AC46: =IF(OFFSET(DE104_3!$AE$35,ROWS($AE$35:AE60)-1,COLUMNS($AE$35:AE60)-1)<>"",OFFSET(DE104_3!$AE$35,ROWS($AE$35:AE60)-1,COLUMNS($AE$35:AE60)-1),"") ->  | AD46: =IF(OFFSET(DE104_3!$AF$35,ROWS($AF$35:AF60)-1,COLUMNS($AF$35:AF60)-1)<>"",OFFSET(DE104_3!$AF$35,ROWS($AF$35:AF60)-1,COLUMNS($AF$35:AF60)-1),"") ->  | AE46: =IF(OFFSET(DE104_3!$AG$35,ROWS($AG$35:AG60)-1,COLUMNS($AG$35:AG60)-1)<>"",OFFSET(DE104_3!$AG$35,ROWS($AG$35:AG60)-1,COLUMNS($AG$35:AG60)-1),"") ->  | AF46: =IF(OFFSET(DE104_3!$AH$35,ROWS($AH$35:AH60)-1,COLUMNS($AH$35:AH60)-1)<>"",OFFSET(DE104_3!$AH$35,ROWS($AH$35:AH60)-1,COLUMNS($AH$35:AH60)-1),"") ->  | AG46: =IF(OFFSET(DE104_3!$AI$35,ROWS($AI$35:AI60)-1,COLUMNS($AI$35:AI60)-1)<>"",OFFSET(DE104_3!$AI$35,ROWS($AI$35:AI60)-1,COLUMNS($AI$35:AI60)-1),"") ->  | AH46: =IF(OFFSET(DE104_3!$AJ$35,ROWS($AJ$35:AJ60)-1,COLUMNS($AJ$35:AJ60)-1)<>"",OFFSET(DE104_3!$AJ$35,ROWS($AJ$35:AJ60)-1,COLUMNS($AJ$35:AJ60)-1),"") ->  | AI46: =IF(OFFSET(DE104_3!$AK$35,ROWS($AK$35:AK60)-1,COLUMNS($AK$35:AK60)-1)<>"",OFFSET(DE104_3!$AK$35,ROWS($AK$35:AK60)-1,COLUMNS($AK$35:AK60)-1),"") ->  | AJ46: =IF(OFFSET(DE104_3!$AL$35,ROWS($AL$35:AL60)-1,COLUMNS($AL$35:AL60)-1)<>"",OFFSET(DE104_3!$AL$35,ROWS($AL$35:AL60)-1,COLUMNS($AL$35:AL60)-1),"") ->  | AK46: =IF(OFFSET(DE104_3!$AM$35,ROWS($AM$35:AM60)-1,COLUMNS($AM$35:AM60)-1)<>"",OFFSET(DE104_3!$AM$35,ROWS($AM$35:AM60)-1,COLUMNS($AM$35:AM60)-1),"") ->  | AL46: =IF(OFFSET(DE104_3!$AN$35,ROWS($AN$35:AN60)-1,COLUMNS($AN$35:AN60)-1)<>"",OFFSET(DE104_3!$AN$35,ROWS($AN$35:AN60)-1,COLUMNS($AN$35:AN60)-1),"") ->  | AM46: =IF(OFFSET(DE104_3!$AO$35,ROWS($AO$35:AO60)-1,COLUMNS($AO$35:AO60)-1)<>"",OFFSET(DE104_3!$AO$35,ROWS($AO$35:AO60)-1,COLUMNS($AO$35:AO60)-1),"") ->  | AN46: =IF(OFFSET(DE104_3!$AP$35,ROWS($AP$35:AP60)-1,COLUMNS($AP$35:AP60)-1)<>"",OFFSET(DE104_3!$AP$35,ROWS($AP$35:AP60)-1,COLUMNS($AP$35:AP60)-1),"") ->  | AO46: =IF(OFFSET(DE104_3!$AQ$35,ROWS($AQ$35:AQ60)-1,COLUMNS($AQ$35:AQ60)-1)<>"",OFFSET(DE104_3!$AQ$35,ROWS($AQ$35:AQ60)-1,COLUMNS($AQ$35:AQ60)-1),"") -> 
A47: =IF(OFFSET(DE104_3!$C$35,ROWS($C$35:C61)-1,COLUMNS($C$35:C61)-1)<>"",OFFSET(DE104_3!$C$35,ROWS($C$35:C61)-1,COLUMNS($C$35:C61)-1),"") -> EXCAVATION, CLASS 20, FOR ROADWAY PIPE CULVERT | M47: =IF(OFFSET(DE104_3!$O$35,ROWS($O$35:O61)-1,COLUMNS($O$35:O61)-1)<>"",OFFSET(DE104_3!$O$35,ROWS($O$35:O61)-1,COLUMNS($O$35:O61)-1),"") -> 3781.729711 | O47: =IF(OFFSET(DE104_3!$Q$35,ROWS($Q$35:Q61)-1,COLUMNS($Q$35:Q61)-1)<>"",OFFSET(DE104_3!$Q$35,ROWS($Q$35:Q61)-1,COLUMNS($Q$35:Q61)-1),"") -> CY | P47: =IF(OFFSET(DE104_3!$R$35,ROWS($R$35:R61)-1,COLUMNS($R$35:R61)-1)<>"",OFFSET(DE104_3!$R$35,ROWS($R$35:R61)-1,COLUMNS($R$35:R61)-1),"") ->  | Q47: =IF(OFFSET(DE104_3!$S$35,ROWS($S$35:S61)-1,COLUMNS($S$35:S61)-1)<>"",OFFSET(DE104_3!$S$35,ROWS($S$35:S61)-1,COLUMNS($S$35:S61)-1),"") ->  | R47: =IF(OFFSET(DE104_3!$T$35,ROWS($T$35:T61)-1,COLUMNS($T$35:T61)-1)<>"",OFFSET(DE104_3!$T$35,ROWS($T$35:T61)-1,COLUMNS($T$35:T61)-1),"") ->  | S47: =IF(OFFSET(DE104_3!$U$35,ROWS($U$35:U61)-1,COLUMNS($U$35:U61)-1)<>"",OFFSET(DE104_3!$U$35,ROWS($U$35:U61)-1,COLUMNS($U$35:U61)-1),"") ->  | T47: =IF(OFFSET(DE104_3!$V$35,ROWS($V$35:V61)-1,COLUMNS($V$35:V61)-1)<>"",OFFSET(DE104_3!$V$35,ROWS($V$35:V61)-1,COLUMNS($V$35:V61)-1),"") ->  | U47: =IF(OFFSET(DE104_3!$W$35,ROWS($W$35:W61)-1,COLUMNS($W$35:W61)-1)<>"",OFFSET(DE104_3!$W$35,ROWS($W$35:W61)-1,COLUMNS($W$35:W61)-1),"") ->  | V47: =IF(OFFSET(DE104_3!$X$35,ROWS($X$35:X61)-1,COLUMNS($X$35:X61)-1)<>"",OFFSET(DE104_3!$X$35,ROWS($X$35:X61)-1,COLUMNS($X$35:X61)-1),"") ->  | W47: =IF(OFFSET(DE104_3!$Y$35,ROWS($Y$35:Y61)-1,COLUMNS($Y$35:Y61)-1)<>"",OFFSET(DE104_3!$Y$35,ROWS($Y$35:Y61)-1,COLUMNS($Y$35:Y61)-1),"") ->  | X47: =IF(OFFSET(DE104_3!$Z$35,ROWS($Z$35:Z61)-1,COLUMNS($Z$35:Z61)-1)<>"",OFFSET(DE104_3!$Z$35,ROWS($Z$35:Z61)-1,COLUMNS($Z$35:Z61)-1),"") ->  | Y47: =IF(OFFSET(DE104_3!$AA$35,ROWS($AA$35:AA61)-1,COLUMNS($AA$35:AA61)-1)<>"",OFFSET(DE104_3!$AA$35,ROWS($AA$35:AA61)-1,COLUMNS($AA$35:AA61)-1),"") ->  | Z47: =IF(OFFSET(DE104_3!$AB$35,ROWS($AB$35:AB61)-1,COLUMNS($AB$35:AB61)-1)<>"",OFFSET(DE104_3!$AB$35,ROWS($AB$35:AB61)-1,COLUMNS($AB$35:AB61)-1),"") ->  | AA47: =IF(OFFSET(DE104_3!$AC$35,ROWS($AC$35:AC61)-1,COLUMNS($AC$35:AC61)-1)<>"",OFFSET(DE104_3!$AC$35,ROWS($AC$35:AC61)-1,COLUMNS($AC$35:AC61)-1),"") ->  | AB47: =IF(OFFSET(DE104_3!$AD$35,ROWS($AD$35:AD61)-1,COLUMNS($AD$35:AD61)-1)<>"",OFFSET(DE104_3!$AD$35,ROWS($AD$35:AD61)-1,COLUMNS($AD$35:AD61)-1),"") ->  | AC47: =IF(OFFSET(DE104_3!$AE$35,ROWS($AE$35:AE61)-1,COLUMNS($AE$35:AE61)-1)<>"",OFFSET(DE104_3!$AE$35,ROWS($AE$35:AE61)-1,COLUMNS($AE$35:AE61)-1),"") ->  | AD47: =IF(OFFSET(DE104_3!$AF$35,ROWS($AF$35:AF61)-1,COLUMNS($AF$35:AF61)-1)<>"",OFFSET(DE104_3!$AF$35,ROWS($AF$35:AF61)-1,COLUMNS($AF$35:AF61)-1),"") ->  | AE47: =IF(OFFSET(DE104_3!$AG$35,ROWS($AG$35:AG61)-1,COLUMNS($AG$35:AG61)-1)<>"",OFFSET(DE104_3!$AG$35,ROWS($AG$35:AG61)-1,COLUMNS($AG$35:AG61)-1),"") ->  | AF47: =IF(OFFSET(DE104_3!$AH$35,ROWS($AH$35:AH61)-1,COLUMNS($AH$35:AH61)-1)<>"",OFFSET(DE104_3!$AH$35,ROWS($AH$35:AH61)-1,COLUMNS($AH$35:AH61)-1),"") ->  | AG47: =IF(OFFSET(DE104_3!$AI$35,ROWS($AI$35:AI61)-1,COLUMNS($AI$35:AI61)-1)<>"",OFFSET(DE104_3!$AI$35,ROWS($AI$35:AI61)-1,COLUMNS($AI$35:AI61)-1),"") ->  | AH47: =IF(OFFSET(DE104_3!$AJ$35,ROWS($AJ$35:AJ61)-1,COLUMNS($AJ$35:AJ61)-1)<>"",OFFSET(DE104_3!$AJ$35,ROWS($AJ$35:AJ61)-1,COLUMNS($AJ$35:AJ61)-1),"") ->  | AI47: =IF(OFFSET(DE104_3!$AK$35,ROWS($AK$35:AK61)-1,COLUMNS($AK$35:AK61)-1)<>"",OFFSET(DE104_3!$AK$35,ROWS($AK$35:AK61)-1,COLUMNS($AK$35:AK61)-1),"") ->  | AJ47: =IF(OFFSET(DE104_3!$AL$35,ROWS($AL$35:AL61)-1,COLUMNS($AL$35:AL61)-1)<>"",OFFSET(DE104_3!$AL$35,ROWS($AL$35:AL61)-1,COLUMNS($AL$35:AL61)-1),"") ->  | AK47: =IF(OFFSET(DE104_3!$AM$35,ROWS($AM$35:AM61)-1,COLUMNS($AM$35:AM61)-1)<>"",OFFSET(DE104_3!$AM$35,ROWS($AM$35:AM61)-1,COLUMNS($AM$35:AM61)-1),"") ->  | AL47: =IF(OFFSET(DE104_3!$AN$35,ROWS($AN$35:AN61)-1,COLUMNS($AN$35:AN61)-1)<>"",OFFSET(DE104_3!$AN$35,ROWS($AN$35:AN61)-1,COLUMNS($AN$35:AN61)-1),"") ->  | AM47: =IF(OFFSET(DE104_3!$AO$35,ROWS($AO$35:AO61)-1,COLUMNS($AO$35:AO61)-1)<>"",OFFSET(DE104_3!$AO$35,ROWS($AO$35:AO61)-1,COLUMNS($AO$35:AO61)-1),"") ->  | AN47: =IF(OFFSET(DE104_3!$AP$35,ROWS($AP$35:AP61)-1,COLUMNS($AP$35:AP61)-1)<>"",OFFSET(DE104_3!$AP$35,ROWS($AP$35:AP61)-1,COLUMNS($AP$35:AP61)-1),"") ->  | AO47: =IF(OFFSET(DE104_3!$AQ$35,ROWS($AQ$35:AQ61)-1,COLUMNS($AQ$35:AQ61)-1)<>"",OFFSET(DE104_3!$AQ$35,ROWS($AQ$35:AQ61)-1,COLUMNS($AQ$35:AQ61)-1),"") -> 
A48: =IF(OFFSET(DE104_3!$C$35,ROWS($C$35:C62)-1,COLUMNS($C$35:C62)-1)<>"",OFFSET(DE104_3!$C$35,ROWS($C$35:C62)-1,COLUMNS($C$35:C62)-1),"") -> FLOWABLE MORTAR | M48: =IF(OFFSET(DE104_3!$O$35,ROWS($O$35:O62)-1,COLUMNS($O$35:O62)-1)<>"",OFFSET(DE104_3!$O$35,ROWS($O$35:O62)-1,COLUMNS($O$35:O62)-1),"") -> 10.19142222 | O48: =IF(OFFSET(DE104_3!$Q$35,ROWS($Q$35:Q62)-1,COLUMNS($Q$35:Q62)-1)<>"",OFFSET(DE104_3!$Q$35,ROWS($Q$35:Q62)-1,COLUMNS($Q$35:Q62)-1),"") -> CY | P48: =IF(OFFSET(DE104_3!$R$35,ROWS($R$35:R62)-1,COLUMNS($R$35:R62)-1)<>"",OFFSET(DE104_3!$R$35,ROWS($R$35:R62)-1,COLUMNS($R$35:R62)-1),"") ->  | Q48: =IF(OFFSET(DE104_3!$S$35,ROWS($S$35:S62)-1,COLUMNS($S$35:S62)-1)<>"",OFFSET(DE104_3!$S$35,ROWS($S$35:S62)-1,COLUMNS($S$35:S62)-1),"") ->  | R48: =IF(OFFSET(DE104_3!$T$35,ROWS($T$35:T62)-1,COLUMNS($T$35:T62)-1)<>"",OFFSET(DE104_3!$T$35,ROWS($T$35:T62)-1,COLUMNS($T$35:T62)-1),"") ->  | S48: =IF(OFFSET(DE104_3!$U$35,ROWS($U$35:U62)-1,COLUMNS($U$35:U62)-1)<>"",OFFSET(DE104_3!$U$35,ROWS($U$35:U62)-1,COLUMNS($U$35:U62)-1),"") ->  | T48: =IF(OFFSET(DE104_3!$V$35,ROWS($V$35:V62)-1,COLUMNS($V$35:V62)-1)<>"",OFFSET(DE104_3!$V$35,ROWS($V$35:V62)-1,COLUMNS($V$35:V62)-1),"") ->  | U48: =IF(OFFSET(DE104_3!$W$35,ROWS($W$35:W62)-1,COLUMNS($W$35:W62)-1)<>"",OFFSET(DE104_3!$W$35,ROWS($W$35:W62)-1,COLUMNS($W$35:W62)-1),"") ->  | V48: =IF(OFFSET(DE104_3!$X$35,ROWS($X$35:X62)-1,COLUMNS($X$35:X62)-1)<>"",OFFSET(DE104_3!$X$35,ROWS($X$35:X62)-1,COLUMNS($X$35:X62)-1),"") ->  | W48: =IF(OFFSET(DE104_3!$Y$35,ROWS($Y$35:Y62)-1,COLUMNS($Y$35:Y62)-1)<>"",OFFSET(DE104_3!$Y$35,ROWS($Y$35:Y62)-1,COLUMNS($Y$35:Y62)-1),"") ->  | X48: =IF(OFFSET(DE104_3!$Z$35,ROWS($Z$35:Z62)-1,COLUMNS($Z$35:Z62)-1)<>"",OFFSET(DE104_3!$Z$35,ROWS($Z$35:Z62)-1,COLUMNS($Z$35:Z62)-1),"") ->  | Y48: =IF(OFFSET(DE104_3!$AA$35,ROWS($AA$35:AA62)-1,COLUMNS($AA$35:AA62)-1)<>"",OFFSET(DE104_3!$AA$35,ROWS($AA$35:AA62)-1,COLUMNS($AA$35:AA62)-1),"") ->  | Z48: =IF(OFFSET(DE104_3!$AB$35,ROWS($AB$35:AB62)-1,COLUMNS($AB$35:AB62)-1)<>"",OFFSET(DE104_3!$AB$35,ROWS($AB$35:AB62)-1,COLUMNS($AB$35:AB62)-1),"") ->  | AA48: =IF(OFFSET(DE104_3!$AC$35,ROWS($AC$35:AC62)-1,COLUMNS($AC$35:AC62)-1)<>"",OFFSET(DE104_3!$AC$35,ROWS($AC$35:AC62)-1,COLUMNS($AC$35:AC62)-1),"") ->  | AB48: =IF(OFFSET(DE104_3!$AD$35,ROWS($AD$35:AD62)-1,COLUMNS($AD$35:AD62)-1)<>"",OFFSET(DE104_3!$AD$35,ROWS($AD$35:AD62)-1,COLUMNS($AD$35:AD62)-1),"") ->  | AC48: =IF(OFFSET(DE104_3!$AE$35,ROWS($AE$35:AE62)-1,COLUMNS($AE$35:AE62)-1)<>"",OFFSET(DE104_3!$AE$35,ROWS($AE$35:AE62)-1,COLUMNS($AE$35:AE62)-1),"") ->  | AD48: =IF(OFFSET(DE104_3!$AF$35,ROWS($AF$35:AF62)-1,COLUMNS($AF$35:AF62)-1)<>"",OFFSET(DE104_3!$AF$35,ROWS($AF$35:AF62)-1,COLUMNS($AF$35:AF62)-1),"") ->  | AE48: =IF(OFFSET(DE104_3!$AG$35,ROWS($AG$35:AG62)-1,COLUMNS($AG$35:AG62)-1)<>"",OFFSET(DE104_3!$AG$35,ROWS($AG$35:AG62)-1,COLUMNS($AG$35:AG62)-1),"") ->  | AF48: =IF(OFFSET(DE104_3!$AH$35,ROWS($AH$35:AH62)-1,COLUMNS($AH$35:AH62)-1)<>"",OFFSET(DE104_3!$AH$35,ROWS($AH$35:AH62)-1,COLUMNS($AH$35:AH62)-1),"") ->  | AG48: =IF(OFFSET(DE104_3!$AI$35,ROWS($AI$35:AI62)-1,COLUMNS($AI$35:AI62)-1)<>"",OFFSET(DE104_3!$AI$35,ROWS($AI$35:AI62)-1,COLUMNS($AI$35:AI62)-1),"") ->  | AH48: =IF(OFFSET(DE104_3!$AJ$35,ROWS($AJ$35:AJ62)-1,COLUMNS($AJ$35:AJ62)-1)<>"",OFFSET(DE104_3!$AJ$35,ROWS($AJ$35:AJ62)-1,COLUMNS($AJ$35:AJ62)-1),"") ->  | AI48: =IF(OFFSET(DE104_3!$AK$35,ROWS($AK$35:AK62)-1,COLUMNS($AK$35:AK62)-1)<>"",OFFSET(DE104_3!$AK$35,ROWS($AK$35:AK62)-1,COLUMNS($AK$35:AK62)-1),"") ->  | AJ48: =IF(OFFSET(DE104_3!$AL$35,ROWS($AL$35:AL62)-1,COLUMNS($AL$35:AL62)-1)<>"",OFFSET(DE104_3!$AL$35,ROWS($AL$35:AL62)-1,COLUMNS($AL$35:AL62)-1),"") ->  | AK48: =IF(OFFSET(DE104_3!$AM$35,ROWS($AM$35:AM62)-1,COLUMNS($AM$35:AM62)-1)<>"",OFFSET(DE104_3!$AM$35,ROWS($AM$35:AM62)-1,COLUMNS($AM$35:AM62)-1),"") ->  | AL48: =IF(OFFSET(DE104_3!$AN$35,ROWS($AN$35:AN62)-1,COLUMNS($AN$35:AN62)-1)<>"",OFFSET(DE104_3!$AN$35,ROWS($AN$35:AN62)-1,COLUMNS($AN$35:AN62)-1),"") ->  | AM48: =IF(OFFSET(DE104_3!$AO$35,ROWS($AO$35:AO62)-1,COLUMNS($AO$35:AO62)-1)<>"",OFFSET(DE104_3!$AO$35,ROWS($AO$35:AO62)-1,COLUMNS($AO$35:AO62)-1),"") ->  | AN48: =IF(OFFSET(DE104_3!$AP$35,ROWS($AP$35:AP62)-1,COLUMNS($AP$35:AP62)-1)<>"",OFFSET(DE104_3!$AP$35,ROWS($AP$35:AP62)-1,COLUMNS($AP$35:AP62)-1),"") ->  | AO48: =IF(OFFSET(DE104_3!$AQ$35,ROWS($AQ$35:AQ62)-1,COLUMNS($AQ$35:AQ62)-1)<>"",OFFSET(DE104_3!$AQ$35,ROWS($AQ$35:AQ62)-1,COLUMNS($AQ$35:AQ62)-1),"") -> 
A49: =IF(OFFSET(DE104_3!$C$35,ROWS($C$35:C63)-1,COLUMNS($C$35:C63)-1)<>"",OFFSET(DE104_3!$C$35,ROWS($C$35:C63)-1,COLUMNS($C$35:C63)-1),"") -> FLOODED BACKFILL | M49: =IF(OFFSET(DE104_3!$O$35,ROWS($O$35:O63)-1,COLUMNS($O$35:O63)-1)<>"",OFFSET(DE104_3!$O$35,ROWS($O$35:O63)-1,COLUMNS($O$35:O63)-1),"") -> 3604.535778 | O49: =IF(OFFSET(DE104_3!$Q$35,ROWS($Q$35:Q63)-1,COLUMNS($Q$35:Q63)-1)<>"",OFFSET(DE104_3!$Q$35,ROWS($Q$35:Q63)-1,COLUMNS($Q$35:Q63)-1),"") -> CY | P49: =IF(OFFSET(DE104_3!$R$35,ROWS($R$35:R63)-1,COLUMNS($R$35:R63)-1)<>"",OFFSET(DE104_3!$R$35,ROWS($R$35:R63)-1,COLUMNS($R$35:R63)-1),"") ->  | Q49: =IF(OFFSET(DE104_3!$S$35,ROWS($S$35:S63)-1,COLUMNS($S$35:S63)-1)<>"",OFFSET(DE104_3!$S$35,ROWS($S$35:S63)-1,COLUMNS($S$35:S63)-1),"") ->  | R49: =IF(OFFSET(DE104_3!$T$35,ROWS($T$35:T63)-1,COLUMNS($T$35:T63)-1)<>"",OFFSET(DE104_3!$T$35,ROWS($T$35:T63)-1,COLUMNS($T$35:T63)-1),"") ->  | S49: =IF(OFFSET(DE104_3!$U$35,ROWS($U$35:U63)-1,COLUMNS($U$35:U63)-1)<>"",OFFSET(DE104_3!$U$35,ROWS($U$35:U63)-1,COLUMNS($U$35:U63)-1),"") ->  | T49: =IF(OFFSET(DE104_3!$V$35,ROWS($V$35:V63)-1,COLUMNS($V$35:V63)-1)<>"",OFFSET(DE104_3!$V$35,ROWS($V$35:V63)-1,COLUMNS($V$35:V63)-1),"") ->  | U49: =IF(OFFSET(DE104_3!$W$35,ROWS($W$35:W63)-1,COLUMNS($W$35:W63)-1)<>"",OFFSET(DE104_3!$W$35,ROWS($W$35:W63)-1,COLUMNS($W$35:W63)-1),"") ->  | V49: =IF(OFFSET(DE104_3!$X$35,ROWS($X$35:X63)-1,COLUMNS($X$35:X63)-1)<>"",OFFSET(DE104_3!$X$35,ROWS($X$35:X63)-1,COLUMNS($X$35:X63)-1),"") ->  | W49: =IF(OFFSET(DE104_3!$Y$35,ROWS($Y$35:Y63)-1,COLUMNS($Y$35:Y63)-1)<>"",OFFSET(DE104_3!$Y$35,ROWS($Y$35:Y63)-1,COLUMNS($Y$35:Y63)-1),"") ->  | X49: =IF(OFFSET(DE104_3!$Z$35,ROWS($Z$35:Z63)-1,COLUMNS($Z$35:Z63)-1)<>"",OFFSET(DE104_3!$Z$35,ROWS($Z$35:Z63)-1,COLUMNS($Z$35:Z63)-1),"") ->  | Y49: =IF(OFFSET(DE104_3!$AA$35,ROWS($AA$35:AA63)-1,COLUMNS($AA$35:AA63)-1)<>"",OFFSET(DE104_3!$AA$35,ROWS($AA$35:AA63)-1,COLUMNS($AA$35:AA63)-1),"") ->  | Z49: =IF(OFFSET(DE104_3!$AB$35,ROWS($AB$35:AB63)-1,COLUMNS($AB$35:AB63)-1)<>"",OFFSET(DE104_3!$AB$35,ROWS($AB$35:AB63)-1,COLUMNS($AB$35:AB63)-1),"") ->  | AA49: =IF(OFFSET(DE104_3!$AC$35,ROWS($AC$35:AC63)-1,COLUMNS($AC$35:AC63)-1)<>"",OFFSET(DE104_3!$AC$35,ROWS($AC$35:AC63)-1,COLUMNS($AC$35:AC63)-1),"") ->  | AB49: =IF(OFFSET(DE104_3!$AD$35,ROWS($AD$35:AD63)-1,COLUMNS($AD$35:AD63)-1)<>"",OFFSET(DE104_3!$AD$35,ROWS($AD$35:AD63)-1,COLUMNS($AD$35:AD63)-1),"") ->  | AC49: =IF(OFFSET(DE104_3!$AE$35,ROWS($AE$35:AE63)-1,COLUMNS($AE$35:AE63)-1)<>"",OFFSET(DE104_3!$AE$35,ROWS($AE$35:AE63)-1,COLUMNS($AE$35:AE63)-1),"") ->  | AD49: =IF(OFFSET(DE104_3!$AF$35,ROWS($AF$35:AF63)-1,COLUMNS($AF$35:AF63)-1)<>"",OFFSET(DE104_3!$AF$35,ROWS($AF$35:AF63)-1,COLUMNS($AF$35:AF63)-1),"") ->  | AE49: =IF(OFFSET(DE104_3!$AG$35,ROWS($AG$35:AG63)-1,COLUMNS($AG$35:AG63)-1)<>"",OFFSET(DE104_3!$AG$35,ROWS($AG$35:AG63)-1,COLUMNS($AG$35:AG63)-1),"") ->  | AF49: =IF(OFFSET(DE104_3!$AH$35,ROWS($AH$35:AH63)-1,COLUMNS($AH$35:AH63)-1)<>"",OFFSET(DE104_3!$AH$35,ROWS($AH$35:AH63)-1,COLUMNS($AH$35:AH63)-1),"") ->  | AG49: =IF(OFFSET(DE104_3!$AI$35,ROWS($AI$35:AI63)-1,COLUMNS($AI$35:AI63)-1)<>"",OFFSET(DE104_3!$AI$35,ROWS($AI$35:AI63)-1,COLUMNS($AI$35:AI63)-1),"") ->  | AH49: =IF(OFFSET(DE104_3!$AJ$35,ROWS($AJ$35:AJ63)-1,COLUMNS($AJ$35:AJ63)-1)<>"",OFFSET(DE104_3!$AJ$35,ROWS($AJ$35:AJ63)-1,COLUMNS($AJ$35:AJ63)-1),"") ->  | AI49: =IF(OFFSET(DE104_3!$AK$35,ROWS($AK$35:AK63)-1,COLUMNS($AK$35:AK63)-1)<>"",OFFSET(DE104_3!$AK$35,ROWS($AK$35:AK63)-1,COLUMNS($AK$35:AK63)-1),"") ->  | AJ49: =IF(OFFSET(DE104_3!$AL$35,ROWS($AL$35:AL63)-1,COLUMNS($AL$35:AL63)-1)<>"",OFFSET(DE104_3!$AL$35,ROWS($AL$35:AL63)-1,COLUMNS($AL$35:AL63)-1),"") ->  | AK49: =IF(OFFSET(DE104_3!$AM$35,ROWS($AM$35:AM63)-1,COLUMNS($AM$35:AM63)-1)<>"",OFFSET(DE104_3!$AM$35,ROWS($AM$35:AM63)-1,COLUMNS($AM$35:AM63)-1),"") ->  | AL49: =IF(OFFSET(DE104_3!$AN$35,ROWS($AN$35:AN63)-1,COLUMNS($AN$35:AN63)-1)<>"",OFFSET(DE104_3!$AN$35,ROWS($AN$35:AN63)-1,COLUMNS($AN$35:AN63)-1),"") ->  | AM49: =IF(OFFSET(DE104_3!$AO$35,ROWS($AO$35:AO63)-1,COLUMNS($AO$35:AO63)-1)<>"",OFFSET(DE104_3!$AO$35,ROWS($AO$35:AO63)-1,COLUMNS($AO$35:AO63)-1),"") ->  | AN49: =IF(OFFSET(DE104_3!$AP$35,ROWS($AP$35:AP63)-1,COLUMNS($AP$35:AP63)-1)<>"",OFFSET(DE104_3!$AP$35,ROWS($AP$35:AP63)-1,COLUMNS($AP$35:AP63)-1),"") ->  | AO49: =IF(OFFSET(DE104_3!$AQ$35,ROWS($AQ$35:AQ63)-1,COLUMNS($AQ$35:AQ63)-1)<>"",OFFSET(DE104_3!$AQ$35,ROWS($AQ$35:AQ63)-1,COLUMNS($AQ$35:AQ63)-1),"") -> 
A50: =IF(OFFSET(DE104_3!$C$35,ROWS($C$35:C64)-1,COLUMNS($C$35:C64)-1)<>"",OFFSET(DE104_3!$C$35,ROWS($C$35:C64)-1,COLUMNS($C$35:C64)-1),"") ->  | B50: =IF(OFFSET(DE104_3!$D$35,ROWS($D$35:D64)-1,COLUMNS($D$35:D64)-1)<>"",OFFSET(DE104_3!$D$35,ROWS($D$35:D64)-1,COLUMNS($D$35:D64)-1),"") ->  | C50: =IF(OFFSET(DE104_3!$E$35,ROWS($E$35:E64)-1,COLUMNS($E$35:E64)-1)<>"",OFFSET(DE104_3!$E$35,ROWS($E$35:E64)-1,COLUMNS($E$35:E64)-1),"") ->  | D50: =IF(OFFSET(DE104_3!$F$35,ROWS($F$35:F64)-1,COLUMNS($F$35:F64)-1)<>"",OFFSET(DE104_3!$F$35,ROWS($F$35:F64)-1,COLUMNS($F$35:F64)-1),"") ->  | E50: =IF(OFFSET(DE104_3!$G$35,ROWS($G$35:G64)-1,COLUMNS($G$35:G64)-1)<>"",OFFSET(DE104_3!$G$35,ROWS($G$35:G64)-1,COLUMNS($G$35:G64)-1),"") ->  | F50: =IF(OFFSET(DE104_3!$H$35,ROWS($H$35:H64)-1,COLUMNS($H$35:H64)-1)<>"",OFFSET(DE104_3!$H$35,ROWS($H$35:H64)-1,COLUMNS($H$35:H64)-1),"") ->  | G50: =IF(OFFSET(DE104_3!$I$35,ROWS($I$35:I64)-1,COLUMNS($I$35:I64)-1)<>"",OFFSET(DE104_3!$I$35,ROWS($I$35:I64)-1,COLUMNS($I$35:I64)-1),"") ->  | H50: =IF(OFFSET(DE104_3!$J$35,ROWS($J$35:J64)-1,COLUMNS($J$35:J64)-1)<>"",OFFSET(DE104_3!$J$35,ROWS($J$35:J64)-1,COLUMNS($J$35:J64)-1),"") ->  | I50: =IF(OFFSET(DE104_3!$K$35,ROWS($K$35:K64)-1,COLUMNS($K$35:K64)-1)<>"",OFFSET(DE104_3!$K$35,ROWS($K$35:K64)-1,COLUMNS($K$35:K64)-1),"") ->  | J50: =IF(OFFSET(DE104_3!$L$35,ROWS($L$35:L64)-1,COLUMNS($L$35:L64)-1)<>"",OFFSET(DE104_3!$L$35,ROWS($L$35:L64)-1,COLUMNS($L$35:L64)-1),"") ->  | K50: =IF(OFFSET(DE104_3!$M$35,ROWS($M$35:M64)-1,COLUMNS($M$35:M64)-1)<>"",OFFSET(DE104_3!$M$35,ROWS($M$35:M64)-1,COLUMNS($M$35:M64)-1),"") ->  | L50: =IF(OFFSET(DE104_3!$N$35,ROWS($N$35:N64)-1,COLUMNS($N$35:N64)-1)<>"",OFFSET(DE104_3!$N$35,ROWS($N$35:N64)-1,COLUMNS($N$35:N64)-1),"") ->  | M50: =IF(OFFSET(DE104_3!$O$35,ROWS($O$35:O64)-1,COLUMNS($O$35:O64)-1)<>"",OFFSET(DE104_3!$O$35,ROWS($O$35:O64)-1,COLUMNS($O$35:O64)-1),"") ->  | N50: =IF(OFFSET(DE104_3!$P$35,ROWS($P$35:P64)-1,COLUMNS($P$35:P64)-1)<>"",OFFSET(DE104_3!$P$35,ROWS($P$35:P64)-1,COLUMNS($P$35:P64)-1),"") ->  | O50: =IF(OFFSET(DE104_3!$Q$35,ROWS($Q$35:Q64)-1,COLUMNS($Q$35:Q64)-1)<>"",OFFSET(DE104_3!$Q$35,ROWS($Q$35:Q64)-1,COLUMNS($Q$35:Q64)-1),"") ->  | P50: =IF(OFFSET(DE104_3!$R$35,ROWS($R$35:R64)-1,COLUMNS($R$35:R64)-1)<>"",OFFSET(DE104_3!$R$35,ROWS($R$35:R64)-1,COLUMNS($R$35:R64)-1),"") ->  | Q50: =IF(OFFSET(DE104_3!$S$35,ROWS($S$35:S64)-1,COLUMNS($S$35:S64)-1)<>"",OFFSET(DE104_3!$S$35,ROWS($S$35:S64)-1,COLUMNS($S$35:S64)-1),"") ->  | R50: =IF(OFFSET(DE104_3!$T$35,ROWS($T$35:T64)-1,COLUMNS($T$35:T64)-1)<>"",OFFSET(DE104_3!$T$35,ROWS($T$35:T64)-1,COLUMNS($T$35:T64)-1),"") ->  | S50: =IF(OFFSET(DE104_3!$U$35,ROWS($U$35:U64)-1,COLUMNS($U$35:U64)-1)<>"",OFFSET(DE104_3!$U$35,ROWS($U$35:U64)-1,COLUMNS($U$35:U64)-1),"") ->  | T50: =IF(OFFSET(DE104_3!$V$35,ROWS($V$35:V64)-1,COLUMNS($V$35:V64)-1)<>"",OFFSET(DE104_3!$V$35,ROWS($V$35:V64)-1,COLUMNS($V$35:V64)-1),"") ->  | U50: =IF(OFFSET(DE104_3!$W$35,ROWS($W$35:W64)-1,COLUMNS($W$35:W64)-1)<>"",OFFSET(DE104_3!$W$35,ROWS($W$35:W64)-1,COLUMNS($W$35:W64)-1),"") ->  | V50: =IF(OFFSET(DE104_3!$X$35,ROWS($X$35:X64)-1,COLUMNS($X$35:X64)-1)<>"",OFFSET(DE104_3!$X$35,ROWS($X$35:X64)-1,COLUMNS($X$35:X64)-1),"") ->  | W50: =IF(OFFSET(DE104_3!$Y$35,ROWS($Y$35:Y64)-1,COLUMNS($Y$35:Y64)-1)<>"",OFFSET(DE104_3!$Y$35,ROWS($Y$35:Y64)-1,COLUMNS($Y$35:Y64)-1),"") ->  | X50: =IF(OFFSET(DE104_3!$Z$35,ROWS($Z$35:Z64)-1,COLUMNS($Z$35:Z64)-1)<>"",OFFSET(DE104_3!$Z$35,ROWS($Z$35:Z64)-1,COLUMNS($Z$35:Z64)-1),"") ->  | Y50: =IF(OFFSET(DE104_3!$AA$35,ROWS($AA$35:AA64)-1,COLUMNS($AA$35:AA64)-1)<>"",OFFSET(DE104_3!$AA$35,ROWS($AA$35:AA64)-1,COLUMNS($AA$35:AA64)-1),"") ->  | Z50: =IF(OFFSET(DE104_3!$AB$35,ROWS($AB$35:AB64)-1,COLUMNS($AB$35:AB64)-1)<>"",OFFSET(DE104_3!$AB$35,ROWS($AB$35:AB64)-1,COLUMNS($AB$35:AB64)-1),"") ->  | AA50: =IF(OFFSET(DE104_3!$AC$35,ROWS($AC$35:AC64)-1,COLUMNS($AC$35:AC64)-1)<>"",OFFSET(DE104_3!$AC$35,ROWS($AC$35:AC64)-1,COLUMNS($AC$35:AC64)-1),"") ->  | AB50: =IF(OFFSET(DE104_3!$AD$35,ROWS($AD$35:AD64)-1,COLUMNS($AD$35:AD64)-1)<>"",OFFSET(DE104_3!$AD$35,ROWS($AD$35:AD64)-1,COLUMNS($AD$35:AD64)-1),"") ->  | AC50: =IF(OFFSET(DE104_3!$AE$35,ROWS($AE$35:AE64)-1,COLUMNS($AE$35:AE64)-1)<>"",OFFSET(DE104_3!$AE$35,ROWS($AE$35:AE64)-1,COLUMNS($AE$35:AE64)-1),"") ->  | AD50: =IF(OFFSET(DE104_3!$AF$35,ROWS($AF$35:AF64)-1,COLUMNS($AF$35:AF64)-1)<>"",OFFSET(DE104_3!$AF$35,ROWS($AF$35:AF64)-1,COLUMNS($AF$35:AF64)-1),"") ->  | AE50: =IF(OFFSET(DE104_3!$AG$35,ROWS($AG$35:AG64)-1,COLUMNS($AG$35:AG64)-1)<>"",OFFSET(DE104_3!$AG$35,ROWS($AG$35:AG64)-1,COLUMNS($AG$35:AG64)-1),"") ->  | AF50: =IF(OFFSET(DE104_3!$AH$35,ROWS($AH$35:AH64)-1,COLUMNS($AH$35:AH64)-1)<>"",OFFSET(DE104_3!$AH$35,ROWS($AH$35:AH64)-1,COLUMNS($AH$35:AH64)-1),"") ->  | AG50: =IF(OFFSET(DE104_3!$AI$35,ROWS($AI$35:AI64)-1,COLUMNS($AI$35:AI64)-1)<>"",OFFSET(DE104_3!$AI$35,ROWS($AI$35:AI64)-1,COLUMNS($AI$35:AI64)-1),"") ->  | AH50: =IF(OFFSET(DE104_3!$AJ$35,ROWS($AJ$35:AJ64)-1,COLUMNS($AJ$35:AJ64)-1)<>"",OFFSET(DE104_3!$AJ$35,ROWS($AJ$35:AJ64)-1,COLUMNS($AJ$35:AJ64)-1),"") ->  | AI50: =IF(OFFSET(DE104_3!$AK$35,ROWS($AK$35:AK64)-1,COLUMNS($AK$35:AK64)-1)<>"",OFFSET(DE104_3!$AK$35,ROWS($AK$35:AK64)-1,COLUMNS($AK$35:AK64)-1),"") ->  | AJ50: =IF(OFFSET(DE104_3!$AL$35,ROWS($AL$35:AL64)-1,COLUMNS($AL$35:AL64)-1)<>"",OFFSET(DE104_3!$AL$35,ROWS($AL$35:AL64)-1,COLUMNS($AL$35:AL64)-1),"") ->  | AK50: =IF(OFFSET(DE104_3!$AM$35,ROWS($AM$35:AM64)-1,COLUMNS($AM$35:AM64)-1)<>"",OFFSET(DE104_3!$AM$35,ROWS($AM$35:AM64)-1,COLUMNS($AM$35:AM64)-1),"") ->  | AL50: =IF(OFFSET(DE104_3!$AN$35,ROWS($AN$35:AN64)-1,COLUMNS($AN$35:AN64)-1)<>"",OFFSET(DE104_3!$AN$35,ROWS($AN$35:AN64)-1,COLUMNS($AN$35:AN64)-1),"") ->  | AM50: =IF(OFFSET(DE104_3!$AO$35,ROWS($AO$35:AO64)-1,COLUMNS($AO$35:AO64)-1)<>"",OFFSET(DE104_3!$AO$35,ROWS($AO$35:AO64)-1,COLUMNS($AO$35:AO64)-1),"") ->  | AN50: =IF(OFFSET(DE104_3!$AP$35,ROWS($AP$35:AP64)-1,COLUMNS($AP$35:AP64)-1)<>"",OFFSET(DE104_3!$AP$35,ROWS($AP$35:AP64)-1,COLUMNS($AP$35:AP64)-1),"") ->  | AO50: =IF(OFFSET(DE104_3!$AQ$35,ROWS($AQ$35:AQ64)-1,COLUMNS($AQ$35:AQ64)-1)<>"",OFFSET(DE104_3!$AQ$35,ROWS($AQ$35:AQ64)-1,COLUMNS($AQ$35:AQ64)-1),"") -> 
A51: =IF(OFFSET(DE104_3!$C$35,ROWS($C$35:C65)-1,COLUMNS($C$35:C65)-1)<>"",OFFSET(DE104_3!$C$35,ROWS($C$35:C65)-1,COLUMNS($C$35:C65)-1),"") ->  | B51: =IF(OFFSET(DE104_3!$D$35,ROWS($D$35:D65)-1,COLUMNS($D$35:D65)-1)<>"",OFFSET(DE104_3!$D$35,ROWS($D$35:D65)-1,COLUMNS($D$35:D65)-1),"") ->  | C51: =IF(OFFSET(DE104_3!$E$35,ROWS($E$35:E65)-1,COLUMNS($E$35:E65)-1)<>"",OFFSET(DE104_3!$E$35,ROWS($E$35:E65)-1,COLUMNS($E$35:E65)-1),"") ->  | D51: =IF(OFFSET(DE104_3!$F$35,ROWS($F$35:F65)-1,COLUMNS($F$35:F65)-1)<>"",OFFSET(DE104_3!$F$35,ROWS($F$35:F65)-1,COLUMNS($F$35:F65)-1),"") ->  | E51: =IF(OFFSET(DE104_3!$G$35,ROWS($G$35:G65)-1,COLUMNS($G$35:G65)-1)<>"",OFFSET(DE104_3!$G$35,ROWS($G$35:G65)-1,COLUMNS($G$35:G65)-1),"") ->  | F51: =IF(OFFSET(DE104_3!$H$35,ROWS($H$35:H65)-1,COLUMNS($H$35:H65)-1)<>"",OFFSET(DE104_3!$H$35,ROWS($H$35:H65)-1,COLUMNS($H$35:H65)-1),"") ->  | G51: =IF(OFFSET(DE104_3!$I$35,ROWS($I$35:I65)-1,COLUMNS($I$35:I65)-1)<>"",OFFSET(DE104_3!$I$35,ROWS($I$35:I65)-1,COLUMNS($I$35:I65)-1),"") ->  | H51: =IF(OFFSET(DE104_3!$J$35,ROWS($J$35:J65)-1,COLUMNS($J$35:J65)-1)<>"",OFFSET(DE104_3!$J$35,ROWS($J$35:J65)-1,COLUMNS($J$35:J65)-1),"") ->  | I51: =IF(OFFSET(DE104_3!$K$35,ROWS($K$35:K65)-1,COLUMNS($K$35:K65)-1)<>"",OFFSET(DE104_3!$K$35,ROWS($K$35:K65)-1,COLUMNS($K$35:K65)-1),"") ->  | J51: =IF(OFFSET(DE104_3!$L$35,ROWS($L$35:L65)-1,COLUMNS($L$35:L65)-1)<>"",OFFSET(DE104_3!$L$35,ROWS($L$35:L65)-1,COLUMNS($L$35:L65)-1),"") ->  | K51: =IF(OFFSET(DE104_3!$M$35,ROWS($M$35:M65)-1,COLUMNS($M$35:M65)-1)<>"",OFFSET(DE104_3!$M$35,ROWS($M$35:M65)-1,COLUMNS($M$35:M65)-1),"") ->  | L51: =IF(OFFSET(DE104_3!$N$35,ROWS($N$35:N65)-1,COLUMNS($N$35:N65)-1)<>"",OFFSET(DE104_3!$N$35,ROWS($N$35:N65)-1,COLUMNS($N$35:N65)-1),"") ->  | M51: =IF(OFFSET(DE104_3!$O$35,ROWS($O$35:O65)-1,COLUMNS($O$35:O65)-1)<>"",OFFSET(DE104_3!$O$35,ROWS($O$35:O65)-1,COLUMNS($O$35:O65)-1),"") ->  | N51: =IF(OFFSET(DE104_3!$P$35,ROWS($P$35:P65)-1,COLUMNS($P$35:P65)-1)<>"",OFFSET(DE104_3!$P$35,ROWS($P$35:P65)-1,COLUMNS($P$35:P65)-1),"") ->  | O51: =IF(OFFSET(DE104_3!$Q$35,ROWS($Q$35:Q65)-1,COLUMNS($Q$35:Q65)-1)<>"",OFFSET(DE104_3!$Q$35,ROWS($Q$35:Q65)-1,COLUMNS($Q$35:Q65)-1),"") ->  | P51: =IF(OFFSET(DE104_3!$R$35,ROWS($R$35:R65)-1,COLUMNS($R$35:R65)-1)<>"",OFFSET(DE104_3!$R$35,ROWS($R$35:R65)-1,COLUMNS($R$35:R65)-1),"") ->  | Q51: =IF(OFFSET(DE104_3!$S$35,ROWS($S$35:S65)-1,COLUMNS($S$35:S65)-1)<>"",OFFSET(DE104_3!$S$35,ROWS($S$35:S65)-1,COLUMNS($S$35:S65)-1),"") ->  | R51: =IF(OFFSET(DE104_3!$T$35,ROWS($T$35:T65)-1,COLUMNS($T$35:T65)-1)<>"",OFFSET(DE104_3!$T$35,ROWS($T$35:T65)-1,COLUMNS($T$35:T65)-1),"") ->  | S51: =IF(OFFSET(DE104_3!$U$35,ROWS($U$35:U65)-1,COLUMNS($U$35:U65)-1)<>"",OFFSET(DE104_3!$U$35,ROWS($U$35:U65)-1,COLUMNS($U$35:U65)-1),"") ->  | T51: =IF(OFFSET(DE104_3!$V$35,ROWS($V$35:V65)-1,COLUMNS($V$35:V65)-1)<>"",OFFSET(DE104_3!$V$35,ROWS($V$35:V65)-1,COLUMNS($V$35:V65)-1),"") ->  | U51: =IF(OFFSET(DE104_3!$W$35,ROWS($W$35:W65)-1,COLUMNS($W$35:W65)-1)<>"",OFFSET(DE104_3!$W$35,ROWS($W$35:W65)-1,COLUMNS($W$35:W65)-1),"") ->  | V51: =IF(OFFSET(DE104_3!$X$35,ROWS($X$35:X65)-1,COLUMNS($X$35:X65)-1)<>"",OFFSET(DE104_3!$X$35,ROWS($X$35:X65)-1,COLUMNS($X$35:X65)-1),"") ->  | W51: =IF(OFFSET(DE104_3!$Y$35,ROWS($Y$35:Y65)-1,COLUMNS($Y$35:Y65)-1)<>"",OFFSET(DE104_3!$Y$35,ROWS($Y$35:Y65)-1,COLUMNS($Y$35:Y65)-1),"") ->  | X51: =IF(OFFSET(DE104_3!$Z$35,ROWS($Z$35:Z65)-1,COLUMNS($Z$35:Z65)-1)<>"",OFFSET(DE104_3!$Z$35,ROWS($Z$35:Z65)-1,COLUMNS($Z$35:Z65)-1),"") ->  | Y51: =IF(OFFSET(DE104_3!$AA$35,ROWS($AA$35:AA65)-1,COLUMNS($AA$35:AA65)-1)<>"",OFFSET(DE104_3!$AA$35,ROWS($AA$35:AA65)-1,COLUMNS($AA$35:AA65)-1),"") ->  | Z51: =IF(OFFSET(DE104_3!$AB$35,ROWS($AB$35:AB65)-1,COLUMNS($AB$35:AB65)-1)<>"",OFFSET(DE104_3!$AB$35,ROWS($AB$35:AB65)-1,COLUMNS($AB$35:AB65)-1),"") ->  | AA51: =IF(OFFSET(DE104_3!$AC$35,ROWS($AC$35:AC65)-1,COLUMNS($AC$35:AC65)-1)<>"",OFFSET(DE104_3!$AC$35,ROWS($AC$35:AC65)-1,COLUMNS($AC$35:AC65)-1),"") ->  | AB51: =IF(OFFSET(DE104_3!$AD$35,ROWS($AD$35:AD65)-1,COLUMNS($AD$35:AD65)-1)<>"",OFFSET(DE104_3!$AD$35,ROWS($AD$35:AD65)-1,COLUMNS($AD$35:AD65)-1),"") ->  | AC51: =IF(OFFSET(DE104_3!$AE$35,ROWS($AE$35:AE65)-1,COLUMNS($AE$35:AE65)-1)<>"",OFFSET(DE104_3!$AE$35,ROWS($AE$35:AE65)-1,COLUMNS($AE$35:AE65)-1),"") ->  | AD51: =IF(OFFSET(DE104_3!$AF$35,ROWS($AF$35:AF65)-1,COLUMNS($AF$35:AF65)-1)<>"",OFFSET(DE104_3!$AF$35,ROWS($AF$35:AF65)-1,COLUMNS($AF$35:AF65)-1),"") ->  | AE51: =IF(OFFSET(DE104_3!$AG$35,ROWS($AG$35:AG65)-1,COLUMNS($AG$35:AG65)-1)<>"",OFFSET(DE104_3!$AG$35,ROWS($AG$35:AG65)-1,COLUMNS($AG$35:AG65)-1),"") ->  | AF51: =IF(OFFSET(DE104_3!$AH$35,ROWS($AH$35:AH65)-1,COLUMNS($AH$35:AH65)-1)<>"",OFFSET(DE104_3!$AH$35,ROWS($AH$35:AH65)-1,COLUMNS($AH$35:AH65)-1),"") ->  | AG51: =IF(OFFSET(DE104_3!$AI$35,ROWS($AI$35:AI65)-1,COLUMNS($AI$35:AI65)-1)<>"",OFFSET(DE104_3!$AI$35,ROWS($AI$35:AI65)-1,COLUMNS($AI$35:AI65)-1),"") ->  | AH51: =IF(OFFSET(DE104_3!$AJ$35,ROWS($AJ$35:AJ65)-1,COLUMNS($AJ$35:AJ65)-1)<>"",OFFSET(DE104_3!$AJ$35,ROWS($AJ$35:AJ65)-1,COLUMNS($AJ$35:AJ65)-1),"") ->  | AI51: =IF(OFFSET(DE104_3!$AK$35,ROWS($AK$35:AK65)-1,COLUMNS($AK$35:AK65)-1)<>"",OFFSET(DE104_3!$AK$35,ROWS($AK$35:AK65)-1,COLUMNS($AK$35:AK65)-1),"") ->  | AJ51: =IF(OFFSET(DE104_3!$AL$35,ROWS($AL$35:AL65)-1,COLUMNS($AL$35:AL65)-1)<>"",OFFSET(DE104_3!$AL$35,ROWS($AL$35:AL65)-1,COLUMNS($AL$35:AL65)-1),"") ->  | AK51: =IF(OFFSET(DE104_3!$AM$35,ROWS($AM$35:AM65)-1,COLUMNS($AM$35:AM65)-1)<>"",OFFSET(DE104_3!$AM$35,ROWS($AM$35:AM65)-1,COLUMNS($AM$35:AM65)-1),"") ->  | AL51: =IF(OFFSET(DE104_3!$AN$35,ROWS($AN$35:AN65)-1,COLUMNS($AN$35:AN65)-1)<>"",OFFSET(DE104_3!$AN$35,ROWS($AN$35:AN65)-1,COLUMNS($AN$35:AN65)-1),"") ->  | AM51: =IF(OFFSET(DE104_3!$AO$35,ROWS($AO$35:AO65)-1,COLUMNS($AO$35:AO65)-1)<>"",OFFSET(DE104_3!$AO$35,ROWS($AO$35:AO65)-1,COLUMNS($AO$35:AO65)-1),"") ->  | AN51: =IF(OFFSET(DE104_3!$AP$35,ROWS($AP$35:AP65)-1,COLUMNS($AP$35:AP65)-1)<>"",OFFSET(DE104_3!$AP$35,ROWS($AP$35:AP65)-1,COLUMNS($AP$35:AP65)-1),"") ->  | AO51: =IF(OFFSET(DE104_3!$AQ$35,ROWS($AQ$35:AQ65)-1,COLUMNS($AQ$35:AQ65)-1)<>"",OFFSET(DE104_3!$AQ$35,ROWS($AQ$35:AQ65)-1,COLUMNS($AQ$35:AQ65)-1),"") -> 
A52: =IF(OFFSET(DE104_3!$C$35,ROWS($C$35:C66)-1,COLUMNS($C$35:C66)-1)<>"",OFFSET(DE104_3!$C$35,ROWS($C$35:C66)-1,COLUMNS($C$35:C66)-1),"") ->  | B52: =IF(OFFSET(DE104_3!$D$35,ROWS($D$35:D66)-1,COLUMNS($D$35:D66)-1)<>"",OFFSET(DE104_3!$D$35,ROWS($D$35:D66)-1,COLUMNS($D$35:D66)-1),"") ->  | C52: =IF(OFFSET(DE104_3!$E$35,ROWS($E$35:E66)-1,COLUMNS($E$35:E66)-1)<>"",OFFSET(DE104_3!$E$35,ROWS($E$35:E66)-1,COLUMNS($E$35:E66)-1),"") ->  | D52: =IF(OFFSET(DE104_3!$F$35,ROWS($F$35:F66)-1,COLUMNS($F$35:F66)-1)<>"",OFFSET(DE104_3!$F$35,ROWS($F$35:F66)-1,COLUMNS($F$35:F66)-1),"") ->  | E52: =IF(OFFSET(DE104_3!$G$35,ROWS($G$35:G66)-1,COLUMNS($G$35:G66)-1)<>"",OFFSET(DE104_3!$G$35,ROWS($G$35:G66)-1,COLUMNS($G$35:G66)-1),"") ->  | F52: =IF(OFFSET(DE104_3!$H$35,ROWS($H$35:H66)-1,COLUMNS($H$35:H66)-1)<>"",OFFSET(DE104_3!$H$35,ROWS($H$35:H66)-1,COLUMNS($H$35:H66)-1),"") ->  | G52: =IF(OFFSET(DE104_3!$I$35,ROWS($I$35:I66)-1,COLUMNS($I$35:I66)-1)<>"",OFFSET(DE104_3!$I$35,ROWS($I$35:I66)-1,COLUMNS($I$35:I66)-1),"") ->  | H52: =IF(OFFSET(DE104_3!$J$35,ROWS($J$35:J66)-1,COLUMNS($J$35:J66)-1)<>"",OFFSET(DE104_3!$J$35,ROWS($J$35:J66)-1,COLUMNS($J$35:J66)-1),"") ->  | I52: =IF(OFFSET(DE104_3!$K$35,ROWS($K$35:K66)-1,COLUMNS($K$35:K66)-1)<>"",OFFSET(DE104_3!$K$35,ROWS($K$35:K66)-1,COLUMNS($K$35:K66)-1),"") ->  | J52: =IF(OFFSET(DE104_3!$L$35,ROWS($L$35:L66)-1,COLUMNS($L$35:L66)-1)<>"",OFFSET(DE104_3!$L$35,ROWS($L$35:L66)-1,COLUMNS($L$35:L66)-1),"") ->  | K52: =IF(OFFSET(DE104_3!$M$35,ROWS($M$35:M66)-1,COLUMNS($M$35:M66)-1)<>"",OFFSET(DE104_3!$M$35,ROWS($M$35:M66)-1,COLUMNS($M$35:M66)-1),"") ->  | L52: =IF(OFFSET(DE104_3!$N$35,ROWS($N$35:N66)-1,COLUMNS($N$35:N66)-1)<>"",OFFSET(DE104_3!$N$35,ROWS($N$35:N66)-1,COLUMNS($N$35:N66)-1),"") ->  | M52: =IF(OFFSET(DE104_3!$O$35,ROWS($O$35:O66)-1,COLUMNS($O$35:O66)-1)<>"",OFFSET(DE104_3!$O$35,ROWS($O$35:O66)-1,COLUMNS($O$35:O66)-1),"") ->  | N52: =IF(OFFSET(DE104_3!$P$35,ROWS($P$35:P66)-1,COLUMNS($P$35:P66)-1)<>"",OFFSET(DE104_3!$P$35,ROWS($P$35:P66)-1,COLUMNS($P$35:P66)-1),"") ->  | O52: =IF(OFFSET(DE104_3!$Q$35,ROWS($Q$35:Q66)-1,COLUMNS($Q$35:Q66)-1)<>"",OFFSET(DE104_3!$Q$35,ROWS($Q$35:Q66)-1,COLUMNS($Q$35:Q66)-1),"") ->  | P52: =IF(OFFSET(DE104_3!$R$35,ROWS($R$35:R66)-1,COLUMNS($R$35:R66)-1)<>"",OFFSET(DE104_3!$R$35,ROWS($R$35:R66)-1,COLUMNS($R$35:R66)-1),"") ->  | Q52: =IF(OFFSET(DE104_3!$S$35,ROWS($S$35:S66)-1,COLUMNS($S$35:S66)-1)<>"",OFFSET(DE104_3!$S$35,ROWS($S$35:S66)-1,COLUMNS($S$35:S66)-1),"") ->  | R52: =IF(OFFSET(DE104_3!$T$35,ROWS($T$35:T66)-1,COLUMNS($T$35:T66)-1)<>"",OFFSET(DE104_3!$T$35,ROWS($T$35:T66)-1,COLUMNS($T$35:T66)-1),"") ->  | S52: =IF(OFFSET(DE104_3!$U$35,ROWS($U$35:U66)-1,COLUMNS($U$35:U66)-1)<>"",OFFSET(DE104_3!$U$35,ROWS($U$35:U66)-1,COLUMNS($U$35:U66)-1),"") ->  | T52: =IF(OFFSET(DE104_3!$V$35,ROWS($V$35:V66)-1,COLUMNS($V$35:V66)-1)<>"",OFFSET(DE104_3!$V$35,ROWS($V$35:V66)-1,COLUMNS($V$35:V66)-1),"") ->  | U52: =IF(OFFSET(DE104_3!$W$35,ROWS($W$35:W66)-1,COLUMNS($W$35:W66)-1)<>"",OFFSET(DE104_3!$W$35,ROWS($W$35:W66)-1,COLUMNS($W$35:W66)-1),"") ->  | V52: =IF(OFFSET(DE104_3!$X$35,ROWS($X$35:X66)-1,COLUMNS($X$35:X66)-1)<>"",OFFSET(DE104_3!$X$35,ROWS($X$35:X66)-1,COLUMNS($X$35:X66)-1),"") ->  | W52: =IF(OFFSET(DE104_3!$Y$35,ROWS($Y$35:Y66)-1,COLUMNS($Y$35:Y66)-1)<>"",OFFSET(DE104_3!$Y$35,ROWS($Y$35:Y66)-1,COLUMNS($Y$35:Y66)-1),"") ->  | X52: =IF(OFFSET(DE104_3!$Z$35,ROWS($Z$35:Z66)-1,COLUMNS($Z$35:Z66)-1)<>"",OFFSET(DE104_3!$Z$35,ROWS($Z$35:Z66)-1,COLUMNS($Z$35:Z66)-1),"") ->  | Y52: =IF(OFFSET(DE104_3!$AA$35,ROWS($AA$35:AA66)-1,COLUMNS($AA$35:AA66)-1)<>"",OFFSET(DE104_3!$AA$35,ROWS($AA$35:AA66)-1,COLUMNS($AA$35:AA66)-1),"") ->  | Z52: =IF(OFFSET(DE104_3!$AB$35,ROWS($AB$35:AB66)-1,COLUMNS($AB$35:AB66)-1)<>"",OFFSET(DE104_3!$AB$35,ROWS($AB$35:AB66)-1,COLUMNS($AB$35:AB66)-1),"") ->  | AA52: =IF(OFFSET(DE104_3!$AC$35,ROWS($AC$35:AC66)-1,COLUMNS($AC$35:AC66)-1)<>"",OFFSET(DE104_3!$AC$35,ROWS($AC$35:AC66)-1,COLUMNS($AC$35:AC66)-1),"") ->  | AB52: =IF(OFFSET(DE104_3!$AD$35,ROWS($AD$35:AD66)-1,COLUMNS($AD$35:AD66)-1)<>"",OFFSET(DE104_3!$AD$35,ROWS($AD$35:AD66)-1,COLUMNS($AD$35:AD66)-1),"") ->  | AC52: =IF(OFFSET(DE104_3!$AE$35,ROWS($AE$35:AE66)-1,COLUMNS($AE$35:AE66)-1)<>"",OFFSET(DE104_3!$AE$35,ROWS($AE$35:AE66)-1,COLUMNS($AE$35:AE66)-1),"") ->  | AD52: =IF(OFFSET(DE104_3!$AF$35,ROWS($AF$35:AF66)-1,COLUMNS($AF$35:AF66)-1)<>"",OFFSET(DE104_3!$AF$35,ROWS($AF$35:AF66)-1,COLUMNS($AF$35:AF66)-1),"") ->  | AE52: =IF(OFFSET(DE104_3!$AG$35,ROWS($AG$35:AG66)-1,COLUMNS($AG$35:AG66)-1)<>"",OFFSET(DE104_3!$AG$35,ROWS($AG$35:AG66)-1,COLUMNS($AG$35:AG66)-1),"") ->  | AF52: =IF(OFFSET(DE104_3!$AH$35,ROWS($AH$35:AH66)-1,COLUMNS($AH$35:AH66)-1)<>"",OFFSET(DE104_3!$AH$35,ROWS($AH$35:AH66)-1,COLUMNS($AH$35:AH66)-1),"") ->  | AG52: =IF(OFFSET(DE104_3!$AI$35,ROWS($AI$35:AI66)-1,COLUMNS($AI$35:AI66)-1)<>"",OFFSET(DE104_3!$AI$35,ROWS($AI$35:AI66)-1,COLUMNS($AI$35:AI66)-1),"") ->  | AH52: =IF(OFFSET(DE104_3!$AJ$35,ROWS($AJ$35:AJ66)-1,COLUMNS($AJ$35:AJ66)-1)<>"",OFFSET(DE104_3!$AJ$35,ROWS($AJ$35:AJ66)-1,COLUMNS($AJ$35:AJ66)-1),"") ->  | AI52: =IF(OFFSET(DE104_3!$AK$35,ROWS($AK$35:AK66)-1,COLUMNS($AK$35:AK66)-1)<>"",OFFSET(DE104_3!$AK$35,ROWS($AK$35:AK66)-1,COLUMNS($AK$35:AK66)-1),"") ->  | AJ52: =IF(OFFSET(DE104_3!$AL$35,ROWS($AL$35:AL66)-1,COLUMNS($AL$35:AL66)-1)<>"",OFFSET(DE104_3!$AL$35,ROWS($AL$35:AL66)-1,COLUMNS($AL$35:AL66)-1),"") ->  | AK52: =IF(OFFSET(DE104_3!$AM$35,ROWS($AM$35:AM66)-1,COLUMNS($AM$35:AM66)-1)<>"",OFFSET(DE104_3!$AM$35,ROWS($AM$35:AM66)-1,COLUMNS($AM$35:AM66)-1),"") ->  | AL52: =IF(OFFSET(DE104_3!$AN$35,ROWS($AN$35:AN66)-1,COLUMNS($AN$35:AN66)-1)<>"",OFFSET(DE104_3!$AN$35,ROWS($AN$35:AN66)-1,COLUMNS($AN$35:AN66)-1),"") ->  | AM52: =IF(OFFSET(DE104_3!$AO$35,ROWS($AO$35:AO66)-1,COLUMNS($AO$35:AO66)-1)<>"",OFFSET(DE104_3!$AO$35,ROWS($AO$35:AO66)-1,COLUMNS($AO$35:AO66)-1),"") ->  | AN52: =IF(OFFSET(DE104_3!$AP$35,ROWS($AP$35:AP66)-1,COLUMNS($AP$35:AP66)-1)<>"",OFFSET(DE104_3!$AP$35,ROWS($AP$35:AP66)-1,COLUMNS($AP$35:AP66)-1),"") ->  | AO52: =IF(OFFSET(DE104_3!$AQ$35,ROWS($AQ$35:AQ66)-1,COLUMNS($AQ$35:AQ66)-1)<>"",OFFSET(DE104_3!$AQ$35,ROWS($AQ$35:AQ66)-1,COLUMNS($AQ$35:AQ66)-1),"") -> 
A53: =IF(OFFSET(DE104_3!$C$35,ROWS($C$35:C67)-1,COLUMNS($C$35:C67)-1)<>"",OFFSET(DE104_3!$C$35,ROWS($C$35:C67)-1,COLUMNS($C$35:C67)-1),"") -> NOTES: | C53: =IF(OFFSET(DE104_3!$E$35,ROWS($E$35:E67)-1,COLUMNS($E$35:E67)-1)<>"",OFFSET(DE104_3!$E$35,ROWS($E$35:E67)-1,COLUMNS($E$35:E67)-1),"") ->  | D53: =IF(OFFSET(DE104_3!$F$35,ROWS($F$35:F67)-1,COLUMNS($F$35:F67)-1)<>"",OFFSET(DE104_3!$F$35,ROWS($F$35:F67)-1,COLUMNS($F$35:F67)-1),"") ->  | E53: =IF(OFFSET(DE104_3!$G$35,ROWS($G$35:G67)-1,COLUMNS($G$35:G67)-1)<>"",OFFSET(DE104_3!$G$35,ROWS($G$35:G67)-1,COLUMNS($G$35:G67)-1),"") ->  | F53: =IF(OFFSET(DE104_3!$H$35,ROWS($H$35:H67)-1,COLUMNS($H$35:H67)-1)<>"",OFFSET(DE104_3!$H$35,ROWS($H$35:H67)-1,COLUMNS($H$35:H67)-1),"") ->  | G53: =IF(OFFSET(DE104_3!$I$35,ROWS($I$35:I67)-1,COLUMNS($I$35:I67)-1)<>"",OFFSET(DE104_3!$I$35,ROWS($I$35:I67)-1,COLUMNS($I$35:I67)-1),"") ->  | H53: =IF(OFFSET(DE104_3!$J$35,ROWS($J$35:J67)-1,COLUMNS($J$35:J67)-1)<>"",OFFSET(DE104_3!$J$35,ROWS($J$35:J67)-1,COLUMNS($J$35:J67)-1),"") ->  | I53: =IF(OFFSET(DE104_3!$K$35,ROWS($K$35:K67)-1,COLUMNS($K$35:K67)-1)<>"",OFFSET(DE104_3!$K$35,ROWS($K$35:K67)-1,COLUMNS($K$35:K67)-1),"") ->  | J53: =IF(OFFSET(DE104_3!$L$35,ROWS($L$35:L67)-1,COLUMNS($L$35:L67)-1)<>"",OFFSET(DE104_3!$L$35,ROWS($L$35:L67)-1,COLUMNS($L$35:L67)-1),"") ->  | K53: =IF(OFFSET(DE104_3!$M$35,ROWS($M$35:M67)-1,COLUMNS($M$35:M67)-1)<>"",OFFSET(DE104_3!$M$35,ROWS($M$35:M67)-1,COLUMNS($M$35:M67)-1),"") ->  | L53: =IF(OFFSET(DE104_3!$N$35,ROWS($N$35:N67)-1,COLUMNS($N$35:N67)-1)<>"",OFFSET(DE104_3!$N$35,ROWS($N$35:N67)-1,COLUMNS($N$35:N67)-1),"") ->  | M53: =IF(OFFSET(DE104_3!$O$35,ROWS($O$35:O67)-1,COLUMNS($O$35:O67)-1)<>"",OFFSET(DE104_3!$O$35,ROWS($O$35:O67)-1,COLUMNS($O$35:O67)-1),"") ->  | N53: =IF(OFFSET(DE104_3!$P$35,ROWS($P$35:P67)-1,COLUMNS($P$35:P67)-1)<>"",OFFSET(DE104_3!$P$35,ROWS($P$35:P67)-1,COLUMNS($P$35:P67)-1),"") ->  | O53: =IF(OFFSET(DE104_3!$Q$35,ROWS($Q$35:Q67)-1,COLUMNS($Q$35:Q67)-1)<>"",OFFSET(DE104_3!$Q$35,ROWS($Q$35:Q67)-1,COLUMNS($Q$35:Q67)-1),"") ->  | P53: =IF(OFFSET(DE104_3!$R$35,ROWS($R$35:R67)-1,COLUMNS($R$35:R67)-1)<>"",OFFSET(DE104_3!$R$35,ROWS($R$35:R67)-1,COLUMNS($R$35:R67)-1),"") ->  | Q53: =IF(OFFSET(DE104_3!$S$35,ROWS($S$35:S67)-1,COLUMNS($S$35:S67)-1)<>"",OFFSET(DE104_3!$S$35,ROWS($S$35:S67)-1,COLUMNS($S$35:S67)-1),"") ->  | R53: =IF(OFFSET(DE104_3!$T$35,ROWS($T$35:T67)-1,COLUMNS($T$35:T67)-1)<>"",OFFSET(DE104_3!$T$35,ROWS($T$35:T67)-1,COLUMNS($T$35:T67)-1),"") ->  | S53: =IF(OFFSET(DE104_3!$U$35,ROWS($U$35:U67)-1,COLUMNS($U$35:U67)-1)<>"",OFFSET(DE104_3!$U$35,ROWS($U$35:U67)-1,COLUMNS($U$35:U67)-1),"") ->  | T53: =IF(OFFSET(DE104_3!$V$35,ROWS($V$35:V67)-1,COLUMNS($V$35:V67)-1)<>"",OFFSET(DE104_3!$V$35,ROWS($V$35:V67)-1,COLUMNS($V$35:V67)-1),"") ->  | U53: =IF(OFFSET(DE104_3!$W$35,ROWS($W$35:W67)-1,COLUMNS($W$35:W67)-1)<>"",OFFSET(DE104_3!$W$35,ROWS($W$35:W67)-1,COLUMNS($W$35:W67)-1),"") ->  | V53: =IF(OFFSET(DE104_3!$X$35,ROWS($X$35:X67)-1,COLUMNS($X$35:X67)-1)<>"",OFFSET(DE104_3!$X$35,ROWS($X$35:X67)-1,COLUMNS($X$35:X67)-1),"") ->  | W53: =IF(OFFSET(DE104_3!$Y$35,ROWS($Y$35:Y67)-1,COLUMNS($Y$35:Y67)-1)<>"",OFFSET(DE104_3!$Y$35,ROWS($Y$35:Y67)-1,COLUMNS($Y$35:Y67)-1),"") ->  | X53: =IF(OFFSET(DE104_3!$Z$35,ROWS($Z$35:Z67)-1,COLUMNS($Z$35:Z67)-1)<>"",OFFSET(DE104_3!$Z$35,ROWS($Z$35:Z67)-1,COLUMNS($Z$35:Z67)-1),"") ->  | Y53: =IF(OFFSET(DE104_3!$AA$35,ROWS($AA$35:AA67)-1,COLUMNS($AA$35:AA67)-1)<>"",OFFSET(DE104_3!$AA$35,ROWS($AA$35:AA67)-1,COLUMNS($AA$35:AA67)-1),"") ->  | Z53: =IF(OFFSET(DE104_3!$AB$35,ROWS($AB$35:AB67)-1,COLUMNS($AB$35:AB67)-1)<>"",OFFSET(DE104_3!$AB$35,ROWS($AB$35:AB67)-1,COLUMNS($AB$35:AB67)-1),"") ->  | AA53: =IF(OFFSET(DE104_3!$AC$35,ROWS($AC$35:AC67)-1,COLUMNS($AC$35:AC67)-1)<>"",OFFSET(DE104_3!$AC$35,ROWS($AC$35:AC67)-1,COLUMNS($AC$35:AC67)-1),"") ->  | AB53: =IF(OFFSET(DE104_3!$AD$35,ROWS($AD$35:AD67)-1,COLUMNS($AD$35:AD67)-1)<>"",OFFSET(DE104_3!$AD$35,ROWS($AD$35:AD67)-1,COLUMNS($AD$35:AD67)-1),"") ->  | AC53: =IF(OFFSET(DE104_3!$AE$35,ROWS($AE$35:AE67)-1,COLUMNS($AE$35:AE67)-1)<>"",OFFSET(DE104_3!$AE$35,ROWS($AE$35:AE67)-1,COLUMNS($AE$35:AE67)-1),"") ->  | AD53: =IF(OFFSET(DE104_3!$AF$35,ROWS($AF$35:AF67)-1,COLUMNS($AF$35:AF67)-1)<>"",OFFSET(DE104_3!$AF$35,ROWS($AF$35:AF67)-1,COLUMNS($AF$35:AF67)-1),"") ->  | AE53: =IF(OFFSET(DE104_3!$AG$35,ROWS($AG$35:AG67)-1,COLUMNS($AG$35:AG67)-1)<>"",OFFSET(DE104_3!$AG$35,ROWS($AG$35:AG67)-1,COLUMNS($AG$35:AG67)-1),"") ->  | AF53: =IF(OFFSET(DE104_3!$AH$35,ROWS($AH$35:AH67)-1,COLUMNS($AH$35:AH67)-1)<>"",OFFSET(DE104_3!$AH$35,ROWS($AH$35:AH67)-1,COLUMNS($AH$35:AH67)-1),"") ->  | AG53: =IF(OFFSET(DE104_3!$AI$35,ROWS($AI$35:AI67)-1,COLUMNS($AI$35:AI67)-1)<>"",OFFSET(DE104_3!$AI$35,ROWS($AI$35:AI67)-1,COLUMNS($AI$35:AI67)-1),"") ->  | AH53: =IF(OFFSET(DE104_3!$AJ$35,ROWS($AJ$35:AJ67)-1,COLUMNS($AJ$35:AJ67)-1)<>"",OFFSET(DE104_3!$AJ$35,ROWS($AJ$35:AJ67)-1,COLUMNS($AJ$35:AJ67)-1),"") ->  | AI53: =IF(OFFSET(DE104_3!$AK$35,ROWS($AK$35:AK67)-1,COLUMNS($AK$35:AK67)-1)<>"",OFFSET(DE104_3!$AK$35,ROWS($AK$35:AK67)-1,COLUMNS($AK$35:AK67)-1),"") ->  | AJ53: =IF(OFFSET(DE104_3!$AL$35,ROWS($AL$35:AL67)-1,COLUMNS($AL$35:AL67)-1)<>"",OFFSET(DE104_3!$AL$35,ROWS($AL$35:AL67)-1,COLUMNS($AL$35:AL67)-1),"") ->  | AK53: =IF(OFFSET(DE104_3!$AM$35,ROWS($AM$35:AM67)-1,COLUMNS($AM$35:AM67)-1)<>"",OFFSET(DE104_3!$AM$35,ROWS($AM$35:AM67)-1,COLUMNS($AM$35:AM67)-1),"") ->  | AL53: =IF(OFFSET(DE104_3!$AN$35,ROWS($AN$35:AN67)-1,COLUMNS($AN$35:AN67)-1)<>"",OFFSET(DE104_3!$AN$35,ROWS($AN$35:AN67)-1,COLUMNS($AN$35:AN67)-1),"") ->  | AM53: =IF(OFFSET(DE104_3!$AO$35,ROWS($AO$35:AO67)-1,COLUMNS($AO$35:AO67)-1)<>"",OFFSET(DE104_3!$AO$35,ROWS($AO$35:AO67)-1,COLUMNS($AO$35:AO67)-1),"") ->  | AN53: =IF(OFFSET(DE104_3!$AP$35,ROWS($AP$35:AP67)-1,COLUMNS($AP$35:AP67)-1)<>"",OFFSET(DE104_3!$AP$35,ROWS($AP$35:AP67)-1,COLUMNS($AP$35:AP67)-1),"") ->  | AO53: =IF(OFFSET(DE104_3!$AQ$35,ROWS($AQ$35:AQ67)-1,COLUMNS($AQ$35:AQ67)-1)<>"",OFFSET(DE104_3!$AQ$35,ROWS($AQ$35:AQ67)-1,COLUMNS($AQ$35:AQ67)-1),"") -> 
A54: =IF(OFFSET(DE104_3!$C$35,ROWS($C$35:C68)-1,COLUMNS($C$35:C68)-1)<>"",OFFSET(DE104_3!$C$35,ROWS($C$35:C68)-1,COLUMNS($C$35:C68)-1),"") -> ALL PIPES WILL BE 2000D UNLESS NOTED | F54: =IF(OFFSET(DE104_3!$H$35,ROWS($H$35:H68)-1,COLUMNS($H$35:H68)-1)<>"",OFFSET(DE104_3!$H$35,ROWS($H$35:H68)-1,COLUMNS($H$35:H68)-1),"") ->  | G54: =IF(OFFSET(DE104_3!$I$35,ROWS($I$35:I68)-1,COLUMNS($I$35:I68)-1)<>"",OFFSET(DE104_3!$I$35,ROWS($I$35:I68)-1,COLUMNS($I$35:I68)-1),"") ->  | H54: =IF(OFFSET(DE104_3!$J$35,ROWS($J$35:J68)-1,COLUMNS($J$35:J68)-1)<>"",OFFSET(DE104_3!$J$35,ROWS($J$35:J68)-1,COLUMNS($J$35:J68)-1),"") ->  | I54: =IF(OFFSET(DE104_3!$K$35,ROWS($K$35:K68)-1,COLUMNS($K$35:K68)-1)<>"",OFFSET(DE104_3!$K$35,ROWS($K$35:K68)-1,COLUMNS($K$35:K68)-1),"") ->  | J54: =IF(OFFSET(DE104_3!$L$35,ROWS($L$35:L68)-1,COLUMNS($L$35:L68)-1)<>"",OFFSET(DE104_3!$L$35,ROWS($L$35:L68)-1,COLUMNS($L$35:L68)-1),"") ->  | K54: =IF(OFFSET(DE104_3!$M$35,ROWS($M$35:M68)-1,COLUMNS($M$35:M68)-1)<>"",OFFSET(DE104_3!$M$35,ROWS($M$35:M68)-1,COLUMNS($M$35:M68)-1),"") ->  | L54: =IF(OFFSET(DE104_3!$N$35,ROWS($N$35:N68)-1,COLUMNS($N$35:N68)-1)<>"",OFFSET(DE104_3!$N$35,ROWS($N$35:N68)-1,COLUMNS($N$35:N68)-1),"") ->  | M54: =IF(OFFSET(DE104_3!$O$35,ROWS($O$35:O68)-1,COLUMNS($O$35:O68)-1)<>"",OFFSET(DE104_3!$O$35,ROWS($O$35:O68)-1,COLUMNS($O$35:O68)-1),"") ->  | N54: =IF(OFFSET(DE104_3!$P$35,ROWS($P$35:P68)-1,COLUMNS($P$35:P68)-1)<>"",OFFSET(DE104_3!$P$35,ROWS($P$35:P68)-1,COLUMNS($P$35:P68)-1),"") ->  | O54: =IF(OFFSET(DE104_3!$Q$35,ROWS($Q$35:Q68)-1,COLUMNS($Q$35:Q68)-1)<>"",OFFSET(DE104_3!$Q$35,ROWS($Q$35:Q68)-1,COLUMNS($Q$35:Q68)-1),"") ->  | P54: =IF(OFFSET(DE104_3!$R$35,ROWS($R$35:R68)-1,COLUMNS($R$35:R68)-1)<>"",OFFSET(DE104_3!$R$35,ROWS($R$35:R68)-1,COLUMNS($R$35:R68)-1),"") ->  | Q54: =IF(OFFSET(DE104_3!$S$35,ROWS($S$35:S68)-1,COLUMNS($S$35:S68)-1)<>"",OFFSET(DE104_3!$S$35,ROWS($S$35:S68)-1,COLUMNS($S$35:S68)-1),"") ->  | R54: =IF(OFFSET(DE104_3!$T$35,ROWS($T$35:T68)-1,COLUMNS($T$35:T68)-1)<>"",OFFSET(DE104_3!$T$35,ROWS($T$35:T68)-1,COLUMNS($T$35:T68)-1),"") ->  | S54: =IF(OFFSET(DE104_3!$U$35,ROWS($U$35:U68)-1,COLUMNS($U$35:U68)-1)<>"",OFFSET(DE104_3!$U$35,ROWS($U$35:U68)-1,COLUMNS($U$35:U68)-1),"") ->  | T54: =IF(OFFSET(DE104_3!$V$35,ROWS($V$35:V68)-1,COLUMNS($V$35:V68)-1)<>"",OFFSET(DE104_3!$V$35,ROWS($V$35:V68)-1,COLUMNS($V$35:V68)-1),"") ->  | U54: =IF(OFFSET(DE104_3!$W$35,ROWS($W$35:W68)-1,COLUMNS($W$35:W68)-1)<>"",OFFSET(DE104_3!$W$35,ROWS($W$35:W68)-1,COLUMNS($W$35:W68)-1),"") ->  | V54: =IF(OFFSET(DE104_3!$X$35,ROWS($X$35:X68)-1,COLUMNS($X$35:X68)-1)<>"",OFFSET(DE104_3!$X$35,ROWS($X$35:X68)-1,COLUMNS($X$35:X68)-1),"") ->  | W54: =IF(OFFSET(DE104_3!$Y$35,ROWS($Y$35:Y68)-1,COLUMNS($Y$35:Y68)-1)<>"",OFFSET(DE104_3!$Y$35,ROWS($Y$35:Y68)-1,COLUMNS($Y$35:Y68)-1),"") ->  | X54: =IF(OFFSET(DE104_3!$Z$35,ROWS($Z$35:Z68)-1,COLUMNS($Z$35:Z68)-1)<>"",OFFSET(DE104_3!$Z$35,ROWS($Z$35:Z68)-1,COLUMNS($Z$35:Z68)-1),"") ->  | Y54: =IF(OFFSET(DE104_3!$AA$35,ROWS($AA$35:AA68)-1,COLUMNS($AA$35:AA68)-1)<>"",OFFSET(DE104_3!$AA$35,ROWS($AA$35:AA68)-1,COLUMNS($AA$35:AA68)-1),"") ->  | Z54: =IF(OFFSET(DE104_3!$AB$35,ROWS($AB$35:AB68)-1,COLUMNS($AB$35:AB68)-1)<>"",OFFSET(DE104_3!$AB$35,ROWS($AB$35:AB68)-1,COLUMNS($AB$35:AB68)-1),"") ->  | AA54: =IF(OFFSET(DE104_3!$AC$35,ROWS($AC$35:AC68)-1,COLUMNS($AC$35:AC68)-1)<>"",OFFSET(DE104_3!$AC$35,ROWS($AC$35:AC68)-1,COLUMNS($AC$35:AC68)-1),"") ->  | AB54: =IF(OFFSET(DE104_3!$AD$35,ROWS($AD$35:AD68)-1,COLUMNS($AD$35:AD68)-1)<>"",OFFSET(DE104_3!$AD$35,ROWS($AD$35:AD68)-1,COLUMNS($AD$35:AD68)-1),"") ->  | AC54: =IF(OFFSET(DE104_3!$AE$35,ROWS($AE$35:AE68)-1,COLUMNS($AE$35:AE68)-1)<>"",OFFSET(DE104_3!$AE$35,ROWS($AE$35:AE68)-1,COLUMNS($AE$35:AE68)-1),"") ->  | AD54: =IF(OFFSET(DE104_3!$AF$35,ROWS($AF$35:AF68)-1,COLUMNS($AF$35:AF68)-1)<>"",OFFSET(DE104_3!$AF$35,ROWS($AF$35:AF68)-1,COLUMNS($AF$35:AF68)-1),"") ->  | AE54: =IF(OFFSET(DE104_3!$AG$35,ROWS($AG$35:AG68)-1,COLUMNS($AG$35:AG68)-1)<>"",OFFSET(DE104_3!$AG$35,ROWS($AG$35:AG68)-1,COLUMNS($AG$35:AG68)-1),"") ->  | AF54: =IF(OFFSET(DE104_3!$AH$35,ROWS($AH$35:AH68)-1,COLUMNS($AH$35:AH68)-1)<>"",OFFSET(DE104_3!$AH$35,ROWS($AH$35:AH68)-1,COLUMNS($AH$35:AH68)-1),"") ->  | AG54: =IF(OFFSET(DE104_3!$AI$35,ROWS($AI$35:AI68)-1,COLUMNS($AI$35:AI68)-1)<>"",OFFSET(DE104_3!$AI$35,ROWS($AI$35:AI68)-1,COLUMNS($AI$35:AI68)-1),"") ->  | AH54: =IF(OFFSET(DE104_3!$AJ$35,ROWS($AJ$35:AJ68)-1,COLUMNS($AJ$35:AJ68)-1)<>"",OFFSET(DE104_3!$AJ$35,ROWS($AJ$35:AJ68)-1,COLUMNS($AJ$35:AJ68)-1),"") ->  | AI54: =IF(OFFSET(DE104_3!$AK$35,ROWS($AK$35:AK68)-1,COLUMNS($AK$35:AK68)-1)<>"",OFFSET(DE104_3!$AK$35,ROWS($AK$35:AK68)-1,COLUMNS($AK$35:AK68)-1),"") ->  | AJ54: =IF(OFFSET(DE104_3!$AL$35,ROWS($AL$35:AL68)-1,COLUMNS($AL$35:AL68)-1)<>"",OFFSET(DE104_3!$AL$35,ROWS($AL$35:AL68)-1,COLUMNS($AL$35:AL68)-1),"") ->  | AK54: =IF(OFFSET(DE104_3!$AM$35,ROWS($AM$35:AM68)-1,COLUMNS($AM$35:AM68)-1)<>"",OFFSET(DE104_3!$AM$35,ROWS($AM$35:AM68)-1,COLUMNS($AM$35:AM68)-1),"") ->  | AL54: =IF(OFFSET(DE104_3!$AN$35,ROWS($AN$35:AN68)-1,COLUMNS($AN$35:AN68)-1)<>"",OFFSET(DE104_3!$AN$35,ROWS($AN$35:AN68)-1,COLUMNS($AN$35:AN68)-1),"") ->  | AM54: =IF(OFFSET(DE104_3!$AO$35,ROWS($AO$35:AO68)-1,COLUMNS($AO$35:AO68)-1)<>"",OFFSET(DE104_3!$AO$35,ROWS($AO$35:AO68)-1,COLUMNS($AO$35:AO68)-1),"") ->  | AN54: =IF(OFFSET(DE104_3!$AP$35,ROWS($AP$35:AP68)-1,COLUMNS($AP$35:AP68)-1)<>"",OFFSET(DE104_3!$AP$35,ROWS($AP$35:AP68)-1,COLUMNS($AP$35:AP68)-1),"") ->  | AO54: =IF(OFFSET(DE104_3!$AQ$35,ROWS($AQ$35:AQ68)-1,COLUMNS($AQ$35:AQ68)-1)<>"",OFFSET(DE104_3!$AQ$35,ROWS($AQ$35:AQ68)-1,COLUMNS($AQ$35:AQ68)-1),"") -> 
A55: =IF(OFFSET(DE104_3!$C$35,ROWS($C$35:C69)-1,COLUMNS($C$35:C69)-1)<>"",OFFSET(DE104_3!$C$35,ROWS($C$35:C69)-1,COLUMNS($C$35:C69)-1),"") -> (1) DR-601 WITH SW-562. SEE TAB 104-5A FOR INTAKE INFORMATION. | T55: =IF(OFFSET(DE104_3!$V$35,ROWS($V$35:V69)-1,COLUMNS($V$35:V69)-1)<>"",OFFSET(DE104_3!$V$35,ROWS($V$35:V69)-1,COLUMNS($V$35:V69)-1),"") ->  | U55: =IF(OFFSET(DE104_3!$W$35,ROWS($W$35:W69)-1,COLUMNS($W$35:W69)-1)<>"",OFFSET(DE104_3!$W$35,ROWS($W$35:W69)-1,COLUMNS($W$35:W69)-1),"") ->  | V55: =IF(OFFSET(DE104_3!$X$35,ROWS($X$35:X69)-1,COLUMNS($X$35:X69)-1)<>"",OFFSET(DE104_3!$X$35,ROWS($X$35:X69)-1,COLUMNS($X$35:X69)-1),"") ->  | W55: =IF(OFFSET(DE104_3!$Y$35,ROWS($Y$35:Y69)-1,COLUMNS($Y$35:Y69)-1)<>"",OFFSET(DE104_3!$Y$35,ROWS($Y$35:Y69)-1,COLUMNS($Y$35:Y69)-1),"") ->  | X55: =IF(OFFSET(DE104_3!$Z$35,ROWS($Z$35:Z69)-1,COLUMNS($Z$35:Z69)-1)<>"",OFFSET(DE104_3!$Z$35,ROWS($Z$35:Z69)-1,COLUMNS($Z$35:Z69)-1),"") ->  | Y55: =IF(OFFSET(DE104_3!$AA$35,ROWS($AA$35:AA69)-1,COLUMNS($AA$35:AA69)-1)<>"",OFFSET(DE104_3!$AA$35,ROWS($AA$35:AA69)-1,COLUMNS($AA$35:AA69)-1),"") ->  | Z55: =IF(OFFSET(DE104_3!$AB$35,ROWS($AB$35:AB69)-1,COLUMNS($AB$35:AB69)-1)<>"",OFFSET(DE104_3!$AB$35,ROWS($AB$35:AB69)-1,COLUMNS($AB$35:AB69)-1),"") ->  | AA55: =IF(OFFSET(DE104_3!$AC$35,ROWS($AC$35:AC69)-1,COLUMNS($AC$35:AC69)-1)<>"",OFFSET(DE104_3!$AC$35,ROWS($AC$35:AC69)-1,COLUMNS($AC$35:AC69)-1),"") ->  | AB55: =IF(OFFSET(DE104_3!$AD$35,ROWS($AD$35:AD69)-1,COLUMNS($AD$35:AD69)-1)<>"",OFFSET(DE104_3!$AD$35,ROWS($AD$35:AD69)-1,COLUMNS($AD$35:AD69)-1),"") ->  | AC55: =IF(OFFSET(DE104_3!$AE$35,ROWS($AE$35:AE69)-1,COLUMNS($AE$35:AE69)-1)<>"",OFFSET(DE104_3!$AE$35,ROWS($AE$35:AE69)-1,COLUMNS($AE$35:AE69)-1),"") ->  | AD55: =IF(OFFSET(DE104_3!$AF$35,ROWS($AF$35:AF69)-1,COLUMNS($AF$35:AF69)-1)<>"",OFFSET(DE104_3!$AF$35,ROWS($AF$35:AF69)-1,COLUMNS($AF$35:AF69)-1),"") ->  | AE55: =IF(OFFSET(DE104_3!$AG$35,ROWS($AG$35:AG69)-1,COLUMNS($AG$35:AG69)-1)<>"",OFFSET(DE104_3!$AG$35,ROWS($AG$35:AG69)-1,COLUMNS($AG$35:AG69)-1),"") ->  | AF55: =IF(OFFSET(DE104_3!$AH$35,ROWS($AH$35:AH69)-1,COLUMNS($AH$35:AH69)-1)<>"",OFFSET(DE104_3!$AH$35,ROWS($AH$35:AH69)-1,COLUMNS($AH$35:AH69)-1),"") ->  | AG55: =IF(OFFSET(DE104_3!$AI$35,ROWS($AI$35:AI69)-1,COLUMNS($AI$35:AI69)-1)<>"",OFFSET(DE104_3!$AI$35,ROWS($AI$35:AI69)-1,COLUMNS($AI$35:AI69)-1),"") ->  | AH55: =IF(OFFSET(DE104_3!$AJ$35,ROWS($AJ$35:AJ69)-1,COLUMNS($AJ$35:AJ69)-1)<>"",OFFSET(DE104_3!$AJ$35,ROWS($AJ$35:AJ69)-1,COLUMNS($AJ$35:AJ69)-1),"") ->  | AI55: =IF(OFFSET(DE104_3!$AK$35,ROWS($AK$35:AK69)-1,COLUMNS($AK$35:AK69)-1)<>"",OFFSET(DE104_3!$AK$35,ROWS($AK$35:AK69)-1,COLUMNS($AK$35:AK69)-1),"") ->  | AJ55: =IF(OFFSET(DE104_3!$AL$35,ROWS($AL$35:AL69)-1,COLUMNS($AL$35:AL69)-1)<>"",OFFSET(DE104_3!$AL$35,ROWS($AL$35:AL69)-1,COLUMNS($AL$35:AL69)-1),"") ->  | AK55: =IF(OFFSET(DE104_3!$AM$35,ROWS($AM$35:AM69)-1,COLUMNS($AM$35:AM69)-1)<>"",OFFSET(DE104_3!$AM$35,ROWS($AM$35:AM69)-1,COLUMNS($AM$35:AM69)-1),"") ->  | AL55: =IF(OFFSET(DE104_3!$AN$35,ROWS($AN$35:AN69)-1,COLUMNS($AN$35:AN69)-1)<>"",OFFSET(DE104_3!$AN$35,ROWS($AN$35:AN69)-1,COLUMNS($AN$35:AN69)-1),"") ->  | AM55: =IF(OFFSET(DE104_3!$AO$35,ROWS($AO$35:AO69)-1,COLUMNS($AO$35:AO69)-1)<>"",OFFSET(DE104_3!$AO$35,ROWS($AO$35:AO69)-1,COLUMNS($AO$35:AO69)-1),"") ->  | AN55: =IF(OFFSET(DE104_3!$AP$35,ROWS($AP$35:AP69)-1,COLUMNS($AP$35:AP69)-1)<>"",OFFSET(DE104_3!$AP$35,ROWS($AP$35:AP69)-1,COLUMNS($AP$35:AP69)-1),"") ->  | AO55: =IF(OFFSET(DE104_3!$AQ$35,ROWS($AQ$35:AQ69)-1,COLUMNS($AQ$35:AQ69)-1)<>"",OFFSET(DE104_3!$AQ$35,ROWS($AQ$35:AQ69)-1,COLUMNS($AQ$35:AQ69)-1),"") -> 
A56: =IF(OFFSET(DE104_3!$C$35,ROWS($C$35:C70)-1,COLUMNS($C$35:C70)-1)<>"",OFFSET(DE104_3!$C$35,ROWS($C$35:C70)-1,COLUMNS($C$35:C70)-1),"") -> (2) INTO INTAKE 633.74, 68.76' RT. OUT OF INTAKE 633.74, 71.76' RT @ 10° SKEW LEFT. FORM GRADE 638.68 | T56: =IF(OFFSET(DE104_3!$V$35,ROWS($V$35:V70)-1,COLUMNS($V$35:V70)-1)<>"",OFFSET(DE104_3!$V$35,ROWS($V$35:V70)-1,COLUMNS($V$35:V70)-1),"") ->  | U56: =IF(OFFSET(DE104_3!$W$35,ROWS($W$35:W70)-1,COLUMNS($W$35:W70)-1)<>"",OFFSET(DE104_3!$W$35,ROWS($W$35:W70)-1,COLUMNS($W$35:W70)-1),"") ->  | V56: =IF(OFFSET(DE104_3!$X$35,ROWS($X$35:X70)-1,COLUMNS($X$35:X70)-1)<>"",OFFSET(DE104_3!$X$35,ROWS($X$35:X70)-1,COLUMNS($X$35:X70)-1),"") ->  | W56: =IF(OFFSET(DE104_3!$Y$35,ROWS($Y$35:Y70)-1,COLUMNS($Y$35:Y70)-1)<>"",OFFSET(DE104_3!$Y$35,ROWS($Y$35:Y70)-1,COLUMNS($Y$35:Y70)-1),"") ->  | X56: =IF(OFFSET(DE104_3!$Z$35,ROWS($Z$35:Z70)-1,COLUMNS($Z$35:Z70)-1)<>"",OFFSET(DE104_3!$Z$35,ROWS($Z$35:Z70)-1,COLUMNS($Z$35:Z70)-1),"") ->  | Y56: =IF(OFFSET(DE104_3!$AA$35,ROWS($AA$35:AA70)-1,COLUMNS($AA$35:AA70)-1)<>"",OFFSET(DE104_3!$AA$35,ROWS($AA$35:AA70)-1,COLUMNS($AA$35:AA70)-1),"") ->  | Z56: =IF(OFFSET(DE104_3!$AB$35,ROWS($AB$35:AB70)-1,COLUMNS($AB$35:AB70)-1)<>"",OFFSET(DE104_3!$AB$35,ROWS($AB$35:AB70)-1,COLUMNS($AB$35:AB70)-1),"") ->  | AA56: =IF(OFFSET(DE104_3!$AC$35,ROWS($AC$35:AC70)-1,COLUMNS($AC$35:AC70)-1)<>"",OFFSET(DE104_3!$AC$35,ROWS($AC$35:AC70)-1,COLUMNS($AC$35:AC70)-1),"") ->  | AB56: =IF(OFFSET(DE104_3!$AD$35,ROWS($AD$35:AD70)-1,COLUMNS($AD$35:AD70)-1)<>"",OFFSET(DE104_3!$AD$35,ROWS($AD$35:AD70)-1,COLUMNS($AD$35:AD70)-1),"") ->  | AC56: =IF(OFFSET(DE104_3!$AE$35,ROWS($AE$35:AE70)-1,COLUMNS($AE$35:AE70)-1)<>"",OFFSET(DE104_3!$AE$35,ROWS($AE$35:AE70)-1,COLUMNS($AE$35:AE70)-1),"") ->  | AD56: =IF(OFFSET(DE104_3!$AF$35,ROWS($AF$35:AF70)-1,COLUMNS($AF$35:AF70)-1)<>"",OFFSET(DE104_3!$AF$35,ROWS($AF$35:AF70)-1,COLUMNS($AF$35:AF70)-1),"") ->  | AE56: =IF(OFFSET(DE104_3!$AG$35,ROWS($AG$35:AG70)-1,COLUMNS($AG$35:AG70)-1)<>"",OFFSET(DE104_3!$AG$35,ROWS($AG$35:AG70)-1,COLUMNS($AG$35:AG70)-1),"") ->  | AF56: =IF(OFFSET(DE104_3!$AH$35,ROWS($AH$35:AH70)-1,COLUMNS($AH$35:AH70)-1)<>"",OFFSET(DE104_3!$AH$35,ROWS($AH$35:AH70)-1,COLUMNS($AH$35:AH70)-1),"") ->  | AG56: =IF(OFFSET(DE104_3!$AI$35,ROWS($AI$35:AI70)-1,COLUMNS($AI$35:AI70)-1)<>"",OFFSET(DE104_3!$AI$35,ROWS($AI$35:AI70)-1,COLUMNS($AI$35:AI70)-1),"") ->  | AH56: =IF(OFFSET(DE104_3!$AJ$35,ROWS($AJ$35:AJ70)-1,COLUMNS($AJ$35:AJ70)-1)<>"",OFFSET(DE104_3!$AJ$35,ROWS($AJ$35:AJ70)-1,COLUMNS($AJ$35:AJ70)-1),"") ->  | AI56: =IF(OFFSET(DE104_3!$AK$35,ROWS($AK$35:AK70)-1,COLUMNS($AK$35:AK70)-1)<>"",OFFSET(DE104_3!$AK$35,ROWS($AK$35:AK70)-1,COLUMNS($AK$35:AK70)-1),"") ->  | AJ56: =IF(OFFSET(DE104_3!$AL$35,ROWS($AL$35:AL70)-1,COLUMNS($AL$35:AL70)-1)<>"",OFFSET(DE104_3!$AL$35,ROWS($AL$35:AL70)-1,COLUMNS($AL$35:AL70)-1),"") ->  | AK56: =IF(OFFSET(DE104_3!$AM$35,ROWS($AM$35:AM70)-1,COLUMNS($AM$35:AM70)-1)<>"",OFFSET(DE104_3!$AM$35,ROWS($AM$35:AM70)-1,COLUMNS($AM$35:AM70)-1),"") ->  | AL56: =IF(OFFSET(DE104_3!$AN$35,ROWS($AN$35:AN70)-1,COLUMNS($AN$35:AN70)-1)<>"",OFFSET(DE104_3!$AN$35,ROWS($AN$35:AN70)-1,COLUMNS($AN$35:AN70)-1),"") ->  | AM56: =IF(OFFSET(DE104_3!$AO$35,ROWS($AO$35:AO70)-1,COLUMNS($AO$35:AO70)-1)<>"",OFFSET(DE104_3!$AO$35,ROWS($AO$35:AO70)-1,COLUMNS($AO$35:AO70)-1),"") ->  | AN56: =IF(OFFSET(DE104_3!$AP$35,ROWS($AP$35:AP70)-1,COLUMNS($AP$35:AP70)-1)<>"",OFFSET(DE104_3!$AP$35,ROWS($AP$35:AP70)-1,COLUMNS($AP$35:AP70)-1),"") ->  | AO56: =IF(OFFSET(DE104_3!$AQ$35,ROWS($AQ$35:AQ70)-1,COLUMNS($AQ$35:AQ70)-1)<>"",OFFSET(DE104_3!$AQ$35,ROWS($AQ$35:AQ70)-1,COLUMNS($AQ$35:AQ70)-1),"") -> 
A57: =IF(OFFSET(DE104_3!$C$35,ROWS($C$35:C71)-1,COLUMNS($C$35:C71)-1)<>"",OFFSET(DE104_3!$C$35,ROWS($C$35:C71)-1,COLUMNS($C$35:C71)-1),"") -> (3) UNCL. ARCH | T57: =IF(OFFSET(DE104_3!$V$35,ROWS($V$35:V71)-1,COLUMNS($V$35:V71)-1)<>"",OFFSET(DE104_3!$V$35,ROWS($V$35:V71)-1,COLUMNS($V$35:V71)-1),"") ->  | U57: =IF(OFFSET(DE104_3!$W$35,ROWS($W$35:W71)-1,COLUMNS($W$35:W71)-1)<>"",OFFSET(DE104_3!$W$35,ROWS($W$35:W71)-1,COLUMNS($W$35:W71)-1),"") ->  | V57: =IF(OFFSET(DE104_3!$X$35,ROWS($X$35:X71)-1,COLUMNS($X$35:X71)-1)<>"",OFFSET(DE104_3!$X$35,ROWS($X$35:X71)-1,COLUMNS($X$35:X71)-1),"") ->  | W57: =IF(OFFSET(DE104_3!$Y$35,ROWS($Y$35:Y71)-1,COLUMNS($Y$35:Y71)-1)<>"",OFFSET(DE104_3!$Y$35,ROWS($Y$35:Y71)-1,COLUMNS($Y$35:Y71)-1),"") ->  | X57: =IF(OFFSET(DE104_3!$Z$35,ROWS($Z$35:Z71)-1,COLUMNS($Z$35:Z71)-1)<>"",OFFSET(DE104_3!$Z$35,ROWS($Z$35:Z71)-1,COLUMNS($Z$35:Z71)-1),"") ->  | Y57: =IF(OFFSET(DE104_3!$AA$35,ROWS($AA$35:AA71)-1,COLUMNS($AA$35:AA71)-1)<>"",OFFSET(DE104_3!$AA$35,ROWS($AA$35:AA71)-1,COLUMNS($AA$35:AA71)-1),"") ->  | Z57: =IF(OFFSET(DE104_3!$AB$35,ROWS($AB$35:AB71)-1,COLUMNS($AB$35:AB71)-1)<>"",OFFSET(DE104_3!$AB$35,ROWS($AB$35:AB71)-1,COLUMNS($AB$35:AB71)-1),"") ->  | AA57: =IF(OFFSET(DE104_3!$AC$35,ROWS($AC$35:AC71)-1,COLUMNS($AC$35:AC71)-1)<>"",OFFSET(DE104_3!$AC$35,ROWS($AC$35:AC71)-1,COLUMNS($AC$35:AC71)-1),"") ->  | AB57: =IF(OFFSET(DE104_3!$AD$35,ROWS($AD$35:AD71)-1,COLUMNS($AD$35:AD71)-1)<>"",OFFSET(DE104_3!$AD$35,ROWS($AD$35:AD71)-1,COLUMNS($AD$35:AD71)-1),"") ->  | AC57: =IF(OFFSET(DE104_3!$AE$35,ROWS($AE$35:AE71)-1,COLUMNS($AE$35:AE71)-1)<>"",OFFSET(DE104_3!$AE$35,ROWS($AE$35:AE71)-1,COLUMNS($AE$35:AE71)-1),"") ->  | AD57: =IF(OFFSET(DE104_3!$AF$35,ROWS($AF$35:AF71)-1,COLUMNS($AF$35:AF71)-1)<>"",OFFSET(DE104_3!$AF$35,ROWS($AF$35:AF71)-1,COLUMNS($AF$35:AF71)-1),"") ->  | AE57: =IF(OFFSET(DE104_3!$AG$35,ROWS($AG$35:AG71)-1,COLUMNS($AG$35:AG71)-1)<>"",OFFSET(DE104_3!$AG$35,ROWS($AG$35:AG71)-1,COLUMNS($AG$35:AG71)-1),"") ->  | AF57: =IF(OFFSET(DE104_3!$AH$35,ROWS($AH$35:AH71)-1,COLUMNS($AH$35:AH71)-1)<>"",OFFSET(DE104_3!$AH$35,ROWS($AH$35:AH71)-1,COLUMNS($AH$35:AH71)-1),"") ->  | AG57: =IF(OFFSET(DE104_3!$AI$35,ROWS($AI$35:AI71)-1,COLUMNS($AI$35:AI71)-1)<>"",OFFSET(DE104_3!$AI$35,ROWS($AI$35:AI71)-1,COLUMNS($AI$35:AI71)-1),"") ->  | AH57: =IF(OFFSET(DE104_3!$AJ$35,ROWS($AJ$35:AJ71)-1,COLUMNS($AJ$35:AJ71)-1)<>"",OFFSET(DE104_3!$AJ$35,ROWS($AJ$35:AJ71)-1,COLUMNS($AJ$35:AJ71)-1),"") ->  | AI57: =IF(OFFSET(DE104_3!$AK$35,ROWS($AK$35:AK71)-1,COLUMNS($AK$35:AK71)-1)<>"",OFFSET(DE104_3!$AK$35,ROWS($AK$35:AK71)-1,COLUMNS($AK$35:AK71)-1),"") ->  | AJ57: =IF(OFFSET(DE104_3!$AL$35,ROWS($AL$35:AL71)-1,COLUMNS($AL$35:AL71)-1)<>"",OFFSET(DE104_3!$AL$35,ROWS($AL$35:AL71)-1,COLUMNS($AL$35:AL71)-1),"") ->  | AK57: =IF(OFFSET(DE104_3!$AM$35,ROWS($AM$35:AM71)-1,COLUMNS($AM$35:AM71)-1)<>"",OFFSET(DE104_3!$AM$35,ROWS($AM$35:AM71)-1,COLUMNS($AM$35:AM71)-1),"") ->  | AL57: =IF(OFFSET(DE104_3!$AN$35,ROWS($AN$35:AN71)-1,COLUMNS($AN$35:AN71)-1)<>"",OFFSET(DE104_3!$AN$35,ROWS($AN$35:AN71)-1,COLUMNS($AN$35:AN71)-1),"") ->  | AM57: =IF(OFFSET(DE104_3!$AO$35,ROWS($AO$35:AO71)-1,COLUMNS($AO$35:AO71)-1)<>"",OFFSET(DE104_3!$AO$35,ROWS($AO$35:AO71)-1,COLUMNS($AO$35:AO71)-1),"") ->  | AN57: =IF(OFFSET(DE104_3!$AP$35,ROWS($AP$35:AP71)-1,COLUMNS($AP$35:AP71)-1)<>"",OFFSET(DE104_3!$AP$35,ROWS($AP$35:AP71)-1,COLUMNS($AP$35:AP71)-1),"") ->  | AO57: =IF(OFFSET(DE104_3!$AQ$35,ROWS($AQ$35:AQ71)-1,COLUMNS($AQ$35:AQ71)-1)<>"",OFFSET(DE104_3!$AQ$35,ROWS($AQ$35:AQ71)-1,COLUMNS($AQ$35:AQ71)-1),"") -> 
A58: =IF(OFFSET(DE104_3!$C$35,ROWS($C$35:C72)-1,COLUMNS($C$35:C72)-1)<>"",OFFSET(DE104_3!$C$35,ROWS($C$35:C72)-1,COLUMNS($C$35:C72)-1),"") ->  | B58: =IF(OFFSET(DE104_3!$D$35,ROWS($D$35:D72)-1,COLUMNS($D$35:D72)-1)<>"",OFFSET(DE104_3!$D$35,ROWS($D$35:D72)-1,COLUMNS($D$35:D72)-1),"") ->  | C58: =IF(OFFSET(DE104_3!$E$35,ROWS($E$35:E72)-1,COLUMNS($E$35:E72)-1)<>"",OFFSET(DE104_3!$E$35,ROWS($E$35:E72)-1,COLUMNS($E$35:E72)-1),"") ->  | D58: =IF(OFFSET(DE104_3!$F$35,ROWS($F$35:F72)-1,COLUMNS($F$35:F72)-1)<>"",OFFSET(DE104_3!$F$35,ROWS($F$35:F72)-1,COLUMNS($F$35:F72)-1),"") ->  | E58: =IF(OFFSET(DE104_3!$G$35,ROWS($G$35:G72)-1,COLUMNS($G$35:G72)-1)<>"",OFFSET(DE104_3!$G$35,ROWS($G$35:G72)-1,COLUMNS($G$35:G72)-1),"") ->  | F58: =IF(OFFSET(DE104_3!$H$35,ROWS($H$35:H72)-1,COLUMNS($H$35:H72)-1)<>"",OFFSET(DE104_3!$H$35,ROWS($H$35:H72)-1,COLUMNS($H$35:H72)-1),"") ->  | G58: =IF(OFFSET(DE104_3!$I$35,ROWS($I$35:I72)-1,COLUMNS($I$35:I72)-1)<>"",OFFSET(DE104_3!$I$35,ROWS($I$35:I72)-1,COLUMNS($I$35:I72)-1),"") ->  | H58: =IF(OFFSET(DE104_3!$J$35,ROWS($J$35:J72)-1,COLUMNS($J$35:J72)-1)<>"",OFFSET(DE104_3!$J$35,ROWS($J$35:J72)-1,COLUMNS($J$35:J72)-1),"") ->  | I58: =IF(OFFSET(DE104_3!$K$35,ROWS($K$35:K72)-1,COLUMNS($K$35:K72)-1)<>"",OFFSET(DE104_3!$K$35,ROWS($K$35:K72)-1,COLUMNS($K$35:K72)-1),"") ->  | J58: =IF(OFFSET(DE104_3!$L$35,ROWS($L$35:L72)-1,COLUMNS($L$35:L72)-1)<>"",OFFSET(DE104_3!$L$35,ROWS($L$35:L72)-1,COLUMNS($L$35:L72)-1),"") ->  | K58: =IF(OFFSET(DE104_3!$M$35,ROWS($M$35:M72)-1,COLUMNS($M$35:M72)-1)<>"",OFFSET(DE104_3!$M$35,ROWS($M$35:M72)-1,COLUMNS($M$35:M72)-1),"") ->  | L58: =IF(OFFSET(DE104_3!$N$35,ROWS($N$35:N72)-1,COLUMNS($N$35:N72)-1)<>"",OFFSET(DE104_3!$N$35,ROWS($N$35:N72)-1,COLUMNS($N$35:N72)-1),"") ->  | M58: =IF(OFFSET(DE104_3!$O$35,ROWS($O$35:O72)-1,COLUMNS($O$35:O72)-1)<>"",OFFSET(DE104_3!$O$35,ROWS($O$35:O72)-1,COLUMNS($O$35:O72)-1),"") ->  | N58: =IF(OFFSET(DE104_3!$P$35,ROWS($P$35:P72)-1,COLUMNS($P$35:P72)-1)<>"",OFFSET(DE104_3!$P$35,ROWS($P$35:P72)-1,COLUMNS($P$35:P72)-1),"") ->  | O58: =IF(OFFSET(DE104_3!$Q$35,ROWS($Q$35:Q72)-1,COLUMNS($Q$35:Q72)-1)<>"",OFFSET(DE104_3!$Q$35,ROWS($Q$35:Q72)-1,COLUMNS($Q$35:Q72)-1),"") ->  | P58: =IF(OFFSET(DE104_3!$R$35,ROWS($R$35:R72)-1,COLUMNS($R$35:R72)-1)<>"",OFFSET(DE104_3!$R$35,ROWS($R$35:R72)-1,COLUMNS($R$35:R72)-1),"") ->  | Q58: =IF(OFFSET(DE104_3!$S$35,ROWS($S$35:S72)-1,COLUMNS($S$35:S72)-1)<>"",OFFSET(DE104_3!$S$35,ROWS($S$35:S72)-1,COLUMNS($S$35:S72)-1),"") ->  | R58: =IF(OFFSET(DE104_3!$T$35,ROWS($T$35:T72)-1,COLUMNS($T$35:T72)-1)<>"",OFFSET(DE104_3!$T$35,ROWS($T$35:T72)-1,COLUMNS($T$35:T72)-1),"") ->  | S58: =IF(OFFSET(DE104_3!$U$35,ROWS($U$35:U72)-1,COLUMNS($U$35:U72)-1)<>"",OFFSET(DE104_3!$U$35,ROWS($U$35:U72)-1,COLUMNS($U$35:U72)-1),"") ->  | T58: =IF(OFFSET(DE104_3!$V$35,ROWS($V$35:V72)-1,COLUMNS($V$35:V72)-1)<>"",OFFSET(DE104_3!$V$35,ROWS($V$35:V72)-1,COLUMNS($V$35:V72)-1),"") ->  | U58: =IF(OFFSET(DE104_3!$W$35,ROWS($W$35:W72)-1,COLUMNS($W$35:W72)-1)<>"",OFFSET(DE104_3!$W$35,ROWS($W$35:W72)-1,COLUMNS($W$35:W72)-1),"") ->  | V58: =IF(OFFSET(DE104_3!$X$35,ROWS($X$35:X72)-1,COLUMNS($X$35:X72)-1)<>"",OFFSET(DE104_3!$X$35,ROWS($X$35:X72)-1,COLUMNS($X$35:X72)-1),"") ->  | W58: =IF(OFFSET(DE104_3!$Y$35,ROWS($Y$35:Y72)-1,COLUMNS($Y$35:Y72)-1)<>"",OFFSET(DE104_3!$Y$35,ROWS($Y$35:Y72)-1,COLUMNS($Y$35:Y72)-1),"") ->  | X58: =IF(OFFSET(DE104_3!$Z$35,ROWS($Z$35:Z72)-1,COLUMNS($Z$35:Z72)-1)<>"",OFFSET(DE104_3!$Z$35,ROWS($Z$35:Z72)-1,COLUMNS($Z$35:Z72)-1),"") ->  | Y58: =IF(OFFSET(DE104_3!$AA$35,ROWS($AA$35:AA72)-1,COLUMNS($AA$35:AA72)-1)<>"",OFFSET(DE104_3!$AA$35,ROWS($AA$35:AA72)-1,COLUMNS($AA$35:AA72)-1),"") ->  | Z58: =IF(OFFSET(DE104_3!$AB$35,ROWS($AB$35:AB72)-1,COLUMNS($AB$35:AB72)-1)<>"",OFFSET(DE104_3!$AB$35,ROWS($AB$35:AB72)-1,COLUMNS($AB$35:AB72)-1),"") ->  | AA58: =IF(OFFSET(DE104_3!$AC$35,ROWS($AC$35:AC72)-1,COLUMNS($AC$35:AC72)-1)<>"",OFFSET(DE104_3!$AC$35,ROWS($AC$35:AC72)-1,COLUMNS($AC$35:AC72)-1),"") ->  | AB58: =IF(OFFSET(DE104_3!$AD$35,ROWS($AD$35:AD72)-1,COLUMNS($AD$35:AD72)-1)<>"",OFFSET(DE104_3!$AD$35,ROWS($AD$35:AD72)-1,COLUMNS($AD$35:AD72)-1),"") ->  | AC58: =IF(OFFSET(DE104_3!$AE$35,ROWS($AE$35:AE72)-1,COLUMNS($AE$35:AE72)-1)<>"",OFFSET(DE104_3!$AE$35,ROWS($AE$35:AE72)-1,COLUMNS($AE$35:AE72)-1),"") ->  | AD58: =IF(OFFSET(DE104_3!$AF$35,ROWS($AF$35:AF72)-1,COLUMNS($AF$35:AF72)-1)<>"",OFFSET(DE104_3!$AF$35,ROWS($AF$35:AF72)-1,COLUMNS($AF$35:AF72)-1),"") ->  | AE58: =IF(OFFSET(DE104_3!$AG$35,ROWS($AG$35:AG72)-1,COLUMNS($AG$35:AG72)-1)<>"",OFFSET(DE104_3!$AG$35,ROWS($AG$35:AG72)-1,COLUMNS($AG$35:AG72)-1),"") ->  | AF58: =IF(OFFSET(DE104_3!$AH$35,ROWS($AH$35:AH72)-1,COLUMNS($AH$35:AH72)-1)<>"",OFFSET(DE104_3!$AH$35,ROWS($AH$35:AH72)-1,COLUMNS($AH$35:AH72)-1),"") ->  | AG58: =IF(OFFSET(DE104_3!$AI$35,ROWS($AI$35:AI72)-1,COLUMNS($AI$35:AI72)-1)<>"",OFFSET(DE104_3!$AI$35,ROWS($AI$35:AI72)-1,COLUMNS($AI$35:AI72)-1),"") ->  | AH58: =IF(OFFSET(DE104_3!$AJ$35,ROWS($AJ$35:AJ72)-1,COLUMNS($AJ$35:AJ72)-1)<>"",OFFSET(DE104_3!$AJ$35,ROWS($AJ$35:AJ72)-1,COLUMNS($AJ$35:AJ72)-1),"") ->  | AI58: =IF(OFFSET(DE104_3!$AK$35,ROWS($AK$35:AK72)-1,COLUMNS($AK$35:AK72)-1)<>"",OFFSET(DE104_3!$AK$35,ROWS($AK$35:AK72)-1,COLUMNS($AK$35:AK72)-1),"") ->  | AJ58: =IF(OFFSET(DE104_3!$AL$35,ROWS($AL$35:AL72)-1,COLUMNS($AL$35:AL72)-1)<>"",OFFSET(DE104_3!$AL$35,ROWS($AL$35:AL72)-1,COLUMNS($AL$35:AL72)-1),"") ->  | AK58: =IF(OFFSET(DE104_3!$AM$35,ROWS($AM$35:AM72)-1,COLUMNS($AM$35:AM72)-1)<>"",OFFSET(DE104_3!$AM$35,ROWS($AM$35:AM72)-1,COLUMNS($AM$35:AM72)-1),"") ->  | AL58: =IF(OFFSET(DE104_3!$AN$35,ROWS($AN$35:AN72)-1,COLUMNS($AN$35:AN72)-1)<>"",OFFSET(DE104_3!$AN$35,ROWS($AN$35:AN72)-1,COLUMNS($AN$35:AN72)-1),"") ->  | AM58: =IF(OFFSET(DE104_3!$AO$35,ROWS($AO$35:AO72)-1,COLUMNS($AO$35:AO72)-1)<>"",OFFSET(DE104_3!$AO$35,ROWS($AO$35:AO72)-1,COLUMNS($AO$35:AO72)-1),"") ->  | AN58: =IF(OFFSET(DE104_3!$AP$35,ROWS($AP$35:AP72)-1,COLUMNS($AP$35:AP72)-1)<>"",OFFSET(DE104_3!$AP$35,ROWS($AP$35:AP72)-1,COLUMNS($AP$35:AP72)-1),"") ->  | AO58: =IF(OFFSET(DE104_3!$AQ$35,ROWS($AQ$35:AQ72)-1,COLUMNS($AQ$35:AQ72)-1)<>"",OFFSET(DE104_3!$AQ$35,ROWS($AQ$35:AQ72)-1,COLUMNS($AQ$35:AQ72)-1),"") -> 
A59: =IF(OFFSET(DE104_3!$C$35,ROWS($C$35:C73)-1,COLUMNS($C$35:C73)-1)<>"",OFFSET(DE104_3!$C$35,ROWS($C$35:C73)-1,COLUMNS($C$35:C73)-1),"") ->  | B59: =IF(OFFSET(DE104_3!$D$35,ROWS($D$35:D73)-1,COLUMNS($D$35:D73)-1)<>"",OFFSET(DE104_3!$D$35,ROWS($D$35:D73)-1,COLUMNS($D$35:D73)-1),"") ->  | C59: =IF(OFFSET(DE104_3!$E$35,ROWS($E$35:E73)-1,COLUMNS($E$35:E73)-1)<>"",OFFSET(DE104_3!$E$35,ROWS($E$35:E73)-1,COLUMNS($E$35:E73)-1),"") ->  | D59: =IF(OFFSET(DE104_3!$F$35,ROWS($F$35:F73)-1,COLUMNS($F$35:F73)-1)<>"",OFFSET(DE104_3!$F$35,ROWS($F$35:F73)-1,COLUMNS($F$35:F73)-1),"") ->  | E59: =IF(OFFSET(DE104_3!$G$35,ROWS($G$35:G73)-1,COLUMNS($G$35:G73)-1)<>"",OFFSET(DE104_3!$G$35,ROWS($G$35:G73)-1,COLUMNS($G$35:G73)-1),"") ->  | F59: =IF(OFFSET(DE104_3!$H$35,ROWS($H$35:H73)-1,COLUMNS($H$35:H73)-1)<>"",OFFSET(DE104_3!$H$35,ROWS($H$35:H73)-1,COLUMNS($H$35:H73)-1),"") ->  | G59: =IF(OFFSET(DE104_3!$I$35,ROWS($I$35:I73)-1,COLUMNS($I$35:I73)-1)<>"",OFFSET(DE104_3!$I$35,ROWS($I$35:I73)-1,COLUMNS($I$35:I73)-1),"") ->  | H59: =IF(OFFSET(DE104_3!$J$35,ROWS($J$35:J73)-1,COLUMNS($J$35:J73)-1)<>"",OFFSET(DE104_3!$J$35,ROWS($J$35:J73)-1,COLUMNS($J$35:J73)-1),"") ->  | I59: =IF(OFFSET(DE104_3!$K$35,ROWS($K$35:K73)-1,COLUMNS($K$35:K73)-1)<>"",OFFSET(DE104_3!$K$35,ROWS($K$35:K73)-1,COLUMNS($K$35:K73)-1),"") ->  | J59: =IF(OFFSET(DE104_3!$L$35,ROWS($L$35:L73)-1,COLUMNS($L$35:L73)-1)<>"",OFFSET(DE104_3!$L$35,ROWS($L$35:L73)-1,COLUMNS($L$35:L73)-1),"") ->  | K59: =IF(OFFSET(DE104_3!$M$35,ROWS($M$35:M73)-1,COLUMNS($M$35:M73)-1)<>"",OFFSET(DE104_3!$M$35,ROWS($M$35:M73)-1,COLUMNS($M$35:M73)-1),"") ->  | L59: =IF(OFFSET(DE104_3!$N$35,ROWS($N$35:N73)-1,COLUMNS($N$35:N73)-1)<>"",OFFSET(DE104_3!$N$35,ROWS($N$35:N73)-1,COLUMNS($N$35:N73)-1),"") ->  | M59: =IF(OFFSET(DE104_3!$O$35,ROWS($O$35:O73)-1,COLUMNS($O$35:O73)-1)<>"",OFFSET(DE104_3!$O$35,ROWS($O$35:O73)-1,COLUMNS($O$35:O73)-1),"") ->  | N59: =IF(OFFSET(DE104_3!$P$35,ROWS($P$35:P73)-1,COLUMNS($P$35:P73)-1)<>"",OFFSET(DE104_3!$P$35,ROWS($P$35:P73)-1,COLUMNS($P$35:P73)-1),"") ->  | O59: =IF(OFFSET(DE104_3!$Q$35,ROWS($Q$35:Q73)-1,COLUMNS($Q$35:Q73)-1)<>"",OFFSET(DE104_3!$Q$35,ROWS($Q$35:Q73)-1,COLUMNS($Q$35:Q73)-1),"") ->  | P59: =IF(OFFSET(DE104_3!$R$35,ROWS($R$35:R73)-1,COLUMNS($R$35:R73)-1)<>"",OFFSET(DE104_3!$R$35,ROWS($R$35:R73)-1,COLUMNS($R$35:R73)-1),"") ->  | Q59: =IF(OFFSET(DE104_3!$S$35,ROWS($S$35:S73)-1,COLUMNS($S$35:S73)-1)<>"",OFFSET(DE104_3!$S$35,ROWS($S$35:S73)-1,COLUMNS($S$35:S73)-1),"") ->  | R59: =IF(OFFSET(DE104_3!$T$35,ROWS($T$35:T73)-1,COLUMNS($T$35:T73)-1)<>"",OFFSET(DE104_3!$T$35,ROWS($T$35:T73)-1,COLUMNS($T$35:T73)-1),"") ->  | S59: =IF(OFFSET(DE104_3!$U$35,ROWS($U$35:U73)-1,COLUMNS($U$35:U73)-1)<>"",OFFSET(DE104_3!$U$35,ROWS($U$35:U73)-1,COLUMNS($U$35:U73)-1),"") ->  | T59: =IF(OFFSET(DE104_3!$V$35,ROWS($V$35:V73)-1,COLUMNS($V$35:V73)-1)<>"",OFFSET(DE104_3!$V$35,ROWS($V$35:V73)-1,COLUMNS($V$35:V73)-1),"") ->  | U59: =IF(OFFSET(DE104_3!$W$35,ROWS($W$35:W73)-1,COLUMNS($W$35:W73)-1)<>"",OFFSET(DE104_3!$W$35,ROWS($W$35:W73)-1,COLUMNS($W$35:W73)-1),"") ->  | V59: =IF(OFFSET(DE104_3!$X$35,ROWS($X$35:X73)-1,COLUMNS($X$35:X73)-1)<>"",OFFSET(DE104_3!$X$35,ROWS($X$35:X73)-1,COLUMNS($X$35:X73)-1),"") ->  | W59: =IF(OFFSET(DE104_3!$Y$35,ROWS($Y$35:Y73)-1,COLUMNS($Y$35:Y73)-1)<>"",OFFSET(DE104_3!$Y$35,ROWS($Y$35:Y73)-1,COLUMNS($Y$35:Y73)-1),"") ->  | X59: =IF(OFFSET(DE104_3!$Z$35,ROWS($Z$35:Z73)-1,COLUMNS($Z$35:Z73)-1)<>"",OFFSET(DE104_3!$Z$35,ROWS($Z$35:Z73)-1,COLUMNS($Z$35:Z73)-1),"") ->  | Y59: =IF(OFFSET(DE104_3!$AA$35,ROWS($AA$35:AA73)-1,COLUMNS($AA$35:AA73)-1)<>"",OFFSET(DE104_3!$AA$35,ROWS($AA$35:AA73)-1,COLUMNS($AA$35:AA73)-1),"") ->  | Z59: =IF(OFFSET(DE104_3!$AB$35,ROWS($AB$35:AB73)-1,COLUMNS($AB$35:AB73)-1)<>"",OFFSET(DE104_3!$AB$35,ROWS($AB$35:AB73)-1,COLUMNS($AB$35:AB73)-1),"") ->  | AA59: =IF(OFFSET(DE104_3!$AC$35,ROWS($AC$35:AC73)-1,COLUMNS($AC$35:AC73)-1)<>"",OFFSET(DE104_3!$AC$35,ROWS($AC$35:AC73)-1,COLUMNS($AC$35:AC73)-1),"") ->  | AB59: =IF(OFFSET(DE104_3!$AD$35,ROWS($AD$35:AD73)-1,COLUMNS($AD$35:AD73)-1)<>"",OFFSET(DE104_3!$AD$35,ROWS($AD$35:AD73)-1,COLUMNS($AD$35:AD73)-1),"") ->  | AC59: =IF(OFFSET(DE104_3!$AE$35,ROWS($AE$35:AE73)-1,COLUMNS($AE$35:AE73)-1)<>"",OFFSET(DE104_3!$AE$35,ROWS($AE$35:AE73)-1,COLUMNS($AE$35:AE73)-1),"") ->  | AD59: =IF(OFFSET(DE104_3!$AF$35,ROWS($AF$35:AF73)-1,COLUMNS($AF$35:AF73)-1)<>"",OFFSET(DE104_3!$AF$35,ROWS($AF$35:AF73)-1,COLUMNS($AF$35:AF73)-1),"") ->  | AE59: =IF(OFFSET(DE104_3!$AG$35,ROWS($AG$35:AG73)-1,COLUMNS($AG$35:AG73)-1)<>"",OFFSET(DE104_3!$AG$35,ROWS($AG$35:AG73)-1,COLUMNS($AG$35:AG73)-1),"") ->  | AF59: =IF(OFFSET(DE104_3!$AH$35,ROWS($AH$35:AH73)-1,COLUMNS($AH$35:AH73)-1)<>"",OFFSET(DE104_3!$AH$35,ROWS($AH$35:AH73)-1,COLUMNS($AH$35:AH73)-1),"") ->  | AG59: =IF(OFFSET(DE104_3!$AI$35,ROWS($AI$35:AI73)-1,COLUMNS($AI$35:AI73)-1)<>"",OFFSET(DE104_3!$AI$35,ROWS($AI$35:AI73)-1,COLUMNS($AI$35:AI73)-1),"") ->  | AH59: =IF(OFFSET(DE104_3!$AJ$35,ROWS($AJ$35:AJ73)-1,COLUMNS($AJ$35:AJ73)-1)<>"",OFFSET(DE104_3!$AJ$35,ROWS($AJ$35:AJ73)-1,COLUMNS($AJ$35:AJ73)-1),"") ->  | AI59: =IF(OFFSET(DE104_3!$AK$35,ROWS($AK$35:AK73)-1,COLUMNS($AK$35:AK73)-1)<>"",OFFSET(DE104_3!$AK$35,ROWS($AK$35:AK73)-1,COLUMNS($AK$35:AK73)-1),"") ->  | AJ59: =IF(OFFSET(DE104_3!$AL$35,ROWS($AL$35:AL73)-1,COLUMNS($AL$35:AL73)-1)<>"",OFFSET(DE104_3!$AL$35,ROWS($AL$35:AL73)-1,COLUMNS($AL$35:AL73)-1),"") ->  | AK59: =IF(OFFSET(DE104_3!$AM$35,ROWS($AM$35:AM73)-1,COLUMNS($AM$35:AM73)-1)<>"",OFFSET(DE104_3!$AM$35,ROWS($AM$35:AM73)-1,COLUMNS($AM$35:AM73)-1),"") ->  | AL59: =IF(OFFSET(DE104_3!$AN$35,ROWS($AN$35:AN73)-1,COLUMNS($AN$35:AN73)-1)<>"",OFFSET(DE104_3!$AN$35,ROWS($AN$35:AN73)-1,COLUMNS($AN$35:AN73)-1),"") ->  | AM59: =IF(OFFSET(DE104_3!$AO$35,ROWS($AO$35:AO73)-1,COLUMNS($AO$35:AO73)-1)<>"",OFFSET(DE104_3!$AO$35,ROWS($AO$35:AO73)-1,COLUMNS($AO$35:AO73)-1),"") ->  | AN59: =IF(OFFSET(DE104_3!$AP$35,ROWS($AP$35:AP73)-1,COLUMNS($AP$35:AP73)-1)<>"",OFFSET(DE104_3!$AP$35,ROWS($AP$35:AP73)-1,COLUMNS($AP$35:AP73)-1),"") ->  | AO59: =IF(OFFSET(DE104_3!$AQ$35,ROWS($AQ$35:AQ73)-1,COLUMNS($AQ$35:AQ73)-1)<>"",OFFSET(DE104_3!$AQ$35,ROWS($AQ$35:AQ73)-1,COLUMNS($AQ$35:AQ73)-1),"") -> 
A60: =IF(OFFSET(DE104_3!$C$35,ROWS($C$35:C74)-1,COLUMNS($C$35:C74)-1)<>"",OFFSET(DE104_3!$C$35,ROWS($C$35:C74)-1,COLUMNS($C$35:C74)-1),"") ->  | B60: =IF(OFFSET(DE104_3!$D$35,ROWS($D$35:D74)-1,COLUMNS($D$35:D74)-1)<>"",OFFSET(DE104_3!$D$35,ROWS($D$35:D74)-1,COLUMNS($D$35:D74)-1),"") ->  | C60: =IF(OFFSET(DE104_3!$E$35,ROWS($E$35:E74)-1,COLUMNS($E$35:E74)-1)<>"",OFFSET(DE104_3!$E$35,ROWS($E$35:E74)-1,COLUMNS($E$35:E74)-1),"") ->  | D60: =IF(OFFSET(DE104_3!$F$35,ROWS($F$35:F74)-1,COLUMNS($F$35:F74)-1)<>"",OFFSET(DE104_3!$F$35,ROWS($F$35:F74)-1,COLUMNS($F$35:F74)-1),"") ->  | E60: =IF(OFFSET(DE104_3!$G$35,ROWS($G$35:G74)-1,COLUMNS($G$35:G74)-1)<>"",OFFSET(DE104_3!$G$35,ROWS($G$35:G74)-1,COLUMNS($G$35:G74)-1),"") ->  | F60: =IF(OFFSET(DE104_3!$H$35,ROWS($H$35:H74)-1,COLUMNS($H$35:H74)-1)<>"",OFFSET(DE104_3!$H$35,ROWS($H$35:H74)-1,COLUMNS($H$35:H74)-1),"") ->  | G60: =IF(OFFSET(DE104_3!$I$35,ROWS($I$35:I74)-1,COLUMNS($I$35:I74)-1)<>"",OFFSET(DE104_3!$I$35,ROWS($I$35:I74)-1,COLUMNS($I$35:I74)-1),"") ->  | H60: =IF(OFFSET(DE104_3!$J$35,ROWS($J$35:J74)-1,COLUMNS($J$35:J74)-1)<>"",OFFSET(DE104_3!$J$35,ROWS($J$35:J74)-1,COLUMNS($J$35:J74)-1),"") ->  | I60: =IF(OFFSET(DE104_3!$K$35,ROWS($K$35:K74)-1,COLUMNS($K$35:K74)-1)<>"",OFFSET(DE104_3!$K$35,ROWS($K$35:K74)-1,COLUMNS($K$35:K74)-1),"") ->  | J60: =IF(OFFSET(DE104_3!$L$35,ROWS($L$35:L74)-1,COLUMNS($L$35:L74)-1)<>"",OFFSET(DE104_3!$L$35,ROWS($L$35:L74)-1,COLUMNS($L$35:L74)-1),"") ->  | K60: =IF(OFFSET(DE104_3!$M$35,ROWS($M$35:M74)-1,COLUMNS($M$35:M74)-1)<>"",OFFSET(DE104_3!$M$35,ROWS($M$35:M74)-1,COLUMNS($M$35:M74)-1),"") ->  | L60: =IF(OFFSET(DE104_3!$N$35,ROWS($N$35:N74)-1,COLUMNS($N$35:N74)-1)<>"",OFFSET(DE104_3!$N$35,ROWS($N$35:N74)-1,COLUMNS($N$35:N74)-1),"") ->  | M60: =IF(OFFSET(DE104_3!$O$35,ROWS($O$35:O74)-1,COLUMNS($O$35:O74)-1)<>"",OFFSET(DE104_3!$O$35,ROWS($O$35:O74)-1,COLUMNS($O$35:O74)-1),"") ->  | N60: =IF(OFFSET(DE104_3!$P$35,ROWS($P$35:P74)-1,COLUMNS($P$35:P74)-1)<>"",OFFSET(DE104_3!$P$35,ROWS($P$35:P74)-1,COLUMNS($P$35:P74)-1),"") ->  | O60: =IF(OFFSET(DE104_3!$Q$35,ROWS($Q$35:Q74)-1,COLUMNS($Q$35:Q74)-1)<>"",OFFSET(DE104_3!$Q$35,ROWS($Q$35:Q74)-1,COLUMNS($Q$35:Q74)-1),"") ->  | P60: =IF(OFFSET(DE104_3!$R$35,ROWS($R$35:R74)-1,COLUMNS($R$35:R74)-1)<>"",OFFSET(DE104_3!$R$35,ROWS($R$35:R74)-1,COLUMNS($R$35:R74)-1),"") ->  | Q60: =IF(OFFSET(DE104_3!$S$35,ROWS($S$35:S74)-1,COLUMNS($S$35:S74)-1)<>"",OFFSET(DE104_3!$S$35,ROWS($S$35:S74)-1,COLUMNS($S$35:S74)-1),"") ->  | R60: =IF(OFFSET(DE104_3!$T$35,ROWS($T$35:T74)-1,COLUMNS($T$35:T74)-1)<>"",OFFSET(DE104_3!$T$35,ROWS($T$35:T74)-1,COLUMNS($T$35:T74)-1),"") ->  | S60: =IF(OFFSET(DE104_3!$U$35,ROWS($U$35:U74)-1,COLUMNS($U$35:U74)-1)<>"",OFFSET(DE104_3!$U$35,ROWS($U$35:U74)-1,COLUMNS($U$35:U74)-1),"") ->  | T60: =IF(OFFSET(DE104_3!$V$35,ROWS($V$35:V74)-1,COLUMNS($V$35:V74)-1)<>"",OFFSET(DE104_3!$V$35,ROWS($V$35:V74)-1,COLUMNS($V$35:V74)-1),"") ->  | U60: =IF(OFFSET(DE104_3!$W$35,ROWS($W$35:W74)-1,COLUMNS($W$35:W74)-1)<>"",OFFSET(DE104_3!$W$35,ROWS($W$35:W74)-1,COLUMNS($W$35:W74)-1),"") ->  | V60: =IF(OFFSET(DE104_3!$X$35,ROWS($X$35:X74)-1,COLUMNS($X$35:X74)-1)<>"",OFFSET(DE104_3!$X$35,ROWS($X$35:X74)-1,COLUMNS($X$35:X74)-1),"") ->  | W60: =IF(OFFSET(DE104_3!$Y$35,ROWS($Y$35:Y74)-1,COLUMNS($Y$35:Y74)-1)<>"",OFFSET(DE104_3!$Y$35,ROWS($Y$35:Y74)-1,COLUMNS($Y$35:Y74)-1),"") ->  | X60: =IF(OFFSET(DE104_3!$Z$35,ROWS($Z$35:Z74)-1,COLUMNS($Z$35:Z74)-1)<>"",OFFSET(DE104_3!$Z$35,ROWS($Z$35:Z74)-1,COLUMNS($Z$35:Z74)-1),"") ->  | Y60: =IF(OFFSET(DE104_3!$AA$35,ROWS($AA$35:AA74)-1,COLUMNS($AA$35:AA74)-1)<>"",OFFSET(DE104_3!$AA$35,ROWS($AA$35:AA74)-1,COLUMNS($AA$35:AA74)-1),"") ->  | Z60: =IF(OFFSET(DE104_3!$AB$35,ROWS($AB$35:AB74)-1,COLUMNS($AB$35:AB74)-1)<>"",OFFSET(DE104_3!$AB$35,ROWS($AB$35:AB74)-1,COLUMNS($AB$35:AB74)-1),"") ->  | AA60: =IF(OFFSET(DE104_3!$AC$35,ROWS($AC$35:AC74)-1,COLUMNS($AC$35:AC74)-1)<>"",OFFSET(DE104_3!$AC$35,ROWS($AC$35:AC74)-1,COLUMNS($AC$35:AC74)-1),"") ->  | AB60: =IF(OFFSET(DE104_3!$AD$35,ROWS($AD$35:AD74)-1,COLUMNS($AD$35:AD74)-1)<>"",OFFSET(DE104_3!$AD$35,ROWS($AD$35:AD74)-1,COLUMNS($AD$35:AD74)-1),"") ->  | AC60: =IF(OFFSET(DE104_3!$AE$35,ROWS($AE$35:AE74)-1,COLUMNS($AE$35:AE74)-1)<>"",OFFSET(DE104_3!$AE$35,ROWS($AE$35:AE74)-1,COLUMNS($AE$35:AE74)-1),"") ->  | AD60: =IF(OFFSET(DE104_3!$AF$35,ROWS($AF$35:AF74)-1,COLUMNS($AF$35:AF74)-1)<>"",OFFSET(DE104_3!$AF$35,ROWS($AF$35:AF74)-1,COLUMNS($AF$35:AF74)-1),"") ->  | AE60: =IF(OFFSET(DE104_3!$AG$35,ROWS($AG$35:AG74)-1,COLUMNS($AG$35:AG74)-1)<>"",OFFSET(DE104_3!$AG$35,ROWS($AG$35:AG74)-1,COLUMNS($AG$35:AG74)-1),"") ->  | AF60: =IF(OFFSET(DE104_3!$AH$35,ROWS($AH$35:AH74)-1,COLUMNS($AH$35:AH74)-1)<>"",OFFSET(DE104_3!$AH$35,ROWS($AH$35:AH74)-1,COLUMNS($AH$35:AH74)-1),"") ->  | AG60: =IF(OFFSET(DE104_3!$AI$35,ROWS($AI$35:AI74)-1,COLUMNS($AI$35:AI74)-1)<>"",OFFSET(DE104_3!$AI$35,ROWS($AI$35:AI74)-1,COLUMNS($AI$35:AI74)-1),"") ->  | AH60: =IF(OFFSET(DE104_3!$AJ$35,ROWS($AJ$35:AJ74)-1,COLUMNS($AJ$35:AJ74)-1)<>"",OFFSET(DE104_3!$AJ$35,ROWS($AJ$35:AJ74)-1,COLUMNS($AJ$35:AJ74)-1),"") ->  | AI60: =IF(OFFSET(DE104_3!$AK$35,ROWS($AK$35:AK74)-1,COLUMNS($AK$35:AK74)-1)<>"",OFFSET(DE104_3!$AK$35,ROWS($AK$35:AK74)-1,COLUMNS($AK$35:AK74)-1),"") ->  | AJ60: =IF(OFFSET(DE104_3!$AL$35,ROWS($AL$35:AL74)-1,COLUMNS($AL$35:AL74)-1)<>"",OFFSET(DE104_3!$AL$35,ROWS($AL$35:AL74)-1,COLUMNS($AL$35:AL74)-1),"") ->  | AK60: =IF(OFFSET(DE104_3!$AM$35,ROWS($AM$35:AM74)-1,COLUMNS($AM$35:AM74)-1)<>"",OFFSET(DE104_3!$AM$35,ROWS($AM$35:AM74)-1,COLUMNS($AM$35:AM74)-1),"") ->  | AL60: =IF(OFFSET(DE104_3!$AN$35,ROWS($AN$35:AN74)-1,COLUMNS($AN$35:AN74)-1)<>"",OFFSET(DE104_3!$AN$35,ROWS($AN$35:AN74)-1,COLUMNS($AN$35:AN74)-1),"") ->  | AM60: =IF(OFFSET(DE104_3!$AO$35,ROWS($AO$35:AO74)-1,COLUMNS($AO$35:AO74)-1)<>"",OFFSET(DE104_3!$AO$35,ROWS($AO$35:AO74)-1,COLUMNS($AO$35:AO74)-1),"") ->  | AN60: =IF(OFFSET(DE104_3!$AP$35,ROWS($AP$35:AP74)-1,COLUMNS($AP$35:AP74)-1)<>"",OFFSET(DE104_3!$AP$35,ROWS($AP$35:AP74)-1,COLUMNS($AP$35:AP74)-1),"") ->  | AO60: =IF(OFFSET(DE104_3!$AQ$35,ROWS($AQ$35:AQ74)-1,COLUMNS($AQ$35:AQ74)-1)<>"",OFFSET(DE104_3!$AQ$35,ROWS($AQ$35:AQ74)-1,COLUMNS($AQ$35:AQ74)-1),"") -> 
A61: =IF(OFFSET(DE104_3!$C$35,ROWS($C$35:C75)-1,COLUMNS($C$35:C75)-1)<>"",OFFSET(DE104_3!$C$35,ROWS($C$35:C75)-1,COLUMNS($C$35:C75)-1),"") ->  | B61: =IF(OFFSET(DE104_3!$D$35,ROWS($D$35:D75)-1,COLUMNS($D$35:D75)-1)<>"",OFFSET(DE104_3!$D$35,ROWS($D$35:D75)-1,COLUMNS($D$35:D75)-1),"") ->  | C61: =IF(OFFSET(DE104_3!$E$35,ROWS($E$35:E75)-1,COLUMNS($E$35:E75)-1)<>"",OFFSET(DE104_3!$E$35,ROWS($E$35:E75)-1,COLUMNS($E$35:E75)-1),"") ->  | D61: =IF(OFFSET(DE104_3!$F$35,ROWS($F$35:F75)-1,COLUMNS($F$35:F75)-1)<>"",OFFSET(DE104_3!$F$35,ROWS($F$35:F75)-1,COLUMNS($F$35:F75)-1),"") ->  | E61: =IF(OFFSET(DE104_3!$G$35,ROWS($G$35:G75)-1,COLUMNS($G$35:G75)-1)<>"",OFFSET(DE104_3!$G$35,ROWS($G$35:G75)-1,COLUMNS($G$35:G75)-1),"") ->  | F61: =IF(OFFSET(DE104_3!$H$35,ROWS($H$35:H75)-1,COLUMNS($H$35:H75)-1)<>"",OFFSET(DE104_3!$H$35,ROWS($H$35:H75)-1,COLUMNS($H$35:H75)-1),"") ->  | G61: =IF(OFFSET(DE104_3!$I$35,ROWS($I$35:I75)-1,COLUMNS($I$35:I75)-1)<>"",OFFSET(DE104_3!$I$35,ROWS($I$35:I75)-1,COLUMNS($I$35:I75)-1),"") ->  | H61: =IF(OFFSET(DE104_3!$J$35,ROWS($J$35:J75)-1,COLUMNS($J$35:J75)-1)<>"",OFFSET(DE104_3!$J$35,ROWS($J$35:J75)-1,COLUMNS($J$35:J75)-1),"") ->  | I61: =IF(OFFSET(DE104_3!$K$35,ROWS($K$35:K75)-1,COLUMNS($K$35:K75)-1)<>"",OFFSET(DE104_3!$K$35,ROWS($K$35:K75)-1,COLUMNS($K$35:K75)-1),"") ->  | J61: =IF(OFFSET(DE104_3!$L$35,ROWS($L$35:L75)-1,COLUMNS($L$35:L75)-1)<>"",OFFSET(DE104_3!$L$35,ROWS($L$35:L75)-1,COLUMNS($L$35:L75)-1),"") ->  | K61: =IF(OFFSET(DE104_3!$M$35,ROWS($M$35:M75)-1,COLUMNS($M$35:M75)-1)<>"",OFFSET(DE104_3!$M$35,ROWS($M$35:M75)-1,COLUMNS($M$35:M75)-1),"") ->  | L61: =IF(OFFSET(DE104_3!$N$35,ROWS($N$35:N75)-1,COLUMNS($N$35:N75)-1)<>"",OFFSET(DE104_3!$N$35,ROWS($N$35:N75)-1,COLUMNS($N$35:N75)-1),"") ->  | M61: =IF(OFFSET(DE104_3!$O$35,ROWS($O$35:O75)-1,COLUMNS($O$35:O75)-1)<>"",OFFSET(DE104_3!$O$35,ROWS($O$35:O75)-1,COLUMNS($O$35:O75)-1),"") ->  | N61: =IF(OFFSET(DE104_3!$P$35,ROWS($P$35:P75)-1,COLUMNS($P$35:P75)-1)<>"",OFFSET(DE104_3!$P$35,ROWS($P$35:P75)-1,COLUMNS($P$35:P75)-1),"") ->  | O61: =IF(OFFSET(DE104_3!$Q$35,ROWS($Q$35:Q75)-1,COLUMNS($Q$35:Q75)-1)<>"",OFFSET(DE104_3!$Q$35,ROWS($Q$35:Q75)-1,COLUMNS($Q$35:Q75)-1),"") ->  | P61: =IF(OFFSET(DE104_3!$R$35,ROWS($R$35:R75)-1,COLUMNS($R$35:R75)-1)<>"",OFFSET(DE104_3!$R$35,ROWS($R$35:R75)-1,COLUMNS($R$35:R75)-1),"") ->  | Q61: =IF(OFFSET(DE104_3!$S$35,ROWS($S$35:S75)-1,COLUMNS($S$35:S75)-1)<>"",OFFSET(DE104_3!$S$35,ROWS($S$35:S75)-1,COLUMNS($S$35:S75)-1),"") ->  | R61: =IF(OFFSET(DE104_3!$T$35,ROWS($T$35:T75)-1,COLUMNS($T$35:T75)-1)<>"",OFFSET(DE104_3!$T$35,ROWS($T$35:T75)-1,COLUMNS($T$35:T75)-1),"") ->  | S61: =IF(OFFSET(DE104_3!$U$35,ROWS($U$35:U75)-1,COLUMNS($U$35:U75)-1)<>"",OFFSET(DE104_3!$U$35,ROWS($U$35:U75)-1,COLUMNS($U$35:U75)-1),"") ->  | T61: =IF(OFFSET(DE104_3!$V$35,ROWS($V$35:V75)-1,COLUMNS($V$35:V75)-1)<>"",OFFSET(DE104_3!$V$35,ROWS($V$35:V75)-1,COLUMNS($V$35:V75)-1),"") ->  | U61: =IF(OFFSET(DE104_3!$W$35,ROWS($W$35:W75)-1,COLUMNS($W$35:W75)-1)<>"",OFFSET(DE104_3!$W$35,ROWS($W$35:W75)-1,COLUMNS($W$35:W75)-1),"") ->  | V61: =IF(OFFSET(DE104_3!$X$35,ROWS($X$35:X75)-1,COLUMNS($X$35:X75)-1)<>"",OFFSET(DE104_3!$X$35,ROWS($X$35:X75)-1,COLUMNS($X$35:X75)-1),"") ->  | W61: =IF(OFFSET(DE104_3!$Y$35,ROWS($Y$35:Y75)-1,COLUMNS($Y$35:Y75)-1)<>"",OFFSET(DE104_3!$Y$35,ROWS($Y$35:Y75)-1,COLUMNS($Y$35:Y75)-1),"") ->  | X61: =IF(OFFSET(DE104_3!$Z$35,ROWS($Z$35:Z75)-1,COLUMNS($Z$35:Z75)-1)<>"",OFFSET(DE104_3!$Z$35,ROWS($Z$35:Z75)-1,COLUMNS($Z$35:Z75)-1),"") ->  | Y61: =IF(OFFSET(DE104_3!$AA$35,ROWS($AA$35:AA75)-1,COLUMNS($AA$35:AA75)-1)<>"",OFFSET(DE104_3!$AA$35,ROWS($AA$35:AA75)-1,COLUMNS($AA$35:AA75)-1),"") ->  | Z61: =IF(OFFSET(DE104_3!$AB$35,ROWS($AB$35:AB75)-1,COLUMNS($AB$35:AB75)-1)<>"",OFFSET(DE104_3!$AB$35,ROWS($AB$35:AB75)-1,COLUMNS($AB$35:AB75)-1),"") ->  | AA61: =IF(OFFSET(DE104_3!$AC$35,ROWS($AC$35:AC75)-1,COLUMNS($AC$35:AC75)-1)<>"",OFFSET(DE104_3!$AC$35,ROWS($AC$35:AC75)-1,COLUMNS($AC$35:AC75)-1),"") ->  | AB61: =IF(OFFSET(DE104_3!$AD$35,ROWS($AD$35:AD75)-1,COLUMNS($AD$35:AD75)-1)<>"",OFFSET(DE104_3!$AD$35,ROWS($AD$35:AD75)-1,COLUMNS($AD$35:AD75)-1),"") ->  | AC61: =IF(OFFSET(DE104_3!$AE$35,ROWS($AE$35:AE75)-1,COLUMNS($AE$35:AE75)-1)<>"",OFFSET(DE104_3!$AE$35,ROWS($AE$35:AE75)-1,COLUMNS($AE$35:AE75)-1),"") ->  | AD61: =IF(OFFSET(DE104_3!$AF$35,ROWS($AF$35:AF75)-1,COLUMNS($AF$35:AF75)-1)<>"",OFFSET(DE104_3!$AF$35,ROWS($AF$35:AF75)-1,COLUMNS($AF$35:AF75)-1),"") ->  | AE61: =IF(OFFSET(DE104_3!$AG$35,ROWS($AG$35:AG75)-1,COLUMNS($AG$35:AG75)-1)<>"",OFFSET(DE104_3!$AG$35,ROWS($AG$35:AG75)-1,COLUMNS($AG$35:AG75)-1),"") ->  | AF61: =IF(OFFSET(DE104_3!$AH$35,ROWS($AH$35:AH75)-1,COLUMNS($AH$35:AH75)-1)<>"",OFFSET(DE104_3!$AH$35,ROWS($AH$35:AH75)-1,COLUMNS($AH$35:AH75)-1),"") ->  | AG61: =IF(OFFSET(DE104_3!$AI$35,ROWS($AI$35:AI75)-1,COLUMNS($AI$35:AI75)-1)<>"",OFFSET(DE104_3!$AI$35,ROWS($AI$35:AI75)-1,COLUMNS($AI$35:AI75)-1),"") ->  | AH61: =IF(OFFSET(DE104_3!$AJ$35,ROWS($AJ$35:AJ75)-1,COLUMNS($AJ$35:AJ75)-1)<>"",OFFSET(DE104_3!$AJ$35,ROWS($AJ$35:AJ75)-1,COLUMNS($AJ$35:AJ75)-1),"") ->  | AI61: =IF(OFFSET(DE104_3!$AK$35,ROWS($AK$35:AK75)-1,COLUMNS($AK$35:AK75)-1)<>"",OFFSET(DE104_3!$AK$35,ROWS($AK$35:AK75)-1,COLUMNS($AK$35:AK75)-1),"") ->  | AJ61: =IF(OFFSET(DE104_3!$AL$35,ROWS($AL$35:AL75)-1,COLUMNS($AL$35:AL75)-1)<>"",OFFSET(DE104_3!$AL$35,ROWS($AL$35:AL75)-1,COLUMNS($AL$35:AL75)-1),"") ->  | AK61: =IF(OFFSET(DE104_3!$AM$35,ROWS($AM$35:AM75)-1,COLUMNS($AM$35:AM75)-1)<>"",OFFSET(DE104_3!$AM$35,ROWS($AM$35:AM75)-1,COLUMNS($AM$35:AM75)-1),"") ->  | AL61: =IF(OFFSET(DE104_3!$AN$35,ROWS($AN$35:AN75)-1,COLUMNS($AN$35:AN75)-1)<>"",OFFSET(DE104_3!$AN$35,ROWS($AN$35:AN75)-1,COLUMNS($AN$35:AN75)-1),"") ->  | AM61: =IF(OFFSET(DE104_3!$AO$35,ROWS($AO$35:AO75)-1,COLUMNS($AO$35:AO75)-1)<>"",OFFSET(DE104_3!$AO$35,ROWS($AO$35:AO75)-1,COLUMNS($AO$35:AO75)-1),"") ->  | AN61: =IF(OFFSET(DE104_3!$AP$35,ROWS($AP$35:AP75)-1,COLUMNS($AP$35:AP75)-1)<>"",OFFSET(DE104_3!$AP$35,ROWS($AP$35:AP75)-1,COLUMNS($AP$35:AP75)-1),"") ->  | AO61: =IF(OFFSET(DE104_3!$AQ$35,ROWS($AQ$35:AQ75)-1,COLUMNS($AQ$35:AQ75)-1)<>"",OFFSET(DE104_3!$AQ$35,ROWS($AQ$35:AQ75)-1,COLUMNS($AQ$35:AQ75)-1),"") -> 
A62: =IF(OFFSET(DE104_3!$C$35,ROWS($C$35:C76)-1,COLUMNS($C$35:C76)-1)<>"",OFFSET(DE104_3!$C$35,ROWS($C$35:C76)-1,COLUMNS($C$35:C76)-1),"") ->  | B62: =IF(OFFSET(DE104_3!$D$35,ROWS($D$35:D76)-1,COLUMNS($D$35:D76)-1)<>"",OFFSET(DE104_3!$D$35,ROWS($D$35:D76)-1,COLUMNS($D$35:D76)-1),"") ->  | C62: =IF(OFFSET(DE104_3!$E$35,ROWS($E$35:E76)-1,COLUMNS($E$35:E76)-1)<>"",OFFSET(DE104_3!$E$35,ROWS($E$35:E76)-1,COLUMNS($E$35:E76)-1),"") ->  | D62: =IF(OFFSET(DE104_3!$F$35,ROWS($F$35:F76)-1,COLUMNS($F$35:F76)-1)<>"",OFFSET(DE104_3!$F$35,ROWS($F$35:F76)-1,COLUMNS($F$35:F76)-1),"") ->  | E62: =IF(OFFSET(DE104_3!$G$35,ROWS($G$35:G76)-1,COLUMNS($G$35:G76)-1)<>"",OFFSET(DE104_3!$G$35,ROWS($G$35:G76)-1,COLUMNS($G$35:G76)-1),"") ->  | F62: =IF(OFFSET(DE104_3!$H$35,ROWS($H$35:H76)-1,COLUMNS($H$35:H76)-1)<>"",OFFSET(DE104_3!$H$35,ROWS($H$35:H76)-1,COLUMNS($H$35:H76)-1),"") ->  | G62: =IF(OFFSET(DE104_3!$I$35,ROWS($I$35:I76)-1,COLUMNS($I$35:I76)-1)<>"",OFFSET(DE104_3!$I$35,ROWS($I$35:I76)-1,COLUMNS($I$35:I76)-1),"") ->  | H62: =IF(OFFSET(DE104_3!$J$35,ROWS($J$35:J76)-1,COLUMNS($J$35:J76)-1)<>"",OFFSET(DE104_3!$J$35,ROWS($J$35:J76)-1,COLUMNS($J$35:J76)-1),"") ->  | I62: =IF(OFFSET(DE104_3!$K$35,ROWS($K$35:K76)-1,COLUMNS($K$35:K76)-1)<>"",OFFSET(DE104_3!$K$35,ROWS($K$35:K76)-1,COLUMNS($K$35:K76)-1),"") ->  | J62: =IF(OFFSET(DE104_3!$L$35,ROWS($L$35:L76)-1,COLUMNS($L$35:L76)-1)<>"",OFFSET(DE104_3!$L$35,ROWS($L$35:L76)-1,COLUMNS($L$35:L76)-1),"") ->  | K62: =IF(OFFSET(DE104_3!$M$35,ROWS($M$35:M76)-1,COLUMNS($M$35:M76)-1)<>"",OFFSET(DE104_3!$M$35,ROWS($M$35:M76)-1,COLUMNS($M$35:M76)-1),"") ->  | L62: =IF(OFFSET(DE104_3!$N$35,ROWS($N$35:N76)-1,COLUMNS($N$35:N76)-1)<>"",OFFSET(DE104_3!$N$35,ROWS($N$35:N76)-1,COLUMNS($N$35:N76)-1),"") ->  | M62: =IF(OFFSET(DE104_3!$O$35,ROWS($O$35:O76)-1,COLUMNS($O$35:O76)-1)<>"",OFFSET(DE104_3!$O$35,ROWS($O$35:O76)-1,COLUMNS($O$35:O76)-1),"") ->  | N62: =IF(OFFSET(DE104_3!$P$35,ROWS($P$35:P76)-1,COLUMNS($P$35:P76)-1)<>"",OFFSET(DE104_3!$P$35,ROWS($P$35:P76)-1,COLUMNS($P$35:P76)-1),"") ->  | O62: =IF(OFFSET(DE104_3!$Q$35,ROWS($Q$35:Q76)-1,COLUMNS($Q$35:Q76)-1)<>"",OFFSET(DE104_3!$Q$35,ROWS($Q$35:Q76)-1,COLUMNS($Q$35:Q76)-1),"") ->  | P62: =IF(OFFSET(DE104_3!$R$35,ROWS($R$35:R76)-1,COLUMNS($R$35:R76)-1)<>"",OFFSET(DE104_3!$R$35,ROWS($R$35:R76)-1,COLUMNS($R$35:R76)-1),"") ->  | Q62: =IF(OFFSET(DE104_3!$S$35,ROWS($S$35:S76)-1,COLUMNS($S$35:S76)-1)<>"",OFFSET(DE104_3!$S$35,ROWS($S$35:S76)-1,COLUMNS($S$35:S76)-1),"") ->  | R62: =IF(OFFSET(DE104_3!$T$35,ROWS($T$35:T76)-1,COLUMNS($T$35:T76)-1)<>"",OFFSET(DE104_3!$T$35,ROWS($T$35:T76)-1,COLUMNS($T$35:T76)-1),"") ->  | S62: =IF(OFFSET(DE104_3!$U$35,ROWS($U$35:U76)-1,COLUMNS($U$35:U76)-1)<>"",OFFSET(DE104_3!$U$35,ROWS($U$35:U76)-1,COLUMNS($U$35:U76)-1),"") ->  | T62: =IF(OFFSET(DE104_3!$V$35,ROWS($V$35:V76)-1,COLUMNS($V$35:V76)-1)<>"",OFFSET(DE104_3!$V$35,ROWS($V$35:V76)-1,COLUMNS($V$35:V76)-1),"") ->  | U62: =IF(OFFSET(DE104_3!$W$35,ROWS($W$35:W76)-1,COLUMNS($W$35:W76)-1)<>"",OFFSET(DE104_3!$W$35,ROWS($W$35:W76)-1,COLUMNS($W$35:W76)-1),"") ->  | V62: =IF(OFFSET(DE104_3!$X$35,ROWS($X$35:X76)-1,COLUMNS($X$35:X76)-1)<>"",OFFSET(DE104_3!$X$35,ROWS($X$35:X76)-1,COLUMNS($X$35:X76)-1),"") ->  | W62: =IF(OFFSET(DE104_3!$Y$35,ROWS($Y$35:Y76)-1,COLUMNS($Y$35:Y76)-1)<>"",OFFSET(DE104_3!$Y$35,ROWS($Y$35:Y76)-1,COLUMNS($Y$35:Y76)-1),"") ->  | X62: =IF(OFFSET(DE104_3!$Z$35,ROWS($Z$35:Z76)-1,COLUMNS($Z$35:Z76)-1)<>"",OFFSET(DE104_3!$Z$35,ROWS($Z$35:Z76)-1,COLUMNS($Z$35:Z76)-1),"") ->  | Y62: =IF(OFFSET(DE104_3!$AA$35,ROWS($AA$35:AA76)-1,COLUMNS($AA$35:AA76)-1)<>"",OFFSET(DE104_3!$AA$35,ROWS($AA$35:AA76)-1,COLUMNS($AA$35:AA76)-1),"") ->  | Z62: =IF(OFFSET(DE104_3!$AB$35,ROWS($AB$35:AB76)-1,COLUMNS($AB$35:AB76)-1)<>"",OFFSET(DE104_3!$AB$35,ROWS($AB$35:AB76)-1,COLUMNS($AB$35:AB76)-1),"") ->  | AA62: =IF(OFFSET(DE104_3!$AC$35,ROWS($AC$35:AC76)-1,COLUMNS($AC$35:AC76)-1)<>"",OFFSET(DE104_3!$AC$35,ROWS($AC$35:AC76)-1,COLUMNS($AC$35:AC76)-1),"") ->  | AB62: =IF(OFFSET(DE104_3!$AD$35,ROWS($AD$35:AD76)-1,COLUMNS($AD$35:AD76)-1)<>"",OFFSET(DE104_3!$AD$35,ROWS($AD$35:AD76)-1,COLUMNS($AD$35:AD76)-1),"") ->  | AC62: =IF(OFFSET(DE104_3!$AE$35,ROWS($AE$35:AE76)-1,COLUMNS($AE$35:AE76)-1)<>"",OFFSET(DE104_3!$AE$35,ROWS($AE$35:AE76)-1,COLUMNS($AE$35:AE76)-1),"") ->  | AD62: =IF(OFFSET(DE104_3!$AF$35,ROWS($AF$35:AF76)-1,COLUMNS($AF$35:AF76)-1)<>"",OFFSET(DE104_3!$AF$35,ROWS($AF$35:AF76)-1,COLUMNS($AF$35:AF76)-1),"") ->  | AE62: =IF(OFFSET(DE104_3!$AG$35,ROWS($AG$35:AG76)-1,COLUMNS($AG$35:AG76)-1)<>"",OFFSET(DE104_3!$AG$35,ROWS($AG$35:AG76)-1,COLUMNS($AG$35:AG76)-1),"") ->  | AF62: =IF(OFFSET(DE104_3!$AH$35,ROWS($AH$35:AH76)-1,COLUMNS($AH$35:AH76)-1)<>"",OFFSET(DE104_3!$AH$35,ROWS($AH$35:AH76)-1,COLUMNS($AH$35:AH76)-1),"") ->  | AG62: =IF(OFFSET(DE104_3!$AI$35,ROWS($AI$35:AI76)-1,COLUMNS($AI$35:AI76)-1)<>"",OFFSET(DE104_3!$AI$35,ROWS($AI$35:AI76)-1,COLUMNS($AI$35:AI76)-1),"") ->  | AH62: =IF(OFFSET(DE104_3!$AJ$35,ROWS($AJ$35:AJ76)-1,COLUMNS($AJ$35:AJ76)-1)<>"",OFFSET(DE104_3!$AJ$35,ROWS($AJ$35:AJ76)-1,COLUMNS($AJ$35:AJ76)-1),"") ->  | AI62: =IF(OFFSET(DE104_3!$AK$35,ROWS($AK$35:AK76)-1,COLUMNS($AK$35:AK76)-1)<>"",OFFSET(DE104_3!$AK$35,ROWS($AK$35:AK76)-1,COLUMNS($AK$35:AK76)-1),"") ->  | AJ62: =IF(OFFSET(DE104_3!$AL$35,ROWS($AL$35:AL76)-1,COLUMNS($AL$35:AL76)-1)<>"",OFFSET(DE104_3!$AL$35,ROWS($AL$35:AL76)-1,COLUMNS($AL$35:AL76)-1),"") ->  | AK62: =IF(OFFSET(DE104_3!$AM$35,ROWS($AM$35:AM76)-1,COLUMNS($AM$35:AM76)-1)<>"",OFFSET(DE104_3!$AM$35,ROWS($AM$35:AM76)-1,COLUMNS($AM$35:AM76)-1),"") ->  | AL62: =IF(OFFSET(DE104_3!$AN$35,ROWS($AN$35:AN76)-1,COLUMNS($AN$35:AN76)-1)<>"",OFFSET(DE104_3!$AN$35,ROWS($AN$35:AN76)-1,COLUMNS($AN$35:AN76)-1),"") ->  | AM62: =IF(OFFSET(DE104_3!$AO$35,ROWS($AO$35:AO76)-1,COLUMNS($AO$35:AO76)-1)<>"",OFFSET(DE104_3!$AO$35,ROWS($AO$35:AO76)-1,COLUMNS($AO$35:AO76)-1),"") ->  | AN62: =IF(OFFSET(DE104_3!$AP$35,ROWS($AP$35:AP76)-1,COLUMNS($AP$35:AP76)-1)<>"",OFFSET(DE104_3!$AP$35,ROWS($AP$35:AP76)-1,COLUMNS($AP$35:AP76)-1),"") ->  | AO62: =IF(OFFSET(DE104_3!$AQ$35,ROWS($AQ$35:AQ76)-1,COLUMNS($AQ$35:AQ76)-1)<>"",OFFSET(DE104_3!$AQ$35,ROWS($AQ$35:AQ76)-1,COLUMNS($AQ$35:AQ76)-1),"") -> 
A63: =IF(OFFSET(DE104_3!$C$35,ROWS($C$35:C77)-1,COLUMNS($C$35:C77)-1)<>"",OFFSET(DE104_3!$C$35,ROWS($C$35:C77)-1,COLUMNS($C$35:C77)-1),"") ->  | B63: =IF(OFFSET(DE104_3!$D$35,ROWS($D$35:D77)-1,COLUMNS($D$35:D77)-1)<>"",OFFSET(DE104_3!$D$35,ROWS($D$35:D77)-1,COLUMNS($D$35:D77)-1),"") ->  | C63: =IF(OFFSET(DE104_3!$E$35,ROWS($E$35:E77)-1,COLUMNS($E$35:E77)-1)<>"",OFFSET(DE104_3!$E$35,ROWS($E$35:E77)-1,COLUMNS($E$35:E77)-1),"") ->  | D63: =IF(OFFSET(DE104_3!$F$35,ROWS($F$35:F77)-1,COLUMNS($F$35:F77)-1)<>"",OFFSET(DE104_3!$F$35,ROWS($F$35:F77)-1,COLUMNS($F$35:F77)-1),"") ->  | E63: =IF(OFFSET(DE104_3!$G$35,ROWS($G$35:G77)-1,COLUMNS($G$35:G77)-1)<>"",OFFSET(DE104_3!$G$35,ROWS($G$35:G77)-1,COLUMNS($G$35:G77)-1),"") ->  | F63: =IF(OFFSET(DE104_3!$H$35,ROWS($H$35:H77)-1,COLUMNS($H$35:H77)-1)<>"",OFFSET(DE104_3!$H$35,ROWS($H$35:H77)-1,COLUMNS($H$35:H77)-1),"") ->  | G63: =IF(OFFSET(DE104_3!$I$35,ROWS($I$35:I77)-1,COLUMNS($I$35:I77)-1)<>"",OFFSET(DE104_3!$I$35,ROWS($I$35:I77)-1,COLUMNS($I$35:I77)-1),"") ->  | H63: =IF(OFFSET(DE104_3!$J$35,ROWS($J$35:J77)-1,COLUMNS($J$35:J77)-1)<>"",OFFSET(DE104_3!$J$35,ROWS($J$35:J77)-1,COLUMNS($J$35:J77)-1),"") ->  | I63: =IF(OFFSET(DE104_3!$K$35,ROWS($K$35:K77)-1,COLUMNS($K$35:K77)-1)<>"",OFFSET(DE104_3!$K$35,ROWS($K$35:K77)-1,COLUMNS($K$35:K77)-1),"") ->  | J63: =IF(OFFSET(DE104_3!$L$35,ROWS($L$35:L77)-1,COLUMNS($L$35:L77)-1)<>"",OFFSET(DE104_3!$L$35,ROWS($L$35:L77)-1,COLUMNS($L$35:L77)-1),"") ->  | K63: =IF(OFFSET(DE104_3!$M$35,ROWS($M$35:M77)-1,COLUMNS($M$35:M77)-1)<>"",OFFSET(DE104_3!$M$35,ROWS($M$35:M77)-1,COLUMNS($M$35:M77)-1),"") ->  | L63: =IF(OFFSET(DE104_3!$N$35,ROWS($N$35:N77)-1,COLUMNS($N$35:N77)-1)<>"",OFFSET(DE104_3!$N$35,ROWS($N$35:N77)-1,COLUMNS($N$35:N77)-1),"") ->  | M63: =IF(OFFSET(DE104_3!$O$35,ROWS($O$35:O77)-1,COLUMNS($O$35:O77)-1)<>"",OFFSET(DE104_3!$O$35,ROWS($O$35:O77)-1,COLUMNS($O$35:O77)-1),"") ->  | N63: =IF(OFFSET(DE104_3!$P$35,ROWS($P$35:P77)-1,COLUMNS($P$35:P77)-1)<>"",OFFSET(DE104_3!$P$35,ROWS($P$35:P77)-1,COLUMNS($P$35:P77)-1),"") ->  | O63: =IF(OFFSET(DE104_3!$Q$35,ROWS($Q$35:Q77)-1,COLUMNS($Q$35:Q77)-1)<>"",OFFSET(DE104_3!$Q$35,ROWS($Q$35:Q77)-1,COLUMNS($Q$35:Q77)-1),"") ->  | P63: =IF(OFFSET(DE104_3!$R$35,ROWS($R$35:R77)-1,COLUMNS($R$35:R77)-1)<>"",OFFSET(DE104_3!$R$35,ROWS($R$35:R77)-1,COLUMNS($R$35:R77)-1),"") ->  | Q63: =IF(OFFSET(DE104_3!$S$35,ROWS($S$35:S77)-1,COLUMNS($S$35:S77)-1)<>"",OFFSET(DE104_3!$S$35,ROWS($S$35:S77)-1,COLUMNS($S$35:S77)-1),"") ->  | R63: =IF(OFFSET(DE104_3!$T$35,ROWS($T$35:T77)-1,COLUMNS($T$35:T77)-1)<>"",OFFSET(DE104_3!$T$35,ROWS($T$35:T77)-1,COLUMNS($T$35:T77)-1),"") ->  | S63: =IF(OFFSET(DE104_3!$U$35,ROWS($U$35:U77)-1,COLUMNS($U$35:U77)-1)<>"",OFFSET(DE104_3!$U$35,ROWS($U$35:U77)-1,COLUMNS($U$35:U77)-1),"") ->  | T63: =IF(OFFSET(DE104_3!$V$35,ROWS($V$35:V77)-1,COLUMNS($V$35:V77)-1)<>"",OFFSET(DE104_3!$V$35,ROWS($V$35:V77)-1,COLUMNS($V$35:V77)-1),"") ->  | U63: =IF(OFFSET(DE104_3!$W$35,ROWS($W$35:W77)-1,COLUMNS($W$35:W77)-1)<>"",OFFSET(DE104_3!$W$35,ROWS($W$35:W77)-1,COLUMNS($W$35:W77)-1),"") ->  | V63: =IF(OFFSET(DE104_3!$X$35,ROWS($X$35:X77)-1,COLUMNS($X$35:X77)-1)<>"",OFFSET(DE104_3!$X$35,ROWS($X$35:X77)-1,COLUMNS($X$35:X77)-1),"") ->  | W63: =IF(OFFSET(DE104_3!$Y$35,ROWS($Y$35:Y77)-1,COLUMNS($Y$35:Y77)-1)<>"",OFFSET(DE104_3!$Y$35,ROWS($Y$35:Y77)-1,COLUMNS($Y$35:Y77)-1),"") ->  | X63: =IF(OFFSET(DE104_3!$Z$35,ROWS($Z$35:Z77)-1,COLUMNS($Z$35:Z77)-1)<>"",OFFSET(DE104_3!$Z$35,ROWS($Z$35:Z77)-1,COLUMNS($Z$35:Z77)-1),"") ->  | Y63: =IF(OFFSET(DE104_3!$AA$35,ROWS($AA$35:AA77)-1,COLUMNS($AA$35:AA77)-1)<>"",OFFSET(DE104_3!$AA$35,ROWS($AA$35:AA77)-1,COLUMNS($AA$35:AA77)-1),"") ->  | Z63: =IF(OFFSET(DE104_3!$AB$35,ROWS($AB$35:AB77)-1,COLUMNS($AB$35:AB77)-1)<>"",OFFSET(DE104_3!$AB$35,ROWS($AB$35:AB77)-1,COLUMNS($AB$35:AB77)-1),"") ->  | AA63: =IF(OFFSET(DE104_3!$AC$35,ROWS($AC$35:AC77)-1,COLUMNS($AC$35:AC77)-1)<>"",OFFSET(DE104_3!$AC$35,ROWS($AC$35:AC77)-1,COLUMNS($AC$35:AC77)-1),"") ->  | AB63: =IF(OFFSET(DE104_3!$AD$35,ROWS($AD$35:AD77)-1,COLUMNS($AD$35:AD77)-1)<>"",OFFSET(DE104_3!$AD$35,ROWS($AD$35:AD77)-1,COLUMNS($AD$35:AD77)-1),"") ->  | AC63: =IF(OFFSET(DE104_3!$AE$35,ROWS($AE$35:AE77)-1,COLUMNS($AE$35:AE77)-1)<>"",OFFSET(DE104_3!$AE$35,ROWS($AE$35:AE77)-1,COLUMNS($AE$35:AE77)-1),"") ->  | AD63: =IF(OFFSET(DE104_3!$AF$35,ROWS($AF$35:AF77)-1,COLUMNS($AF$35:AF77)-1)<>"",OFFSET(DE104_3!$AF$35,ROWS($AF$35:AF77)-1,COLUMNS($AF$35:AF77)-1),"") ->  | AE63: =IF(OFFSET(DE104_3!$AG$35,ROWS($AG$35:AG77)-1,COLUMNS($AG$35:AG77)-1)<>"",OFFSET(DE104_3!$AG$35,ROWS($AG$35:AG77)-1,COLUMNS($AG$35:AG77)-1),"") ->  | AF63: =IF(OFFSET(DE104_3!$AH$35,ROWS($AH$35:AH77)-1,COLUMNS($AH$35:AH77)-1)<>"",OFFSET(DE104_3!$AH$35,ROWS($AH$35:AH77)-1,COLUMNS($AH$35:AH77)-1),"") ->  | AG63: =IF(OFFSET(DE104_3!$AI$35,ROWS($AI$35:AI77)-1,COLUMNS($AI$35:AI77)-1)<>"",OFFSET(DE104_3!$AI$35,ROWS($AI$35:AI77)-1,COLUMNS($AI$35:AI77)-1),"") ->  | AH63: =IF(OFFSET(DE104_3!$AJ$35,ROWS($AJ$35:AJ77)-1,COLUMNS($AJ$35:AJ77)-1)<>"",OFFSET(DE104_3!$AJ$35,ROWS($AJ$35:AJ77)-1,COLUMNS($AJ$35:AJ77)-1),"") ->  | AI63: =IF(OFFSET(DE104_3!$AK$35,ROWS($AK$35:AK77)-1,COLUMNS($AK$35:AK77)-1)<>"",OFFSET(DE104_3!$AK$35,ROWS($AK$35:AK77)-1,COLUMNS($AK$35:AK77)-1),"") ->  | AJ63: =IF(OFFSET(DE104_3!$AL$35,ROWS($AL$35:AL77)-1,COLUMNS($AL$35:AL77)-1)<>"",OFFSET(DE104_3!$AL$35,ROWS($AL$35:AL77)-1,COLUMNS($AL$35:AL77)-1),"") ->  | AK63: =IF(OFFSET(DE104_3!$AM$35,ROWS($AM$35:AM77)-1,COLUMNS($AM$35:AM77)-1)<>"",OFFSET(DE104_3!$AM$35,ROWS($AM$35:AM77)-1,COLUMNS($AM$35:AM77)-1),"") ->  | AL63: =IF(OFFSET(DE104_3!$AN$35,ROWS($AN$35:AN77)-1,COLUMNS($AN$35:AN77)-1)<>"",OFFSET(DE104_3!$AN$35,ROWS($AN$35:AN77)-1,COLUMNS($AN$35:AN77)-1),"") ->  | AM63: =IF(OFFSET(DE104_3!$AO$35,ROWS($AO$35:AO77)-1,COLUMNS($AO$35:AO77)-1)<>"",OFFSET(DE104_3!$AO$35,ROWS($AO$35:AO77)-1,COLUMNS($AO$35:AO77)-1),"") ->  | AN63: =IF(OFFSET(DE104_3!$AP$35,ROWS($AP$35:AP77)-1,COLUMNS($AP$35:AP77)-1)<>"",OFFSET(DE104_3!$AP$35,ROWS($AP$35:AP77)-1,COLUMNS($AP$35:AP77)-1),"") ->  | AO63: =IF(OFFSET(DE104_3!$AQ$35,ROWS($AQ$35:AQ77)-1,COLUMNS($AQ$35:AQ77)-1)<>"",OFFSET(DE104_3!$AQ$35,ROWS($AQ$35:AQ77)-1,COLUMNS($AQ$35:AQ77)-1),"") -> 

Sheet 104_4
A1: 104-4
A2: 2017-10-17
A3: ROADWAY ITEMS FOR DRAINAGE STRUCTURES INSTALLED BY CULVERT CONTRACTOR
A5: * Not a Bid Item
A6: Backfill according to DR-111
A7: Location | B7: Design Number | C7: Size | D7: Kind | E7: By Road Contractor | M7: Floodable* Backfill | N7: Porous* Backfill | O7: Flooded Backfill | P7: Excavation | R7: Revetment | T7: Engineering Fabric | U7: Remarks
E8: Dike | J8: Compacting Backfill Adjacent | K8: Compaction w/Moisture Control | L8: Compaction w/Moisture and Density
F10: Rt. | G10: Location Station | H10: Top. Elev. | I10: Type
M11: (A) | N11: (B) | O11: (A+B) | P11: Type | Q11: Quantity | R11: Type | S11: Quantity
E12: Lt. | J12: CY | K12: CY | L12: CY | M12: CY | N12: CY | O12: CY | Q12: CY | S12: TONS | T12: SY
A13: =IF(OFFSET(DE104_4!$C$27,ROWS($C$27:C27)-1,COLUMNS($C$27:C27)-1)<>"",OFFSET(DE104_4!$C$27,ROWS($C$27:C27)-1,COLUMNS($C$27:C27)-1),"") ->  | B13: =IF(OFFSET(DE104_4!$D$27,ROWS($D$27:D27)-1,COLUMNS($D$27:D27)-1)<>"",OFFSET(DE104_4!$D$27,ROWS($D$27:D27)-1,COLUMNS($D$27:D27)-1),"") ->  | C13: =IF(OFFSET(DE104_4!$E$27,ROWS($E$27:E27)-1,COLUMNS($E$27:E27)-1)<>"",OFFSET(DE104_4!$E$27,ROWS($E$27:E27)-1,COLUMNS($E$27:E27)-1),"") ->  | D13: =IF(OFFSET(DE104_4!$F$27,ROWS($F$27:F27)-1,COLUMNS($F$27:F27)-1)<>"",OFFSET(DE104_4!$F$27,ROWS($F$27:F27)-1,COLUMNS($F$27:F27)-1),"") ->  | E13: =IF(OFFSET(DE104_4!$G$27,ROWS($G$27:G27)-1,COLUMNS($G$27:G27)-1)<>"",OFFSET(DE104_4!$G$27,ROWS($G$27:G27)-1,COLUMNS($G$27:G27)-1),"") ->  | F13: =IF(OFFSET(DE104_4!$H$27,ROWS($H$27:H27)-1,COLUMNS($H$27:H27)-1)<>"",OFFSET(DE104_4!$H$27,ROWS($H$27:H27)-1,COLUMNS($H$27:H27)-1),"") ->  | G13: =IF(OFFSET(DE104_4!$I$27,ROWS($I$27:I27)-1,COLUMNS($I$27:I27)-1)<>"",OFFSET(DE104_4!$I$27,ROWS($I$27:I27)-1,COLUMNS($I$27:I27)-1),"") ->  | H13: =IF(OFFSET(DE104_4!$J$27,ROWS($J$27:J27)-1,COLUMNS($J$27:J27)-1)<>"",OFFSET(DE104_4!$J$27,ROWS($J$27:J27)-1,COLUMNS($J$27:J27)-1),"") ->  | I13: =IF(OFFSET(DE104_4!$K$27,ROWS($K$27:K27)-1,COLUMNS($K$27:K27)-1)<>"",OFFSET(DE104_4!$K$27,ROWS($K$27:K27)-1,COLUMNS($K$27:K27)-1),"") ->  | J13: =IF(OFFSET(DE104_4!$L$27,ROWS($L$27:L27)-1,COLUMNS($L$27:L27)-1)<>"",OFFSET(DE104_4!$L$27,ROWS($L$27:L27)-1,COLUMNS($L$27:L27)-1),"") ->  | K13: =IF(OFFSET(DE104_4!$M$27,ROWS($M$27:M27)-1,COLUMNS($M$27:M27)-1)<>"",OFFSET(DE104_4!$M$27,ROWS($M$27:M27)-1,COLUMNS($M$27:M27)-1),"") ->  | L13: =IF(OFFSET(DE104_4!$N$27,ROWS($N$27:N27)-1,COLUMNS($N$27:N27)-1)<>"",OFFSET(DE104_4!$N$27,ROWS($N$27:N27)-1,COLUMNS($N$27:N27)-1),"") ->  | M13: =IF(OFFSET(DE104_4!$O$27,ROWS($O$27:O27)-1,COLUMNS($O$27:O27)-1)<>"",OFFSET(DE104_4!$O$27,ROWS($O$27:O27)-1,COLUMNS($O$27:O27)-1),"") ->  | N13: =IF(OFFSET(DE104_4!$P$27,ROWS($P$27:P27)-1,COLUMNS($P$27:P27)-1)<>"",OFFSET(DE104_4!$P$27,ROWS($P$27:P27)-1,COLUMNS($P$27:P27)-1),"") ->  | O13: =IF(OFFSET(DE104_4!$Q$27,ROWS($Q$27:Q27)-1,COLUMNS($Q$27:Q27)-1)<>"",OFFSET(DE104_4!$Q$27,ROWS($Q$27:Q27)-1,COLUMNS($Q$27:Q27)-1),"") ->  | P13: =IF(OFFSET(DE104_4!$R$27,ROWS($R$27:R27)-1,COLUMNS($R$27:R27)-1)<>"",OFFSET(DE104_4!$R$27,ROWS($R$27:R27)-1,COLUMNS($R$27:R27)-1),"") ->  | Q13: =IF(OFFSET(DE104_4!$S$27,ROWS($S$27:S27)-1,COLUMNS($S$27:S27)-1)<>"",OFFSET(DE104_4!$S$27,ROWS($S$27:S27)-1,COLUMNS($S$27:S27)-1),"") ->  | R13: =IF(OFFSET(DE104_4!$T$27,ROWS($T$27:T27)-1,COLUMNS($T$27:T27)-1)<>"",OFFSET(DE104_4!$T$27,ROWS($T$27:T27)-1,COLUMNS($T$27:T27)-1),"") ->  | S13: =IF(OFFSET(DE104_4!$U$27,ROWS($U$27:U27)-1,COLUMNS($U$27:U27)-1)<>"",OFFSET(DE104_4!$U$27,ROWS($U$27:U27)-1,COLUMNS($U$27:U27)-1),"") ->  | T13: =IF(OFFSET(DE104_4!$V$27,ROWS($V$27:V27)-1,COLUMNS($V$27:V27)-1)<>"",OFFSET(DE104_4!$V$27,ROWS($V$27:V27)-1,COLUMNS($V$27:V27)-1),"") ->  | U13: =IF(OFFSET(DE104_4!$W$27,ROWS($W$27:W27)-1,COLUMNS($W$27:W27)-1)<>"",OFFSET(DE104_4!$W$27,ROWS($W$27:W27)-1,COLUMNS($W$27:W27)-1),"") -> 
A14: =IF(OFFSET(DE104_4!$C$27,ROWS($C$27:C28)-1,COLUMNS($C$27:C28)-1)<>"",OFFSET(DE104_4!$C$27,ROWS($C$27:C28)-1,COLUMNS($C$27:C28)-1),"") -> 88400 | B14: =IF(OFFSET(DE104_4!$D$27,ROWS($D$27:D28)-1,COLUMNS($D$27:D28)-1)<>"",OFFSET(DE104_4!$D$27,ROWS($D$27:D28)-1,COLUMNS($D$27:D28)-1),"") -> 714 | C14: =IF(OFFSET(DE104_4!$E$27,ROWS($E$27:E28)-1,COLUMNS($E$27:E28)-1)<>"",OFFSET(DE104_4!$E$27,ROWS($E$27:E28)-1,COLUMNS($E$27:E28)-1),"") -> 12'x11'-4"x134' | D14: =IF(OFFSET(DE104_4!$F$27,ROWS($F$27:F28)-1,COLUMNS($F$27:F28)-1)<>"",OFFSET(DE104_4!$F$27,ROWS($F$27:F28)-1,COLUMNS($F$27:F28)-1),"") -> RCB | E14: =IF(OFFSET(DE104_4!$G$27,ROWS($G$27:G28)-1,COLUMNS($G$27:G28)-1)<>"",OFFSET(DE104_4!$G$27,ROWS($G$27:G28)-1,COLUMNS($G$27:G28)-1),"") ->  | F14: =IF(OFFSET(DE104_4!$H$27,ROWS($H$27:H28)-1,COLUMNS($H$27:H28)-1)<>"",OFFSET(DE104_4!$H$27,ROWS($H$27:H28)-1,COLUMNS($H$27:H28)-1),"") ->  | G14: =IF(OFFSET(DE104_4!$I$27,ROWS($I$27:I28)-1,COLUMNS($I$27:I28)-1)<>"",OFFSET(DE104_4!$I$27,ROWS($I$27:I28)-1,COLUMNS($I$27:I28)-1),"") ->  | H14: =IF(OFFSET(DE104_4!$J$27,ROWS($J$27:J28)-1,COLUMNS($J$27:J28)-1)<>"",OFFSET(DE104_4!$J$27,ROWS($J$27:J28)-1,COLUMNS($J$27:J28)-1),"") ->  | I14: =IF(OFFSET(DE104_4!$K$27,ROWS($K$27:K28)-1,COLUMNS($K$27:K28)-1)<>"",OFFSET(DE104_4!$K$27,ROWS($K$27:K28)-1,COLUMNS($K$27:K28)-1),"") ->  | J14: =IF(OFFSET(DE104_4!$L$27,ROWS($L$27:L28)-1,COLUMNS($L$27:L28)-1)<>"",OFFSET(DE104_4!$L$27,ROWS($L$27:L28)-1,COLUMNS($L$27:L28)-1),"") -> 102.0368222 | K14: =IF(OFFSET(DE104_4!$M$27,ROWS($M$27:M28)-1,COLUMNS($M$27:M28)-1)<>"",OFFSET(DE104_4!$M$27,ROWS($M$27:M28)-1,COLUMNS($M$27:M28)-1),"") ->  | L14: =IF(OFFSET(DE104_4!$N$27,ROWS($N$27:N28)-1,COLUMNS($N$27:N28)-1)<>"",OFFSET(DE104_4!$N$27,ROWS($N$27:N28)-1,COLUMNS($N$27:N28)-1),"") ->  | M14: =IF(OFFSET(DE104_4!$O$27,ROWS($O$27:O28)-1,COLUMNS($O$27:O28)-1)<>"",OFFSET(DE104_4!$O$27,ROWS($O$27:O28)-1,COLUMNS($O$27:O28)-1),"") -> 142.4821556 | N14: =IF(OFFSET(DE104_4!$P$27,ROWS($P$27:P28)-1,COLUMNS($P$27:P28)-1)<>"",OFFSET(DE104_4!$P$27,ROWS($P$27:P28)-1,COLUMNS($P$27:P28)-1),"") -> 4.533333333 | O14: =IF(OFFSET(DE104_4!$Q$27,ROWS($Q$27:Q28)-1,COLUMNS($Q$27:Q28)-1)<>"",OFFSET(DE104_4!$Q$27,ROWS($Q$27:Q28)-1,COLUMNS($Q$27:Q28)-1),"") -> 147.0154889 | P14: =IF(OFFSET(DE104_4!$R$27,ROWS($R$27:R28)-1,COLUMNS($R$27:R28)-1)<>"",OFFSET(DE104_4!$R$27,ROWS($R$27:R28)-1,COLUMNS($R$27:R28)-1),"") ->  | Q14: =IF(OFFSET(DE104_4!$S$27,ROWS($S$27:S28)-1,COLUMNS($S$27:S28)-1)<>"",OFFSET(DE104_4!$S$27,ROWS($S$27:S28)-1,COLUMNS($S$27:S28)-1),"") ->  | R14: =IF(OFFSET(DE104_4!$T$27,ROWS($T$27:T28)-1,COLUMNS($T$27:T28)-1)<>"",OFFSET(DE104_4!$T$27,ROWS($T$27:T28)-1,COLUMNS($T$27:T28)-1),"") ->  | S14: =IF(OFFSET(DE104_4!$U$27,ROWS($U$27:U28)-1,COLUMNS($U$27:U28)-1)<>"",OFFSET(DE104_4!$U$27,ROWS($U$27:U28)-1,COLUMNS($U$27:U28)-1),"") ->  | T14: =IF(OFFSET(DE104_4!$V$27,ROWS($V$27:V28)-1,COLUMNS($V$27:V28)-1)<>"",OFFSET(DE104_4!$V$27,ROWS($V$27:V28)-1,COLUMNS($V$27:V28)-1),"") ->  | U14: =IF(OFFSET(DE104_4!$W$27,ROWS($W$27:W28)-1,COLUMNS($W$27:W28)-1)<>"",OFFSET(DE104_4!$W$27,ROWS($W$27:W28)-1,COLUMNS($W$27:W28)-1),"") -> BIKE TRAIL
A15: =IF(OFFSET(DE104_4!$C$27,ROWS($C$27:C29)-1,COLUMNS($C$27:C29)-1)<>"",OFFSET(DE104_4!$C$27,ROWS($C$27:C29)-1,COLUMNS($C$27:C29)-1),"") ->  | B15: =IF(OFFSET(DE104_4!$D$27,ROWS($D$27:D29)-1,COLUMNS($D$27:D29)-1)<>"",OFFSET(DE104_4!$D$27,ROWS($D$27:D29)-1,COLUMNS($D$27:D29)-1),"") ->  | C15: =IF(OFFSET(DE104_4!$E$27,ROWS($E$27:E29)-1,COLUMNS($E$27:E29)-1)<>"",OFFSET(DE104_4!$E$27,ROWS($E$27:E29)-1,COLUMNS($E$27:E29)-1),"") ->  | D15: =IF(OFFSET(DE104_4!$F$27,ROWS($F$27:F29)-1,COLUMNS($F$27:F29)-1)<>"",OFFSET(DE104_4!$F$27,ROWS($F$27:F29)-1,COLUMNS($F$27:F29)-1),"") ->  | E15: =IF(OFFSET(DE104_4!$G$27,ROWS($G$27:G29)-1,COLUMNS($G$27:G29)-1)<>"",OFFSET(DE104_4!$G$27,ROWS($G$27:G29)-1,COLUMNS($G$27:G29)-1),"") ->  | F15: =IF(OFFSET(DE104_4!$H$27,ROWS($H$27:H29)-1,COLUMNS($H$27:H29)-1)<>"",OFFSET(DE104_4!$H$27,ROWS($H$27:H29)-1,COLUMNS($H$27:H29)-1),"") ->  | G15: =IF(OFFSET(DE104_4!$I$27,ROWS($I$27:I29)-1,COLUMNS($I$27:I29)-1)<>"",OFFSET(DE104_4!$I$27,ROWS($I$27:I29)-1,COLUMNS($I$27:I29)-1),"") ->  | H15: =IF(OFFSET(DE104_4!$J$27,ROWS($J$27:J29)-1,COLUMNS($J$27:J29)-1)<>"",OFFSET(DE104_4!$J$27,ROWS($J$27:J29)-1,COLUMNS($J$27:J29)-1),"") ->  | I15: =IF(OFFSET(DE104_4!$K$27,ROWS($K$27:K29)-1,COLUMNS($K$27:K29)-1)<>"",OFFSET(DE104_4!$K$27,ROWS($K$27:K29)-1,COLUMNS($K$27:K29)-1),"") ->  | J15: =IF(OFFSET(DE104_4!$L$27,ROWS($L$27:L29)-1,COLUMNS($L$27:L29)-1)<>"",OFFSET(DE104_4!$L$27,ROWS($L$27:L29)-1,COLUMNS($L$27:L29)-1),"") ->  | K15: =IF(OFFSET(DE104_4!$M$27,ROWS($M$27:M29)-1,COLUMNS($M$27:M29)-1)<>"",OFFSET(DE104_4!$M$27,ROWS($M$27:M29)-1,COLUMNS($M$27:M29)-1),"") ->  | L15: =IF(OFFSET(DE104_4!$N$27,ROWS($N$27:N29)-1,COLUMNS($N$27:N29)-1)<>"",OFFSET(DE104_4!$N$27,ROWS($N$27:N29)-1,COLUMNS($N$27:N29)-1),"") ->  | M15: =IF(OFFSET(DE104_4!$O$27,ROWS($O$27:O29)-1,COLUMNS($O$27:O29)-1)<>"",OFFSET(DE104_4!$O$27,ROWS($O$27:O29)-1,COLUMNS($O$27:O29)-1),"") ->  | N15: =IF(OFFSET(DE104_4!$P$27,ROWS($P$27:P29)-1,COLUMNS($P$27:P29)-1)<>"",OFFSET(DE104_4!$P$27,ROWS($P$27:P29)-1,COLUMNS($P$27:P29)-1),"") ->  | O15: =IF(OFFSET(DE104_4!$Q$27,ROWS($Q$27:Q29)-1,COLUMNS($Q$27:Q29)-1)<>"",OFFSET(DE104_4!$Q$27,ROWS($Q$27:Q29)-1,COLUMNS($Q$27:Q29)-1),"") ->  | P15: =IF(OFFSET(DE104_4!$R$27,ROWS($R$27:R29)-1,COLUMNS($R$27:R29)-1)<>"",OFFSET(DE104_4!$R$27,ROWS($R$27:R29)-1,COLUMNS($R$27:R29)-1),"") ->  | Q15: =IF(OFFSET(DE104_4!$S$27,ROWS($S$27:S29)-1,COLUMNS($S$27:S29)-1)<>"",OFFSET(DE104_4!$S$27,ROWS($S$27:S29)-1,COLUMNS($S$27:S29)-1),"") ->  | R15: =IF(OFFSET(DE104_4!$T$27,ROWS($T$27:T29)-1,COLUMNS($T$27:T29)-1)<>"",OFFSET(DE104_4!$T$27,ROWS($T$27:T29)-1,COLUMNS($T$27:T29)-1),"") ->  | S15: =IF(OFFSET(DE104_4!$U$27,ROWS($U$27:U29)-1,COLUMNS($U$27:U29)-1)<>"",OFFSET(DE104_4!$U$27,ROWS($U$27:U29)-1,COLUMNS($U$27:U29)-1),"") ->  | T15: =IF(OFFSET(DE104_4!$V$27,ROWS($V$27:V29)-1,COLUMNS($V$27:V29)-1)<>"",OFFSET(DE104_4!$V$27,ROWS($V$27:V29)-1,COLUMNS($V$27:V29)-1),"") ->  | U15: =IF(OFFSET(DE104_4!$W$27,ROWS($W$27:W29)-1,COLUMNS($W$27:W29)-1)<>"",OFFSET(DE104_4!$W$27,ROWS($W$27:W29)-1,COLUMNS($W$27:W29)-1),"") -> 
